Workbook

Sheet Interface
F3: User Information: Location, soil texture, and planting options | V3: Soil Texture
O4: Planting Options (Choose % of acreage planted to different MG by planting week) | V4: Clay | X4: Prices
J5: Lat. | K5: Long. | V5: Silt Loam | X5: Meal | Y5: Oil
D6: Location nearest your fields: | I6: Marianna, AR | J6: =VLOOKUP(I6,V18:Z30,3,FALSE) -> 34° 46' N | K6: =VLOOKUP(I6,V18:Y30,4,FALSE) -> 90° 45' W | O6: % of Acres | Q6: MG | S6: Planting Week | W6: Prices | X6: 20.19945104 | Y6: 48.01611745 | AA6: <-- Update Prices, Average Oil and Protein Content here.
W7: Average Content | X7: 0.3507033375 | Y7: 0.1954283352
O8: 0.2 | Q8: MG 4.5-4.9 | S8: April 23-30 | V8: Location Key
D9: Soil Texture: | I9: Silt Loam | V9: =VLOOKUP(I6,V18:AC30,8,FALSE) -> 6
O10: 0.1 | Q10: MG 4.0-4.4 | S10: April 23-30
O12: 0.4 | Q12: MG 4.5-4.9 | S12: May 1-7
I13: Highest Yielding MG -- PD Combination | V13: MG 4.5-4.9 May 1-7
O14: 0.3 | Q14: MG 5.0-5.4 | S14: May 8-14 | V14: Highest Yielding MG PD Combination
I15: =IFERROR(IF(I9="Clay",VLOOKUP(I6,V18:AA30,6,FALSE),VLOOKUP(I6,V18:AB30,7,FALSE)),"") -> MG 4.5-4.9 April 23-30
O16: 0 | Q16: Please Select | S16: Please Select | AA16: Yield Max Combination | AF16: Please Select
V17: Locations: | X17: Latitude | Y17: Longitude | Z17: Location ID | AA17: Clay | AB17: Silt Loam | AF17: MG 3.0-3.4 | AG17: rm3.0 | AH17: MG 3.0-3.4
O18: 0 | Q18: Please Select | S18: Please Select | V18: Columbia, MO | W18: Columbia_MO | X18: 38° 57' N | Y18: 92° 20' W | Z18: Loc13 | AA18: MG 3.5-3.9 April 15-22 | AB18: MG 3.5-3.9 April 15-22 | AC18: 1 | AF18: MG 3.5-3.9 | AG18: rm3.5 | AH18: MG 3.5-3.9
V19: Carbondale, IL | W19: Carbondale_IL | X19: 37° 44' N | Y19: 89° 13' W | Z19: Loc12 | AA19: MG 3.5-3.9 April 15-22 | AB19: MG 3.5-3.9 April 15-22 | AC19: 2 | AF19: MG 4.0-4.4 | AG19: rm4.0 | AH19: MG 4.0-4.4
O20: 0 | Q20: Please Select | S20: Please Select | V20: Sikeston, MO | W20: Sikeston_MO | X20: 36° 53' N | Y20: 89° 35' W | Z20: Loc11 | AA20: MG 3.5-3.9 May 1-7 | AB20: MG 3.5-3.9 May 1-7 | AC20: 3 | AF20: MG 4.5-4.9 | AG20: rm4.5 | AH20: MG 4.5-4.9
V21: Milan, TN | W21: Milan_TN | X21: 35° 38' N | Y21: 88° 49' W | Z21: Loc10 | AA21: MG 3.5-3.9 April 23-30 | AB21: MG 3.5-3.9 April 23-30 | AC21: 4 | AF21: MG 5.0-5.4 | AG21: rm5.0 | AH21: MG 5.0-5.4
O22: 0 | Q22: Please Select | S22: Please Select | V22: Stoneville, MS | W22: Stoneville_MS | X22: 34° 46' N | Y22: 90° 45' W | Z22: Loc9 | AA22: MG 4.5-4.9 May 1-7 | AB22: MG 4.5-4.9 May 1-7 | AC22: 5 | AF22: MG 5.5-5.9 | AG22: rm5.5 | AH22: MG 5.5-5.9
V23: Marianna, AR | W23: Marianna_AR | X23: 34° 46' N | Y23: 90° 45' W | Z23: Loc8 | AA23: MG 4.5-4.9 April 23-30 | AB23: MG 4.5-4.9 April 23-30 | AC23: 6 | AF23: MG 6.0-6.4 | AG23: rm6.0 | AH23: MG 6.0-6.4
V24: Tupelo, MS | W24: Tupelo_MS | X24: 34° 15' N | Y24: 88° 42' W | Z24: Loc7 | AA24: MG 4.5-4.9 April 23-30 | AB24: MG 4.5-4.9 April 23-30 | AC24: 7 | AF24: MG 6.5-6.9 | AG24: rm6.5 | AH24: MG 6.5-6.9
O25: =IF(SUM(O8:O22)<>1,"Caution: Options don't add to 100%!"," ") ->  | V25: Rohwer, AR | W25: Rohwer_AR | X25: 33⁰ 46' N | Y25: 91⁰ 17' W | Z25: Loc6 | AA25: MG 5.0-5.4 April 23-30 | AB25: MG 5.0-5.4 April 23-30 | AC25: 8
V26: Yazoo City, MS | W26: YazooCity_MS | X26: 32° 51' N | Y26: 90° 24' W | Z26: Loc5 | AA26: MG 3.5-3.9 May 8-14 | AB26: MG 3.5-3.9 May 8-14 | AC26: 9
V27: Winnsboro, LA | W27: Winnsboro_LA | X27: 32° 10' N | Y27: 91° 43' W | Z27: Loc4 | AA27: MG 5.0-5.4 May 1-7 | AB27: MG 5.0-5.4 May 1-7 | AC27: 10
V28: Alexandria, LA | W28: Alexandria_LA | X28: 31° 19' N | Y28: 92° 27' W | Z28: Loc3 | AA28: MG 5.0-5.4 May 1-7 | AB28: MG 5.0-5.4 May 1-7 | AC28: 11
V29: College Station, TX | W29: CollegeStation_TX | X29: 30° 38' N | Y29: 96° 20' W | Z29: Loc2 | AA29: MG 5.0-5.4 May 15-22 | AB29: MG 5.0-5.4 May 15-22 | AC29: 12
V30: Baton Rouge, LA | W30: BatonRouge_LA | X30: 30° 27' N | Y30: 91° 8' W | Z30: Loc1 | AA30: MG 5.0-5.4 May 1-7 | AB30: MG 5.0-5.4 May 1-7 | AC30: 13
V31: Please Select
V32: March 15-22 | W32: wk1
V33: March 23-31 | W33: wk2
V34: April 1-7 | W34: wk3
V35: April 8-14 | W35: wk4
V36: April 15-22 | W36: wk5
V37: April 23-30 | W37: wk6
V38: May 1-7 | W38: wk7
V39: May 8-14 | W39: wk8
V40: May 15-22 | W40: wk9
I41: User Portfolio | V41: May 23-31 | W41: wk10
K42: =SUM(K43:K154) -> 1 | L42: Check | V42: June 1-7 | W42: wk11
A43: Seasonal Index Values by Week | H43: 1 | I43: March 15-22 | J43: MG 3.0-3.4 | K43: =(IF($S$8=I43,IF($Q$8=J43,$O$8,0)))+(IF($S$10=I43,IF($Q$10=J43,$O$10,0)))+(IF($S$12=I43,IF($Q$12=J43,$O$12,0)))+(IF($S$14=I43,IF($Q$14=J43,$O$14,0)))+(IF($S$16=I43,IF($Q$16=J43,$O$16,0)))+(IF($S$18=I43,IF($Q$18=J43,$O$18,0)))+(IF($S$20=I43,IF($Q$20=J43,$O$20,0)))+(IF($S$22=I43,IF($Q$22=J43,$O$22,0))) -> 0 | V43: June 8-14 | W43: wk12
H44: 2 | I44: March 15-22 | J44: MG 3.5-3.9 | K44: =(IF($S$8=I44,IF($Q$8=J44,$O$8,0)))+(IF($S$10=I44,IF($Q$10=J44,$O$10,0)))+(IF($S$12=I44,IF($Q$12=J44,$O$12,0)))+(IF($S$14=I44,IF($Q$14=J44,$O$14,0)))+(IF($S$16=I44,IF($Q$16=J44,$O$16,0)))+(IF($S$18=I44,IF($Q$18=J44,$O$18,0)))+(IF($S$20=I44,IF($Q$20=J44,$O$20,0)))+(IF($S$22=I44,IF($Q$22=J44,$O$22,0))) -> 0 | V44: June 15-22 | W44: wk13
A45: 1 | B45: 0.978628388 | H45: 3 | I45: March 15-22 | J45: MG 4.0-4.4 | K45: 0 | V45: June 23-30 | W45: wk14
A46: 2 | B46: 0.9792688955 | H46: 4 | I46: March 15-22 | J46: MG 4.5-4.9 | K46: 0
A47: 3 | B47: 0.9922119199 | H47: 5 | I47: March 15-22 | J47: MG 5.0-5.4 | K47: 0
A48: 4 | B48: 0.9612133256 | H48: 6 | I48: March 15-22 | J48: MG 5.5-5.9 | K48: 0
A49: 5 | B49: 0.974333124 | H49: 7 | I49: March 15-22 | J49: MG 6.0-6.4 | K49: 0
A50: 6 | B50: 0.993879337 | H50: 8 | I50: March 15-22 | J50: MG 6.5-6.9 | K50: 0
A51: 7 | B51: 0.9980088872 | H51: 9 | I51: March 23-31 | J51: MG 3.0-3.4 | K51: 0
A52: 8 | B52: 0.991891977 | H52: 10 | I52: March 23-31 | J52: MG 3.5-3.9 | K52: 0
A53: 9 | B53: 1.009075339 | H53: 11 | I53: March 23-31 | J53: MG 4.0-4.4 | K53: 0
A54: 10 | B54: 1.006149896 | H54: 12 | I54: March 23-31 | J54: MG 4.5-4.9 | K54: 0
A55: 11 | B55: 0.9929182604 | H55: 13 | I55: March 23-31 | J55: MG 5.0-5.4 | K55: 0
A56: 12 | B56: 0.9890684329 | H56: 14 | I56: March 23-31 | J56: MG 5.5-5.9 | K56: 0
A57: 13 | B57: 0.9928638376 | H57: 15 | I57: March 23-31 | J57: MG 6.0-6.4 | K57: 0
A58: 14 | B58: 1.0101208 | H58: 16 | I58: March 23-31 | J58: MG 6.5-6.9 | K58: 0
A59: 15 | B59: 1.018602111 | H59: 17 | I59: April 1-7 | J59: MG 3.0-3.4 | K59: 0
A60: 16 | B60: 1.008809875 | H60: 18 | I60: April 1-7 | J60: MG 3.5-3.9 | K60: 0
A61: 17 | B61: 1.018178419 | H61: 19 | I61: April 1-7 | J61: MG 4.0-4.4 | K61: 0
A62: 18 | B62: 1.028977082 | H62: 20 | I62: April 1-7 | J62: MG 4.5-4.9 | K62: 0
A63: 19 | B63: 1.020927918 | H63: 21 | I63: April 1-7 | J63: MG 5.0-5.4 | K63: 0
A64: 20 | B64: 1.029048018 | H64: 22 | I64: April 1-7 | J64: MG 5.5-5.9 | K64: 0
A65: 21 | B65: 1.032888796 | H65: 23 | I65: April 1-7 | J65: MG 6.0-6.4 | K65: 0
A66: 22 | B66: 1.032776439 | H66: 24 | I66: April 1-7 | J66: MG 6.5-6.9 | K66: 0
A67: 23 | B67: 1.049225465 | H67: 25 | I67: April 8-14 | J67: MG 3.0-3.4 | K67: 0
A68: 24 | B68: 1.048530303 | H68: 26 | I68: April 8-14 | J68: MG 3.5-3.9 | K68: 0
A69: 25 | B69: 1.049584161 | H69: 27 | I69: April 8-14 | J69: MG 4.0-4.4 | K69: 0
A70: 26 | B70: 1.057864194 | H70: 28 | I70: April 8-14 | J70: MG 4.5-4.9 | K70: 0
A71: 27 | B71: 1.074997388 | H71: 29 | I71: April 8-14 | J71: MG 5.0-5.4 | K71: 0
A72: 28 | B72: 1.064057089 | H72: 30 | I72: April 8-14 | J72: MG 5.5-5.9 | K72: 0
A73: 29 | B73: 1.053718631 | H73: 31 | I73: April 8-14 | J73: MG 6.0-6.4 | K73: 0
A74: 30 | B74: 1.029177554 | H74: 32 | I74: April 8-14 | J74: MG 6.5-6.9 | K74: 0
A75: 31 | B75: 1.038525267 | H75: 33 | I75: April 15-22 | J75: MG 3.0-3.4 | K75: 0
A76: 32 | B76: 1.005980369 | H76: 34 | I76: April 15-22 | J76: MG 3.5-3.9 | K76: 0
A77: 33 | B77: 1.006760519 | H77: 35 | I77: April 15-22 | J77: MG 4.0-4.4 | K77: 0
A78: 34 | B78: 1.013105442 | H78: 36 | I78: April 15-22 | J78: MG 4.5-4.9 | K78: 0
A79: 35 | B79: 1.028187392 | H79: 37 | I79: April 15-22 | J79: MG 5.0-5.4 | K79: 0
A80: 36 | B80: 1.006922429 | H80: 38 | I80: April 15-22 | J80: MG 5.5-5.9 | K80: 0
A81: 37 | B81: 0.9871807219 | H81: 39 | I81: April 15-22 | J81: MG 6.0-6.4 | K81: 0
A82: 38 | B82: 0.9741250665 | H82: 40 | I82: April 15-22 | J82: MG 6.5-6.9 | K82: 0
A83: 39 | B83: 0.9640689803 | H83: 41 | I83: April 23-30 | J83: MG 3.0-3.4 | K83: 0
A84: 40 | B84: 0.9000819717 | H84: 42 | I84: April 23-30 | J84: MG 3.5-3.9 | K84: 0
A85: 41 | B85: 0.9083509455 | H85: 43 | I85: April 23-30 | J85: MG 4.0-4.4 | K85: 0.1
A86: 42 | B86: 0.929459152 | H86: 44 | I86: April 23-30 | J86: MG 4.5-4.9 | K86: 0.2
A87: 43 | B87: 0.9578660804 | H87: 45 | I87: April 23-30 | J87: MG 5.0-5.4 | K87: 0
A88: 44 | B88: 0.9668195212 | H88: 46 | I88: April 23-30 | J88: MG 5.5-5.9 | K88: 0
A89: 45 | B89: 0.9697422492 | H89: 47 | I89: April 23-30 | J89: MG 6.0-6.4 | K89: 0
A90: 46 | B90: 0.9570913563 | H90: 48 | I90: April 23-30 | J90: MG 6.5-6.9 | K90: 0
A91: 47 | B91: 0.9578522081 | H91: 49 | I91: May 1-7 | J91: MG 3.0-3.4 | K91: 0
A92: 48 | B92: 0.9735902236 | H92: 50 | I92: May 1-7 | J92: MG 3.5-3.9 | K92: 0
A93: 49 | B93: 0.971337073 | H93: 51 | I93: May 1-7 | J93: MG 4.0-4.4 | K93: 0
A94: 50 | B94: 0.9804318902 | H94: 52 | I94: May 1-7 | J94: MG 4.5-4.9 | K94: 0.4
A95: 51 | B95: 0.9838333607 | H95: 53 | I95: May 1-7 | J95: MG 5.0-5.4 | K95: 0
A96: 52 | B96: 0.9913440765 | H96: 54 | I96: May 1-7 | J96: MG 5.5-5.9 | K96: 0
A97: 53 | B97: 1.007457899 | H97: 55 | I97: May 1-7 | J97: MG 6.0-6.4 | K97: 0
H98: 56 | I98: May 1-7 | J98: MG 6.5-6.9 | K98: 0
H99: 57 | I99: May 8-14 | J99: MG 3.0-3.4 | K99: 0
H100: 58 | I100: May 8-14 | J100: MG 3.5-3.9 | K100: 0
H101: 59 | I101: May 8-14 | J101: MG 4.0-4.4 | K101: 0
H102: 60 | I102: May 8-14 | J102: MG 4.5-4.9 | K102: 0
H103: 61 | I103: May 8-14 | J103: MG 5.0-5.4 | K103: 0.3
H104: 62 | I104: May 8-14 | J104: MG 5.5-5.9 | K104: 0
H105: 63 | I105: May 8-14 | J105: MG 6.0-6.4 | K105: 0
H106: 64 | I106: May 8-14 | J106: MG 6.5-6.9 | K106: 0
H107: 65 | I107: May 15-22 | J107: MG 3.0-3.4 | K107: 0
H108: 66 | I108: May 15-22 | J108: MG 3.5-3.9 | K108: =(IF($S$8=I108,IF($Q$8=J108,$O$8,0)))+(IF($S$10=I108,IF($Q$10=J108,$O$10,0)))+(IF($S$12=I108,IF($Q$12=J108,$O$12,0)))+(IF($S$14=I108,IF($Q$14=J108,$O$14,0)))+(IF($S$16=I108,IF($Q$16=J108,$O$16,0)))+(IF($S$18=I108,IF($Q$18=J108,$O$18,0)))+(IF($S$20=I108,IF($Q$20=J108,$O$20,0)))+(IF($S$22=I108,IF($Q$22=J108,$O$22,0))) -> 0
H109: 67 | I109: May 15-22 | J109: MG 4.0-4.4 | K109: 0
H110: 68 | I110: May 15-22 | J110: MG 4.5-4.9 | K110: 0
H111: 69 | I111: May 15-22 | J111: MG 5.0-5.4 | K111: 0
H112: 70 | I112: May 15-22 | J112: MG 5.5-5.9 | K112: 0
H113: 71 | I113: May 15-22 | J113: MG 6.0-6.4 | K113: 0
H114: 72 | I114: May 15-22 | J114: MG 6.5-6.9 | K114: 0
H115: 73 | I115: May 23-31 | J115: MG 3.0-3.4 | K115: 0
H116: 74 | I116: May 23-31 | J116: MG 3.5-3.9 | K116: 0
H117: 75 | I117: May 23-31 | J117: MG 4.0-4.4 | K117: 0
H118: 76 | I118: May 23-31 | J118: MG 4.5-4.9 | K118: 0
H119: 77 | I119: May 23-31 | J119: MG 5.0-5.4 | K119: 0
H120: 78 | I120: May 23-31 | J120: MG 5.5-5.9 | K120: 0
H121: 79 | I121: May 23-31 | J121: MG 6.0-6.4 | K121: 0
H122: 80 | I122: May 23-31 | J122: MG 6.5-6.9 | K122: 0
H123: 81 | I123: June 1-7 | J123: MG 3.0-3.4 | K123: 0
H124: 82 | I124: June 1-7 | J124: MG 3.5-3.9 | K124: 0
H125: 83 | I125: June 1-7 | J125: MG 4.0-4.4 | K125: 0
H126: 84 | I126: June 1-7 | J126: MG 4.5-4.9 | K126: 0
H127: 85 | I127: June 1-7 | J127: MG 5.0-5.4 | K127: 0
H128: 86 | I128: June 1-7 | J128: MG 5.5-5.9 | K128: 0
H129: 87 | I129: June 1-7 | J129: MG 6.0-6.4 | K129: 0
H130: 88 | I130: June 1-7 | J130: MG 6.5-6.9 | K130: 0
H131: 89 | I131: June 8-14 | J131: MG 3.0-3.4 | K131: 0
H132: 90 | I132: June 8-14 | J132: MG 3.5-3.9 | K132: 0
H133: 91 | I133: June 8-14 | J133: MG 4.0-4.4 | K133: 0
H134: 92 | I134: June 8-14 | J134: MG 4.5-4.9 | K134: 0
H135: 93 | I135: June 8-14 | J135: MG 5.0-5.4 | K135: 0
H136: 94 | I136: June 8-14 | J136: MG 5.5-5.9 | K136: 0
H137: 95 | I137: June 8-14 | J137: MG 6.0-6.4 | K137: 0
H138: 96 | I138: June 8-14 | J138: MG 6.5-6.9 | K138: 0
H139: 97 | I139: June 15-22 | J139: MG 3.0-3.4 | K139: 0
H140: 98 | I140: June 15-22 | J140: MG 3.5-3.9 | K140: 0
H141: 99 | I141: June 15-22 | J141: MG 4.0-4.4 | K141: 0
H142: 100 | I142: June 15-22 | J142: MG 4.5-4.9 | K142: 0
H143: 101 | I143: June 15-22 | J143: MG 5.0-5.4 | K143: 0
H144: 102 | I144: June 15-22 | J144: MG 5.5-5.9 | K144: 0
H145: 103 | I145: June 15-22 | J145: MG 6.0-6.4 | K145: 0
H146: 104 | I146: June 15-22 | J146: MG 6.5-6.9 | K146: 0
H147: 105 | I147: June 23-30 | J147: MG 3.0-3.4 | K147: 0
H148: 106 | I148: June 23-30 | J148: MG 3.5-3.9 | K148: 0
H149: 107 | I149: June 23-30 | J149: MG 4.0-4.4 | K149: 0
H150: 108 | I150: June 23-30 | J150: MG 4.5-4.9 | K150: 0
H151: 109 | I151: June 23-30 | J151: MG 5.0-5.4 | K151: 0
H152: 110 | I152: June 23-30 | J152: MG 5.5-5.9 | K152: 0
H153: 111 | I153: June 23-30 | J153: MG 6.0-6.4 | K153: 0
H154: 112 | I154: June 23-30 | J154: MG 6.5-6.9 | K154: 0

Sheet Interface2
L1: Depth Choice | M1: Power Choice | N1: Energy Cost Choice | O1: Irrigation Type | P1: 1.1 | Q1: Diesel needed to lift one acre-inch of water 100 ft. | AO1: =+Interface!I6 -> Marianna, AR | AP1: =COUNTIF(AO4:AO115,">0") -> 4 | AR1: =Interface!I9 -> Silt Loam
L2: 3 | M2: 2 | N2: 2 | O2: 1 | P2: 17 | Q2: kWh needed to lift one acre-inch of water 100 ft. | AA2: Optimization Goals | AE2: Solve Speed | AI2: =CONCATENATE(VLOOKUP(1,$AI$4:$AK$115,3,FALSE)," ",VLOOKUP(1,$AI$4:$AK$115,2,FALSE)) -> MG 4.5-4.9 April 23-30 | AL2: =SUM(AL4:AL115) -> 1 | AM2: =SUM(AM4:AM115) -> 4 | AN2: =SUM(AN4:AN115) -> 20.00000003 | AO2: =SUM(AO4:AO115) -> 1.000000002 | AP2: =SUM(AP4:AP115) -> 3 | AY2: Seas. Adj. Price
L3: 50 ft well | M3: Diesel | N3: =IF($M$2=1,"$1.5/gal","5 ¢/kWh") -> 5 ¢/kWh | O3: Furrow/Flood | P3: 1.5 | Q3: Center pivot addition to energy use | AA3: 2 | AE3: Lower Precisision (faster) | AG3: 1 | AI3: Yield Max | AJ3: User Selected Portfolio | AM3: Count | AN3: Solver | AP3: Count | AR3: Irrigation | AS3: Yield | AT3: HvstWk | AU3: Oil | AV3: Protein | AW3: Premium | AX3: Return | AZ3: Option
L4: 100 ft well | M4: Electric | N4: =IF($M$2=1,"$2/gal","7 ¢/kWh") -> 7 ¢/kWh | O4: Center Pivot | T4: Adjust Soybean Price | Z4: 1 | AA4: Min. Risk & Max. Profit | AE4: Higher Precision (slower) | AG4: 1 | AI4: =IF(AS4=MAX($AS$4:$AS$115),1,0) -> 0 | AJ4: March 15-22 | AK4: MG 3.0-3.4 | AL4: =Interface!K43 -> 0 | AM4: =IF(AL4>0.001,1,0) -> 0 | AN4: 0 | AO4: =AN4*0.05 -> 0 | AP4: =IF(AO4>0.0005,1,0) -> 0 | AR4: 5.819200485 | AS4: 56.72268188 | AT4: 31 | AU4: 0.2043214286 | AV4: 0.3415714286 | AW4: =(Interface!$Y$6*60.72*(AU4-Interface!$Y$7)+Interface!$X$6/0.48*(48.73*(AU4-Interface!$Y$7)+78.33*(AV4-Interface!$X$7)-46.23*(AU4^2-Interface!$Y$7^2)-91.08*(AU4*AV4-Interface!$Y$7*Interface!$X$7)))/100 -> 0.02344760674 | AX4: =AS4*((Interface2!$D$12+(AW4*$T$6))*IF($T$6=1,VLOOKUP(AT4,Interface!$A$45:$B$97,2,FALSE),1))-$N$11-$F$10*AR4 -> 71.6374926 | AY4: =($D$12+(AW4*$T$6))*IF($T$6=1,VLOOKUP(AT4,Interface!$A$45:$B$97,2,FALSE),1) -> 9.37107834 | AZ4: PD78MG3
L5: 150 ft well | N5: =IF($M$2=1,"$2.5/gal","10 ¢/kWh") -> 10 ¢/kWh | P5: 0.5 | Q5: furrow/flood efficiency | Z5: 2 | AA5: Max. Profit @ No More Than User Risk | AI5: 0 | AJ5: March 15-22 | AK5: MG 3.5-3.9 | AL5: =Interface!K44 -> 0 | AM5: 0 | AN5: 0 | AO5: =AN5*0.05 -> 0 | AP5: =IF(AO5>0.0005,1,0) -> 0 | AR5: 6.231721035 | AS5: 58.8959122 | AT5: 32 | AU5: 0.2035714286 | AV5: 0.3433928571 | AW5: =(Interface!$Y$6*60.72*(AU5-Interface!$Y$7)+Interface!$X$6/0.48*(48.73*(AU5-Interface!$Y$7)+78.33*(AV5-Interface!$X$7)-46.23*(AU5^2-Interface!$Y$7^2)-91.08*(AU5*AV5-Interface!$Y$7*Interface!$X$7)))/100 -> 0.04779942312 | AX5: =AS5*((Interface2!$D$12+(AW5*$T$6))*IF($T$6=1,VLOOKUP(AT5,Interface!$A$45:$B$97,2,FALSE),1))-$N$11-$F$10*AR5 -> 73.6748838 | AY5: =($D$12+(AW5*$T$6))*IF($T$6=1,VLOOKUP(AT5,Interface!$A$45:$B$97,2,FALSE),1) -> 9.101908604 | AZ5: PD78MG3.5
B6: =CONCATENATE("Specification of cost of production for ",Interface!I6," on ",Interface!I9," soils") -> Specification of cost of production for Marianna, AR on Silt Loam soils | L6: 200 ft well | N6: =IF($M$2=1,"$3/gal","13 ¢/kWh") -> 13 ¢/kWh | P6: 0.75 | Q6: center pivot efficiency | T6: =IF(AF8=1,1,0) -> 1 | Z6: 3 | AA6: Meet Irrigation Limit | AI6: 0 | AJ6: March 15-22 | AK6: MG 4.0-4.4 | AL6: =Interface!K45 -> 0 | AM6: 0 | AN6: 0 | AO6: 0 | AP6: 0 | AR6: 7.325646794 | AS6: 64.76180688 | AT6: 33 | AU6: 0.2019285714 | AV6: 0.3494285714 | AW6: =(Interface!$Y$6*60.72*(AU6-Interface!$Y$7)+Interface!$X$6/0.48*(48.73*(AU6-Interface!$Y$7)+78.33*(AV6-Interface!$X$7)-46.23*(AU6^2-Interface!$Y$7^2)-91.08*(AU6*AV6-Interface!$Y$7*Interface!$X$7)))/100 -> 0.1530358935 | AX6: =AS6*((Interface2!$D$12+(AW6*$T$6))*IF($T$6=1,VLOOKUP(AT6,Interface!$A$45:$B$97,2,FALSE),1))-$N$11-$F$10*AR6 -> 127.8206754 | AY6: =($D$12+(AW6*$T$6))*IF($T$6=1,VLOOKUP(AT6,Interface!$A$45:$B$97,2,FALSE),1) -> 9.214915163 | AZ6: PD78MG4
L7: 250 ft well | N7: =IF($M$2=1,"$3.5/gal","17 ¢/kWh") -> 17 ¢/kWh | Z7: Planting Restrictions | AC7: 1 | AE7: Seasonality & Oil/Protein Price Premium/Discount | AI7: 0 | AJ7: March 15-22 | AK7: MG 4.5-4.9 | AL7: =Interface!K46 -> 0 | AM7: 0 | AN7: 0 | AO7: 0 | AP7: 0 | AR7: 8.726096738 | AS7: 63.22752682 | AT7: 35 | AU7: 0.2008214286 | AV7: 0.3515714286 | AW7: =(Interface!$Y$6*60.72*(AU7-Interface!$Y$7)+Interface!$X$6/0.48*(48.73*(AU7-Interface!$Y$7)+78.33*(AV7-Interface!$X$7)-46.23*(AU7^2-Interface!$Y$7^2)-91.08*(AU7*AV7-Interface!$Y$7*Interface!$X$7)))/100 -> 0.1756967989 | AX7: =AS7*((Interface2!$D$12+(AW7*$T$6))*IF($T$6=1,VLOOKUP(AT7,Interface!$A$45:$B$97,2,FALSE),1))-$N$11-$F$10*AR7 -> 119.1531371 | AY7: =($D$12+(AW7*$T$6))*IF($T$6=1,VLOOKUP(AT7,Interface!$A$45:$B$97,2,FALSE),1) -> 9.434335763 | AZ7: PD78MG4.5
B8: Producer Choices | F8: $/effective acre-inch | L8: 300 ft well | N8: =IF($M$2=1,"$4/gal","20 ¢/kWh") -> 20 ¢/kWh | Z8: March-May | AC8: 1 | AE8: Yes | AF8: 1 | AI8: 0 | AJ8: March 15-22 | AK8: MG 5.0-5.4 | AL8: =Interface!K47 -> 0 | AM8: 0 | AN8: 2.503353656e-06 | AO8: 1.251676828e-07 | AP8: 0 | AR8: 9.50928009 | AS8: 63.84763406 | AT8: 36 | AU8: 0.1974642857 | AV8: 0.3555 | AW8: =(Interface!$Y$6*60.72*(AU8-Interface!$Y$7)+Interface!$X$6/0.48*(48.73*(AU8-Interface!$Y$7)+78.33*(AV8-Interface!$X$7)-46.23*(AU8^2-Interface!$Y$7^2)-91.08*(AU8*AV8-Interface!$Y$7*Interface!$X$7)))/100 -> 0.1799891842 | AX8: =AS8*((Interface2!$D$12+(AW8*$T$6))*IF($T$6=1,VLOOKUP(AT8,Interface!$A$45:$B$97,2,FALSE),1))-$N$11-$F$10*AR8 -> 108.1222879 | AY8: =($D$12+(AW8*$T$6))*IF($T$6=1,VLOOKUP(AT8,Interface!$A$45:$B$97,2,FALSE),1) -> 9.24353701 | AZ8: PD78MG5
B9: Please choose an irrigation cost that most closely represents your cash costs per acre-inch applied | D9: =(L2*50)/100*IF(M2=1,P1*IF(N2=1,1.5,IF(N2=2,2,IF(N2=3,2.5,IF(N2=4,3,IF(N2=5,3.5,4))))),P2*IF(N2 = 1,0.05,IF(N2 = 2,0.07,IF(N2=3,0.1,IF(N2=4,0.13,IF(N2=5,0.17,0.2))))))*IF(O2=2,P3,1) -> 1.785 | Q9: Minimum Irrigation Possible | Z9: April-June | AC9: 2 | AE9: No | AI9: 0 | AJ9: March 15-22 | AK9: MG 5.5-5.9 | AL9: =Interface!K48 -> 0 | AM9: 0 | AN9: 0 | AO9: 0 | AP9: 0 | AR9: 9.988751406 | AS9: 62.10436759 | AT9: 37 | AU9: 0.1968214286 | AV9: 0.3552142857 | AW9: =(Interface!$Y$6*60.72*(AU9-Interface!$Y$7)+Interface!$X$6/0.48*(48.73*(AU9-Interface!$Y$7)+78.33*(AV9-Interface!$X$7)-46.23*(AU9^2-Interface!$Y$7^2)-91.08*(AU9*AV9-Interface!$Y$7*Interface!$X$7)))/100 -> 0.1544915499 | AX9: =AS9*((Interface2!$D$12+(AW9*$T$6))*IF($T$6=1,VLOOKUP(AT9,Interface!$A$45:$B$97,2,FALSE),1))-$N$11-$F$10*AR9 -> 76.31320557 | AY9: =($D$12+(AW9*$T$6))*IF($T$6=1,VLOOKUP(AT9,Interface!$A$45:$B$97,2,FALSE),1) -> 9.037137577 | AZ9: PD78MG5.5
B10: (i.e. fuel/electric, depth to water, irrigation type and energy cost can be selected to see a suggested amount. Enter your own to reflect other charges/savings that apply to your farm) | D10: 3 | F10: =+D10/IF(O2=1,P5,P6) -> 6 | M10: Cost Choice | P10: Location | Q10: Clay | R10: SiltLoam | Z10: May-June | AC10: 3 | AI10: 0 | AJ10: March 15-22 | AK10: MG 6.0-6.4 | AL10: =Interface!K49 -> 0 | AM10: 0 | AN10: 0 | AO10: 0 | AP10: 0 | AR10: 10.72553431 | AS10: 63.13559564 | AT10: 38 | AU10: 0.1959642857 | AV10: 0.3531428571 | AW10: =(Interface!$Y$6*60.72*(AU10-Interface!$Y$7)+Interface!$X$6/0.48*(48.73*(AU10-Interface!$Y$7)+78.33*(AV10-Interface!$X$7)-46.23*(AU10^2-Interface!$Y$7^2)-91.08*(AU10*AV10-Interface!$Y$7*Interface!$X$7)))/100 -> 0.07742183958 | AX10: =AS10*((Interface2!$D$12+(AW10*$T$6))*IF($T$6=1,VLOOKUP(AT10,Interface!$A$45:$B$97,2,FALSE),1))-$N$11-$F$10*AR10 -> 68.92608622 | AY10: =($D$12+(AW10*$T$6))*IF($T$6=1,VLOOKUP(AT10,Interface!$A$45:$B$97,2,FALSE),1) -> 8.842544153 | AZ10: PD78MG6
B11: Please choose an amount that most closely reflects per acre costs other than irrigation costs just specified above ... | C11: (e.g. seed, fertilizer, chemicals, fuel, labor, equipment, and rent or land charges) | M11: 6 | N11: =VLOOKUP(M11,L12:N19,3,FALSE) -> 425 | P11: Columbia, MO | Q11: 4.35 | R11: 4.89 | Z11: June | AC11: 4 | AI11: 0 | AJ11: March 15-22 | AK11: MG 6.5-6.9 | AL11: =Interface!K50 -> 0 | AM11: 0 | AN11: 0 | AO11: 0 | AP11: 0 | AR11: 11.15298088 | AS11: 60.98806037 | AT11: 39 | AU11: 0.1943214286 | AV11: 0.3525 | AW11: =(Interface!$Y$6*60.72*(AU11-Interface!$Y$7)+Interface!$X$6/0.48*(48.73*(AU11-Interface!$Y$7)+78.33*(AV11-Interface!$X$7)-46.23*(AU11^2-Interface!$Y$7^2)-91.08*(AU11*AV11-Interface!$Y$7*Interface!$X$7)))/100 -> 0.01414247915 | AX11: =AS11*((Interface2!$D$12+(AW11*$T$6))*IF($T$6=1,VLOOKUP(AT11,Interface!$A$45:$B$97,2,FALSE),1))-$N$11-$F$10*AR11 -> 38.0839203 | AY11: =($D$12+(AW11*$T$6))*IF($T$6=1,VLOOKUP(AT11,Interface!$A$45:$B$97,2,FALSE),1) -> 8.690255148 | AZ11: PD78MG6.5
B12: Expected Soybean Price ($/bu) … please enter an annual average net of hauling and check off you expect… | D12: 9 | F12: Effective limit | L12: 1 | M12: $ 300/acre | N12: 300 | P12: Carbondale, IL | Q12: 5.09 | R12: 5.69 | Y12: Planting Key | AI12: 0 | AJ12: March 23-31 | AK12: MG 3.0-3.4 | AL12: =Interface!K51 -> 0 | AM12: 0 | AN12: 0 | AO12: 0 | AP12: 0 | AR12: 5.681509639 | AS12: 59.49432139 | AT12: 32 | AU12: 0.2045172414 | AV12: 0.3414482759 | AW12: =(Interface!$Y$6*60.72*(AU12-Interface!$Y$7)+Interface!$X$6/0.48*(48.73*(AU12-Interface!$Y$7)+78.33*(AV12-Interface!$X$7)-46.23*(AU12^2-Interface!$Y$7^2)-91.08*(AU12*AV12-Interface!$Y$7*Interface!$X$7)))/100 -> 0.02595694565 | AX12: =AS12*((Interface2!$D$12+(AW12*$T$6))*IF($T$6=1,VLOOKUP(AT12,Interface!$A$45:$B$97,2,FALSE),1))-$N$11-$F$10*AR12 -> 81.11554305 | AY12: =($D$12+(AW12*$T$6))*IF($T$6=1,VLOOKUP(AT12,Interface!$A$45:$B$97,2,FALSE),1) -> 9.0799355 | AZ12: PD86MG3
B13: =CONCATENATE("Please choose the max. amount of irrigation. Your current choice uses ", ROUND(Output1!G11,2), " acre-inches.") -> Please choose the max. amount of irrigation. Your current choice uses 18.53 acre-inches. | C13: Least Possible | D13: 12 | F13: =+D13*IF(O2=1,P5,P6) -> 6 | L13: 2 | M13: $ 325/acre | N13: 325 | P13: Sikeston, MO | Q13: 5.06 | R13: 5.63 | Y13: =+(AC7-1)*3 -> 0 | AI13: 0 | AJ13: March 23-31 | AK13: MG 3.5-3.9 | AL13: =Interface!K52 -> 0 | AM13: 0 | AN13: 0 | AO13: 0 | AP13: 0 | AR13: 6.525929948 | AS13: 62.16603571 | AT13: 33 | AU13: 0.2039655172 | AV13: 0.3427586207 | AW13: =(Interface!$Y$6*60.72*(AU13-Interface!$Y$7)+Interface!$X$6/0.48*(48.73*(AU13-Interface!$Y$7)+78.33*(AV13-Interface!$X$7)-46.23*(AU13^2-Interface!$Y$7^2)-91.08*(AU13*AV13-Interface!$Y$7*Interface!$X$7)))/100 -> 0.04311120334 | AX13: =AS13*((Interface2!$D$12+(AW13*$T$6))*IF($T$6=1,VLOOKUP(AT13,Interface!$A$45:$B$97,2,FALSE),1))-$N$11-$F$10*AR13 -> 101.8193846 | AY13: =($D$12+(AW13*$T$6))*IF($T$6=1,VLOOKUP(AT13,Interface!$A$45:$B$97,2,FALSE),1) -> 9.104247325 | AZ13: PD86MG3.5
C14: =IF(Interface!I9="Clay",VLOOKUP(Interface!I6,Interface2!P11:R23,2,FALSE),VLOOKUP(Interface!I6,Interface2!P11:R23,3,FALSE))/IF(O2=1,P5,P6) -> 11.36 | L14: 3 | M14: $ 350/acre | N14: 350 | P14: Milan, TN | Q14: 5.08 | R14: 5.66 | AI14: 0 | AJ14: March 23-31 | AK14: MG 4.0-4.4 | AL14: =Interface!K53 -> 0 | AM14: 0 | AN14: 0 | AO14: 0 | AP14: 0 | AR14: 7.952755906 | AS14: 66.98071729 | AT14: 34 | AU14: 0.2024137931 | AV14: 0.3485517241 | AW14: =(Interface!$Y$6*60.72*(AU14-Interface!$Y$7)+Interface!$X$6/0.48*(48.73*(AU14-Interface!$Y$7)+78.33*(AV14-Interface!$X$7)-46.23*(AU14^2-Interface!$Y$7^2)-91.08*(AU14*AV14-Interface!$Y$7*Interface!$X$7)))/100 -> 0.1447167458 | AX14: =AS14*((Interface2!$D$12+(AW14*$T$6))*IF($T$6=1,VLOOKUP(AT14,Interface!$A$45:$B$97,2,FALSE),1))-$N$11-$F$10*AR14 -> 147.8304932 | AY14: =($D$12+(AW14*$T$6))*IF($T$6=1,VLOOKUP(AT14,Interface!$A$45:$B$97,2,FALSE),1) -> 9.264562305 | AZ14: PD86MG4
B15: Adjust soybean prices for seasonality and soybean seed quality premiums or discounts? | L15: 4 | M15: $ 375/acre | N15: 375 | P15: Stoneville, MS | Q15: 5.11 | R15: 5.13 | AI15: 0 | AJ15: March 23-31 | AK15: MG 4.5-4.9 | AL15: =Interface!K54 -> 0 | AM15: 0 | AN15: 0 | AO15: 0 | AP15: 0 | AR15: 9.182731469 | AS15: 66.39715413 | AT15: 35 | AU15: 0.2012068966 | AV15: 0.3508275862 | AW15: =(Interface!$Y$6*60.72*(AU15-Interface!$Y$7)+Interface!$X$6/0.48*(48.73*(AU15-Interface!$Y$7)+78.33*(AV15-Interface!$X$7)-46.23*(AU15^2-Interface!$Y$7^2)-91.08*(AU15*AV15-Interface!$Y$7*Interface!$X$7)))/100 -> 0.1678480242 | AX15: =AS15*((Interface2!$D$12+(AW15*$T$6))*IF($T$6=1,VLOOKUP(AT15,Interface!$A$45:$B$97,2,FALSE),1))-$N$11-$F$10*AR15 -> 145.7808312 | AY15: =($D$12+(AW15*$T$6))*IF($T$6=1,VLOOKUP(AT15,Interface!$A$45:$B$97,2,FALSE),1) -> 9.426265752 | AZ15: PD86MG4.5
B16: User-Selected Optimization Goals | L16: 5 | M16: $ 400/acre | N16: 400 | P16: Marianna, AR | Q16: 5.47 | R16: 5.68 | Y16: Goal Key | AI16: 0 | AJ16: March 23-31 | AK16: MG 5.0-5.4 | AL16: =Interface!K55 -> 0 | AM16: 0 | AN16: 0 | AO16: 0 | AP16: 0 | AR16: 9.629378224 | AS16: 68.07018746 | AT16: 36 | AU16: 0.1979310345 | AV16: 0.3535172414 | AW16: =(Interface!$Y$6*60.72*(AU16-Interface!$Y$7)+Interface!$X$6/0.48*(48.73*(AU16-Interface!$Y$7)+78.33*(AV16-Interface!$X$7)-46.23*(AU16^2-Interface!$Y$7^2)-91.08*(AU16*AV16-Interface!$Y$7*Interface!$X$7)))/100 -> 0.1429030698 | AX16: =AS16*((Interface2!$D$12+(AW16*$T$6))*IF($T$6=1,VLOOKUP(AT16,Interface!$A$45:$B$97,2,FALSE),1))-$N$11-$F$10*AR16 -> 143.8910936 | AY16: =($D$12+(AW16*$T$6))*IF($T$6=1,VLOOKUP(AT16,Interface!$A$45:$B$97,2,FALSE),1) -> 9.206194169 | AZ16: PD86MG5
L17: 6 | M17: $ 425/acre | N17: 425 | P17: Tupelo, MS | Q17: 4.69 | R17: 5.27 | Y17: =+AA3 -> 2 | AI17: 0 | AJ17: March 23-31 | AK17: MG 5.5-5.9 | AL17: =Interface!K56 -> 0 | AM17: 0 | AN17: 0 | AO17: 0 | AP17: 0 | AR17: 10.11403747 | AS17: 66.39315712 | AT17: 37 | AU17: 0.1971724138 | AV17: 0.3533793103 | AW17: =(Interface!$Y$6*60.72*(AU17-Interface!$Y$7)+Interface!$X$6/0.48*(48.73*(AU17-Interface!$Y$7)+78.33*(AV17-Interface!$X$7)-46.23*(AU17^2-Interface!$Y$7^2)-91.08*(AU17*AV17-Interface!$Y$7*Interface!$X$7)))/100 -> 0.1178345247 | AX17: =AS17*((Interface2!$D$12+(AW17*$T$6))*IF($T$6=1,VLOOKUP(AT17,Interface!$A$45:$B$97,2,FALSE),1))-$N$11-$F$10*AR17 -> 111.9172939 | AY17: =($D$12+(AW17*$T$6))*IF($T$6=1,VLOOKUP(AT17,Interface!$A$45:$B$97,2,FALSE),1) -> 9.000950468 | AZ17: PD86MG5.5
B18: User-Selected Planting Window | L18: 7 | M18: $ 450/acre | N18: 450 | P18: Rohwer, AR | Q18: 5.47 | R18: 5.39 | Y18: What Macro? | AI18: 0 | AJ18: March 23-31 | AK18: MG 6.0-6.4 | AL18: =Interface!K57 -> 0 | AM18: 0 | AN18: 0 | AO18: =AN18*0.05 -> 0 | AP18: 0 | AR18: 10.92587564 | AS18: 66.30636495 | AT18: 38 | AU18: 0.196 | AV18: 0.3523793103 | AW18: =(Interface!$Y$6*60.72*(AU18-Interface!$Y$7)+Interface!$X$6/0.48*(48.73*(AU18-Interface!$Y$7)+78.33*(AV18-Interface!$X$7)-46.23*(AU18^2-Interface!$Y$7^2)-91.08*(AU18*AV18-Interface!$Y$7*Interface!$X$7)))/100 -> 0.05900701119 | AX18: =AS18*((Interface2!$D$12+(AW18*$T$6))*IF($T$6=1,VLOOKUP(AT18,Interface!$A$45:$B$97,2,FALSE),1))-$N$11-$F$10*AR18 -> 94.57227931 | AY18: =($D$12+(AW18*$T$6))*IF($T$6=1,VLOOKUP(AT18,Interface!$A$45:$B$97,2,FALSE),1) -> 8.824605807 | AZ18: PD86MG6
L19: 8 | M19: $ 475/acre | N19: 475 | P19: Yazoo City, MS | Q19: 4.95 | R19: 5.46 | Y19: =SUM(Y13,Y15,Y17) -> 2 | AI19: 0 | AJ19: March 23-31 | AK19: MG 6.5-6.9 | AL19: =Interface!K58 -> 0 | AM19: 0 | AN19: 0 | AO19: 0 | AP19: 0 | AR19: 11.18517513 | AS19: 63.55356847 | AT19: 39 | AU19: 0.1938965517 | AV19: 0.3525862069 | AW19: =(Interface!$Y$6*60.72*(AU19-Interface!$Y$7)+Interface!$X$6/0.48*(48.73*(AU19-Interface!$Y$7)+78.33*(AV19-Interface!$X$7)-46.23*(AU19^2-Interface!$Y$7^2)-91.08*(AU19*AV19-Interface!$Y$7*Interface!$X$7)))/100 -> 0.004192550117 | AX19: =AS19*((Interface2!$D$12+(AW19*$T$6))*IF($T$6=1,VLOOKUP(AT19,Interface!$A$45:$B$97,2,FALSE),1))-$N$11-$F$10*AR19 -> 59.57604242 | AY19: =($D$12+(AW19*$T$6))*IF($T$6=1,VLOOKUP(AT19,Interface!$A$45:$B$97,2,FALSE),1) -> 8.68066273 | AZ19: PD86MG6.5
P20: Winnsboro, LA | Q20: 5 | R20: 5.27 | Y20: Solver Precision | AI20: 0 | AJ20: April 1-7 | AK20: MG 3.0-3.4 | AL20: =Interface!K59 -> 0 | AM20: 0 | AN20: 0 | AO20: 0 | AP20: 0 | AR20: 5.832020997 | AS20: 62.64053765 | AT20: 32 | AU20: 0.2046333333 | AV20: 0.3408 | AW20: =(Interface!$Y$6*60.72*(AU20-Interface!$Y$7)+Interface!$X$6/0.48*(48.73*(AU20-Interface!$Y$7)+78.33*(AV20-Interface!$X$7)-46.23*(AU20^2-Interface!$Y$7^2)-91.08*(AU20*AV20-Interface!$Y$7*Interface!$X$7)))/100 -> 0.01299442151 | AX20: =AS20*((Interface2!$D$12+(AW20*$T$6))*IF($T$6=1,VLOOKUP(AT20,Interface!$A$45:$B$97,2,FALSE),1))-$N$11-$F$10*AR20 -> 107.9630802 | AY20: =($D$12+(AW20*$T$6))*IF($T$6=1,VLOOKUP(AT20,Interface!$A$45:$B$97,2,FALSE),1) -> 9.066895455 | AZ20: PD94MG3
L21: Applied Irrigation | P21: Alexandria, LA | Q21: 4.33 | R21: 4.48 | Y21: 2 | AI21: 0 | AJ21: April 1-7 | AK21: MG 3.5-3.9 | AL21: =Interface!K60 -> 0 | AM21: 0 | AN21: 0 | AO21: 0 | AP21: 0 | AR21: 6.645669291 | AS21: 66.01287037 | AT21: 33 | AU21: 0.2038333333 | AV21: 0.3424333333 | AW21: =(Interface!$Y$6*60.72*(AU21-Interface!$Y$7)+Interface!$X$6/0.48*(48.73*(AU21-Interface!$Y$7)+78.33*(AV21-Interface!$X$7)-46.23*(AU21^2-Interface!$Y$7^2)-91.08*(AU21*AV21-Interface!$Y$7*Interface!$X$7)))/100 -> 0.03115082981 | AX21: =AS21*((Interface2!$D$12+(AW21*$T$6))*IF($T$6=1,VLOOKUP(AT21,Interface!$A$45:$B$97,2,FALSE),1))-$N$11-$F$10*AR21 -> 135.3286064 | AY21: =($D$12+(AW21*$T$6))*IF($T$6=1,VLOOKUP(AT21,Interface!$A$45:$B$97,2,FALSE),1) -> 9.092206093 | AZ21: PD94MG3.5
L22: =D13 -> 12 | P22: College Station, TX | Q22: 6.47 | R22: 5.36 | AI22: 0 | AJ22: April 1-7 | AK22: MG 4.0-4.4 | AL22: =Interface!K61 -> 0 | AM22: 0 | AN22: 0 | AO22: 0 | AP22: 0 | AR22: 8.030183727 | AS22: 70.19830869 | AT22: 34 | AU22: 0.2022 | AV22: 0.3482666667 | AW22: =(Interface!$Y$6*60.72*(AU22-Interface!$Y$7)+Interface!$X$6/0.48*(48.73*(AU22-Interface!$Y$7)+78.33*(AV22-Interface!$X$7)-46.23*(AU22^2-Interface!$Y$7^2)-91.08*(AU22*AV22-Interface!$Y$7*Interface!$X$7)))/100 -> 0.1314512523 | AX22: =AS22*((Interface2!$D$12+(AW22*$T$6))*IF($T$6=1,VLOOKUP(AT22,Interface!$A$45:$B$97,2,FALSE),1))-$N$11-$F$10*AR22 -> 176.2320831 | AY22: =($D$12+(AW22*$T$6))*IF($T$6=1,VLOOKUP(AT22,Interface!$A$45:$B$97,2,FALSE),1) -> 9.251122962 | AZ22: PD94MG4
L23: Effective Irrigation | P23: Baton Rouge, LA | Q23: 2.71 | R23: 2.81 | AI23: 0 | AJ23: April 1-7 | AK23: MG 4.5-4.9 | AL23: =Interface!K62 -> 0 | AM23: 0 | AN23: 0 | AO23: 0 | AP23: 0 | AR23: 9.212598425 | AS23: 70.84982099 | AT23: 35 | AU23: 0.2016666667 | AV23: 0.3488666667 | AW23: =(Interface!$Y$6*60.72*(AU23-Interface!$Y$7)+Interface!$X$6/0.48*(48.73*(AU23-Interface!$Y$7)+78.33*(AV23-Interface!$X$7)-46.23*(AU23^2-Interface!$Y$7^2)-91.08*(AU23*AV23-Interface!$Y$7*Interface!$X$7)))/100 -> 0.131414523 | AX23: =AS23*((Interface2!$D$12+(AW23*$T$6))*IF($T$6=1,VLOOKUP(AT23,Interface!$A$45:$B$97,2,FALSE),1))-$N$11-$F$10*AR23 -> 184.9195832 | AY23: =($D$12+(AW23*$T$6))*IF($T$6=1,VLOOKUP(AT23,Interface!$A$45:$B$97,2,FALSE),1) -> 9.388805285 | AZ23: PD94MG4.5
L24: =F13 -> 6 | AI24: 0 | AJ24: April 1-7 | AK24: MG 5.0-5.4 | AL24: =Interface!K63 -> 0 | AM24: 0 | AN24: 0 | AO24: 0 | AP24: 0 | AR24: 9.637795276 | AS24: 72.28474685 | AT24: 37 | AU24: 0.1982666667 | AV24: 0.3516 | AW24: =(Interface!$Y$6*60.72*(AU24-Interface!$Y$7)+Interface!$X$6/0.48*(48.73*(AU24-Interface!$Y$7)+78.33*(AV24-Interface!$X$7)-46.23*(AU24^2-Interface!$Y$7^2)-91.08*(AU24*AV24-Interface!$Y$7*Interface!$X$7)))/100 -> 0.1038081205 | AX24: =AS24*((Interface2!$D$12+(AW24*$T$6))*IF($T$6=1,VLOOKUP(AT24,Interface!$A$45:$B$97,2,FALSE),1))-$N$11-$F$10*AR24 -> 166.8037566 | AY24: =($D$12+(AW24*$T$6))*IF($T$6=1,VLOOKUP(AT24,Interface!$A$45:$B$97,2,FALSE),1) -> 8.987103872 | AZ24: PD94MG5
AI25: 0 | AJ25: April 1-7 | AK25: MG 5.5-5.9 | AL25: =Interface!K64 -> 0 | AM25: 0 | AN25: 0 | AO25: 0 | AP25: 0 | AR25: 9.98687664 | AS25: 70.63455356 | AT25: 37 | AU25: 0.1975 | AV25: 0.3514333333 | AW25: =(Interface!$Y$6*60.72*(AU25-Interface!$Y$7)+Interface!$X$6/0.48*(48.73*(AU25-Interface!$Y$7)+78.33*(AV25-Interface!$X$7)-46.23*(AU25^2-Interface!$Y$7^2)-91.08*(AU25*AV25-Interface!$Y$7*Interface!$X$7)))/100 -> 0.07773646144 | AX25: =AS25*((Interface2!$D$12+(AW25*$T$6))*IF($T$6=1,VLOOKUP(AT25,Interface!$A$45:$B$97,2,FALSE),1))-$N$11-$F$10*AR25 -> 148.0608575 | AY25: =($D$12+(AW25*$T$6))*IF($T$6=1,VLOOKUP(AT25,Interface!$A$45:$B$97,2,FALSE),1) -> 8.961366433 | AZ25: PD94MG5.5
AI26: 0 | AJ26: April 1-7 | AK26: MG 6.0-6.4 | AL26: =Interface!K65 -> 0 | AM26: 0 | AN26: 0 | AO26: 0 | AP26: 0 | AR26: 10.62729659 | AS26: 68.93525418 | AT26: 39 | AU26: 0.1955 | AV26: 0.3518333333 | AW26: =(Interface!$Y$6*60.72*(AU26-Interface!$Y$7)+Interface!$X$6/0.48*(48.73*(AU26-Interface!$Y$7)+78.33*(AV26-Interface!$X$7)-46.23*(AU26^2-Interface!$Y$7^2)-91.08*(AU26*AV26-Interface!$Y$7*Interface!$X$7)))/100 -> 0.03083140102 | AX26: =AS26*((Interface2!$D$12+(AW26*$T$6))*IF($T$6=1,VLOOKUP(AT26,Interface!$A$45:$B$97,2,FALSE),1))-$N$11-$F$10*AR26 -> 111.4102861 | AY26: =($D$12+(AW26*$T$6))*IF($T$6=1,VLOOKUP(AT26,Interface!$A$45:$B$97,2,FALSE),1) -> 8.70634442 | AZ26: PD94MG6
AI27: 0 | AJ27: April 1-7 | AK27: MG 6.5-6.9 | AL27: =Interface!K66 -> 0 | AM27: 0 | AN27: 0 | AO27: 0 | AP27: 0 | AR27: 10.92913386 | AS27: 65.21289777 | AT27: 40 | AU27: 0.1931666667 | AV27: 0.3531 | AW27: =(Interface!$Y$6*60.72*(AU27-Interface!$Y$7)+Interface!$X$6/0.48*(48.73*(AU27-Interface!$Y$7)+78.33*(AV27-Interface!$X$7)-46.23*(AU27^2-Interface!$Y$7^2)-91.08*(AU27*AV27-Interface!$Y$7*Interface!$X$7)))/100 -> -0.003563009493 | AX27: =AS27*((Interface2!$D$12+(AW27*$T$6))*IF($T$6=1,VLOOKUP(AT27,Interface!$A$45:$B$97,2,FALSE),1))-$N$11-$F$10*AR27 -> 37.48864152 | AY27: =($D$12+(AW27*$T$6))*IF($T$6=1,VLOOKUP(AT27,Interface!$A$45:$B$97,2,FALSE),1) -> 8.097530745 | AZ27: PD94MG6.5
L28: Stop early = reason code 6 | M28: 6 | AI28: 0 | AJ28: April 8-14 | AK28: MG 3.0-3.4 | AL28: =Interface!K67 -> 0 | AM28: 0 | AN28: 0 | AO28: 0 | AP28: 0 | AR28: 5.99343832 | AS28: 63.92357721 | AT28: 33 | AU28: 0.2048 | AV28: 0.3406333333 | AW28: =(Interface!$Y$6*60.72*(AU28-Interface!$Y$7)+Interface!$X$6/0.48*(48.73*(AU28-Interface!$Y$7)+78.33*(AV28-Interface!$X$7)-46.23*(AU28^2-Interface!$Y$7^2)-91.08*(AU28*AV28-Interface!$Y$7*Interface!$X$7)))/100 -> 0.01358125949 | AX28: =AS28*((Interface2!$D$12+(AW28*$T$6))*IF($T$6=1,VLOOKUP(AT28,Interface!$A$45:$B$97,2,FALSE),1))-$N$11-$F$10*AR28 -> 119.1150057 | AY28: =($D$12+(AW28*$T$6))*IF($T$6=1,VLOOKUP(AT28,Interface!$A$45:$B$97,2,FALSE),1) -> 9.074517743 | AZ28: PD101MG3
L29: 5 = time limit reached | M29: 5 | AI29: 0 | AJ29: April 8-14 | AK29: MG 3.5-3.9 | AL29: =Interface!K68 -> 0 | AM29: 0 | AN29: 0 | AO29: 0 | AP29: 0 | AR29: 7.01312336 | AS29: 67.95427423 | AT29: 34 | AU29: 0.2042666667 | AV29: 0.3412666667 | AW29: =(Interface!$Y$6*60.72*(AU29-Interface!$Y$7)+Interface!$X$6/0.48*(48.73*(AU29-Interface!$Y$7)+78.33*(AV29-Interface!$X$7)-46.23*(AU29^2-Interface!$Y$7^2)-91.08*(AU29*AV29-Interface!$Y$7*Interface!$X$7)))/100 -> 0.01422044414 | AX29: =AS29*((Interface2!$D$12+(AW29*$T$6))*IF($T$6=1,VLOOKUP(AT29,Interface!$A$45:$B$97,2,FALSE),1))-$N$11-$F$10*AR29 -> 153.5038697 | AY29: =($D$12+(AW29*$T$6))*IF($T$6=1,VLOOKUP(AT29,Interface!$A$45:$B$97,2,FALSE),1) -> 9.132355792 | AZ29: PD101MG3.5
L30: second time around | M30: 0 | AI30: 0 | AJ30: April 8-14 | AK30: MG 4.0-4.4 | AL30: =Interface!K69 -> 0 | AM30: 0 | AN30: 0 | AO30: 0 | AP30: 0 | AR30: 8.400262467 | AS30: 71.74286677 | AT30: 35 | AU30: 0.2024 | AV30: 0.3476 | AW30: =(Interface!$Y$6*60.72*(AU30-Interface!$Y$7)+Interface!$X$6/0.48*(48.73*(AU30-Interface!$Y$7)+78.33*(AV30-Interface!$X$7)-46.23*(AU30^2-Interface!$Y$7^2)-91.08*(AU30*AV30-Interface!$Y$7*Interface!$X$7)))/100 -> 0.1203361562 | AX30: =AS30*((Interface2!$D$12+(AW30*$T$6))*IF($T$6=1,VLOOKUP(AT30,Interface!$A$45:$B$97,2,FALSE),1))-$N$11-$F$10*AR30 -> 197.3610349 | AY30: =($D$12+(AW30*$T$6))*IF($T$6=1,VLOOKUP(AT30,Interface!$A$45:$B$97,2,FALSE),1) -> 9.377414648 | AZ30: PD101MG4
Y31: User Selected Portfolio | AC31: Returns / Dollar of Risk | AI31: 0 | AJ31: April 8-14 | AK31: MG 4.5-4.9 | AL31: =Interface!K70 -> 0 | AM31: 0 | AN31: 0 | AO31: 0 | AP31: 0 | AR31: 9.312335958 | AS31: 72.96138319 | AT31: 36 | AU31: 0.2019 | AV31: 0.348 | AW31: =(Interface!$Y$6*60.72*(AU31-Interface!$Y$7)+Interface!$X$6/0.48*(48.73*(AU31-Interface!$Y$7)+78.33*(AV31-Interface!$X$7)-46.23*(AU31^2-Interface!$Y$7^2)-91.08*(AU31*AV31-Interface!$Y$7*Interface!$X$7)))/100 -> 0.1161891555 | AX31: =AS31*((Interface2!$D$12+(AW31*$T$6))*IF($T$6=1,VLOOKUP(AT31,Interface!$A$45:$B$97,2,FALSE),1))-$N$11-$F$10*AR31 -> 188.8600683 | AY31: =($D$12+(AW31*$T$6))*IF($T$6=1,VLOOKUP(AT31,Interface!$A$45:$B$97,2,FALSE),1) -> 9.17929533 | AZ31: PD101MG4.5
Y32: Expected Returns Per Acre | AB32: =SUMPRODUCT(AL4:AL115,AX4:AX115) -> 188.2819183 | AC32: =+AB32/AB33 -> 6.832113672 | AE32: Irrigation Key | AI32: 0 | AJ32: April 8-14 | AK32: MG 5.0-5.4 | AL32: =Interface!K71 -> 0 | AM32: 0 | AN32: 0 | AO32: 0 | AP32: 0 | AR32: 9.754593176 | AS32: 73.60775648 | AT32: 37 | AU32: 0.1986 | AV32: 0.3502666667 | AW32: =(Interface!$Y$6*60.72*(AU32-Interface!$Y$7)+Interface!$X$6/0.48*(48.73*(AU32-Interface!$Y$7)+78.33*(AV32-Interface!$X$7)-46.23*(AU32^2-Interface!$Y$7^2)-91.08*(AU32*AV32-Interface!$Y$7*Interface!$X$7)))/100 -> 0.0794951477 | AX32: =AS32*((Interface2!$D$12+(AW32*$T$6))*IF($T$6=1,VLOOKUP(AT32,Interface!$A$45:$B$97,2,FALSE),1))-$N$11-$F$10*AR32 -> 176.2263125 | AY32: =($D$12+(AW32*$T$6))*IF($T$6=1,VLOOKUP(AT32,Interface!$A$45:$B$97,2,FALSE),1) -> 8.963102574 | AZ32: PD101MG5
Y33: Return Standard Deviation | AB33: =SQRT(SUMPRODUCT(MMULT(B119:DI230,AL4:AL115),AL4:AL115))*SUMPRODUCT(AL4:AL115,AY4:AY115) -> 27.55837027 | AE33: =+F13 -> 6 | AI33: 0 | AJ33: April 8-14 | AK33: MG 5.5-5.9 | AL33: =Interface!K72 -> 0 | AM33: 0 | AN33: 0 | AO33: 0 | AP33: 0 | AR33: 10.09317585 | AS33: 72.18710565 | AT33: 37 | AU33: 0.1977666667 | AV33: 0.3499333333 | AW33: =(Interface!$Y$6*60.72*(AU33-Interface!$Y$7)+Interface!$X$6/0.48*(48.73*(AU33-Interface!$Y$7)+78.33*(AV33-Interface!$X$7)-46.23*(AU33^2-Interface!$Y$7^2)-91.08*(AU33*AV33-Interface!$Y$7*Interface!$X$7)))/100 -> 0.04726276619 | AX33: =AS33*((Interface2!$D$12+(AW33*$T$6))*IF($T$6=1,VLOOKUP(AT33,Interface!$A$45:$B$97,2,FALSE),1))-$N$11-$F$10*AR33 -> 159.1644425 | AY33: =($D$12+(AW33*$T$6))*IF($T$6=1,VLOOKUP(AT33,Interface!$A$45:$B$97,2,FALSE),1) -> 8.931283389 | AZ33: PD101MG5.5
W34: Portfolio Irrigation Applied (adj. for efficiency) | AB34: =SUMPRODUCT(AL4:AL115,AR4:AR115)/IF(O2=1,P5,P6) -> 18.52650919 | AC34: O/P Premium | AD34: =IF($T$6=1,SUMPRODUCT($AL$4:$AL$115,$AW$4:$AW$115),0) -> 0.05656766499 | AI34: 0 | AJ34: April 8-14 | AK34: MG 6.0-6.4 | AL34: =Interface!K73 -> 0 | AM34: 0 | AN34: 0 | AO34: 0 | AP34: 0 | AR34: 10.69947507 | AS34: 68.56067744 | AT34: 39 | AU34: 0.1954 | AV34: 0.3513333333 | AW34: =(Interface!$Y$6*60.72*(AU34-Interface!$Y$7)+Interface!$X$6/0.48*(48.73*(AU34-Interface!$Y$7)+78.33*(AV34-Interface!$X$7)-46.23*(AU34^2-Interface!$Y$7^2)-91.08*(AU34*AV34-Interface!$Y$7*Interface!$X$7)))/100 -> 0.01523740116 | AX34: =AS34*((Interface2!$D$12+(AW34*$T$6))*IF($T$6=1,VLOOKUP(AT34,Interface!$A$45:$B$97,2,FALSE),1))-$N$11-$F$10*AR34 -> 106.685301 | AY34: =($D$12+(AW34*$T$6))*IF($T$6=1,VLOOKUP(AT34,Interface!$A$45:$B$97,2,FALSE),1) -> 8.691310728 | AZ34: PD101MG6
Y35: Expected Yield Per Acre | AB35: =SUMPRODUCT(AL4:AL115,AS4:AS115) -> 74.94835295 | AC35: Seasonal | AD35: =IF($T$6=1,SUMPRODUCT($AL$4:$AL$115,$AY$4:$AY$115),D12) -> 8.923242153 | AI35: 0 | AJ35: April 8-14 | AK35: MG 6.5-6.9 | AL35: =Interface!K74 -> 0 | AM35: 0 | AN35: 0 | AO35: 0 | AP35: 0 | AR35: 10.95406824 | AS35: 64.26046788 | AT35: 40 | AU35: 0.1925666667 | AV35: 0.3533666667 | AW35: =(Interface!$Y$6*60.72*(AU35-Interface!$Y$7)+Interface!$X$6/0.48*(48.73*(AU35-Interface!$Y$7)+78.33*(AV35-Interface!$X$7)-46.23*(AU35^2-Interface!$Y$7^2)-91.08*(AU35*AV35-Interface!$Y$7*Interface!$X$7)))/100 -> -0.01391547421 | AX35: =AS35*((Interface2!$D$12+(AW35*$T$6))*IF($T$6=1,VLOOKUP(AT35,Interface!$A$45:$B$97,2,FALSE),1))-$N$11-$F$10*AR35 -> 29.02792152 | AY35: =($D$12+(AW35*$T$6))*IF($T$6=1,VLOOKUP(AT35,Interface!$A$45:$B$97,2,FALSE),1) -> 8.088212678 | AZ35: PD101MG6.5
Y36: Combinations Selected | AB36: =AM2 -> 4 | AI36: =IF(AS36=MAX($AS$4:$AS$115),1,0) -> 0 | AJ36: April 15-22 | AK36: MG 3.0-3.4 | AL36: =Interface!K75 -> 0 | AM36: 0 | AN36: 0 | AO36: 0 | AP36: 0 | AR36: 6.356955381 | AS36: 65.62344759 | AT36: 33 | AU36: 0.2045333333 | AV36: 0.3412 | AW36: =(Interface!$Y$6*60.72*(AU36-Interface!$Y$7)+Interface!$X$6/0.48*(48.73*(AU36-Interface!$Y$7)+78.33*(AV36-Interface!$X$7)-46.23*(AU36^2-Interface!$Y$7^2)-91.08*(AU36*AV36-Interface!$Y$7*Interface!$X$7)))/100 -> 0.02017988158 | AX36: =AS36*((Interface2!$D$12+(AW36*$T$6))*IF($T$6=1,VLOOKUP(AT36,Interface!$A$45:$B$97,2,FALSE),1))-$N$11-$F$10*AR36 -> 132.795359 | AY36: =($D$12+(AW36*$T$6))*IF($T$6=1,VLOOKUP(AT36,Interface!$A$45:$B$97,2,FALSE),1) -> 9.081160975 | AZ36: PD109MG3
AI37: 0 | AJ37: April 15-22 | AK37: MG 3.5-3.9 | AL37: =Interface!K76 -> 0 | AM37: 0 | AN37: 0 | AO37: 0 | AP37: 0 | AR37: 7.434383202 | AS37: 70.56432042 | AT37: 34 | AU37: 0.2046 | AV37: 0.3399333333 | AW37: =(Interface!$Y$6*60.72*(AU37-Interface!$Y$7)+Interface!$X$6/0.48*(48.73*(AU37-Interface!$Y$7)+78.33*(AV37-Interface!$X$7)-46.23*(AU37^2-Interface!$Y$7^2)-91.08*(AU37*AV37-Interface!$Y$7*Interface!$X$7)))/100 -> -0.009731699184 | AX37: =AS37*((Interface2!$D$12+(AW37*$T$6))*IF($T$6=1,VLOOKUP(AT37,Interface!$A$45:$B$97,2,FALSE),1))-$N$11-$F$10*AR37 -> 173.099864 | AY37: =($D$12+(AW37*$T$6))*IF($T$6=1,VLOOKUP(AT37,Interface!$A$45:$B$97,2,FALSE),1) -> 9.108089745 | AZ37: PD109MG3.5
Y38: Solver Selected Portfolio | AC38: Returns / Dollar of Risk | AE38: Yield Max Portfolio | AI38: 0 | AJ38: April 15-22 | AK38: MG 4.0-4.4 | AL38: =Interface!K77 -> 0 | AM38: 0 | AN38: 0 | AO38: 0 | AP38: 0 | AR38: 8.612860892 | AS38: 73.30798088 | AT38: 35 | AU38: 0.2020333333 | AV38: 0.3479333333 | AW38: =(Interface!$Y$6*60.72*(AU38-Interface!$Y$7)+Interface!$X$6/0.48*(48.73*(AU38-Interface!$Y$7)+78.33*(AV38-Interface!$X$7)-46.23*(AU38^2-Interface!$Y$7^2)-91.08*(AU38*AV38-Interface!$Y$7*Interface!$X$7)))/100 -> 0.1183032486 | AX38: =AS38*((Interface2!$D$12+(AW38*$T$6))*IF($T$6=1,VLOOKUP(AT38,Interface!$A$45:$B$97,2,FALSE),1))-$N$11-$F$10*AR38 -> 210.6089393 | AY38: =($D$12+(AW38*$T$6))*IF($T$6=1,VLOOKUP(AT38,Interface!$A$45:$B$97,2,FALSE),1) -> 9.375324438 | AZ38: PD109MG4
Y39: Expected Returns Per Acre | AB39: =SUMPRODUCT(AO4:AO115,AX4:AX115) -> 197.0083282 | AC39: =+AB39/AB40 -> 7.138327843 | AE39: =VLOOKUP(1,AI4:AX115,16,FALSE) -> 200.9731987 | AI39: 0 | AJ39: April 15-22 | AK39: MG 4.5-4.9 | AL39: =Interface!K78 -> 0 | AM39: 0 | AN39: 0 | AO39: 0 | AP39: 0 | AR39: 9.307086614 | AS39: 75.04667934 | AT39: 36 | AU39: 0.2019666667 | AV39: 0.3468333333 | AW39: =(Interface!$Y$6*60.72*(AU39-Interface!$Y$7)+Interface!$X$6/0.48*(48.73*(AU39-Interface!$Y$7)+78.33*(AV39-Interface!$X$7)-46.23*(AU39^2-Interface!$Y$7^2)-91.08*(AU39*AV39-Interface!$Y$7*Interface!$X$7)))/100 -> 0.08866137405 | AX39: =AS39*((Interface2!$D$12+(AW39*$T$6))*IF($T$6=1,VLOOKUP(AT39,Interface!$A$45:$B$97,2,FALSE),1))-$N$11-$F$10*AR39 -> 205.9529441 | AY39: =($D$12+(AW39*$T$6))*IF($T$6=1,VLOOKUP(AT39,Interface!$A$45:$B$97,2,FALSE),1) -> 9.151576989 | AZ39: PD109MG4.5
Y40: Return Standard Deviation | AB40: =SQRT(SUMPRODUCT(MMULT(B119:DI230,AO4:AO115),AO4:AO115))*SUMPRODUCT(AO4:AO115,AY4:AY115) -> 27.59866632 | AC40: Unadj. Irrigation | AE40: =SQRT(SUMPRODUCT(MMULT(B119:DI230,AI4:AI115),AI4:AI115))*SUMPRODUCT(AI4:AI115,AY4:AY115) -> 38.01609443 | AI40: 0 | AJ40: April 15-22 | AK40: MG 5.0-5.4 | AL40: =Interface!K79 -> 0 | AM40: 0 | AN40: 0 | AO40: 0 | AP40: 0 | AR40: 9.640419948 | AS40: 74.78344782 | AT40: 37 | AU40: 0.1984666667 | AV40: 0.3493666667 | AW40: =(Interface!$Y$6*60.72*(AU40-Interface!$Y$7)+Interface!$X$6/0.48*(48.73*(AU40-Interface!$Y$7)+78.33*(AV40-Interface!$X$7)-46.23*(AU40^2-Interface!$Y$7^2)-91.08*(AU40*AV40-Interface!$Y$7*Interface!$X$7)))/100 -> 0.05287308441 | AX40: =AS40*((Interface2!$D$12+(AW40*$T$6))*IF($T$6=1,VLOOKUP(AT40,Interface!$A$45:$B$97,2,FALSE),1))-$N$11-$F$10*AR40 -> 185.4838261 | AY40: =($D$12+(AW40*$T$6))*IF($T$6=1,VLOOKUP(AT40,Interface!$A$45:$B$97,2,FALSE),1) -> 8.936821787 | AZ40: PD109MG5
Y41: Portfolio Irrigation Applied | AB41: =SUMPRODUCT(AO4:AO115,AR4:AR115)/IF(O2=1,P5,P6) -> 17.90511751 | AC41: =SUMPRODUCT(AO4:AO115,AR4:AR115) -> 8.952558756 | AE41: =SUMPRODUCT(AI4:AI115,AR4:AR115)/IF(O2=1,P5,P6) -> 18.3648294 | AI41: 0 | AJ41: April 15-22 | AK41: MG 5.5-5.9 | AL41: =Interface!K80 -> 0 | AM41: 0 | AN41: 0 | AO41: 0 | AP41: 0 | AR41: 10.00787402 | AS41: 73.27029481 | AT41: 38 | AU41: 0.1974 | AV41: 0.3494666667 | AW41: =(Interface!$Y$6*60.72*(AU41-Interface!$Y$7)+Interface!$X$6/0.48*(48.73*(AU41-Interface!$Y$7)+78.33*(AV41-Interface!$X$7)-46.23*(AU41^2-Interface!$Y$7^2)-91.08*(AU41*AV41-Interface!$Y$7*Interface!$X$7)))/100 -> 0.02493819123 | AX41: =AS41*((Interface2!$D$12+(AW41*$T$6))*IF($T$6=1,VLOOKUP(AT41,Interface!$A$45:$B$97,2,FALSE),1))-$N$11-$F$10*AR41 -> 159.1025823 | AY41: =($D$12+(AW41*$T$6))*IF($T$6=1,VLOOKUP(AT41,Interface!$A$45:$B$97,2,FALSE),1) -> 8.791418516 | AZ41: PD109MG5.5
Y42: Expected Yield Per Acre | AB42: =SUMPRODUCT(AO4:AO115,AS4:AS115) -> 74.41079717 | AC42: O/P Premium | AD42: =IF($T$6=1,SUMPRODUCT($AO$4:$AO$115,$AW$4:$AW$115),0) -> 0.09832098839 | AE42: =SUMPRODUCT(AI4:AI115,AS4:AS115) -> 75.88605101 | AF42: O/P Premium | AG42: =IF($T$6=1,SUMPRODUCT($AI$4:$AI$115,$AW$4:$AW$115),0) -> 0.09141864215 | AI42: 0 | AJ42: April 15-22 | AK42: MG 6.0-6.4 | AL42: =Interface!K81 -> 0 | AM42: 0 | AN42: 0 | AO42: 0 | AP42: 0 | AR42: 10.45013123 | AS42: 67.71045674 | AT42: 39 | AU42: 0.1945 | AV42: 0.352 | AW42: =(Interface!$Y$6*60.72*(AU42-Interface!$Y$7)+Interface!$X$6/0.48*(48.73*(AU42-Interface!$Y$7)+78.33*(AV42-Interface!$X$7)-46.23*(AU42^2-Interface!$Y$7^2)-91.08*(AU42*AV42-Interface!$Y$7*Interface!$X$7)))/100 -> 0.006493234296 | AX42: =AS42*((Interface2!$D$12+(AW42*$T$6))*IF($T$6=1,VLOOKUP(AT42,Interface!$A$45:$B$97,2,FALSE),1))-$N$11-$F$10*AR42 -> 100.2210339 | AY42: =($D$12+(AW42*$T$6))*IF($T$6=1,VLOOKUP(AT42,Interface!$A$45:$B$97,2,FALSE),1) -> 8.682880748 | AZ42: PD109MG6
Y43: Combinations Selected | AB43: =AP2 -> 3 | AC43: Seasonal | AD43: =IF($T$6=1,SUMPRODUCT($AO$4:$AO$115,$AY$4:$AY$115),D12) -> 9.080421102 | AE43: 1 | AF43: Seasonal | AG43: =IF($T$6=1,SUMPRODUCT($AI$4:$AI$115,$AY$4:$AY$115),D12) -> 8.974873218 | AI43: 0 | AJ43: April 15-22 | AK43: MG 6.5-6.9 | AL43: =Interface!K82 -> 0 | AM43: 0 | AN43: 0 | AO43: 0 | AP43: 0 | AR43: 10.86089239 | AS43: 62.95858529 | AT43: 40 | AU43: 0.1917333333 | AV43: 0.3540666667 | AW43: =(Interface!$Y$6*60.72*(AU43-Interface!$Y$7)+Interface!$X$6/0.48*(48.73*(AU43-Interface!$Y$7)+78.33*(AV43-Interface!$X$7)-46.23*(AU43^2-Interface!$Y$7^2)-91.08*(AU43*AV43-Interface!$Y$7*Interface!$X$7)))/100 -> -0.01985360947 | AX43: =AS43*((Interface2!$D$12+(AW43*$T$6))*IF($T$6=1,VLOOKUP(AT43,Interface!$A$45:$B$97,2,FALSE),1))-$N$11-$F$10*AR43 -> 18.72057178 | AY43: =($D$12+(AW43*$T$6))*IF($T$6=1,VLOOKUP(AT43,Interface!$A$45:$B$97,2,FALSE),1) -> 8.082867869 | AZ43: PD109MG6.5
AI44: 0 | AJ44: April 23-30 | AK44: MG 3.0-3.4 | AL44: =Interface!K83 -> 0 | AM44: 0 | AN44: 0 | AO44: 0 | AP44: 0 | AR44: 6.830708661 | AS44: 67.58540749 | AT44: 34 | AU44: 0.2045333333 | AV44: 0.3405333333 | AW44: =(Interface!$Y$6*60.72*(AU44-Interface!$Y$7)+Interface!$X$6/0.48*(48.73*(AU44-Interface!$Y$7)+78.33*(AV44-Interface!$X$7)-46.23*(AU44^2-Interface!$Y$7^2)-91.08*(AU44*AV44-Interface!$Y$7*Interface!$X$7)))/100 -> 0.003430860366 | AX44: =AS44*((Interface2!$D$12+(AW44*$T$6))*IF($T$6=1,VLOOKUP(AT44,Interface!$A$45:$B$97,2,FALSE),1))-$N$11-$F$10*AR44 -> 150.4909605 | AY44: =($D$12+(AW44*$T$6))*IF($T$6=1,VLOOKUP(AT44,Interface!$A$45:$B$97,2,FALSE),1) -> 9.121424806 | AZ44: PD117MG3
AA45: V | AB45: E | AI45: 0 | AJ45: April 23-30 | AK45: MG 3.5-3.9 | AL45: =Interface!K84 -> 0 | AM45: 0 | AN45: 0 | AO45: 0 | AP45: 0 | AR45: 7.881889764 | AS45: 73.64715556 | AT45: 35 | AU45: 0.2044 | AV45: 0.3399666667 | AW45: =(Interface!$Y$6*60.72*(AU45-Interface!$Y$7)+Interface!$X$6/0.48*(48.73*(AU45-Interface!$Y$7)+78.33*(AV45-Interface!$X$7)-46.23*(AU45^2-Interface!$Y$7^2)-91.08*(AU45*AV45-Interface!$Y$7*Interface!$X$7)))/100 -> -0.01462927519 | AX45: =AS45*((Interface2!$D$12+(AW45*$T$6))*IF($T$6=1,VLOOKUP(AT45,Interface!$A$45:$B$97,2,FALSE),1))-$N$11-$F$10*AR45 -> 208.108579 | AY45: =($D$12+(AW45*$T$6))*IF($T$6=1,VLOOKUP(AT45,Interface!$A$45:$B$97,2,FALSE),1) -> 9.238644893 | AZ45: PD117MG3.5
Y46: EV Frontier | AI46: 0 | AJ46: April 23-30 | AK46: MG 4.0-4.4 | AL46: =Interface!K85 -> 0.1 | AM46: 1 | AN46: 0 | AO46: 0 | AP46: 0 | AR46: 8.641732283 | AS46: 74.46540019 | AT46: 36 | AU46: 0.2018666667 | AV46: 0.3478666667 | AW46: =(Interface!$Y$6*60.72*(AU46-Interface!$Y$7)+Interface!$X$6/0.48*(48.73*(AU46-Interface!$Y$7)+78.33*(AV46-Interface!$X$7)-46.23*(AU46^2-Interface!$Y$7^2)-91.08*(AU46*AV46-Interface!$Y$7*Interface!$X$7)))/100 -> 0.1118767695 | AX46: =AS46*((Interface2!$D$12+(AW46*$T$6))*IF($T$6=1,VLOOKUP(AT46,Interface!$A$45:$B$97,2,FALSE),1))-$N$11-$F$10*AR46 -> 206.36616 | AY46: =($D$12+(AW46*$T$6))*IF($T$6=1,VLOOKUP(AT46,Interface!$A$45:$B$97,2,FALSE),1) -> 9.174953092 | AZ46: PD117MG4
Y47: Min | AA47: 1.987673725 | AB47: 195.9093563 | AC47: =AA56-AA47 -> 36.02732627 | AI47: 1 | AJ47: April 23-30 | AK47: MG 4.5-4.9 | AL47: =Interface!K86 -> 0.2 | AM47: 1 | AN47: 0 | AO47: 0 | AP47: 0 | AR47: 9.182414698 | AS47: 75.88605101 | AT47: 37 | AU47: 0.2012666667 | AV47: 0.3477333333 | AW47: =(Interface!$Y$6*60.72*(AU47-Interface!$Y$7)+Interface!$X$6/0.48*(48.73*(AU47-Interface!$Y$7)+78.33*(AV47-Interface!$X$7)-46.23*(AU47^2-Interface!$Y$7^2)-91.08*(AU47*AV47-Interface!$Y$7*Interface!$X$7)))/100 -> 0.09141864215 | AX47: =AS47*((Interface2!$D$12+(AW47*$T$6))*IF($T$6=1,VLOOKUP(AT47,Interface!$A$45:$B$97,2,FALSE),1))-$N$11-$F$10*AR47 -> 200.9731987 | AY47: =($D$12+(AW47*$T$6))*IF($T$6=1,VLOOKUP(AT47,Interface!$A$45:$B$97,2,FALSE),1) -> 8.974873218 | AZ47: PD117MG4.5
Y48: 1 | AA48: =AA47+$AC$48 -> 5.990709978 | AB48: 256.7831238 | AC48: =AC47/9 -> 4.003036253 | AI48: 0 | AJ48: April 23-30 | AK48: MG 5.0-5.4 | AL48: =Interface!K87 -> 0 | AM48: 0 | AN48: 0 | AO48: 0 | AP48: 0 | AR48: 9.658792651 | AS48: 74.9222011 | AT48: 38 | AU48: 0.1981333333 | AV48: 0.3488 | AW48: =(Interface!$Y$6*60.72*(AU48-Interface!$Y$7)+Interface!$X$6/0.48*(48.73*(AU48-Interface!$Y$7)+78.33*(AV48-Interface!$X$7)-46.23*(AU48^2-Interface!$Y$7^2)-91.08*(AU48*AV48-Interface!$Y$7*Interface!$X$7)))/100 -> 0.02897885887 | AX48: =AS48*((Interface2!$D$12+(AW48*$T$6))*IF($T$6=1,VLOOKUP(AT48,Interface!$A$45:$B$97,2,FALSE),1))-$N$11-$F$10*AR48 -> 176.0145725 | AY48: =($D$12+(AW48*$T$6))*IF($T$6=1,VLOOKUP(AT48,Interface!$A$45:$B$97,2,FALSE),1) -> 8.795354631 | AZ48: PD117MG5
Y49: 2 | AA49: =AA48+$AC$48 -> 9.993746231 | AB49: 266.6680059 | AI49: 0 | AJ49: April 23-30 | AK49: MG 5.5-5.9 | AL49: =Interface!K88 -> 0 | AM49: 0 | AN49: 0 | AO49: 0 | AP49: 0 | AR49: 9.975065617 | AS49: 73.34909296 | AT49: 38 | AU49: 0.1971666667 | AV49: 0.3487 | AW49: =(Interface!$Y$6*60.72*(AU49-Interface!$Y$7)+Interface!$X$6/0.48*(48.73*(AU49-Interface!$Y$7)+78.33*(AV49-Interface!$X$7)-46.23*(AU49^2-Interface!$Y$7^2)-91.08*(AU49*AV49-Interface!$Y$7*Interface!$X$7)))/100 -> -0.001210976659 | AX49: =AS49*((Interface2!$D$12+(AW49*$T$6))*IF($T$6=1,VLOOKUP(AT49,Interface!$A$45:$B$97,2,FALSE),1))-$N$11-$F$10*AR49 -> 158.1237911 | AY49: =($D$12+(AW49*$T$6))*IF($T$6=1,VLOOKUP(AT49,Interface!$A$45:$B$97,2,FALSE),1) -> 8.765945956 | AZ49: PD117MG5.5
Y50: 3 | AA50: 13.99678248 | AB50: 280.0682631 | AI50: 0 | AJ50: April 23-30 | AK50: MG 6.0-6.4 | AL50: =Interface!K89 -> 0 | AM50: 0 | AN50: 0 | AO50: 0 | AP50: 0 | AR50: 10.45800525 | AS50: 65.99745333 | AT50: 40 | AU50: 0.1942 | AV50: 0.3513 | AW50: =(Interface!$Y$6*60.72*(AU50-Interface!$Y$7)+Interface!$X$6/0.48*(48.73*(AU50-Interface!$Y$7)+78.33*(AV50-Interface!$X$7)-46.23*(AU50^2-Interface!$Y$7^2)-91.08*(AU50*AV50-Interface!$Y$7*Interface!$X$7)))/100 -> -0.01995300608 | AX50: =AS50*((Interface2!$D$12+(AW50*$T$6))*IF($T$6=1,VLOOKUP(AT50,Interface!$A$45:$B$97,2,FALSE),1))-$N$11-$F$10*AR50 -> 45.69475905 | AY50: =($D$12+(AW50*$T$6))*IF($T$6=1,VLOOKUP(AT50,Interface!$A$45:$B$97,2,FALSE),1) -> 8.082778404 | AZ50: PD117MG6
Y51: 4 | AA51: 17.99981874 | AB51: 297.4787118 | AI51: 0 | AJ51: April 23-30 | AK51: MG 6.5-6.9 | AL51: =Interface!K90 -> 0 | AM51: 0 | AN51: 0 | AO51: 0 | AP51: 0 | AR51: 10.59317585 | AS51: 61.2067538 | AT51: 40 | AU51: 0.1907333333 | AV51: 0.3546666667 | AW51: =(Interface!$Y$6*60.72*(AU51-Interface!$Y$7)+Interface!$X$6/0.48*(48.73*(AU51-Interface!$Y$7)+78.33*(AV51-Interface!$X$7)-46.23*(AU51^2-Interface!$Y$7^2)-91.08*(AU51*AV51-Interface!$Y$7*Interface!$X$7)))/100 -> -0.03311260421 | AX51: =AS51*((Interface2!$D$12+(AW51*$T$6))*IF($T$6=1,VLOOKUP(AT51,Interface!$A$45:$B$97,2,FALSE),1))-$N$11-$F$10*AR51 -> 5.436596017 | AY51: =($D$12+(AW51*$T$6))*IF($T$6=1,VLOOKUP(AT51,Interface!$A$45:$B$97,2,FALSE),1) -> 8.070933687 | AZ51: PD117MG6.5
Y52: 5 | AA52: 22.00285499 | AB52: 305.8379834 | AI52: 0 | AJ52: May 1-7 | AK52: MG 3.0-3.4 | AL52: =Interface!K91 -> 0 | AM52: 0 | AN52: 0 | AO52: 0 | AP52: 0 | AR52: 7.072178478 | AS52: 68.40707813 | AT52: 35 | AU52: 0.2042666667 | AV52: 0.3409333333 | AW52: =(Interface!$Y$6*60.72*(AU52-Interface!$Y$7)+Interface!$X$6/0.48*(48.73*(AU52-Interface!$Y$7)+78.33*(AV52-Interface!$X$7)-46.23*(AU52^2-Interface!$Y$7^2)-91.08*(AU52*AV52-Interface!$Y$7*Interface!$X$7)))/100 -> 0.005842526556 | AX52: =AS52*((Interface2!$D$12+(AW52*$T$6))*IF($T$6=1,VLOOKUP(AT52,Interface!$A$45:$B$97,2,FALSE),1))-$N$11-$F$10*AR52 -> 165.9955224 | AY52: =($D$12+(AW52*$T$6))*IF($T$6=1,VLOOKUP(AT52,Interface!$A$45:$B$97,2,FALSE),1) -> 9.259693741 | AZ52: PD124MG3
Y53: 6 | AA53: 26.00589124 | AB53: 313.6732438 | AI53: 0 | AJ53: May 1-7 | AK53: MG 3.5-3.9 | AL53: =Interface!K92 -> 0 | AM53: 0 | AN53: 0 | AO53: 0 | AP53: 0 | AR53: 7.937007874 | AS53: 74.76917279 | AT53: 35 | AU53: 0.204 | AV53: 0.3402666667 | AW53: =(Interface!$Y$6*60.72*(AU53-Interface!$Y$7)+Interface!$X$6/0.48*(48.73*(AU53-Interface!$Y$7)+78.33*(AV53-Interface!$X$7)-46.23*(AU53^2-Interface!$Y$7^2)-91.08*(AU53*AV53-Interface!$Y$7*Interface!$X$7)))/100 -> -0.01856063597 | AX53: =AS53*((Interface2!$D$12+(AW53*$T$6))*IF($T$6=1,VLOOKUP(AT53,Interface!$A$45:$B$97,2,FALSE),1))-$N$11-$F$10*AR53 -> 217.841559 | AY53: =($D$12+(AW53*$T$6))*IF($T$6=1,VLOOKUP(AT53,Interface!$A$45:$B$97,2,FALSE),1) -> 9.234602717 | AZ53: PD124MG3.5
Y54: Max | AA54: 30.00892749 | AB54: 313.6732438 | AI54: 0 | AJ54: May 1-7 | AK54: MG 4.0-4.4 | AL54: =Interface!K93 -> 0 | AM54: 0 | AN54: 13.62263926 | AO54: 0.6811319632 | AP54: 1 | AR54: 8.86351706 | AS54: 74.49623425 | AT54: 36 | AU54: 0.2015333333 | AV54: 0.3484333333 | AW54: =(Interface!$Y$6*60.72*(AU54-Interface!$Y$7)+Interface!$X$6/0.48*(48.73*(AU54-Interface!$Y$7)+78.33*(AV54-Interface!$X$7)-46.23*(AU54^2-Interface!$Y$7^2)-91.08*(AU54*AV54-Interface!$Y$7*Interface!$X$7)))/100 -> 0.1166849758 | AX54: =AS54*((Interface2!$D$12+(AW54*$T$6))*IF($T$6=1,VLOOKUP(AT54,Interface!$A$45:$B$97,2,FALSE),1))-$N$11-$F$10*AR54 -> 205.6790252 | AY54: =($D$12+(AW54*$T$6))*IF($T$6=1,VLOOKUP(AT54,Interface!$A$45:$B$97,2,FALSE),1) -> 9.179794583 | AZ54: PD124MG4
AA55: 34.01196375 | AB55: 313.6732438 | AI55: 0 | AJ55: May 1-7 | AK55: MG 4.5-4.9 | AL55: =Interface!K94 -> 0.4 | AM55: 1 | AN55: 2.339415423 | AO55: 0.1169707711 | AP55: 1 | AR55: 9.393700787 | AS55: 75.68277461 | AT55: 37 | AU55: 0.2009666667 | AV55: 0.3474 | AW55: =(Interface!$Y$6*60.72*(AU55-Interface!$Y$7)+Interface!$X$6/0.48*(48.73*(AU55-Interface!$Y$7)+78.33*(AV55-Interface!$X$7)-46.23*(AU55^2-Interface!$Y$7^2)-91.08*(AU55*AV55-Interface!$Y$7*Interface!$X$7)))/100 -> 0.07444596291 | AX55: =AS55*((Interface2!$D$12+(AW55*$T$6))*IF($T$6=1,VLOOKUP(AT55,Interface!$A$45:$B$97,2,FALSE),1))-$N$11-$F$10*AR55 -> 196.6130296 | AY55: =($D$12+(AW55*$T$6))*IF($T$6=1,VLOOKUP(AT55,Interface!$A$45:$B$97,2,FALSE),1) -> 8.958118116 | AZ55: PD124MG4.5
AA56: =Output1!E13/2 -> 38.015 | AB56: =Output1!C13 -> 200.9731987 | AI56: 0 | AJ56: May 1-7 | AK56: MG 5.0-5.4 | AL56: =Interface!K95 -> 0 | AM56: 0 | AN56: 0 | AO56: 0 | AP56: 0 | AR56: 9.573490814 | AS56: 74.44141814 | AT56: 38 | AU56: 0.1977333333 | AV56: 0.3485 | AW56: =(Interface!$Y$6*60.72*(AU56-Interface!$Y$7)+Interface!$X$6/0.48*(48.73*(AU56-Interface!$Y$7)+78.33*(AV56-Interface!$X$7)-46.23*(AU56^2-Interface!$Y$7^2)-91.08*(AU56*AV56-Interface!$Y$7*Interface!$X$7)))/100 -> 0.009926951231 | AX56: =AS56*((Interface2!$D$12+(AW56*$T$6))*IF($T$6=1,VLOOKUP(AT56,Interface!$A$45:$B$97,2,FALSE),1))-$N$11-$F$10*AR56 -> 170.916173 | AY56: =($D$12+(AW56*$T$6))*IF($T$6=1,VLOOKUP(AT56,Interface!$A$45:$B$97,2,FALSE),1) -> 8.77679569 | AZ56: PD124MG5
AI57: 0 | AJ57: May 1-7 | AK57: MG 5.5-5.9 | AL57: =Interface!K96 -> 0 | AM57: 0 | AN57: 0 | AO57: 0 | AP57: 0 | AR57: 9.729658793 | AS57: 72.86773901 | AT57: 39 | AU57: 0.1966666667 | AV57: 0.3485666667 | AW57: =(Interface!$Y$6*60.72*(AU57-Interface!$Y$7)+Interface!$X$6/0.48*(48.73*(AU57-Interface!$Y$7)+78.33*(AV57-Interface!$X$7)-46.23*(AU57^2-Interface!$Y$7^2)-91.08*(AU57*AV57-Interface!$Y$7*Interface!$X$7)))/100 -> -0.018918501 | AX57: =AS57*((Interface2!$D$12+(AW57*$T$6))*IF($T$6=1,VLOOKUP(AT57,Interface!$A$45:$B$97,2,FALSE),1))-$N$11-$F$10*AR57 -> 147.5387731 | AY57: =($D$12+(AW57*$T$6))*IF($T$6=1,VLOOKUP(AT57,Interface!$A$45:$B$97,2,FALSE),1) -> 8.658382083 | AZ57: PD124MG5.5
AI58: 0 | AJ58: May 1-7 | AK58: MG 6.0-6.4 | AL58: =Interface!K97 -> 0 | AM58: 0 | AN58: 0 | AO58: 0 | AP58: 0 | AR58: 10.29790026 | AS58: 64.6744437 | AT58: 40 | AU58: 0.1936 | AV58: 0.3504666667 | AW58: =(Interface!$Y$6*60.72*(AU58-Interface!$Y$7)+Interface!$X$6/0.48*(48.73*(AU58-Interface!$Y$7)+78.33*(AV58-Interface!$X$7)-46.23*(AU58^2-Interface!$Y$7^2)-91.08*(AU58*AV58-Interface!$Y$7*Interface!$X$7)))/100 -> -0.05843015205 | AX58: =AS58*((Interface2!$D$12+(AW58*$T$6))*IF($T$6=1,VLOOKUP(AT58,Interface!$A$45:$B$97,2,FALSE),1))-$N$11-$F$10*AR58 -> 33.72195209 | AY58: =($D$12+(AW58*$T$6))*IF($T$6=1,VLOOKUP(AT58,Interface!$A$45:$B$97,2,FALSE),1) -> 8.048145819 | AZ58: PD124MG6
AI59: 0 | AJ59: May 1-7 | AK59: MG 6.5-6.9 | AL59: =Interface!K98 -> 0 | AM59: 0 | AN59: 0 | AO59: 0 | AP59: 0 | AR59: 10.45013123 | AS59: 59.80494601 | AT59: 41 | AU59: 0.1899666667 | AV59: 0.3546 | AW59: =(Interface!$Y$6*60.72*(AU59-Interface!$Y$7)+Interface!$X$6/0.48*(48.73*(AU59-Interface!$Y$7)+78.33*(AV59-Interface!$X$7)-46.23*(AU59^2-Interface!$Y$7^2)-91.08*(AU59*AV59-Interface!$Y$7*Interface!$X$7)))/100 -> -0.05679880959 | AX59: =AS59*((Interface2!$D$12+(AW59*$T$6))*IF($T$6=1,VLOOKUP(AT59,Interface!$A$45:$B$97,2,FALSE),1))-$N$11-$F$10*AR59 -> -1.871405797 | AY59: =($D$12+(AW59*$T$6))*IF($T$6=1,VLOOKUP(AT59,Interface!$A$45:$B$97,2,FALSE),1) -> 8.123565257 | AZ59: PD124MG6.5
AI60: 0 | AJ60: May 8-14 | AK60: MG 3.0-3.4 | AL60: =Interface!K99 -> 0 | AM60: 0 | AN60: 0 | AO60: 0 | AP60: 0 | AR60: 7.25984252 | AS60: 68.49672531 | AT60: 35 | AU60: 0.2037666667 | AV60: 0.3416 | AW60: =(Interface!$Y$6*60.72*(AU60-Interface!$Y$7)+Interface!$X$6/0.48*(48.73*(AU60-Interface!$Y$7)+78.33*(AV60-Interface!$X$7)-46.23*(AU60^2-Interface!$Y$7^2)-91.08*(AU60*AV60-Interface!$Y$7*Interface!$X$7)))/100 -> 0.008282905516 | AX60: =AS60*((Interface2!$D$12+(AW60*$T$6))*IF($T$6=1,VLOOKUP(AT60,Interface!$A$45:$B$97,2,FALSE),1))-$N$11-$F$10*AR60 -> 165.8715132 | AY60: =($D$12+(AW60*$T$6))*IF($T$6=1,VLOOKUP(AT60,Interface!$A$45:$B$97,2,FALSE),1) -> 9.262202908 | AZ60: PD131MG3
Z61: Macro Sort | AI61: 0 | AJ61: May 8-14 | AK61: MG 3.5-3.9 | AL61: =Interface!K100 -> 0 | AM61: 0 | AN61: 0 | AO61: 0 | AP61: 0 | AR61: 7.862204724 | AS61: 74.48938223 | AT61: 36 | AU61: 0.2037 | AV61: 0.3409666667 | AW61: =(Interface!$Y$6*60.72*(AU61-Interface!$Y$7)+Interface!$X$6/0.48*(48.73*(AU61-Interface!$Y$7)+78.33*(AV61-Interface!$X$7)-46.23*(AU61^2-Interface!$Y$7^2)-91.08*(AU61*AV61-Interface!$Y$7*Interface!$X$7)))/100 -> -0.009558355988 | AX61: =AS61*((Interface2!$D$12+(AW61*$T$6))*IF($T$6=1,VLOOKUP(AT61,Interface!$A$45:$B$97,2,FALSE),1))-$N$11-$F$10*AR61 -> 202.1551143 | AY61: =($D$12+(AW61*$T$6))*IF($T$6=1,VLOOKUP(AT61,Interface!$A$45:$B$97,2,FALSE),1) -> 9.05267734 | AZ61: PD131MG3.5
Z62: Macro Name | AB62: Irrigation Restrictions? | AD62: Planting Period Restrictions | AI62: 0 | AJ62: May 8-14 | AK62: MG 4.0-4.4 | AL62: =Interface!K101 -> 0 | AM62: 0 | AN62: 0 | AO62: 0 | AP62: 0 | AR62: 8.788713911 | AS62: 73.28856684 | AT62: 37 | AU62: 0.2008333333 | AV62: 0.3493666667 | AW62: =(Interface!$Y$6*60.72*(AU62-Interface!$Y$7)+Interface!$X$6/0.48*(48.73*(AU62-Interface!$Y$7)+78.33*(AV62-Interface!$X$7)-46.23*(AU62^2-Interface!$Y$7^2)-91.08*(AU62*AV62-Interface!$Y$7*Interface!$X$7)))/100 -> 0.1203304957 | AX62: =AS62*((Interface2!$D$12+(AW62*$T$6))*IF($T$6=1,VLOOKUP(AT62,Interface!$A$45:$B$97,2,FALSE),1))-$N$11-$F$10*AR62 -> 182.1150577 | AY62: =($D$12+(AW62*$T$6))*IF($T$6=1,VLOOKUP(AT62,Interface!$A$45:$B$97,2,FALSE),1) -> 9.003414443 | AZ62: PD131MG4
Y63: 1 | Z63: MinGivenReturn | AB63: No | AD63: 1 | AI63: 0 | AJ63: May 8-14 | AK63: MG 4.5-4.9 | AL63: =Interface!K102 -> 0 | AM63: 0 | AN63: 0 | AO63: 0 | AP63: 0 | AR63: 9.317585302 | AS63: 74.8228469 | AT63: 38 | AU63: 0.2005666667 | AV63: 0.3472333333 | AW63: =(Interface!$Y$6*60.72*(AU63-Interface!$Y$7)+Interface!$X$6/0.48*(48.73*(AU63-Interface!$Y$7)+78.33*(AV63-Interface!$X$7)-46.23*(AU63^2-Interface!$Y$7^2)-91.08*(AU63*AV63-Interface!$Y$7*Interface!$X$7)))/100 -> 0.05881934335 | AX63: =AS63*((Interface2!$D$12+(AW63*$T$6))*IF($T$6=1,VLOOKUP(AT63,Interface!$A$45:$B$97,2,FALSE),1))-$N$11-$F$10*AR63 -> 179.3629389 | AY63: =($D$12+(AW63*$T$6))*IF($T$6=1,VLOOKUP(AT63,Interface!$A$45:$B$97,2,FALSE),1) -> 8.824422995 | AZ63: PD131MG4.5
Y64: 2 | Z64: MaxGivenRisk | AB64: No | AD64: 1 | AI64: 0 | AJ64: May 8-14 | AK64: MG 5.0-5.4 | AL64: =Interface!K103 -> 0.3 | AM64: 1 | AN64: 0 | AO64: 0 | AP64: 0 | AR64: 9.350393701 | AS64: 73.50497627 | AT64: 38 | AU64: 0.1971333333 | AV64: 0.3484333333 | AW64: =(Interface!$Y$6*60.72*(AU64-Interface!$Y$7)+Interface!$X$6/0.48*(48.73*(AU64-Interface!$Y$7)+78.33*(AV64-Interface!$X$7)-46.23*(AU64^2-Interface!$Y$7^2)-91.08*(AU64*AV64-Interface!$Y$7*Interface!$X$7)))/100 -> -0.008940418528 | AX64: =AS64*((Interface2!$D$12+(AW64*$T$6))*IF($T$6=1,VLOOKUP(AT64,Interface!$A$45:$B$97,2,FALSE),1))-$N$11-$F$10*AR64 -> 162.6848358 | AY64: =($D$12+(AW64*$T$6))*IF($T$6=1,VLOOKUP(AT64,Interface!$A$45:$B$97,2,FALSE),1) -> 8.758416513 | AZ64: PD131MG5
Y65: 3 | Z65: MinGivenReturn2 | AB65: Yes | AD65: 1 | AI65: 0 | AJ65: May 8-14 | AK65: MG 5.5-5.9 | AL65: =Interface!K104 -> 0 | AM65: 0 | AN65: 0 | AO65: 0 | AP65: 0 | AR65: 9.599737533 | AS65: 72.04321337 | AT65: 39 | AU65: 0.1960333333 | AV65: 0.3480666667 | AW65: =(Interface!$Y$6*60.72*(AU65-Interface!$Y$7)+Interface!$X$6/0.48*(48.73*(AU65-Interface!$Y$7)+78.33*(AV65-Interface!$X$7)-46.23*(AU65^2-Interface!$Y$7^2)-91.08*(AU65*AV65-Interface!$Y$7*Interface!$X$7)))/100 -> -0.04979588611 | AX65: =AS65*((Interface2!$D$12+(AW65*$T$6))*IF($T$6=1,VLOOKUP(AT65,Interface!$A$45:$B$97,2,FALSE),1))-$N$11-$F$10*AR65 -> 139.0346653 | AY65: =($D$12+(AW65*$T$6))*IF($T$6=1,VLOOKUP(AT65,Interface!$A$45:$B$97,2,FALSE),1) -> 8.628614153 | AZ65: PD131MG5.5
Y66: 4 | Z66: MaxGivenRisk2 | AB66: Yes | AD66: 1 | AI66: 0 | AJ66: May 8-14 | AK66: MG 6.0-6.4 | AL66: =Interface!K105 -> 0 | AM66: 0 | AN66: 0 | AO66: 0 | AP66: 0 | AR66: 10.29658793 | AS66: 63.51017239 | AT66: 40 | AU66: 0.1932666667 | AV66: 0.3490333333 | AW66: =(Interface!$Y$6*60.72*(AU66-Interface!$Y$7)+Interface!$X$6/0.48*(48.73*(AU66-Interface!$Y$7)+78.33*(AV66-Interface!$X$7)-46.23*(AU66^2-Interface!$Y$7^2)-91.08*(AU66*AV66-Interface!$Y$7*Interface!$X$7)))/100 -> -0.1046271282 | AX66: =AS66*((Interface2!$D$12+(AW66*$T$6))*IF($T$6=1,VLOOKUP(AT66,Interface!$A$45:$B$97,2,FALSE),1))-$N$11-$F$10*AR66 -> 21.71878014 | AY66: =($D$12+(AW66*$T$6))*IF($T$6=1,VLOOKUP(AT66,Interface!$A$45:$B$97,2,FALSE),1) -> 8.006564753 | AZ66: PD131MG6
Y67: 5 | Z67: MinGivenReturn3 | AB67: No | AD67: 2 | AI67: 0 | AJ67: May 8-14 | AK67: MG 6.5-6.9 | AL67: =Interface!K106 -> 0 | AM67: 0 | AN67: 0 | AO67: 0 | AP67: 0 | AR67: 10.4488189 | AS67: 58.72746687 | AT67: 41 | AU67: 0.1888666667 | AV67: 0.3552 | AW67: =(Interface!$Y$6*60.72*(AU67-Interface!$Y$7)+Interface!$X$6/0.48*(48.73*(AU67-Interface!$Y$7)+78.33*(AV67-Interface!$X$7)-46.23*(AU67^2-Interface!$Y$7^2)-91.08*(AU67*AV67-Interface!$Y$7*Interface!$X$7)))/100 -> -0.07293519131 | AX67: =AS67*((Interface2!$D$12+(AW67*$T$6))*IF($T$6=1,VLOOKUP(AT67,Interface!$A$45:$B$97,2,FALSE),1))-$N$11-$F$10*AR67 -> -11.47730163 | AY67: =($D$12+(AW67*$T$6))*IF($T$6=1,VLOOKUP(AT67,Interface!$A$45:$B$97,2,FALSE),1) -> 8.108907759 | AZ67: PD131MG6.5
Y68: 6 | Z68: MaxGivenRisk3 | AB68: No | AD68: 2 | AI68: =IF(AS68=MAX($AS$4:$AS$115),1,0) -> 0 | AJ68: May 15-22 | AK68: MG 3.0-3.4 | AL68: =Interface!K107 -> 0 | AM68: =IF(AL68>0.001,1,0) -> 0 | AN68: 0 | AO68: 0 | AP68: 0 | AR68: 7.271653543 | AS68: 67.14687862 | AT68: 36 | AU68: 0.2033333333 | AV68: 0.3418666667 | AW68: =(Interface!$Y$6*60.72*(AU68-Interface!$Y$7)+Interface!$X$6/0.48*(48.73*(AU68-Interface!$Y$7)+78.33*(AV68-Interface!$X$7)-46.23*(AU68^2-Interface!$Y$7^2)-91.08*(AU68*AV68-Interface!$Y$7*Interface!$X$7)))/100 -> 0.002580182098 | AX68: =AS68*((Interface2!$D$12+(AW68*$T$6))*IF($T$6=1,VLOOKUP(AT68,Interface!$A$45:$B$97,2,FALSE),1))-$N$11-$F$10*AR68 -> 140.0498125 | AY68: =($D$12+(AW68*$T$6))*IF($T$6=1,VLOOKUP(AT68,Interface!$A$45:$B$97,2,FALSE),1) -> 9.064899906 | AZ68: PD139MG3
Y69: 7 | Z69: MinGivenReturn4 | AB69: Yes | AD69: 2 | AI69: 0 | AJ69: May 15-22 | AK69: MG 3.5-3.9 | AL69: =Interface!K108 -> 0 | AM69: 0 | AN69: 0 | AO69: =AN69*0.05 -> 0 | AP69: =IF(AO69>0.0005,1,0) -> 0 | AR69: 7.817585302 | AS69: 72.53199034 | AT69: 37 | AU69: 0.203 | AV69: 0.3415666667 | AW69: =(Interface!$Y$6*60.72*(AU69-Interface!$Y$7)+Interface!$X$6/0.48*(48.73*(AU69-Interface!$Y$7)+78.33*(AV69-Interface!$X$7)-46.23*(AU69^2-Interface!$Y$7^2)-91.08*(AU69*AV69-Interface!$Y$7*Interface!$X$7)))/100 -> -0.0145257633 | AX69: =AS69*((Interface2!$D$12+(AW69*$T$6))*IF($T$6=1,VLOOKUP(AT69,Interface!$A$45:$B$97,2,FALSE),1))-$N$11-$F$10*AR69 -> 171.4740551 | AY69: =($D$12+(AW69*$T$6))*IF($T$6=1,VLOOKUP(AT69,Interface!$A$45:$B$97,2,FALSE),1) -> 8.870286943 | AZ69: PD139MG3.5
Y70: 8 | Z70: MaxGivenRisk4 | AB70: Yes | AD70: 2 | AI70: 0 | AJ70: May 15-22 | AK70: MG 4.0-4.4 | AL70: =Interface!K109 -> 0 | AM70: 0 | AN70: 0 | AO70: 0 | AP70: 0 | AR70: 8.603674541 | AS70: 71.38884606 | AT70: 37 | AU70: 0.2000666667 | AV70: 0.3501333333 | AW70: =(Interface!$Y$6*60.72*(AU70-Interface!$Y$7)+Interface!$X$6/0.48*(48.73*(AU70-Interface!$Y$7)+78.33*(AV70-Interface!$X$7)-46.23*(AU70^2-Interface!$Y$7^2)-91.08*(AU70*AV70-Interface!$Y$7*Interface!$X$7)))/100 -> 0.1178945872 | AX70: =AS70*((Interface2!$D$12+(AW70*$T$6))*IF($T$6=1,VLOOKUP(AT70,Interface!$A$45:$B$97,2,FALSE),1))-$N$11-$F$10*AR70 -> 165.949653 | AY70: =($D$12+(AW70*$T$6))*IF($T$6=1,VLOOKUP(AT70,Interface!$A$45:$B$97,2,FALSE),1) -> 9.001009761 | AZ70: PD139MG4
Y71: 9 | Z71: MinGivenReturn5 | AB71: No | AD71: 3 | AI71: 0 | AJ71: May 15-22 | AK71: MG 4.5-4.9 | AL71: =Interface!K110 -> 0 | AM71: 0 | AN71: 4.03794284 | AO71: 0.201897142 | AP71: 1 | AR71: 8.997375328 | AS71: 73.38563704 | AT71: 38 | AU71: 0.1997333333 | AV71: 0.3478333333 | AW71: =(Interface!$Y$6*60.72*(AU71-Interface!$Y$7)+Interface!$X$6/0.48*(48.73*(AU71-Interface!$Y$7)+78.33*(AV71-Interface!$X$7)-46.23*(AU71^2-Interface!$Y$7^2)-91.08*(AU71*AV71-Interface!$Y$7*Interface!$X$7)))/100 -> 0.05019931149 | AX71: =AS71*((Interface2!$D$12+(AW71*$T$6))*IF($T$6=1,VLOOKUP(AT71,Interface!$A$45:$B$97,2,FALSE),1))-$N$11-$F$10*AR71 -> 167.9854326 | AY71: =($D$12+(AW71*$T$6))*IF($T$6=1,VLOOKUP(AT71,Interface!$A$45:$B$97,2,FALSE),1) -> 8.816026006 | AZ71: PD139MG4.5
Y72: 10 | Z72: MaxGivenRisk5 | AB72: No | AD72: 3 | AI72: 0 | AJ72: May 15-22 | AK72: MG 5.0-5.4 | AL72: =Interface!K111 -> 0 | AM72: 0 | AN72: 0 | AO72: 0 | AP72: 0 | AR72: 9.146981627 | AS72: 71.92901314 | AT72: 39 | AU72: 0.1963666667 | AV72: 0.3486 | AW72: =(Interface!$Y$6*60.72*(AU72-Interface!$Y$7)+Interface!$X$6/0.48*(48.73*(AU72-Interface!$Y$7)+78.33*(AV72-Interface!$X$7)-46.23*(AU72^2-Interface!$Y$7^2)-91.08*(AU72*AV72-Interface!$Y$7*Interface!$X$7)))/100 -> -0.02666732901 | AX72: =AS72*((Interface2!$D$12+(AW72*$T$6))*IF($T$6=1,VLOOKUP(AT72,Interface!$A$45:$B$97,2,FALSE),1))-$N$11-$F$10*AR72 -> 142.36965 | AY72: =($D$12+(AW72*$T$6))*IF($T$6=1,VLOOKUP(AT72,Interface!$A$45:$B$97,2,FALSE),1) -> 8.650911678 | AZ72: PD139MG5
Y73: 11 | Z73: MinGivenReturn6 | AB73: Yes | AD73: 3 | AI73: 0 | AJ73: May 15-22 | AK73: MG 5.5-5.9 | AL73: =Interface!K112 -> 0 | AM73: 0 | AN73: 0 | AO73: 0 | AP73: 0 | AR73: 9.316272966 | AS73: 70.69222468 | AT73: 39 | AU73: 0.1953 | AV73: 0.3477333333 | AW73: =(Interface!$Y$6*60.72*(AU73-Interface!$Y$7)+Interface!$X$6/0.48*(48.73*(AU73-Interface!$Y$7)+78.33*(AV73-Interface!$X$7)-46.23*(AU73^2-Interface!$Y$7^2)-91.08*(AU73*AV73-Interface!$Y$7*Interface!$X$7)))/100 -> -0.07934085751 | AX73: =AS73*((Interface2!$D$12+(AW73*$T$6))*IF($T$6=1,VLOOKUP(AT73,Interface!$A$45:$B$97,2,FALSE),1))-$N$11-$F$10*AR73 -> 127.0647384 | AY73: =($D$12+(AW73*$T$6))*IF($T$6=1,VLOOKUP(AT73,Interface!$A$45:$B$97,2,FALSE),1) -> 8.600130763 | AZ73: PD139MG5.5
Y74: 12 | Z74: MaxGivenRisk6 | AB74: Yes | AD74: 3 | AI74: 0 | AJ74: May 15-22 | AK74: MG 6.0-6.4 | AL74: =Interface!K113 -> 0 | AM74: 0 | AN74: 0 | AO74: 0 | AP74: 0 | AR74: 9.871391076 | AS74: 62.04098646 | AT74: 41 | AU74: 0.1934 | AV74: 0.3458333333 | AW74: =(Interface!$Y$6*60.72*(AU74-Interface!$Y$7)+Interface!$X$6/0.48*(48.73*(AU74-Interface!$Y$7)+78.33*(AV74-Interface!$X$7)-46.23*(AU74^2-Interface!$Y$7^2)-91.08*(AU74*AV74-Interface!$Y$7*Interface!$X$7)))/100 -> -0.182553054 | AX74: =AS74*((Interface2!$D$12+(AW74*$T$6))*IF($T$6=1,VLOOKUP(AT74,Interface!$A$45:$B$97,2,FALSE),1))-$N$11-$F$10*AR74 -> 12.67877663 | AY74: =($D$12+(AW74*$T$6))*IF($T$6=1,VLOOKUP(AT74,Interface!$A$45:$B$97,2,FALSE),1) -> 8.00933627 | AZ74: PD139MG6
Y75: 13 | Z75: MinGivenReturn7 | AB75: No | AD75: 4 | AI75: 0 | AJ75: May 15-22 | AK75: MG 6.5-6.9 | AL75: =Interface!K114 -> 0 | AM75: 0 | AN75: 0 | AO75: 0 | AP75: 0 | AR75: 10.02099738 | AS75: 57.75505193 | AT75: 41 | AU75: 0.1881 | AV75: 0.354 | AW75: =(Interface!$Y$6*60.72*(AU75-Interface!$Y$7)+Interface!$X$6/0.48*(48.73*(AU75-Interface!$Y$7)+78.33*(AV75-Interface!$X$7)-46.23*(AU75^2-Interface!$Y$7^2)-91.08*(AU75*AV75-Interface!$Y$7*Interface!$X$7)))/100 -> -0.1258533601 | AX75: =AS75*((Interface2!$D$12+(AW75*$T$6))*IF($T$6=1,VLOOKUP(AT75,Interface!$A$45:$B$97,2,FALSE),1))-$N$11-$F$10*AR75 -> -19.57178085 | AY75: =($D$12+(AW75*$T$6))*IF($T$6=1,VLOOKUP(AT75,Interface!$A$45:$B$97,2,FALSE),1) -> 8.060839491 | AZ75: PD139MG6.5
Y76: 14 | Z76: MaxGivenRisk7 | AB76: No | AD76: 4 | AI76: 0 | AJ76: May 23-31 | AK76: MG 3.0-3.4 | AL76: =Interface!K115 -> 0 | AM76: 0 | AN76: 0 | AO76: 0 | AP76: 0 | AR76: 7.207349081 | AS76: 64.56937949 | AT76: 37 | AU76: 0.2027333333 | AV76: 0.3428666667 | AW76: =(Interface!$Y$6*60.72*(AU76-Interface!$Y$7)+Interface!$X$6/0.48*(48.73*(AU76-Interface!$Y$7)+78.33*(AV76-Interface!$X$7)-46.23*(AU76^2-Interface!$Y$7^2)-91.08*(AU76*AV76-Interface!$Y$7*Interface!$X$7)))/100 -> 0.01057733383 | AX76: =AS76*((Interface2!$D$12+(AW76*$T$6))*IF($T$6=1,VLOOKUP(AT76,Interface!$A$45:$B$97,2,FALSE),1))-$N$11-$F$10*AR76 -> 106.1049421 | AY76: =($D$12+(AW76*$T$6))*IF($T$6=1,VLOOKUP(AT76,Interface!$A$45:$B$97,2,FALSE),1) -> 8.895068237 | AZ76: PD147MG3
Y77: 15 | Z77: MinGivenReturn8 | AB77: Yes | AD77: 4 | AI77: 0 | AJ77: May 23-31 | AK77: MG 3.5-3.9 | AL77: =Interface!K116 -> 0 | AM77: 0 | AN77: 0 | AO77: 0 | AP77: 0 | AR77: 7.74671916 | AS77: 69.97790226 | AT77: 37 | AU77: 0.2021666667 | AV77: 0.3422666667 | AW77: =(Interface!$Y$6*60.72*(AU77-Interface!$Y$7)+Interface!$X$6/0.48*(48.73*(AU77-Interface!$Y$7)+78.33*(AV77-Interface!$X$7)-46.23*(AU77^2-Interface!$Y$7^2)-91.08*(AU77*AV77-Interface!$Y$7*Interface!$X$7)))/100 -> -0.02078242676 | AX77: =AS77*((Interface2!$D$12+(AW77*$T$6))*IF($T$6=1,VLOOKUP(AT77,Interface!$A$45:$B$97,2,FALSE),1))-$N$11-$F$10*AR77 -> 148.8115422 | AY77: =($D$12+(AW77*$T$6))*IF($T$6=1,VLOOKUP(AT77,Interface!$A$45:$B$97,2,FALSE),1) -> 8.864110486 | AZ77: PD147MG3.5
Y78: 16 | Z78: MaxGivenRisk8 | AB78: Yes | AD78: 4 | AI78: 0 | AJ78: May 23-31 | AK78: MG 4.0-4.4 | AL78: =Interface!K117 -> 0 | AM78: 0 | AN78: 0 | AO78: 0 | AP78: 0 | AR78: 8.640419948 | AS78: 69.1950597 | AT78: 38 | AU78: 0.1993 | AV78: 0.3503666667 | AW78: =(Interface!$Y$6*60.72*(AU78-Interface!$Y$7)+Interface!$X$6/0.48*(48.73*(AU78-Interface!$Y$7)+78.33*(AV78-Interface!$X$7)-46.23*(AU78^2-Interface!$Y$7^2)-91.08*(AU78*AV78-Interface!$Y$7*Interface!$X$7)))/100 -> 0.1019746701 | AX78: =AS78*((Interface2!$D$12+(AW78*$T$6))*IF($T$6=1,VLOOKUP(AT78,Interface!$A$45:$B$97,2,FALSE),1))-$N$11-$F$10*AR78 -> 136.6728256 | AY78: =($D$12+(AW78*$T$6))*IF($T$6=1,VLOOKUP(AT78,Interface!$A$45:$B$97,2,FALSE),1) -> 8.866461681 | AZ78: PD147MG4
AI79: 0 | AJ79: May 23-31 | AK79: MG 4.5-4.9 | AL79: =Interface!K118 -> 0 | AM79: 0 | AN79: 0 | AO79: 0 | AP79: 0 | AR79: 8.971128609 | AS79: 71.2563738 | AT79: 39 | AU79: 0.1984666667 | AV79: 0.3487 | AW79: =(Interface!$Y$6*60.72*(AU79-Interface!$Y$7)+Interface!$X$6/0.48*(48.73*(AU79-Interface!$Y$7)+78.33*(AV79-Interface!$X$7)-46.23*(AU79^2-Interface!$Y$7^2)-91.08*(AU79*AV79-Interface!$Y$7*Interface!$X$7)))/100 -> 0.03596904588 | AX79: =AS79*((Interface2!$D$12+(AW79*$T$6))*IF($T$6=1,VLOOKUP(AT79,Interface!$A$45:$B$97,2,FALSE),1))-$N$11-$F$10*AR79 -> 141.9086967 | AY79: =($D$12+(AW79*$T$6))*IF($T$6=1,VLOOKUP(AT79,Interface!$A$45:$B$97,2,FALSE),1) -> 8.711297464 | AZ79: PD147MG4.5
AI80: 0 | AJ80: May 23-31 | AK80: MG 5.0-5.4 | AL80: =Interface!K119 -> 0 | AM80: 0 | AN80: 0 | AO80: 0 | AP80: 0 | AR80: 9.07480315 | AS80: 69.79175589 | AT80: 39 | AU80: 0.1952333333 | AV80: 0.3491333333 | AW80: =(Interface!$Y$6*60.72*(AU80-Interface!$Y$7)+Interface!$X$6/0.48*(48.73*(AU80-Interface!$Y$7)+78.33*(AV80-Interface!$X$7)-46.23*(AU80^2-Interface!$Y$7^2)-91.08*(AU80*AV80-Interface!$Y$7*Interface!$X$7)))/100 -> -0.04558462888 | AX80: =AS80*((Interface2!$D$12+(AW80*$T$6))*IF($T$6=1,VLOOKUP(AT80,Interface!$A$45:$B$97,2,FALSE),1))-$N$11-$F$10*AR80 -> 123.0406642 | AY80: =($D$12+(AW80*$T$6))*IF($T$6=1,VLOOKUP(AT80,Interface!$A$45:$B$97,2,FALSE),1) -> 8.632674096 | AZ80: PD147MG5
AI81: 0 | AJ81: May 23-31 | AK81: MG 5.5-5.9 | AL81: =Interface!K120 -> 0 | AM81: 0 | AN81: 0 | AO81: 0 | AP81: 0 | AR81: 9.174540682 | AS81: 68.74739481 | AT81: 40 | AU81: 0.1936 | AV81: 0.349 | AW81: =(Interface!$Y$6*60.72*(AU81-Interface!$Y$7)+Interface!$X$6/0.48*(48.73*(AU81-Interface!$Y$7)+78.33*(AV81-Interface!$X$7)-46.23*(AU81^2-Interface!$Y$7^2)-91.08*(AU81*AV81-Interface!$Y$7*Interface!$X$7)))/100 -> -0.09589261684 | AX81: =AS81*((Interface2!$D$12+(AW81*$T$6))*IF($T$6=1,VLOOKUP(AT81,Interface!$A$45:$B$97,2,FALSE),1))-$N$11-$F$10*AR81 -> 70.92370069 | AY81: =($D$12+(AW81*$T$6))*IF($T$6=1,VLOOKUP(AT81,Interface!$A$45:$B$97,2,FALSE),1) -> 8.01442653 | AZ81: PD147MG5.5
AI82: 0 | AJ82: May 23-31 | AK82: MG 6.0-6.4 | AL82: =Interface!K121 -> 0 | AM82: 0 | AN82: 0 | AO82: 0 | AP82: 0 | AR82: 9.587926509 | AS82: 60.22691585 | AT82: 41 | AU82: 0.1932333333 | AV82: 0.3420333333 | AW82: =(Interface!$Y$6*60.72*(AU82-Interface!$Y$7)+Interface!$X$6/0.48*(48.73*(AU82-Interface!$Y$7)+78.33*(AV82-Interface!$X$7)-46.23*(AU82^2-Interface!$Y$7^2)-91.08*(AU82*AV82-Interface!$Y$7*Interface!$X$7)))/100 -> -0.2844824629 | AX82: =AS82*((Interface2!$D$12+(AW82*$T$6))*IF($T$6=1,VLOOKUP(AT82,Interface!$A$45:$B$97,2,FALSE),1))-$N$11-$F$10*AR82 -> -5.726207605 | AY82: =($D$12+(AW82*$T$6))*IF($T$6=1,VLOOKUP(AT82,Interface!$A$45:$B$97,2,FALSE),1) -> 7.916748595 | AZ82: PD147MG6
AI83: 0 | AJ83: May 23-31 | AK83: MG 6.5-6.9 | AL83: =Interface!K122 -> 0 | AM83: 0 | AN83: 0 | AO83: 0 | AP83: 0 | AR83: 9.754593176 | AS83: 56.94423032 | AT83: 42 | AU83: 0.1882666667 | AV83: 0.3494666667 | AW83: =(Interface!$Y$6*60.72*(AU83-Interface!$Y$7)+Interface!$X$6/0.48*(48.73*(AU83-Interface!$Y$7)+78.33*(AV83-Interface!$X$7)-46.23*(AU83^2-Interface!$Y$7^2)-91.08*(AU83*AV83-Interface!$Y$7*Interface!$X$7)))/100 -> -0.2377778464 | AX83: =AS83*((Interface2!$D$12+(AW83*$T$6))*IF($T$6=1,VLOOKUP(AT83,Interface!$A$45:$B$97,2,FALSE),1))-$N$11-$F$10*AR83 -> -19.76648282 | AY83: =($D$12+(AW83*$T$6))*IF($T$6=1,VLOOKUP(AT83,Interface!$A$45:$B$97,2,FALSE),1) -> 8.144127573 | AZ83: PD147MG6.5
AI84: 0 | AJ84: June 1-7 | AK84: MG 3.0-3.4 | AL84: =Interface!K123 -> 0 | AM84: 0 | AN84: 0 | AO84: 0 | AP84: 0 | AR84: 7.112860892 | AS84: 61.06400352 | AT84: 37 | AU84: 0.2017333333 | AV84: 0.3436666667 | AW84: =(Interface!$Y$6*60.72*(AU84-Interface!$Y$7)+Interface!$X$6/0.48*(48.73*(AU84-Interface!$Y$7)+78.33*(AV84-Interface!$X$7)-46.23*(AU84^2-Interface!$Y$7^2)-91.08*(AU84*AV84-Interface!$Y$7*Interface!$X$7)))/100 -> 0.002110263954 | AX84: =AS84*((Interface2!$D$12+(AW84*$T$6))*IF($T$6=1,VLOOKUP(AT84,Interface!$A$45:$B$97,2,FALSE),1))-$N$11-$F$10*AR84 -> 74.98090757 | AY84: =($D$12+(AW84*$T$6))*IF($T$6=1,VLOOKUP(AT84,Interface!$A$45:$B$97,2,FALSE),1) -> 8.886709709 | AZ84: PD155MG3
AI85: 0 | AJ85: June 1-7 | AK85: MG 3.5-3.9 | AL85: =Interface!K124 -> 0 | AM85: 0 | AN85: 0 | AO85: 0 | AP85: 0 | AR85: 7.730971129 | AS85: 66.43655321 | AT85: 38 | AU85: 0.2016333333 | AV85: 0.3423333333 | AW85: =(Interface!$Y$6*60.72*(AU85-Interface!$Y$7)+Interface!$X$6/0.48*(48.73*(AU85-Interface!$Y$7)+78.33*(AV85-Interface!$X$7)-46.23*(AU85^2-Interface!$Y$7^2)-91.08*(AU85*AV85-Interface!$Y$7*Interface!$X$7)))/100 -> -0.03440023068 | AX85: =AS85*((Interface2!$D$12+(AW85*$T$6))*IF($T$6=1,VLOOKUP(AT85,Interface!$A$45:$B$97,2,FALSE),1))-$N$11-$F$10*AR85 -> 108.8454822 | AY85: =($D$12+(AW85*$T$6))*IF($T$6=1,VLOOKUP(AT85,Interface!$A$45:$B$97,2,FALSE),1) -> 8.733615471 | AZ85: PD155MG3.5
AI86: 0 | AJ86: June 1-7 | AK86: MG 4.0-4.4 | AL86: =Interface!K125 -> 0 | AM86: 0 | AN86: 0 | AO86: 0 | AP86: 0 | AR86: 8.153543307 | AS86: 65.99459833 | AT86: 39 | AU86: 0.1983333333 | AV86: 0.3510666667 | AW86: =(Interface!$Y$6*60.72*(AU86-Interface!$Y$7)+Interface!$X$6/0.48*(48.73*(AU86-Interface!$Y$7)+78.33*(AV86-Interface!$X$7)-46.23*(AU86^2-Interface!$Y$7^2)-91.08*(AU86*AV86-Interface!$Y$7*Interface!$X$7)))/100 -> 0.09218016805 | AX86: =AS86*((Interface2!$D$12+(AW86*$T$6))*IF($T$6=1,VLOOKUP(AT86,Interface!$A$45:$B$97,2,FALSE),1))-$N$11-$F$10*AR86 -> 104.5536568 | AY86: =($D$12+(AW86*$T$6))*IF($T$6=1,VLOOKUP(AT86,Interface!$A$45:$B$97,2,FALSE),1) -> 8.765488863 | AZ86: PD155MG4
AI87: 0 | AJ87: June 1-7 | AK87: MG 4.5-4.9 | AL87: =Interface!K126 -> 0 | AM87: 0 | AN87: 0 | AO87: 0 | AP87: 0 | AR87: 8.524934383 | AS87: 68.842752 | AT87: 39 | AU87: 0.1970666667 | AV87: 0.3495 | AW87: =(Interface!$Y$6*60.72*(AU87-Interface!$Y$7)+Interface!$X$6/0.48*(48.73*(AU87-Interface!$Y$7)+78.33*(AV87-Interface!$X$7)-46.23*(AU87^2-Interface!$Y$7^2)-91.08*(AU87*AV87-Interface!$Y$7*Interface!$X$7)))/100 -> 0.01625407208 | AX87: =AS87*((Interface2!$D$12+(AW87*$T$6))*IF($T$6=1,VLOOKUP(AT87,Interface!$A$45:$B$97,2,FALSE),1))-$N$11-$F$10*AR87 -> 122.2516183 | AY87: =($D$12+(AW87*$T$6))*IF($T$6=1,VLOOKUP(AT87,Interface!$A$45:$B$97,2,FALSE),1) -> 8.692290869 | AZ87: PD155MG4.5
AI88: 0 | AJ88: June 1-7 | AK88: MG 5.0-5.4 | AL88: =Interface!K127 -> 0 | AM88: 0 | AN88: 0 | AO88: 0 | AP88: 0 | AR88: 8.560367454 | AS88: 66.75117483 | AT88: 40 | AU88: 0.1933333333 | AV88: 0.3506333333 | AW88: =(Interface!$Y$6*60.72*(AU88-Interface!$Y$7)+Interface!$X$6/0.48*(48.73*(AU88-Interface!$Y$7)+78.33*(AV88-Interface!$X$7)-46.23*(AU88^2-Interface!$Y$7^2)-91.08*(AU88*AV88-Interface!$Y$7*Interface!$X$7)))/100 -> -0.06182509928 | AX88: =AS88*((Interface2!$D$12+(AW88*$T$6))*IF($T$6=1,VLOOKUP(AT88,Interface!$A$45:$B$97,2,FALSE),1))-$N$11-$F$10*AR88 -> 60.6570103 | AY88: =($D$12+(AW88*$T$6))*IF($T$6=1,VLOOKUP(AT88,Interface!$A$45:$B$97,2,FALSE),1) -> 8.045090088 | AZ88: PD155MG5
AI89: 0 | AJ89: June 1-7 | AK89: MG 5.5-5.9 | AL89: =Interface!K128 -> 0 | AM89: 0 | AN89: 0 | AO89: 0 | AP89: 0 | AR89: 8.771653543 | AS89: 66.0813905 | AT89: 40 | AU89: 0.1918 | AV89: 0.3500333333 | AW89: =(Interface!$Y$6*60.72*(AU89-Interface!$Y$7)+Interface!$X$6/0.48*(48.73*(AU89-Interface!$Y$7)+78.33*(AV89-Interface!$X$7)-46.23*(AU89^2-Interface!$Y$7^2)-91.08*(AU89*AV89-Interface!$Y$7*Interface!$X$7)))/100 -> -0.1212450041 | AX89: =AS89*((Interface2!$D$12+(AW89*$T$6))*IF($T$6=1,VLOOKUP(AT89,Interface!$A$45:$B$97,2,FALSE),1))-$N$11-$F$10*AR89 -> 50.46660166 | AY89: =($D$12+(AW89*$T$6))*IF($T$6=1,VLOOKUP(AT89,Interface!$A$45:$B$97,2,FALSE),1) -> 7.991607303 | AZ89: PD155MG5.5
AI90: 0 | AJ90: June 1-7 | AK90: MG 6.0-6.4 | AL90: =Interface!K129 -> 0 | AM90: 0 | AN90: 0 | AO90: 0 | AP90: 0 | AR90: 9.06167979 | AS90: 57.71393985 | AT90: 41 | AU90: 0.1922 | AV90: 0.3408 | AW90: =(Interface!$Y$6*60.72*(AU90-Interface!$Y$7)+Interface!$X$6/0.48*(48.73*(AU90-Interface!$Y$7)+78.33*(AV90-Interface!$X$7)-46.23*(AU90^2-Interface!$Y$7^2)-91.08*(AU90*AV90-Interface!$Y$7*Interface!$X$7)))/100 -> -0.3460736138 | AX90: =AS90*((Interface2!$D$12+(AW90*$T$6))*IF($T$6=1,VLOOKUP(AT90,Interface!$A$45:$B$97,2,FALSE),1))-$N$11-$F$10*AR90 -> -25.69221253 | AY90: =($D$12+(AW90*$T$6))*IF($T$6=1,VLOOKUP(AT90,Interface!$A$45:$B$97,2,FALSE),1) -> 7.860802215 | AZ90: PD155MG6
AI91: 0 | AJ91: June 1-7 | AK91: MG 6.5-6.9 | AL91: =Interface!K130 -> 0 | AM91: 0 | AN91: 0 | AO91: 0 | AP91: 0 | AR91: 9.215223097 | AS91: 55.79137902 | AT91: 42 | AU91: 0.1883666667 | AV91: 0.3439666667 | AW91: =(Interface!$Y$6*60.72*(AU91-Interface!$Y$7)+Interface!$X$6/0.48*(48.73*(AU91-Interface!$Y$7)+78.33*(AV91-Interface!$X$7)-46.23*(AU91^2-Interface!$Y$7^2)-91.08*(AU91*AV91-Interface!$Y$7*Interface!$X$7)))/100 -> -0.3764712832 | AX91: =AS91*((Interface2!$D$12+(AW91*$T$6))*IF($T$6=1,VLOOKUP(AT91,Interface!$A$45:$B$97,2,FALSE),1))-$N$11-$F$10*AR91 -> -33.11129056 | AY91: =($D$12+(AW91*$T$6))*IF($T$6=1,VLOOKUP(AT91,Interface!$A$45:$B$97,2,FALSE),1) -> 8.015217688 | AZ91: PD155MG6.5
AI92: 0 | AJ92: June 8-14 | AK92: MG 3.0-3.4 | AL92: =Interface!K131 -> 0 | AM92: 0 | AN92: 0 | AO92: 0 | AP92: 0 | AR92: 6.817585302 | AS92: 57.33022709 | AT92: 38 | AU92: 0.201 | AV92: 0.344 | AW92: =(Interface!$Y$6*60.72*(AU92-Interface!$Y$7)+Interface!$X$6/0.48*(48.73*(AU92-Interface!$Y$7)+78.33*(AV92-Interface!$X$7)-46.23*(AU92^2-Interface!$Y$7^2)-91.08*(AU92*AV92-Interface!$Y$7*Interface!$X$7)))/100 -> -0.01048361008 | AX92: =AS92*((Interface2!$D$12+(AW92*$T$6))*IF($T$6=1,VLOOKUP(AT92,Interface!$A$45:$B$97,2,FALSE),1))-$N$11-$F$10*AR92 -> 36.13031345 | AY92: =($D$12+(AW92*$T$6))*IF($T$6=1,VLOOKUP(AT92,Interface!$A$45:$B$97,2,FALSE),1) -> 8.756913251 | AZ92: PD162MG3
AI93: 0 | AJ93: June 8-14 | AK93: MG 3.5-3.9 | AL93: =Interface!K132 -> 0 | AM93: 0 | AN93: 0 | AO93: 0 | AP93: 0 | AR93: 7.206036745 | AS93: 62.78785595 | AT93: 39 | AU93: 0.2004666667 | AV93: 0.3428666667 | AW93: =(Interface!$Y$6*60.72*(AU93-Interface!$Y$7)+Interface!$X$6/0.48*(48.73*(AU93-Interface!$Y$7)+78.33*(AV93-Interface!$X$7)-46.23*(AU93^2-Interface!$Y$7^2)-91.08*(AU93*AV93-Interface!$Y$7*Interface!$X$7)))/100 -> -0.05442249159 | AX93: =AS93*((Interface2!$D$12+(AW93*$T$6))*IF($T$6=1,VLOOKUP(AT93,Interface!$A$45:$B$97,2,FALSE),1))-$N$11-$F$10*AR93 -> 73.25590516 | AY93: =($D$12+(AW93*$T$6))*IF($T$6=1,VLOOKUP(AT93,Interface!$A$45:$B$97,2,FALSE),1) -> 8.624153787 | AZ93: PD162MG3.5
AI94: 0 | AJ94: June 8-14 | AK94: MG 4.0-4.4 | AL94: =Interface!K133 -> 0 | AM94: 0 | AN94: 0 | AO94: 0 | AP94: 0 | AR94: 7.992125984 | AS94: 62.60570659 | AT94: 39 | AU94: 0.1970333333 | AV94: 0.3518 | AW94: =(Interface!$Y$6*60.72*(AU94-Interface!$Y$7)+Interface!$X$6/0.48*(48.73*(AU94-Interface!$Y$7)+78.33*(AV94-Interface!$X$7)-46.23*(AU94^2-Interface!$Y$7^2)-91.08*(AU94*AV94-Interface!$Y$7*Interface!$X$7)))/100 -> 0.073746055 | AX94: =AS94*((Interface2!$D$12+(AW94*$T$6))*IF($T$6=1,VLOOKUP(AT94,Interface!$A$45:$B$97,2,FALSE),1))-$N$11-$F$10*AR94 -> 74.70425457 | AY94: =($D$12+(AW94*$T$6))*IF($T$6=1,VLOOKUP(AT94,Interface!$A$45:$B$97,2,FALSE),1) -> 8.747717107 | AZ94: PD162MG4
AI95: 0 | AJ95: June 8-14 | AK95: MG 4.5-4.9 | AL95: =Interface!K134 -> 0 | AM95: 0 | AN95: 0 | AO95: 0 | AP95: 0 | AR95: 8.354330709 | AS95: 65.96604827 | AT95: 40 | AU95: 0.1953 | AV95: 0.3506333333 | AW95: =(Interface!$Y$6*60.72*(AU95-Interface!$Y$7)+Interface!$X$6/0.48*(48.73*(AU95-Interface!$Y$7)+78.33*(AV95-Interface!$X$7)-46.23*(AU95^2-Interface!$Y$7^2)-91.08*(AU95*AV95-Interface!$Y$7*Interface!$X$7)))/100 -> -0.005456306888 | AX95: =AS95*((Interface2!$D$12+(AW95*$T$6))*IF($T$6=1,VLOOKUP(AT95,Interface!$A$45:$B$97,2,FALSE),1))-$N$11-$F$10*AR95 -> 58.92370548 | AY95: =($D$12+(AW95*$T$6))*IF($T$6=1,VLOOKUP(AT95,Interface!$A$45:$B$97,2,FALSE),1) -> 8.095826622 | AZ95: PD162MG4.5
AI96: 0 | AJ96: June 8-14 | AK96: MG 5.0-5.4 | AL96: =Interface!K135 -> 0 | AM96: 0 | AN96: 0 | AO96: 0 | AP96: 0 | AR96: 8.188976378 | AS96: 63.5170244 | AT96: 40 | AU96: 0.1912333333 | AV96: 0.3524 | AW96: =(Interface!$Y$6*60.72*(AU96-Interface!$Y$7)+Interface!$X$6/0.48*(48.73*(AU96-Interface!$Y$7)+78.33*(AV96-Interface!$X$7)-46.23*(AU96^2-Interface!$Y$7^2)-91.08*(AU96*AV96-Interface!$Y$7*Interface!$X$7)))/100 -> -0.07689614975 | AX96: =AS96*((Interface2!$D$12+(AW96*$T$6))*IF($T$6=1,VLOOKUP(AT96,Interface!$A$45:$B$97,2,FALSE),1))-$N$11-$F$10*AR96 -> 36.00470522 | AY96: =($D$12+(AW96*$T$6))*IF($T$6=1,VLOOKUP(AT96,Interface!$A$45:$B$97,2,FALSE),1) -> 8.031524907 | AZ96: PD162MG5
AI97: 0 | AJ97: June 8-14 | AK97: MG 5.5-5.9 | AL97: =Interface!K136 -> 0 | AM97: 0 | AN97: 0 | AO97: 0 | AP97: 0 | AR97: 8.290026247 | AS97: 63.05108747 | AT97: 41 | AU97: 0.1902333333 | AV97: 0.3508666667 | AW97: =(Interface!$Y$6*60.72*(AU97-Interface!$Y$7)+Interface!$X$6/0.48*(48.73*(AU97-Interface!$Y$7)+78.33*(AV97-Interface!$X$7)-46.23*(AU97^2-Interface!$Y$7^2)-91.08*(AU97*AV97-Interface!$Y$7*Interface!$X$7)))/100 -> -0.1449931227 | AX97: =AS97*((Interface2!$D$12+(AW97*$T$6))*IF($T$6=1,VLOOKUP(AT97,Interface!$A$45:$B$97,2,FALSE),1))-$N$11-$F$10*AR97 -> 32.40835599 | AY97: =($D$12+(AW97*$T$6))*IF($T$6=1,VLOOKUP(AT97,Interface!$A$45:$B$97,2,FALSE),1) -> 8.043453869 | AZ97: PD162MG5.5
AI98: 0 | AJ98: June 8-14 | AK98: MG 6.0-6.4 | AL98: =Interface!K137 -> 0 | AM98: 0 | AN98: 0 | AO98: 0 | AP98: 0 | AR98: 8.644356955 | AS98: 55.24892795 | AT98: 42 | AU98: 0.1905666667 | AV98: 0.3412333333 | AW98: =(Interface!$Y$6*60.72*(AU98-Interface!$Y$7)+Interface!$X$6/0.48*(48.73*(AU98-Interface!$Y$7)+78.33*(AV98-Interface!$X$7)-46.23*(AU98^2-Interface!$Y$7^2)-91.08*(AU98*AV98-Interface!$Y$7*Interface!$X$7)))/100 -> -0.3825715533 | AX98: =AS98*((Interface2!$D$12+(AW98*$T$6))*IF($T$6=1,VLOOKUP(AT98,Interface!$A$45:$B$97,2,FALSE),1))-$N$11-$F$10*AR98 -> -34.34721597 | AY98: =($D$12+(AW98*$T$6))*IF($T$6=1,VLOOKUP(AT98,Interface!$A$45:$B$97,2,FALSE),1) -> 8.009547736 | AZ98: PD162MG6
AI99: 0 | AJ99: June 8-14 | AK99: MG 6.5-6.9 | AL99: =Interface!K138 -> 0 | AM99: 0 | AN99: 0 | AO99: 0 | AP99: 0 | AR99: 8.795275591 | AS99: 54.07609161 | AT99: 42 | AU99: 0.1879 | AV99: 0.3408333333 | AW99: =(Interface!$Y$6*60.72*(AU99-Interface!$Y$7)+Interface!$X$6/0.48*(48.73*(AU99-Interface!$Y$7)+78.33*(AV99-Interface!$X$7)-46.23*(AU99^2-Interface!$Y$7^2)-91.08*(AU99*AV99-Interface!$Y$7*Interface!$X$7)))/100 -> -0.4707964413 | AX99: =AS99*((Interface2!$D$12+(AW99*$T$6))*IF($T$6=1,VLOOKUP(AT99,Interface!$A$45:$B$97,2,FALSE),1))-$N$11-$F$10*AR99 -> -49.0809332 | AY99: =($D$12+(AW99*$T$6))*IF($T$6=1,VLOOKUP(AT99,Interface!$A$45:$B$97,2,FALSE),1) -> 7.927546307 | AZ99: PD162MG6.5
AI100: =IF(AS100=MAX($AS$4:$AS$115),1,0) -> 0 | AJ100: June 15-22 | AK100: MG 3.0-3.4 | AL100: =Interface!K139 -> 0 | AM100: 0 | AN100: 0 | AO100: 0 | AP100: 0 | AR100: 6.359580052 | AS100: 52.34538717 | AT100: 39 | AU100: 0.1997666667 | AV100: 0.3444 | AW100: =(Interface!$Y$6*60.72*(AU100-Interface!$Y$7)+Interface!$X$6/0.48*(48.73*(AU100-Interface!$Y$7)+78.33*(AV100-Interface!$X$7)-46.23*(AU100^2-Interface!$Y$7^2)-91.08*(AU100*AV100-Interface!$Y$7*Interface!$X$7)))/100 -> -0.03573348057 | AX100: =AS100*((Interface2!$D$12+(AW100*$T$6))*IF($T$6=1,VLOOKUP(AT100,Interface!$A$45:$B$97,2,FALSE),1))-$N$11-$F$10*AR100 -> -10.77967857 | AY100: =($D$12+(AW100*$T$6))*IF($T$6=1,VLOOKUP(AT100,Interface!$A$45:$B$97,2,FALSE),1) -> 8.642171282 | AZ100: PD170MG3
C101: 78 | D101: 3 | AI101: 0 | AJ101: June 15-22 | AK101: MG 3.5-3.9 | AL101: =Interface!K140 -> 0 | AM101: 0 | AN101: 0 | AO101: 0 | AP101: 0 | AR101: 6.985564304 | AS101: 57.55520153 | AT101: 39 | AU101: 0.1990333333 | AV101: 0.3427666667 | AW101: =(Interface!$Y$6*60.72*(AU101-Interface!$Y$7)+Interface!$X$6/0.48*(48.73*(AU101-Interface!$Y$7)+78.33*(AV101-Interface!$X$7)-46.23*(AU101^2-Interface!$Y$7^2)-91.08*(AU101*AV101-Interface!$Y$7*Interface!$X$7)))/100 -> -0.09816193041 | AX101: =AS101*((Interface2!$D$12+(AW101*$T$6))*IF($T$6=1,VLOOKUP(AT101,Interface!$A$45:$B$97,2,FALSE),1))-$N$11-$F$10*AR101 -> 27.02454512 | AY101: =($D$12+(AW101*$T$6))*IF($T$6=1,VLOOKUP(AT101,Interface!$A$45:$B$97,2,FALSE),1) -> 8.58198595 | AZ101: PD170MG3.5
C102: 86 | D102: 3.5 | AI102: 0 | AJ102: June 15-22 | AK102: MG 4.0-4.4 | AL102: =Interface!K141 -> 0 | AM102: 0 | AN102: 0 | AO102: 0 | AP102: 0 | AR102: 7.526246719 | AS102: 58.12049266 | AT102: 40 | AU102: 0.195 | AV102: 0.3527333333 | AW102: =(Interface!$Y$6*60.72*(AU102-Interface!$Y$7)+Interface!$X$6/0.48*(48.73*(AU102-Interface!$Y$7)+78.33*(AV102-Interface!$X$7)-46.23*(AU102^2-Interface!$Y$7^2)-91.08*(AU102*AV102-Interface!$Y$7*Interface!$X$7)))/100 -> 0.03948154361 | AX102: =AS102*((Interface2!$D$12+(AW102*$T$6))*IF($T$6=1,VLOOKUP(AT102,Interface!$A$45:$B$97,2,FALSE),1))-$N$11-$F$10*AR102 -> 2.726794533 | AY102: =($D$12+(AW102*$T$6))*IF($T$6=1,VLOOKUP(AT102,Interface!$A$45:$B$97,2,FALSE),1) -> 8.136274371 | AZ102: PD170MG4
C103: 94 | D103: 4 | AI103: 0 | AJ103: June 15-22 | AK103: MG 4.5-4.9 | AL103: =Interface!K142 -> 0 | AM103: 0 | AN103: 0 | AO103: 0 | AP103: 0 | AR103: 7.829396325 | AS103: 62.12892064 | AT103: 41 | AU103: 0.1934333333 | AV103: 0.3508333333 | AW103: =(Interface!$Y$6*60.72*(AU103-Interface!$Y$7)+Interface!$X$6/0.48*(48.73*(AU103-Interface!$Y$7)+78.33*(AV103-Interface!$X$7)-46.23*(AU103^2-Interface!$Y$7^2)-91.08*(AU103*AV103-Interface!$Y$7*Interface!$X$7)))/100 -> -0.05384546243 | AX103: =AS103*((Interface2!$D$12+(AW103*$T$6))*IF($T$6=1,VLOOKUP(AT103,Interface!$A$45:$B$97,2,FALSE),1))-$N$11-$F$10*AR103 -> 32.89863492 | AY103: =($D$12+(AW103*$T$6))*IF($T$6=1,VLOOKUP(AT103,Interface!$A$45:$B$97,2,FALSE),1) -> 8.126247932 | AZ103: PD170MG4.5
C104: 101 | D104: 4.5 | AI104: 0 | AJ104: June 15-22 | AK104: MG 5.0-5.4 | AL104: =Interface!K143 -> 0 | AM104: 0 | AN104: 0 | AO104: 0 | AP104: 0 | AR104: 7.720472441 | AS104: 59.16142773 | AT104: 41 | AU104: 0.1893666667 | AV104: 0.3528333333 | AW104: =(Interface!$Y$6*60.72*(AU104-Interface!$Y$7)+Interface!$X$6/0.48*(48.73*(AU104-Interface!$Y$7)+78.33*(AV104-Interface!$X$7)-46.23*(AU104^2-Interface!$Y$7^2)-91.08*(AU104*AV104-Interface!$Y$7*Interface!$X$7)))/100 -> -0.1194252992 | AX104: =AS104*((Interface2!$D$12+(AW104*$T$6))*IF($T$6=1,VLOOKUP(AT104,Interface!$A$45:$B$97,2,FALSE),1))-$N$11-$F$10*AR104 -> 5.913378071 | AY104: =($D$12+(AW104*$T$6))*IF($T$6=1,VLOOKUP(AT104,Interface!$A$45:$B$97,2,FALSE),1) -> 8.066678426 | AZ104: PD170MG5
C105: 109 | D105: 5 | AI105: 0 | AJ105: June 15-22 | AK105: MG 5.5-5.9 | AL105: =Interface!K144 -> 0 | AM105: 0 | AN105: 0 | AO105: 0 | AP105: 0 | AR105: 7.872703412 | AS105: 59.15343372 | AT105: 41 | AU105: 0.1878666667 | AV105: 0.3517333333 | AW105: =(Interface!$Y$6*60.72*(AU105-Interface!$Y$7)+Interface!$X$6/0.48*(48.73*(AU105-Interface!$Y$7)+78.33*(AV105-Interface!$X$7)-46.23*(AU105^2-Interface!$Y$7^2)-91.08*(AU105*AV105-Interface!$Y$7*Interface!$X$7)))/100 -> -0.190963209 | AX105: =AS105*((Interface2!$D$12+(AW105*$T$6))*IF($T$6=1,VLOOKUP(AT105,Interface!$A$45:$B$97,2,FALSE),1))-$N$11-$F$10*AR105 -> 1.091626577 | AY105: =($D$12+(AW105*$T$6))*IF($T$6=1,VLOOKUP(AT105,Interface!$A$45:$B$97,2,FALSE),1) -> 8.001696898 | AZ105: PD170MG5.5
C106: 117 | D106: 5.5 | AI106: 0 | AJ106: June 15-22 | AK106: MG 6.0-6.4 | AL106: =Interface!K145 -> 0 | AM106: 0 | AN106: 0 | AO106: 0 | AP106: 0 | AR106: 8.166666667 | AS106: 53.20360188 | AT106: 42 | AU106: 0.1881666667 | AV106: 0.3412 | AW106: =(Interface!$Y$6*60.72*(AU106-Interface!$Y$7)+Interface!$X$6/0.48*(48.73*(AU106-Interface!$Y$7)+78.33*(AV106-Interface!$X$7)-46.23*(AU106^2-Interface!$Y$7^2)-91.08*(AU106*AV106-Interface!$Y$7*Interface!$X$7)))/100 -> -0.4535458807 | AX106: =AS106*((Interface2!$D$12+(AW106*$T$6))*IF($T$6=1,VLOOKUP(AT106,Interface!$A$45:$B$97,2,FALSE),1))-$N$11-$F$10*AR106 -> -51.37293231 | AY106: =($D$12+(AW106*$T$6))*IF($T$6=1,VLOOKUP(AT106,Interface!$A$45:$B$97,2,FALSE),1) -> 7.943579998 | AZ106: PD170MG6
C107: 124 | D107: 6 | AI107: 0 | AJ107: June 15-22 | AK107: MG 6.5-6.9 | AL107: =Interface!K146 -> 0 | AM107: 0 | AN107: 0 | AO107: 0 | AP107: 0 | AR107: 8.270341207 | AS107: 51.80065208 | AT107: 43 | AU107: 0.1857666667 | AV107: 0.3411333333 | AW107: =(Interface!$Y$6*60.72*(AU107-Interface!$Y$7)+Interface!$X$6/0.48*(48.73*(AU107-Interface!$Y$7)+78.33*(AV107-Interface!$X$7)-46.23*(AU107^2-Interface!$Y$7^2)-91.08*(AU107*AV107-Interface!$Y$7*Interface!$X$7)))/100 -> -0.5256118852 | AX107: =AS107*((Interface2!$D$12+(AW107*$T$6))*IF($T$6=1,VLOOKUP(AT107,Interface!$A$45:$B$97,2,FALSE),1))-$N$11-$F$10*AR107 -> -54.13911565 | AY107: =($D$12+(AW107*$T$6))*IF($T$6=1,VLOOKUP(AT107,Interface!$A$45:$B$97,2,FALSE),1) -> 8.117328927 | AZ107: PD170MG6.5
C108: 131 | D108: 6.5 | AI108: 0 | AJ108: June 23-30 | AK108: MG 3.0-3.4 | AL108: =Interface!K147 -> 0 | AM108: 0 | AN108: 0 | AO108: 0 | AP108: 0 | AR108: 6.225721785 | AS108: 46.27735809 | AT108: 40 | AU108: 0.1980333333 | AV108: 0.3440666667 | AW108: =(Interface!$Y$6*60.72*(AU108-Interface!$Y$7)+Interface!$X$6/0.48*(48.73*(AU108-Interface!$Y$7)+78.33*(AV108-Interface!$X$7)-46.23*(AU108^2-Interface!$Y$7^2)-91.08*(AU108*AV108-Interface!$Y$7*Interface!$X$7)))/100 -> -0.09397701151 | AX108: =AS108*((Interface2!$D$12+(AW108*$T$6))*IF($T$6=1,VLOOKUP(AT108,Interface!$A$45:$B$97,2,FALSE),1))-$N$11-$F$10*AR108 -> -91.38805279 | AY108: =($D$12+(AW108*$T$6))*IF($T$6=1,VLOOKUP(AT108,Interface!$A$45:$B$97,2,FALSE),1) -> 8.016150731 | AZ108: PD178MG3
C109: 139 | AI109: 0 | AJ109: June 23-30 | AK109: MG 3.5-3.9 | AL109: =Interface!K148 -> 0 | AM109: 0 | AN109: 0 | AO109: 0 | AP109: 0 | AR109: 6.42519685 | AS109: 51.02123553 | AT109: 40 | AU109: 0.1965 | AV109: 0.3439 | AW109: =(Interface!$Y$6*60.72*(AU109-Interface!$Y$7)+Interface!$X$6/0.48*(48.73*(AU109-Interface!$Y$7)+78.33*(AV109-Interface!$X$7)-46.23*(AU109^2-Interface!$Y$7^2)-91.08*(AU109*AV109-Interface!$Y$7*Interface!$X$7)))/100 -> -0.1423740601 | AX109: =AS109*((Interface2!$D$12+(AW109*$T$6))*IF($T$6=1,VLOOKUP(AT109,Interface!$A$45:$B$97,2,FALSE),1))-$N$11-$F$10*AR109 -> -56.77981848 | AY109: =($D$12+(AW109*$T$6))*IF($T$6=1,VLOOKUP(AT109,Interface!$A$45:$B$97,2,FALSE),1) -> 7.97258942 | AZ109: PD178MG3.5
C110: 147 | AI110: 0 | AJ110: June 23-30 | AK110: MG 4.0-4.4 | AL110: =Interface!K149 -> 0 | AM110: 0 | AN110: 0 | AO110: 0 | AP110: 0 | AR110: 7.047244094 | AS110: 52.68912985 | AT110: 41 | AU110: 0.1929333333 | AV110: 0.3527666667 | AW110: =(Interface!$Y$6*60.72*(AU110-Interface!$Y$7)+Interface!$X$6/0.48*(48.73*(AU110-Interface!$Y$7)+78.33*(AV110-Interface!$X$7)-46.23*(AU110^2-Interface!$Y$7^2)-91.08*(AU110*AV110-Interface!$Y$7*Interface!$X$7)))/100 -> -0.01876298597 | AX110: =AS110*((Interface2!$D$12+(AW110*$T$6))*IF($T$6=1,VLOOKUP(AT110,Interface!$A$45:$B$97,2,FALSE),1))-$N$11-$F$10*AR110 -> -37.43947698 | AY110: =($D$12+(AW110*$T$6))*IF($T$6=1,VLOOKUP(AT110,Interface!$A$45:$B$97,2,FALSE),1) -> 8.158115133 | AZ110: PD178MG4
C111: 155 | AI111: 0 | AJ111: June 23-30 | AK111: MG 4.5-4.9 | AL111: =Interface!K150 -> 0 | AM111: 0 | AN111: 0 | AO111: 0 | AP111: 0 | AR111: 7.412073491 | AS111: 56.76550696 | AT111: 41 | AU111: 0.1910666667 | AV111: 0.3511666667 | AW111: =(Interface!$Y$6*60.72*(AU111-Interface!$Y$7)+Interface!$X$6/0.48*(48.73*(AU111-Interface!$Y$7)+78.33*(AV111-Interface!$X$7)-46.23*(AU111^2-Interface!$Y$7^2)-91.08*(AU111*AV111-Interface!$Y$7*Interface!$X$7)))/100 -> -0.1133046982 | AX111: =AS111*((Interface2!$D$12+(AW111*$T$6))*IF($T$6=1,VLOOKUP(AT111,Interface!$A$45:$B$97,2,FALSE),1))-$N$11-$F$10*AR111 -> -11.24775404 | AY111: =($D$12+(AW111*$T$6))*IF($T$6=1,VLOOKUP(AT111,Interface!$A$45:$B$97,2,FALSE),1) -> 8.072238079 | AZ111: PD178MG4.5
C112: 162 | AI112: 0 | AJ112: June 23-30 | AK112: MG 5.0-5.4 | AL112: =Interface!K151 -> 0 | AM112: 0 | AN112: 0 | AO112: 0 | AP112: 0 | AR112: 7.456692913 | AS112: 54.4198343 | AT112: 42 | AU112: 0.1867 | AV112: 0.3530666667 | AW112: =(Interface!$Y$6*60.72*(AU112-Interface!$Y$7)+Interface!$X$6/0.48*(48.73*(AU112-Interface!$Y$7)+78.33*(AV112-Interface!$X$7)-46.23*(AU112^2-Interface!$Y$7^2)-91.08*(AU112*AV112-Interface!$Y$7*Interface!$X$7)))/100 -> -0.1902629985 | AX112: =AS112*((Interface2!$D$12+(AW112*$T$6))*IF($T$6=1,VLOOKUP(AT112,Interface!$A$45:$B$97,2,FALSE),1))-$N$11-$F$10*AR112 -> -24.13473536 | AY112: =($D$12+(AW112*$T$6))*IF($T$6=1,VLOOKUP(AT112,Interface!$A$45:$B$97,2,FALSE),1) -> 8.188290683 | AZ112: PD178MG5
C113: 170 | AI113: 0 | AJ113: June 23-30 | AK113: MG 5.5-5.9 | AL113: =Interface!K152 -> 0 | AM113: 0 | AN113: 0 | AO113: 0 | AP113: 0 | AR113: 7.543307087 | AS113: 55.25406696 | AT113: 42 | AU113: 0.1851333333 | AV113: 0.3519 | AW113: =(Interface!$Y$6*60.72*(AU113-Interface!$Y$7)+Interface!$X$6/0.48*(48.73*(AU113-Interface!$Y$7)+78.33*(AV113-Interface!$X$7)-46.23*(AU113^2-Interface!$Y$7^2)-91.08*(AU113*AV113-Interface!$Y$7*Interface!$X$7)))/100 -> -0.265711168 | AX113: =AS113*((Interface2!$D$12+(AW113*$T$6))*IF($T$6=1,VLOOKUP(AT113,Interface!$A$45:$B$97,2,FALSE),1))-$N$11-$F$10*AR113 -> -21.69822712 | AY113: =($D$12+(AW113*$T$6))*IF($T$6=1,VLOOKUP(AT113,Interface!$A$45:$B$97,2,FALSE),1) -> 8.118164691 | AZ113: PD178MG5.5
C114: 178 | AI114: 0 | AJ114: June 23-30 | AK114: MG 6.0-6.4 | AL114: =Interface!K153 -> 0 | AM114: 0 | AN114: 0 | AO114: 0 | AP114: 0 | AR114: 7.910761155 | AS114: 50.61068572 | AT114: 43 | AU114: 0.1858 | AV114: 0.3413666667 | AW114: =(Interface!$Y$6*60.72*(AU114-Interface!$Y$7)+Interface!$X$6/0.48*(48.73*(AU114-Interface!$Y$7)+78.33*(AV114-Interface!$X$7)-46.23*(AU114^2-Interface!$Y$7^2)-91.08*(AU114*AV114-Interface!$Y$7*Interface!$X$7)))/100 -> -0.5186035817 | AX114: =AS114*((Interface2!$D$12+(AW114*$T$6))*IF($T$6=1,VLOOKUP(AT114,Interface!$A$45:$B$97,2,FALSE),1))-$N$11-$F$10*AR114 -> -61.30123341 | AY114: =($D$12+(AW114*$T$6))*IF($T$6=1,VLOOKUP(AT114,Interface!$A$45:$B$97,2,FALSE),1) -> 8.124041943 | AZ114: PD178MG6
AI115: 0 | AJ115: June 23-30 | AK115: MG 6.5-6.9 | AL115: =Interface!K154 -> 0 | AM115: 0 | AN115: 0 | AO115: 0 | AP115: 0 | AR115: 7.954068241 | AS115: 49.70450691 | AT115: 43 | AU115: 0.183 | AV115: 0.3410666667 | AW115: =(Interface!$Y$6*60.72*(AU115-Interface!$Y$7)+Interface!$X$6/0.48*(48.73*(AU115-Interface!$Y$7)+78.33*(AV115-Interface!$X$7)-46.23*(AU115^2-Interface!$Y$7^2)-91.08*(AU115*AV115-Interface!$Y$7*Interface!$X$7)))/100 -> -0.6087169913 | AX115: =AS115*((Interface2!$D$12+(AW115*$T$6))*IF($T$6=1,VLOOKUP(AT115,Interface!$A$45:$B$97,2,FALSE),1))-$N$11-$F$10*AR115 -> -73.2132335 | AY115: =($D$12+(AW115*$T$6))*IF($T$6=1,VLOOKUP(AT115,Interface!$A$45:$B$97,2,FALSE),1) -> 8.037725365 | AZ115: PD178MG6.5
A116: =CONCATENATE(Interface!I6," on ",Interface!I9, " Yield Variance Covariance Matrix by Planting Choice") -> Marianna, AR on Silt Loam Yield Variance Covariance Matrix by Planting Choice
A118: Choice | B118: PD78MG3 | C118: PD78MG3.5 | D118: PD78MG4 | E118: PD78MG4.5 | F118: PD78MG5 | G118: PD78MG5.5 | H118: PD78MG6 | I118: PD78MG6.5 | J118: PD86MG3 | K118: PD86MG3.5 | L118: PD86MG4 | M118: PD86MG4.5 | N118: PD86MG5 | O118: PD86MG5.5 | P118: PD86MG6 | Q118: PD86MG6.5 | R118: PD94MG3 | S118: PD94MG3.5 | T118: PD94MG4 | U118: PD94MG4.5 | V118: PD94MG5 | W118: PD94MG5.5 | X118: PD94MG6 | Y118: PD94MG6.5 | Z118: PD101MG3 | AA118: PD101MG3.5 | AB118: PD101MG4 | AC118: PD101MG4.5 | AD118: PD101MG5 | AE118: PD101MG5.5 | AF118: PD101MG6 | AG118: PD101MG6.5 | AH118: PD109MG3 | AI118: PD109MG3.5 | AJ118: PD109MG4 | AK118: PD109MG4.5 | AL118: PD109MG5 | AM118: PD109MG5.5 | AN118: PD109MG6 | AO118: PD109MG6.5 | AP118: PD117MG3 | AQ118: PD117MG3.5 | AR118: PD117MG4 | AS118: PD117MG4.5 | AT118: PD117MG5 | AU118: PD117MG5.5 | AV118: PD117MG6 | AW118: PD117MG6.5 | AX118: PD124MG3 | AY118: PD124MG3.5 | AZ118: PD124MG4 | BA118: PD124MG4.5 | BB118: PD124MG5 | BC118: PD124MG5.5 | BD118: PD124MG6 | BE118: PD124MG6.5 | BF118: PD131MG3 | BG118: PD131MG3.5 | BH118: PD131MG4 | BI118: PD131MG4.5 | BJ118: PD131MG5 | BK118: PD131MG5.5 | BL118: PD131MG6 | BM118: PD131MG6.5 | BN118: PD139MG3 | BO118: PD139MG3.5 | BP118: PD139MG4 | BQ118: PD139MG4.5 | BR118: PD139MG5 | BS118: PD139MG5.5 | BT118: PD139MG6 | BU118: PD139MG6.5 | BV118: PD147MG3 | BW118: PD147MG3.5 | BX118: PD147MG4 | BY118: PD147MG4.5 | BZ118: PD147MG5 | CA118: PD147MG5.5 | CB118: PD147MG6 | CC118: PD147MG6.5 | CD118: PD155MG3 | CE118: PD155MG3.5 | CF118: PD155MG4 | CG118: PD155MG4.5 | CH118: PD155MG5 | CI118: PD155MG5.5 | CJ118: PD155MG6 | CK118: PD155MG6.5 | CL118: PD162MG3 | CM118: PD162MG3.5 | CN118: PD162MG4 | CO118: PD162MG4.5 | CP118: PD162MG5 | CQ118: PD162MG5.5 | CR118: PD162MG6 | CS118: PD162MG6.5 | CT118: PD170MG3 | CU118: PD170MG3.5 | CV118: PD170MG4 | CW118: PD170MG4.5 | CX118: PD170MG5 | CY118: PD170MG5.5 | CZ118: PD170MG6 | DA118: PD170MG6.5 | DB118: PD178MG3 | DC118: PD178MG3.5 | DD118: PD178MG4 | DE118: PD178MG4.5 | DF118: PD178MG5 | DG118: PD178MG5.5 | DH118: PD178MG6 | DI118: PD178MG6.5
A119: 1 | B119: 248.9259808 | C119: 259.6743453 | D119: 282.4412474 | E119: 279.0181173 | F119: 279.667527 | G119: 270.2335411 | H119: 264.9678262 | I119: 253.0561705 | J119: 130.1378278 | K119: 139.9075969 | L119: 154.2688511 | M119: 155.4123754 | N119: 159.6087549 | O119: 152.386306 | P119: 138.2362099 | Q119: 127.8720976 | R119: 0.793359701 | S119: -0.464362808 | T119: 1.512783768 | U119: 12.43721601 | V119: 24.08192524 | W119: 16.93786248 | X119: 13.35466871 | Y119: 6.251410467 | Z119: 4.105452883 | AA119: 5.719961848 | AB119: 11.41444545 | AC119: 22.0109714 | AD119: 25.77799629 | AE119: 20.36889002 | AF119: 7.240082546 | AG119: 3.228082841 | AH119: 9.262616166 | AI119: 7.565703923 | AJ119: 14.26841138 | AK119: 24.04715185 | AL119: 21.24811752 | AM119: 19.35720261 | AN119: 4.108772645 | AO119: 0.002288816929 | AP119: 9.062757455 | AQ119: 14.27382825 | AR119: 14.52279186 | AS119: 22.05864922 | AT119: 14.74358445 | AU119: 15.41350844 | AV119: 0.1899072488 | AW119: 0.2633547972 | AX119: 6.495363139 | AY119: 12.80383557 | AZ119: 13.11790625 | BA119: 13.13791481 | BB119: 13.44747437 | BC119: 12.1930638 | BD119: 5.500961193 | BE119: 0.9332787968 | BF119: 13.42557704 | BG119: 11.74911156 | BH119: 15.38385946 | BI119: 15.30576483 | BJ119: 10.99993679 | BK119: 8.611057477 | BL119: 3.009620156 | BM119: -2.448633083 | BN119: 15.13754559 | BO119: 13.56830434 | BP119: 15.12658372 | BQ119: 11.83810057 | BR119: 10.62014968 | BS119: 7.526997486 | BT119: -0.9253070626 | BU119: -1.927810834 | BV119: 18.98175252 | BW119: 18.15521964 | BX119: 17.32863689 | BY119: 13.84226008 | BZ119: 8.611995501 | CA119: 6.297274837 | CB119: 2.579977918 | CC119: 0.5118234811 | CD119: 16.64843766 | CE119: 13.55923221 | CF119: 14.06464212 | CG119: 12.64171789 | CH119: 6.252435544 | CI119: 3.193460083 | CJ119: 2.813860774 | CK119: 5.239733822 | CL119: 12.88849539 | CM119: 14.59050074 | CN119: 11.62114909 | CO119: 11.11233237 | CP119: 3.659393763 | CQ119: 5.415423018 | CR119: -0.6154315723 | CS119: 2.724511816 | CT119: 9.422972245 | CU119: 9.376235386 | CV119: 9.4222856 | CW119: 11.27844766 | CX119: 5.294845403 | CY119: 7.084085978 | CZ119: 5.019494858 | DA119: 12.76197663 | DB119: 7.376849139 | DC119: 6.303321617 | DD119: 12.52151587 | DE119: 17.224304 | DF119: 9.177150373 | DG119: 9.661476751 | DH119: 14.91223406 | DI119: 9.420570944
A120: 2 | B120: 259.6743453 | C120: 272.6700294 | D120: 296.4822922 | E120: 293.4849772 | F120: 294.4827449 | G120: 284.0997405 | H120: 277.2169452 | I120: 264.3124176 | J120: 136.7065505 | K120: 148.6285985 | L120: 163.6091563 | M120: 165.4735868 | N120: 169.39419 | O120: 161.2951477 | P120: 145.0432205 | Q120: 134.0293992 | R120: 1.928104924 | S120: 2.003388091 | T120: 4.124518206 | U120: 15.97449454 | V120: 27.99878613 | W120: 20.26306093 | X120: 15.54897837 | Y120: 8.018423434 | Z120: 5.394464367 | AA120: 8.210682426 | AB120: 14.03688711 | AC120: 25.68519813 | AD120: 29.29420597 | AE120: 23.16847764 | AF120: 8.913740474 | AG120: 4.733932016 | AH120: 11.05047171 | AI120: 9.751507788 | AJ120: 17.49348159 | AK120: 27.56946504 | AL120: 23.93276806 | AM120: 22.06034627 | AN120: 5.525041047 | AO120: 1.474490426 | AP120: 10.93551572 | AQ120: 17.35024469 | AR120: 17.56213795 | AS120: 25.031304 | AT120: 17.03724245 | AU120: 17.30764726 | AV120: 1.4059922 | AW120: 1.548342267 | AX120: 8.073165936 | AY120: 15.42960939 | AZ120: 15.40806778 | BA120: 15.18563846 | BB120: 15.13699947 | BC120: 13.78193508 | BD120: 6.959641828 | BE120: 2.00931554 | BF120: 15.4293241 | BG120: 13.8217318 | BH120: 17.55943342 | BI120: 17.1902704 | BJ120: 12.27724335 | BK120: 10.01388381 | BL120: 4.164104632 | BM120: -1.776568615 | BN120: 16.28593829 | BO120: 15.31724217 | BP120: 16.83512557 | BQ120: 13.01675456 | BR120: 11.93265903 | BS120: 8.50709237 | BT120: -0.3244919665 | BU120: -1.299801854 | BV120: 20.12689914 | BW120: 19.5997996 | BX120: 18.9455941 | BY120: 15.14096741 | BZ120: 9.75005527 | CA120: 7.138161398 | CB120: 2.880071813 | CC120: 1.097212212 | CD120: 17.84982137 | CE120: 14.66710242 | CF120: 14.95941564 | CG120: 13.65716358 | CH120: 7.098680936 | CI120: 3.453598147 | CJ120: 3.413273236 | CK120: 6.002073532 | CL120: 13.66687964 | CM120: 15.29079525 | CN120: 12.20893423 | CO120: 12.04499201 | CP120: 4.026355021 | CQ120: 5.687703549 | CR120: -0.3074089803 | CS120: 2.959019695 | CT120: 9.190736229 | CU120: 9.491591759 | CV120: 9.67443302 | CW120: 12.00653206 | CX120: 5.531842289 | CY120: 7.433930668 | CZ120: 5.220533843 | DA120: 12.94216586 | DB120: 7.013554552 | DC120: 6.423581015 | DD120: 13.20693177 | DE120: 18.11825525 | DF120: 9.647360097 | DG120: 10.2987975 | DH120: 15.44330806 | DI120: 9.761765079
A121: 3 | B121: 282.4412474 | C121: 296.4822922 | D121: 324.4398702 | E121: 320.7005615 | F121: 323.0277934 | G121: 312.5239606 | H121: 305.2283997 | I121: 290.2236847 | J121: 146.8733648 | K121: 160.0224478 | L121: 177.500116 | M121: 179.6159434 | N121: 185.3440697 | O121: 176.9335106 | P121: 159.5684444 | Q121: 147.2757818 | R121: -1.774995135 | S121: -1.532611379 | T121: 2.061838671 | U121: 15.39708667 | V121: 30.45089189 | W121: 22.19069831 | X121: 17.09873207 | Y121: 8.892055727 | Z121: 2.796161568 | AA121: 5.506909182 | AB121: 13.06299812 | AC121: 26.49781161 | AD121: 32.23550201 | AE121: 25.53415708 | AF121: 10.05085439 | AG121: 5.230885686 | AH121: 9.418430802 | AI121: 7.93575867 | AJ121: 17.2540997 | AK121: 29.35597469 | AL121: 26.30904682 | AM121: 24.50621223 | AN121: 6.064795593 | AO121: 1.94472167 | AP121: 10.78413461 | AQ121: 17.6964928 | AR121: 18.44454665 | AS121: 27.41744456 | AT121: 19.00764452 | AU121: 19.26962602 | AV121: 1.289149726 | AW121: 1.778565298 | AX121: 8.034185623 | AY121: 15.78387326 | AZ121: 16.5723883 | BA121: 17.13173212 | BB121: 16.77792797 | BC121: 15.03077424 | BD121: 7.653852719 | BE121: 2.2899496 | BF121: 16.69063601 | BG121: 14.79722688 | BH121: 19.0037281 | BI121: 18.99949085 | BJ121: 13.66797351 | BK121: 10.92591214 | BL121: 4.409761853 | BM121: -1.629940873 | BN121: 17.93009298 | BO121: 17.22043649 | BP121: 18.88267707 | BQ121: 14.75488181 | BR121: 13.13944265 | BS121: 8.991505801 | BT121: 0.1231579133 | BU121: -0.9053366458 | BV121: 22.79563262 | BW121: 21.96719631 | BX121: 21.19513728 | BY121: 16.87804708 | BZ121: 10.57130985 | CA121: 7.75325193 | CB121: 3.864847361 | CC121: 1.931006375 | CD121: 19.70209505 | CE121: 16.34364354 | CF121: 16.54274518 | CG121: 14.82643766 | CH121: 7.972211503 | CI121: 4.331904908 | CJ121: 4.571931379 | CK121: 7.097251566 | CL121: 15.74332599 | CM121: 17.10895937 | CN121: 13.32341658 | CO121: 12.76447575 | CP121: 4.938926546 | CQ121: 7.026636673 | CR121: -0.0002523567384 | CS121: 3.806543173 | CT121: 10.34177672 | CU121: 10.34504953 | CV121: 10.25366314 | CW121: 12.29412387 | CX121: 6.861051528 | CY121: 8.696080179 | CZ121: 5.833552702 | DA121: 14.25273298 | DB121: 8.171647664 | DC121: 7.234819245 | DD121: 13.73876056 | DE121: 18.85735336 | DF121: 10.59915321 | DG121: 11.00747619 | DH121: 17.30377877 | DI121: 10.99253432
A122: 4 | B122: 279.0181173 | C122: 293.4849772 | D122: 320.7005615 | E122: 323.3015238 | F122: 329.637955 | G122: 319.3685203 | H122: 307.4748083 | I122: 289.067393 | J122: 147.6953503 | K122: 161.8339695 | L122: 180.3014154 | M122: 186.1647586 | N122: 193.3286219 | O122: 184.1305797 | P122: 161.6651771 | Q122: 146.1853477 | R122: 3.029623177 | S122: 4.456672493 | T122: 9.792948091 | U122: 25.20011893 | V122: 40.7758921 | W122: 31.63844912 | X122: 20.59493873 | Y122: 9.714414608 | Z122: 6.588333448 | AA122: 11.78542192 | AB122: 20.51688518 | AC122: 35.0051146 | AD122: 40.26901468 | AE122: 32.31143335 | AF122: 12.14929099 | AG122: 5.90724739 | AH122: 14.99563503 | AI122: 15.56091967 | AJ122: 25.49679948 | AK122: 37.11075054 | AL122: 32.18012405 | AM122: 29.8625828 | AN122: 6.183251325 | AO122: 1.114992929 | AP122: 16.27171372 | AQ122: 24.00024773 | AR122: 23.98828752 | AS122: 32.77361852 | AT122: 23.35362337 | AU122: 22.62622789 | AV122: 0.9142284714 | AW122: 0.5060235147 | AX122: 11.77820888 | AY122: 20.46217202 | AZ122: 20.82036144 | BA122: 20.94391582 | BB122: 19.82383794 | BC122: 17.70496925 | BD122: 6.986080598 | BE122: 1.09474668 | BF122: 18.96761533 | BG122: 17.93034273 | BH122: 22.148379 | BI122: 22.08850231 | BJ122: 15.65349286 | BK122: 12.68894022 | BL122: 3.423546503 | BM122: -3.005395952 | BN122: 19.38559633 | BO122: 19.45035453 | BP122: 20.55716119 | BQ122: 16.7079231 | BR122: 14.64317581 | BS122: 9.719805392 | BT122: -1.318375832 | BU122: -2.642728345 | BV122: 23.55843694 | BW122: 23.27706179 | BX122: 22.46200528 | BY122: 17.9522306 | BZ122: 10.98754164 | CA122: 7.768975645 | CB122: 2.251845037 | CC122: 0.06773300504 | CD122: 19.93783797 | CE122: 16.86837178 | CF122: 17.03844653 | CG122: 14.96757322 | CH122: 7.322681123 | CI122: 3.566273801 | CJ122: 2.976125504 | CK122: 5.912679907 | CL122: 14.45586679 | CM122: 16.56586647 | CN122: 13.42687762 | CO122: 12.50386655 | CP122: 4.203051036 | CQ122: 5.987469446 | CR122: -0.3701258246 | CS122: 3.049224514 | CT122: 9.085324146 | CU122: 9.429320289 | CV122: 9.62643242 | CW122: 11.41536782 | CX122: 5.932059209 | CY122: 7.569242786 | CZ122: 5.319974787 | DA122: 13.15941632 | DB122: 6.297919097 | DC122: 5.671527286 | DD122: 12.7659563 | DE122: 17.71617859 | DF122: 9.046892562 | DG122: 9.397309456 | DH122: 16.71214405 | DI122: 9.593012759
A123: 5 | B123: 279.667527 | C123: 294.4827449 | D123: 323.0277934 | E123: 329.637955 | F123: 345.5462656 | G123: 336.5106753 | H123: 320.4785163 | I123: 297.9742771 | J123: 148.0077484 | K123: 163.1541337 | L123: 181.8493618 | M123: 192.0511614 | N123: 205.9930724 | O123: 197.4463982 | P123: 169.778724 | Q123: 150.7849659 | R123: 2.264164545 | S123: 4.210450566 | T123: 11.27277779 | U123: 30.70138823 | V123: 51.10629516 | W123: 42.01315154 | X123: 24.62406446 | Y123: 11.77722945 | Z123: 6.970018124 | AA123: 13.14033502 | AB123: 24.18463802 | AC123: 41.99830521 | AD123: 49.69265108 | AE123: 40.93752072 | AF123: 15.04793874 | AG123: 7.635822579 | AH123: 17.58811732 | AI123: 19.57316684 | AJ123: 31.22788948 | AK123: 45.4848959 | AL123: 39.69106461 | AM123: 37.71519285 | AN123: 7.991451911 | AO123: 1.127405359 | AP123: 21.83456002 | AQ123: 30.0269981 | AR123: 30.08032199 | AS123: 40.61523248 | AT123: 29.29262989 | AU123: 27.66484904 | AV123: 0.6326022638 | AW123: -1.23383339 | AX123: 17.03112785 | AY123: 25.89071955 | AZ123: 26.13565752 | BA123: 26.70665996 | BB123: 24.15312538 | BC123: 20.60300469 | BD123: 5.988205323 | BE123: -0.6478978861 | BF123: 22.51981225 | BG123: 21.7346323 | BH123: 25.97623751 | BI123: 26.46451878 | BJ123: 18.76296803 | BK123: 14.95769577 | BL123: 2.053863677 | BM123: -4.523165233 | BN123: 21.50707531 | BO123: 21.94321655 | BP123: 23.59190942 | BQ123: 20.16870037 | BR123: 17.00699551 | BS123: 10.72973315 | BT123: -2.102184124 | BU123: -4.024277806 | BV123: 25.82502887 | BW123: 25.4421398 | BX123: 25.29918557 | BY123: 20.34966461 | BZ123: 11.89186494 | CA123: 8.226498412 | CB123: 2.38757775 | CC123: -0.8160085552 | CD123: 21.47138053 | CE123: 19.12395978 | CF123: 19.34318345 | CG123: 16.79108541 | CH123: 7.636362506 | CI123: 3.925258108 | CJ123: 4.037970278 | CK123: 6.498542704 | CL123: 15.60991372 | CM123: 17.96971136 | CN123: 14.87863899 | CO123: 13.40348507 | CP123: 4.464371329 | CQ123: 7.356471495 | CR123: 1.027689887 | CS123: 4.44496464 | CT123: 8.416895703 | CU123: 9.217326935 | CV123: 10.54548632 | CW123: 10.9751579 | CX123: 7.40326965 | CY123: 9.016291536 | CZ123: 6.278400248 | DA123: 13.66979511 | DB123: 5.191303499 | DC123: 4.621363304 | DD123: 12.22871033 | DE123: 17.0096208 | DF123: 9.963092285 | DG123: 9.807228743 | DH123: 17.69250107 | DI123: 9.220399231
A124: 6 | B124: 270.2335411 | C124: 284.0997405 | D124: 312.5239606 | E124: 319.3685203 | F124: 336.5106753 | G124: 329.7167304 | H124: 313.3037436 | I124: 290.3590203 | J124: 141.1994306 | K124: 155.6661569 | L124: 174.1939545 | M124: 184.91756 | N124: 200.4341706 | O124: 193.3417979 | P124: 166.1903543 | Q124: 147.0282988 | R124: -0.7467874932 | S124: 1.495078041 | T124: 9.031206667 | U124: 28.66006675 | V124: 50.59149361 | W124: 42.4762943 | X124: 24.51350058 | Y124: 11.61560833 | Z124: 5.035149453 | AA124: 11.18530618 | AB124: 22.3248771 | AC124: 40.25164576 | AD124: 49.38018844 | AE124: 41.03306937 | AF124: 14.78313468 | AG124: 7.3190138 | AH124: 15.89960328 | AI124: 17.90704179 | AJ124: 29.5965939 | AK124: 44.46485627 | AL124: 39.48092937 | AM124: 37.8675058 | AN124: 7.574592488 | AO124: 0.3787731184 | AP124: 21.01900728 | AQ124: 28.3949435 | AR124: 28.78373198 | AS124: 39.77480629 | AT124: 29.00816972 | AU124: 27.64502926 | AV124: -0.1222880325 | AW124: -2.281754201 | AX124: 16.49924397 | AY124: 24.72351486 | AZ124: 25.52323206 | BA124: 26.41309539 | BB124: 23.73072454 | BC124: 20.20868653 | BD124: 4.612034582 | BE124: -1.84884828 | BF124: 21.06739717 | BG124: 20.2536282 | BH124: 24.7238872 | BI124: 25.8404197 | BJ124: 18.37016205 | BK124: 14.65196591 | BL124: 1.006145664 | BM124: -5.228564265 | BN124: 20.3638618 | BO124: 20.93333575 | BP124: 22.78896245 | BQ124: 19.91632179 | BR124: 16.70692574 | BS124: 10.39962901 | BT124: -2.417751008 | BU124: -4.386516993 | BV124: 24.8869703 | BW124: 24.45670923 | BX124: 24.80941005 | BY124: 20.00252607 | BZ124: 11.51153367 | CA124: 7.933570274 | CB124: 2.569899951 | CC124: -0.6441480737 | CD124: 20.304601 | CE124: 18.31736146 | CF124: 18.73227506 | CG124: 16.36998385 | CH124: 7.502827318 | CI124: 4.218819094 | CJ124: 4.409158023 | CK124: 7.083594307 | CL124: 15.22085038 | CM124: 17.63706442 | CN124: 14.62124359 | CO124: 12.86288118 | CP124: 4.71208653 | CQ124: 8.038919105 | CR124: 1.155630189 | CS124: 5.118849075 | CT124: 8.439183628 | CU124: 9.366732883 | CV124: 10.49681179 | CW124: 10.17409838 | CX124: 8.339819629 | CY124: 9.788694869 | CZ124: 6.311313566 | DA124: 13.42826852 | DB124: 5.268323819 | DC124: 4.628011959 | DD124: 11.33747208 | DE124: 15.98342288 | DF124: 10.40776768 | DG124: 10.00365651 | DH124: 17.56756981 | DI124: 9.024136114
A125: 7 | B125: 264.9678262 | C125: 277.2169452 | D125: 305.2283997 | E125: 307.4748083 | F125: 320.4785163 | G125: 313.3037436 | H125: 309.1173898 | I125: 291.4948525 | J125: 131.8390145 | K125: 144.1589889 | L125: 163.1486346 | M125: 169.6137045 | N125: 185.1692836 | O125: 178.1576397 | P125: 163.932812 | Q125: 149.3029094 | R125: -11.53017286 | S125: -11.9795863 | T125: -4.472566729 | U125: 12.19624467 | V125: 34.59252047 | W125: 28.21478752 | X125: 21.46244501 | Y125: 13.07309956 | Z125: -3.697900011 | AA125: -0.9984458489 | AB125: 10.05007124 | AC125: 25.26744992 | AD125: 37.16723737 | AE125: 31.07290691 | AF125: 14.28457167 | AG125: 9.743672992 | AH125: 5.449545953 | AI125: 5.512237366 | AJ125: 16.80914978 | AK125: 32.17011423 | AL125: 30.78128489 | AM125: 30.97588976 | AN125: 9.411755412 | AO125: 3.111972658 | AP125: 12.57571225 | AQ125: 18.36175016 | AR125: 19.9360617 | AS125: 30.90820338 | AT125: 23.18440807 | AU125: 23.52906738 | AV125: 1.812452831 | AW125: -0.3654705927 | AX125: 9.912670496 | AY125: 17.35959069 | AZ125: 18.09982408 | BA125: 20.549657 | BB125: 19.92585005 | BC125: 17.00359163 | BD125: 5.282325379 | BE125: -0.7871052316 | BF125: 16.99910528 | BG125: 15.56859796 | BH125: 19.07185724 | BI125: 20.65414051 | BJ125: 15.21063612 | BK125: 12.19059761 | BL125: 1.237852187 | BM125: -4.286765004 | BN125: 17.27480013 | BO125: 17.29280419 | BP125: 19.04927229 | BQ125: 16.80697182 | BR125: 14.9003058 | BS125: 9.623780718 | BT125: -2.109999031 | BU125: -3.665181666 | BV125: 22.94414424 | BW125: 21.93946446 | BX125: 21.59601476 | BY125: 18.14931404 | BZ125: 11.03372455 | CA125: 7.955288604 | CB125: 1.84829466 | CC125: -0.8056505175 | CD125: 18.23803015 | CE125: 16.1729141 | CF125: 17.04532504 | CG125: 15.0320921 | CH125: 7.740831022 | CI125: 3.797737423 | CJ125: 2.677511515 | CK125: 5.931462552 | CL125: 14.27386118 | CM125: 16.00076377 | CN125: 13.48500836 | CO125: 12.46332221 | CP125: 3.350420432 | CQ125: 6.570688039 | CR125: -0.4043902618 | CS125: 4.182460813 | CT125: 8.608804525 | CU125: 8.878291526 | CV125: 9.488789426 | CW125: 9.765511305 | CX125: 6.762951921 | CY125: 8.288481009 | CZ125: 5.184675711 | DA125: 13.38686637 | DB125: 6.687544859 | DC125: 5.410085053 | DD125: 10.87142396 | DE125: 15.43275896 | DF125: 9.030514154 | DG125: 9.672067583 | DH125: 17.6669475 | DI125: 10.25242287
A126: 8 | B126: 253.0561705 | C126: 264.3124176 | D126: 290.2236847 | E126: 289.067393 | F126: 297.9742771 | G126: 290.3590203 | H126: 291.4948525 | I126: 279.1699578 | J126: 123.8024315 | K126: 134.8169355 | L126: 152.296468 | M126: 155.8357185 | N126: 169.4567028 | O126: 162.4446979 | P126: 154.64467 | Q126: 144.0309984 | R126: -14.21719079 | S126: -15.94545102 | T126: -9.982711229 | U126: 4.251125321 | V126: 24.9288951 | W126: 19.04460108 | X126: 18.66218086 | Y126: 13.39769358 | Z126: -6.456038525 | AA126: -5.336256361 | AB126: 4.625354714 | AC126: 17.50127824 | AD126: 28.98913798 | AE126: 23.42945885 | AF126: 13.27938033 | AG126: 10.59368156 | AH126: 1.755257513 | AI126: 0.7680741427 | AJ126: 11.25296354 | AK126: 25.53787592 | AL126: 24.66244551 | AM126: 25.06007365 | AN126: 10.21193233 | AO126: 4.924223342 | AP126: 8.858906029 | AQ126: 13.93169902 | AR126: 15.71536329 | AS126: 25.70962522 | AT126: 19.00176206 | AU126: 19.82008747 | AV126: 3.0972525 | AW126: 1.443464893 | AX126: 6.916016391 | AY126: 14.04077484 | AZ126: 14.2837846 | BA126: 16.66490345 | BB126: 16.58251778 | BC126: 14.42767293 | BD126: 6.036378073 | BE126: 0.9667894241 | BF126: 15.1439308 | BG126: 13.63632915 | BH126: 16.11977279 | BI126: 17.1698106 | BJ126: 12.62258083 | BK126: 10.18229117 | BL126: 2.47423262 | BM126: -2.752292576 | BN126: 15.67590663 | BO126: 15.01659727 | BP126: 16.60141323 | BQ126: 14.39141279 | BR126: 13.07739028 | BS126: 8.848045886 | BT126: -0.8667466055 | BU126: -2.304976564 | BV126: 21.28241457 | BW126: 20.14091505 | BX126: 19.24687088 | BY126: 16.23449436 | BZ126: 10.3965978 | CA126: 7.632261545 | CB126: 2.40663427 | CC126: -0.02020907973 | CD126: 16.47831205 | CE126: 14.32761936 | CF126: 15.37730797 | CG126: 13.74514283 | CH126: 7.698537468 | CI126: 4.090764351 | CJ126: 2.465608475 | CK126: 6.128450135 | CL126: 13.08757356 | CM126: 14.67679109 | CN126: 12.37752484 | CO126: 11.83928606 | CP126: 3.212066991 | CQ126: 6.499089803 | CR126: -0.6344659216 | CS126: 3.837600658 | CT126: 8.450831489 | CU126: 8.585879513 | CV126: 8.742829754 | CW126: 9.98976548 | CX126: 6.431037602 | CY126: 7.922595039 | CZ126: 4.483911696 | DA126: 13.08671476 | DB126: 7.263748326 | DC126: 6.089405266 | DD126: 11.39665038 | DE126: 15.91036658 | DF126: 8.966266215 | DG126: 10.18319007 | DH126: 16.87277204 | DI126: 10.5456125
A127: 9 | B127: 130.1378278 | C127: 136.7065505 | D127: 146.8733648 | E127: 147.6953503 | F127: 148.0077484 | G127: 141.1994306 | H127: 131.8390145 | I127: 123.8024315 | J127: 146.6941768 | K127: 154.6425543 | L127: 163.0697806 | M127: 164.3014106 | N127: 160.7003484 | O127: 155.8613464 | P127: 141.6782736 | Q127: 132.2290993 | R127: 7.766608252 | S127: 4.13327179 | T127: 1.518053916 | U127: 10.51575419 | V127: 16.75984925 | W127: 10.1184948 | X127: 9.145880634 | Y127: 3.891675425 | Z127: 9.262147644 | AA127: 3.761251007 | AB127: 6.655914844 | AC127: 16.07909739 | AD127: 16.48066543 | AE127: 11.27964978 | AF127: 5.709482196 | AG127: 1.210383124 | AH127: 8.963332812 | AI127: 4.359355062 | AJ127: 9.197928722 | AK127: 13.49582318 | AL127: 13.89189708 | AM127: 11.85346107 | AN127: 3.218074647 | AO127: 1.361787385 | AP127: 3.624837518 | AQ127: 5.315631578 | AR127: 10.2424049 | AS127: 15.16623894 | AT127: 12.25810924 | AU127: 10.92032019 | AV127: 3.148999325 | AW127: 2.328791019 | AX127: 4.520391917 | AY127: 6.148619112 | AZ127: 9.426711624 | BA127: 10.93258884 | BB127: 11.12785622 | BC127: 10.73278686 | BD127: 4.684068737 | BE127: 0.9737967252 | BF127: 6.440360129 | BG127: 8.161349944 | BH127: 11.54892909 | BI127: 12.64452218 | BJ127: 10.13526283 | BK127: 9.443991214 | BL127: 3.271760119 | BM127: -1.054009977 | BN127: 6.042266397 | BO127: 6.308433309 | BP127: 10.57993497 | BQ127: 9.224185561 | BR127: 9.669292963 | BS127: 7.565611979 | BT127: 1.079624186 | BU127: -2.175282807 | BV127: 8.405512914 | BW127: 10.6472213 | BX127: 11.81876398 | BY127: 10.83757555 | BZ127: 6.515149668 | CA127: 4.464202439 | CB127: 4.795975257 | CC127: -0.2813748289 | CD127: 12.62166922 | CE127: 11.31195829 | CF127: 11.0942605 | CG127: 9.496306331 | CH127: 4.28832153 | CI127: 3.129537535 | CJ127: 6.665460384 | CK127: 4.240270069 | CL127: 7.531378516 | CM127: 10.64982507 | CN127: 10.05212009 | CO127: 7.557519935 | CP127: 3.885337163 | CQ127: 4.104912957 | CR127: 4.765093834 | CS127: 5.582058672 | CT127: 7.929427255 | CU127: 6.343693805 | CV127: 5.937751582 | CW127: 6.447463287 | CX127: 4.313461348 | CY127: 5.03411003 | CZ127: 7.611865644 | DA127: 11.71263036 | DB127: 4.801462548 | DC127: 4.94634466 | DD127: 7.441203041 | DE127: 8.763553329 | DF127: 4.860159943 | DG127: 5.051245835 | DH127: 13.2640609 | DI127: 8.077442307
A128: 10 | B128: 139.9075969 | C128: 148.6285985 | D128: 160.0224478 | E128: 161.8339695 | F128: 163.1541337 | G128: 155.6661569 | H128: 144.1589889 | I128: 134.8169355 | J128: 154.6425543 | K128: 165.7986497 | L128: 174.8796861 | M128: 177.0458765 | N128: 172.9525198 | O128: 167.6749951 | P128: 150.5819355 | Q128: 140.2737829 | R128: 9.325153361 | S128: 7.748963169 | T128: 5.701942468 | U128: 15.49937918 | V128: 21.925697 | W128: 14.53078055 | X128: 11.7983283 | Y128: 6.253841438 | Z128: 11.43638353 | AA128: 7.355778981 | AB128: 9.985303591 | AC128: 20.43875828 | AD128: 20.90801009 | AE128: 14.60149652 | AF128: 8.085512506 | AG128: 3.285844494 | AH128: 11.52991724 | AI128: 7.305241773 | AJ128: 13.31110392 | AK128: 17.79361494 | AL128: 16.9675646 | AM128: 15.2146797 | AN128: 5.269350852 | AO128: 3.259337256 | AP128: 6.017614012 | AQ128: 9.186288034 | AR128: 13.76327111 | AS128: 18.78026131 | AT128: 14.80249833 | AU128: 13.3849838 | AV128: 4.780160249 | AW128: 3.80083352 | AX128: 6.435881286 | AY128: 9.337252139 | AZ128: 12.11494537 | BA128: 13.32055001 | BB128: 12.9081515 | BC128: 12.77328476 | BD128: 6.40674093 | BE128: 2.055558445 | BF128: 8.854706278 | BG128: 10.67110096 | BH128: 13.91006253 | BI128: 14.56809609 | BJ128: 11.76613293 | BK128: 11.35652925 | BL128: 4.591053108 | BM128: -0.3314056934 | BN128: 7.438844125 | BO128: 7.998755911 | BP128: 12.28708396 | BQ128: 10.45177426 | BR128: 11.30223669 | BS128: 8.875106744 | BT128: 1.610598088 | BU128: -1.735589663 | BV128: 9.629074993 | BW128: 11.98508468 | BX128: 13.54287304 | BY128: 12.21416917 | BZ128: 7.862091369 | CA128: 5.499102426 | CB128: 4.87496748 | CC128: 0.1122061526 | CD128: 13.40286722 | CE128: 12.19250105 | CF128: 11.87367667 | CG128: 10.71368143 | CH128: 5.14692849 | CI128: 3.414990501 | CJ128: 6.976164022 | CK128: 5.208751978 | CL128: 7.876038807 | CM128: 11.0341934 | CN128: 10.69384697 | CO128: 8.53187028 | CP128: 4.201789905 | CQ128: 4.427124909 | CR128: 5.034541058 | CS128: 6.278620001 | CT128: 7.67163963 | CU128: 6.589642834 | CV128: 6.456314357 | CW128: 7.434764032 | CX128: 4.575508063 | CY128: 5.449943072 | CZ128: 8.096545777 | DA128: 12.51538856 | DB128: 4.41994937 | DC128: 5.068037991 | DD128: 8.272120207 | DE128: 9.906512209 | DF128: 5.49964822 | DG128: 5.873719157 | DH128: 14.54128433 | DI128: 9.299334072
A129: 11 | B129: 154.2688511 | C129: 163.6091563 | D129: 177.500116 | E129: 180.3014154 | F129: 181.8493618 | G129: 174.1939545 | H129: 163.1486346 | I129: 152.296468 | J129: 163.0697806 | K129: 174.8796861 | L129: 188.0780485 | M129: 189.9818283 | N129: 186.1389471 | O129: 180.0989705 | P129: 163.3622047 | Q129: 152.0075189 | R129: 7.13187465 | S129: 5.583201776 | T129: 5.578327443 | U129: 15.87619279 | V129: 23.55528053 | W129: 15.55742384 | X129: 13.7400719 | Y129: 7.610465618 | Z129: 9.748221282 | AA129: 5.747122801 | AB129: 9.826267331 | AC129: 21.18063296 | AD129: 22.8615349 | AE129: 16.11527374 | AF129: 9.598442667 | AG129: 4.435176198 | AH129: 11.28257047 | AI129: 6.77589254 | AJ129: 13.58715089 | AK129: 18.63192837 | AL129: 18.65788264 | AM129: 16.89657281 | AN129: 6.067302206 | AO129: 4.216114899 | AP129: 6.378769109 | AQ129: 9.189392609 | AR129: 14.45129405 | AS129: 19.98632112 | AT129: 16.59989975 | AU129: 15.17318756 | AV129: 5.383571946 | AW129: 4.708035128 | AX129: 6.506719192 | AY129: 9.481588456 | AZ129: 12.56448531 | BA129: 14.35062262 | BB129: 14.44627234 | BC129: 14.20933545 | BD129: 7.302871446 | BE129: 2.540166849 | BF129: 9.905290203 | BG129: 11.58199206 | BH129: 14.61144081 | BI129: 15.8567698 | BJ129: 13.14118371 | BK129: 12.17374123 | BL129: 5.089633077 | BM129: -0.1916965689 | BN129: 8.690028182 | BO129: 9.722192021 | BP129: 13.63201887 | BQ129: 12.24543336 | BR129: 12.54878116 | BS129: 9.736165542 | BT129: 1.652984891 | BU129: -1.88307294 | BV129: 11.27467829 | BW129: 13.84165559 | BX129: 15.13730986 | BY129: 13.57544336 | BZ129: 8.793156013 | CA129: 6.338427896 | CB129: 4.928825755 | CC129: 0.02977483471 | CD129: 14.50624848 | CE129: 13.35205353 | CF129: 13.14007582 | CG129: 11.42508616 | CH129: 5.505280275 | CI129: 4.003556188 | CJ129: 6.503676566 | CK129: 4.764448923 | CL129: 8.873028551 | CM129: 11.95003578 | CN129: 11.27597463 | CO129: 9.216561062 | CP129: 4.437197008 | CQ129: 4.706248416 | CR129: 4.081409872 | CS129: 6.115462566 | CT129: 8.223855513 | CU129: 6.78404751 | CV129: 6.64167136 | CW129: 7.636543785 | CX129: 4.634965137 | CY129: 5.530302065 | CZ129: 7.866277753 | DA129: 12.66829001 | DB129: 5.020342568 | DC129: 5.23366487 | DD129: 8.424564543 | DE129: 10.20516761 | DF129: 4.573100567 | DG129: 5.252851807 | DH129: 15.40321953 | DI129: 9.641823247
A130: 12 | B130: 155.4123754 | C130: 165.4735868 | D130: 179.6159434 | E130: 186.1647586 | F130: 192.0511614 | G130: 184.91756 | H130: 169.6137045 | I130: 155.8357185 | J130: 164.3014106 | K130: 177.0458765 | L130: 189.9818283 | M130: 195.8023987 | N130: 194.2935858 | O130: 188.0059201 | P130: 166.26174 | Q130: 152.3485344 | R130: 9.629967045 | S130: 8.935059402 | T130: 10.04262509 | U130: 22.97243493 | V130: 32.39771914 | W130: 24.17823194 | X130: 16.55806982 | Y130: 8.216179173 | Z130: 11.72396262 | AA130: 9.566472916 | AB130: 15.00736897 | AC130: 28.00861924 | AD130: 30.0616639 | AE130: 22.50259037 | AF130: 11.29615534 | AG130: 4.754746556 | AH130: 14.03736509 | AI130: 11.38622192 | AJ130: 19.50573803 | AK130: 25.66000485 | AL130: 23.92278041 | AM130: 22.12293563 | AN130: 6.443210717 | AO130: 3.610621748 | AP130: 10.42783167 | AQ130: 13.86143136 | AR130: 19.34662482 | AS130: 25.1270235 | AT130: 20.4655596 | AU130: 18.35491501 | AV130: 4.955098244 | AW130: 3.586633512 | AX130: 9.563275745 | AY130: 13.27652126 | AZ130: 16.50375183 | BA130: 18.03655948 | BB130: 17.15289944 | BC130: 16.32955851 | BD130: 6.778233524 | BE130: 1.83275092 | BF130: 11.55910976 | BG130: 13.81248263 | BH130: 17.44901366 | BI130: 18.77632077 | BJ130: 14.90312281 | BK130: 13.94054487 | BL130: 4.623888828 | BM130: -0.8359039823 | BN130: 9.794467122 | BO130: 11.50961524 | BP130: 15.34396525 | BQ130: 14.11572023 | BR130: 14.02113601 | BS130: 10.49086478 | BT130: 1.406081536 | BU130: -2.261792588 | BV130: 12.1844315 | BW130: 15.02772444 | BX130: 16.67368116 | BY130: 14.97723092 | BZ130: 9.51467588 | CA130: 6.575922322 | CB130: 5.128458846 | CC130: -0.01691637857 | CD130: 15.41341683 | CE130: 14.50141849 | CF130: 14.14131716 | CG130: 12.18658403 | CH130: 5.85855493 | CI130: 4.281738084 | CJ130: 7.315828366 | CK130: 5.643940195 | CL130: 8.970279143 | CM130: 12.51862812 | CN130: 12.14533838 | CO130: 9.443396513 | CP130: 4.889315298 | CQ130: 5.418358703 | CR130: 5.275815618 | CS130: 6.877634691 | CT130: 7.779184682 | CU130: 6.740137438 | CV130: 6.615005664 | CW130: 7.215399514 | CX130: 5.631523201 | CY130: 6.266571434 | CZ130: 8.38708859 | DA130: 12.86238886 | DB130: 3.895790731 | DC130: 4.488341307 | DD130: 7.848444543 | DE130: 9.515848328 | DF130: 5.240728251 | DG130: 5.551093782 | DH130: 15.82577035 | DI130: 9.093917643
A131: 13 | B131: 159.6087549 | C131: 169.39419 | D131: 185.3440697 | E131: 193.3286219 | F131: 205.9930724 | G131: 200.4341706 | H131: 185.1692836 | I131: 169.4567028 | J131: 160.7003484 | K131: 172.9525198 | L131: 186.1389471 | M131: 194.2935858 | N131: 201.9064387 | O131: 195.8404459 | P131: 174.0954767 | Q131: 158.4558674 | R131: 2.716386842 | S131: 1.362326007 | T131: 3.075463094 | U131: 19.68289637 | V131: 36.84616852 | W131: 28.70245355 | X131: 19.45427747 | Y131: 10.64644629 | Z131: 6.584685035 | AA131: 4.016880884 | AB131: 12.52943446 | AC131: 28.65689892 | AD131: 34.94699691 | AE131: 26.72656941 | AF131: 13.44814862 | AG131: 6.852029938 | AH131: 12.438245 | AI131: 10.52697983 | AJ131: 20.22811408 | AK131: 29.81598776 | AL131: 28.23210754 | AM131: 26.39089452 | AN131: 8.112485333 | AO131: 3.611925917 | AP131: 13.18078285 | AQ131: 16.71383523 | AR131: 22.08292177 | AS131: 29.85730384 | AT131: 24.073648 | AU131: 21.33890628 | AV131: 4.458007636 | AW131: 1.529316395 | AX131: 12.7558917 | AY131: 16.66332475 | AZ131: 19.53493447 | BA131: 21.97702518 | BB131: 19.8733116 | BC131: 17.94224523 | BD131: 4.800216415 | BE131: -0.5963554895 | BF131: 14.71023684 | BG131: 16.34127974 | BH131: 19.74145618 | BI131: 21.52931107 | BJ131: 16.18913471 | BK131: 14.65154205 | BL131: 2.198900333 | BM131: -3.36736159 | BN131: 11.56722756 | BO131: 13.35749256 | BP131: 17.44531112 | BQ131: 16.03087638 | BR131: 15.04274064 | BS131: 10.40472114 | BT131: -0.1817444538 | BU131: -4.201225851 | BV131: 14.82282772 | BW131: 16.96928676 | BX131: 18.36503862 | BY131: 16.38639225 | BZ131: 9.452939771 | CA131: 6.285249093 | CB131: 4.382301266 | CC131: -1.398204354 | CD131: 16.48983895 | CE131: 15.75765294 | CF131: 15.20741352 | CG131: 12.99499939 | CH131: 5.654804577 | CI131: 4.041562286 | CJ131: 6.913589984 | CK131: 5.395606819 | CL131: 10.20600227 | CM131: 13.74676098 | CN131: 13.22524263 | CO131: 9.853720745 | CP131: 4.368192112 | CQ131: 6.117703129 | CR131: 5.173950223 | CS131: 7.1693806 | CT131: 7.400626751 | CU131: 6.766214301 | CV131: 7.142930092 | CW131: 6.294962545 | CX131: 6.429495422 | CY131: 6.525559872 | CZ131: 7.960269878 | DA131: 12.39342266 | DB131: 3.351407688 | DC131: 3.881097309 | DD131: 6.899165873 | DE131: 8.46367723 | DF131: 5.03414459 | DG131: 5.161580831 | DH131: 16.31318076 | DI131: 7.99253698
A132: 14 | B132: 152.386306 | C132: 161.2951477 | D132: 176.9335106 | E132: 184.1305797 | F132: 197.4463982 | G132: 193.3417979 | H132: 178.1576397 | I132: 162.4446979 | J132: 155.8613464 | K132: 167.6749951 | L132: 180.0989705 | M132: 188.0059201 | N132: 195.8404459 | O132: 191.5989013 | P132: 170.3485338 | Q132: 154.9215995 | R132: 1.609819173 | S132: 0.5828283206 | T132: 2.082371837 | U132: 18.06420396 | V132: 35.40965908 | W132: 28.27823698 | X132: 19.01031839 | Y132: 10.50449269 | Z132: 6.716722384 | AA132: 3.795375246 | AB132: 11.29625707 | AC132: 27.24223595 | AD132: 34.13324424 | AE132: 26.57789216 | AF132: 13.28929006 | AG132: 6.590517932 | AH132: 11.46137304 | AI132: 9.201989579 | AJ132: 18.38947517 | AK132: 28.32036328 | AL132: 27.58753268 | AM132: 26.51215389 | AN132: 8.171660054 | AO132: 3.38778814 | AP132: 12.21907578 | AQ132: 15.23439972 | AR132: 20.79982273 | AS132: 28.91354833 | AT132: 23.54949719 | AU132: 21.21644773 | AV132: 4.287557287 | AW132: 1.067609202 | AX132: 12.24672579 | AY132: 15.53800541 | AZ132: 18.91990197 | BA132: 21.44303246 | BB132: 19.52960759 | BC132: 17.66126459 | BD132: 4.31687012 | BE132: -1.242640118 | BF132: 13.60385893 | BG132: 15.23240271 | BH132: 18.70805436 | BI132: 20.91582206 | BJ132: 16.17908934 | BK132: 14.68587431 | BL132: 1.878499219 | BM132: -3.53077725 | BN132: 10.79482521 | BO132: 12.41962929 | BP132: 16.81508049 | BQ132: 15.85349209 | BR132: 15.00514145 | BS132: 10.48591154 | BT132: -0.1400009324 | BU132: -4.414571955 | BV132: 14.05433201 | BW132: 16.11212188 | BX132: 17.98065236 | BY132: 16.18935641 | BZ132: 9.339939706 | CA132: 6.264377821 | CB132: 4.746060789 | CC132: -1.404392963 | CD132: 15.82298921 | CE132: 15.31326935 | CF132: 14.97952267 | CG132: 13.06769867 | CH132: 5.589571338 | CI132: 4.1829026 | CJ132: 7.432442285 | CK132: 5.848941246 | CL132: 10.21136926 | CM132: 13.66805991 | CN132: 13.08958426 | CO132: 9.830023664 | CP132: 4.401538414 | CQ132: 6.537454548 | CR132: 5.400535274 | CS132: 7.995972162 | CT132: 7.602010363 | CU132: 6.957392136 | CV132: 7.6363687 | CW132: 6.195040036 | CX132: 6.986313718 | CY132: 7.374480115 | CZ132: 8.443898852 | DA132: 12.78270836 | DB132: 3.44105693 | DC132: 3.739470404 | DD132: 6.601966907 | DE132: 8.113924484 | DF132: 5.958087166 | DG132: 5.872936329 | DH132: 16.44347215 | DI132: 8.41760354
A133: 15 | B133: 138.2362099 | C133: 145.0432205 | D133: 159.5684444 | E133: 161.6651771 | F133: 169.778724 | G133: 166.1903543 | H133: 163.932812 | I133: 154.64467 | J133: 141.6782736 | K133: 150.5819355 | L133: 163.3622047 | M133: 166.26174 | N133: 174.0954767 | O133: 170.3485338 | P133: 164.5674374 | Q133: 154.5418431 | R133: -11.93736023 | S133: -15.71156001 | T133: -14.26422239 | U133: -1.785981456 | V133: 16.20592295 | W133: 11.24385262 | X133: 15.46522919 | Y133: 12.13337589 | Z133: -3.820087622 | AA133: -10.59418269 | AB133: -3.281948941 | AC133: 9.579079015 | AD133: 19.56297802 | AE133: 14.46627634 | AF133: 12.61111295 | AG133: 9.071377035 | AH133: -0.4216382254 | AI133: -5.240311569 | AJ133: 3.304978287 | AK133: 13.43009305 | AL133: 17.19482945 | AM133: 17.87364626 | AN133: 9.947933275 | AO133: 6.342500816 | AP133: 2.144025132 | AQ133: 3.181828198 | AR133: 10.14359126 | AS133: 18.15510129 | AT133: 16.72422033 | AU133: 16.00280447 | AV133: 6.293876172 | AW133: 3.147078936 | AX133: 4.479604026 | AY133: 6.743603919 | AZ133: 10.38162431 | BA133: 14.55300164 | BB133: 14.91382026 | BC133: 13.80013411 | BD133: 4.804613095 | BE133: -0.06792471791 | BF133: 8.704736928 | BG133: 9.767127823 | BH133: 12.0036668 | BI133: 14.78424648 | BJ133: 12.4297529 | BK133: 11.4765552 | BL133: 2.170157748 | BM133: -2.440080993 | BN133: 7.086283177 | BO133: 8.353168453 | BP133: 12.38739283 | BQ133: 12.14785901 | BR133: 12.55342726 | BS133: 9.338251785 | BT133: 0.5651555239 | BU133: -3.443799272 | BV133: 11.30920649 | BW133: 12.86676728 | BX133: 13.89460356 | BY133: 13.71954167 | BZ133: 8.432809827 | CA133: 6.230060565 | CB133: 4.595182108 | CC133: -1.296530346 | CD133: 12.82635531 | CE133: 12.26834794 | CF133: 12.40166077 | CG133: 11.04935013 | CH133: 6.037421082 | CI133: 4.3949729 | CJ133: 5.957146534 | CK133: 4.800730257 | CL133: 8.746521857 | CM133: 11.73235397 | CN133: 11.37898183 | CO133: 8.939867548 | CP133: 3.45781094 | CQ133: 5.560026689 | CR133: 3.952061719 | CS133: 7.278003547 | CT133: 7.849217589 | CU133: 6.28738304 | CV133: 6.150161618 | CW133: 5.447661102 | CX133: 5.878686085 | CY133: 6.108807391 | CZ133: 7.239831819 | DA133: 12.39940912 | DB133: 5.063525566 | DC133: 4.951642847 | DD133: 5.94092593 | DE133: 7.244395107 | DF133: 4.691654763 | DG133: 5.466428097 | DH133: 16.10403278 | DI133: 9.202503422
A134: 16 | B134: 127.8720976 | C134: 134.0293992 | D134: 147.2757818 | E134: 146.1853477 | F134: 150.7849659 | G134: 147.0282988 | H134: 149.3029094 | I134: 144.0309984 | J134: 132.2290993 | K134: 140.2737829 | L134: 152.0075189 | M134: 152.3485344 | N134: 158.4558674 | O134: 154.9215995 | P134: 154.5418431 | Q134: 148.257861 | R134: -14.83292786 | S134: -19.32457198 | T134: -18.80386286 | U134: -8.510369095 | V134: 7.917482043 | W134: 3.697956742 | X134: 13.17326171 | Y134: 12.73624048 | Z134: -6.545882741 | AA134: -14.56319372 | AB134: -8.118494945 | AC134: 2.886241838 | AD134: 12.58216463 | AE134: 8.209603552 | AF134: 11.96506698 | AG134: 10.14995756 | AH134: -4.076380995 | AI134: -10.01284699 | AJ134: -2.011762487 | AK134: 7.289842795 | AL134: 11.95918322 | AM134: 13.10671843 | AN134: 10.99099214 | AO134: 8.454345247 | AP134: -1.361257893 | AQ134: -1.106345635 | AR134: 6.401350147 | AS134: 13.66452073 | AT134: 13.31390658 | AU134: 13.1790294 | AV134: 7.757871949 | AW134: 5.236078235 | AX134: 1.948430727 | AY134: 3.990389947 | AZ134: 7.219821299 | BA134: 11.35932734 | BB134: 12.37810454 | BC134: 11.88736589 | BD134: 5.967992331 | BE134: 1.845222038 | BF134: 7.717526171 | BG134: 8.295621988 | BH134: 9.695558278 | BI134: 12.04042057 | BJ134: 10.55484015 | BK134: 10.18855771 | BL134: 3.463155425 | BM134: -0.7935413066 | BN134: 6.280282164 | BO134: 6.949352911 | BP134: 10.6365633 | BQ134: 10.35693508 | BR134: 11.37064688 | BS134: 9.072580783 | BT134: 1.859179256 | BU134: -1.944801224 | BV134: 10.44800195 | BW134: 11.78808992 | BX134: 12.46098645 | BY134: 12.52657312 | BZ134: 8.345041523 | CA134: 6.54461248 | CB134: 5.065682662 | CC134: -0.35031093 | CD134: 12.02962597 | CE134: 11.32849222 | CF134: 11.43974046 | CG134: 10.3833582 | CH134: 6.563158418 | CI134: 4.940125077 | CJ134: 5.599264576 | CK134: 5.028483192 | CL134: 8.802197818 | CM134: 11.28360598 | CN134: 10.75053921 | CO134: 8.783659705 | CP134: 3.72723208 | CQ134: 5.629370017 | CR134: 3.391972566 | CS134: 6.966477957 | CT134: 8.377250589 | CU134: 6.590728555 | CV134: 6.040982116 | CW134: 6.009447305 | CX134: 5.61240082 | CY134: 5.758962701 | CZ134: 6.536550758 | DA134: 12.03929508 | DB134: 6.144641396 | DC134: 6.037068304 | DD134: 6.56599303 | DE134: 7.84185262 | DF134: 4.589158802 | DG134: 5.704415173 | DH134: 15.48682981 | DI134: 9.517573744
A135: 17 | B135: 0.793359701 | C135: 1.928104924 | D135: -1.774995135 | E135: 3.029623177 | F135: 2.264164545 | G135: -0.7467874932 | H135: -11.53017286 | I135: -14.21719079 | J135: 7.766608252 | K135: 9.325153361 | L135: 7.13187465 | M135: 9.629967045 | N135: 2.716386842 | O135: 1.609819173 | P135: -11.93736023 | Q135: -14.83292786 | R135: 27.01374583 | S135: 29.70494526 | T135: 27.74640591 | U135: 26.59286403 | V135: 17.42596997 | W135: 15.00505374 | X135: 3.601880228 | Y135: -0.8859234353 | Z135: 20.54706822 | AA135: 25.10518943 | AB135: 22.43011182 | AC135: 20.75382664 | AD135: 12.08857246 | AE135: 10.23127055 | AF135: 1.969082572 | AG135: -0.9777715068 | AH135: 20.0878634 | AI135: 23.13956095 | AJ135: 20.27286828 | AK135: 14.5936239 | AL135: 7.840953069 | AM135: 6.273296056 | AN135: -0.04840619576 | AO135: -0.7816375023 | AP135: 14.22393138 | AQ135: 15.77585751 | AR135: 12.20797697 | AS135: 8.828896118 | AT135: 5.29864184 | AU135: 4.295877561 | AV135: 0.9118307563 | AW135: 0.9389672567 | AX135: 9.749468068 | AY135: 10.71069097 | AZ135: 7.833505937 | BA135: 4.43721331 | BB135: 3.538683775 | BC135: 4.297132497 | BD135: 2.806642197 | BE135: 1.993389678 | BF135: 5.421292105 | BG135: 6.164813633 | BH135: 6.226223373 | BI135: 4.638331849 | BJ135: 3.683948661 | BK135: 4.321204852 | BL135: 3.204380218 | BM135: 1.742751508 | BN135: 3.696721368 | BO135: 3.700297074 | BP135: 2.78216718 | BQ135: 2.551113719 | BR135: 2.661277869 | BS135: 2.712997307 | BT135: 0.8881525865 | BU135: 0.4448811287 | BV135: 0.6447378842 | BW135: 2.033131625 | BX135: 2.460476243 | BY135: 1.555213283 | BZ135: 1.478474337 | CA135: 1.109341311 | CB135: -0.7346900197 | CC135: -0.5832508715 | CD135: 1.780065093 | CE135: 1.703354839 | CF135: 1.80717714 | CG135: 1.983894022 | CH135: -1.098787322 | CI135: -1.19353554 | CJ135: -1.032822119 | CK135: -0.5882989844 | CL135: -1.183559298 | CM135: -0.453786648 | CN135: 0.6915370175 | CO135: 1.484809339 | CP135: -0.85150315 | CQ135: -1.604625645 | CR135: 0.06831107803 | CS135: -0.447350247 | CT135: -1.564715785 | CU135: -0.7060970884 | CV135: 1.192476555 | CW135: 2.411154194 | CX135: -2.169566959 | CY135: -1.257202146 | CZ135: 0.422522126 | DA135: 0.2321072294 | DB135: -3.124315967 | DC135: -2.909289116 | DD135: 1.586402815 | DE135: 2.375768498 | DF135: -0.5817892238 | DG135: -0.2817008712 | DH135: -0.951849514 | DI135: -0.3826510655
A136: 18 | B136: -0.464362808 | C136: 2.003388091 | D136: -1.532611379 | E136: 4.456672493 | F136: 4.210450566 | G136: 1.495078041 | H136: -11.9795863 | I136: -15.94545102 | J136: 4.13327179 | K136: 7.748963169 | L136: 5.583201776 | M136: 8.935059402 | N136: 1.362326007 | O136: 0.5828283206 | P136: -15.71156001 | Q136: -19.32457198 | R136: 29.70494526 | S136: 35.57867093 | T136: 33.6539487 | U136: 32.75162045 | V136: 23.01948707 | W136: 20.12465532 | X136: 6.233647357 | Y136: 1.002152298 | Z136: 23.9077329 | AA136: 30.81848599 | AB136: 26.95888367 | AC136: 26.05188095 | AD136: 16.65523173 | AE136: 14.1623358 | AF136: 4.099408385 | AG136: 0.5334475844 | AH136: 23.66192538 | AI136: 27.91695114 | AJ136: 25.2366862 | AK136: 19.13559525 | AL136: 10.99167129 | AM136: 9.505273798 | AN136: 1.331309604 | AO136: 0.3080675858 | AP136: 17.30577187 | AQ136: 20.38807989 | AR136: 15.87911478 | AS136: 11.91274437 | AT136: 7.77941552 | AU136: 6.617956673 | AV136: 1.847995353 | AW136: 1.815420467 | AX136: 12.06571754 | AY136: 14.40347407 | AZ136: 10.67731663 | BA136: 6.840231771 | BB136: 5.097775657 | BC136: 6.131875536 | BD136: 3.835602345 | BE136: 2.662457164 | BF136: 7.410455296 | BG136: 8.723240155 | BH136: 8.249561666 | BI136: 6.271214276 | BJ136: 5.071314064 | BK136: 5.896171734 | BL136: 4.340123783 | BM136: 2.681883742 | BN136: 4.910188852 | BO136: 5.402343505 | BP136: 3.985320642 | BQ136: 3.448732292 | BR136: 3.821942803 | BS136: 3.578983908 | BT136: 1.44415969 | BU136: 1.162662595 | BV136: 0.8719417635 | BW136: 2.618847703 | BX136: 3.422430786 | BY136: 2.198781001 | BZ136: 2.126766409 | CA136: 1.741329312 | CB136: -0.8078493467 | CC136: 0.02104505219 | CD136: 1.490646474 | CE136: 1.587637211 | CF136: 1.760210095 | CG136: 2.539101669 | CH136: -0.7942775101 | CI136: -0.8808231557 | CJ136: -1.047868971 | CK136: 0.2759908925 | CL136: -1.77181394 | CM136: -0.9547199904 | CN136: 0.505447724 | CO136: 2.141020978 | CP136: -0.6011835239 | CQ136: -1.320235903 | CR136: 0.05894127448 | CS136: -0.2328841882 | CT136: -2.501076008 | CU136: -0.9287618068 | CV136: 1.415524699 | CW136: 3.049906268 | CX136: -1.863661034 | CY136: -0.7681113115 | CZ136: 0.4084318821 | DA136: 0.08301982421 | DB136: -4.141703569 | DC136: -3.396730176 | DD136: 1.712535538 | DE136: 2.93289197 | DF136: 0.05521069851 | DG136: 0.410659077 | DH136: -1.100788896 | DI136: -0.2001677999
A137: 19 | B137: 1.512783768 | C137: 4.124518206 | D137: 2.061838671 | E137: 9.792948091 | F137: 11.27277779 | G137: 9.031206667 | H137: -4.472566729 | I137: -9.982711229 | J137: 1.518053916 | K137: 5.701942468 | L137: 5.578327443 | M137: 10.04262509 | N137: 3.075463094 | O137: 2.082371837 | P137: -14.26422239 | Q137: -18.80386286 | R137: 27.74640591 | S137: 33.6539487 | T137: 35.42487026 | U137: 34.5988033 | V137: 24.86150868 | W137: 22.38725519 | X137: 7.526336598 | Y137: 1.477684989 | Z137: 22.34876818 | AA137: 29.87014632 | AB137: 27.827193 | AC137: 26.71690291 | AD137: 18.51360436 | AE137: 15.84019837 | AF137: 5.254814256 | AG137: 1.324631605 | AH137: 22.4665565 | AI137: 27.13146308 | AJ137: 25.50426259 | AK137: 20.08360562 | AL137: 12.20707873 | AM137: 11.5063258 | AN137: 1.871339982 | AO137: 0.9804483141 | AP137: 17.69393826 | AQ137: 20.70036646 | AR137: 16.08432906 | AS137: 12.88884654 | AT137: 8.718893359 | AU137: 7.996342872 | AV137: 2.030354071 | AW137: 2.230726625 | AX137: 11.64106375 | AY137: 14.13777569 | AZ137: 10.80823239 | BA137: 7.177320382 | BB137: 5.990143645 | BC137: 6.82858554 | BD137: 4.449386751 | BE137: 3.456634253 | BF137: 7.346316256 | BG137: 8.581503047 | BH137: 8.592799435 | BI137: 6.787740265 | BJ137: 5.994900602 | BK137: 6.542149557 | BL137: 4.689849793 | BM137: 3.248783266 | BN137: 5.04892311 | BO137: 6.423126512 | BP137: 4.523772976 | BQ137: 4.674175309 | BR137: 4.548534584 | BS137: 4.170760459 | BT137: 2.149323971 | BU137: 1.82723461 | BV137: 1.673901482 | BW137: 3.241259188 | BX137: 4.236242142 | BY137: 3.181296423 | BZ137: 2.963257267 | CA137: 2.602592864 | CB137: -0.1125543657 | CC137: 0.7016127026 | CD137: 1.890716676 | CE137: 2.251778851 | CF137: 2.314292896 | CG137: 2.983158237 | CH137: 0.08415542953 | CI137: 0.2117413233 | CJ137: -0.3766359112 | CK137: 0.8246385688 | CL137: -1.190901118 | CM137: -0.4432541776 | CN137: 1.039726716 | CO137: 2.228749179 | CP137: 0.157927716 | CQ137: -0.3278805241 | CR137: 0.4033625764 | CS137: 0.9066629859 | CT137: -2.051731034 | CU137: -0.7106003846 | CV137: 1.486781243 | CW137: 3.045426447 | CX137: -0.8511888452 | CY137: -0.003049799652 | CZ137: 1.146940509 | DA137: 1.21225102 | DB137: -3.575860422 | DC137: -2.918843459 | DD137: 1.627337425 | DE137: 2.85828045 | DF137: 0.09580622499 | DG137: 0.3347107842 | DH137: 0.3729255498 | DI137: 0.917439988
A138: 20 | B138: 12.43721601 | C138: 15.97449454 | D138: 15.39708667 | E138: 25.20011893 | F138: 30.70138823 | G138: 28.66006675 | H138: 12.19624467 | I138: 4.251125321 | J138: 10.51575419 | K138: 15.49937918 | L138: 15.87619279 | M138: 22.97243493 | N138: 19.68289637 | O138: 18.06420396 | P138: -1.785981456 | Q138: -8.510369095 | R138: 26.59286403 | S138: 32.75162045 | T138: 34.5988033 | U138: 37.82813815 | V138: 31.43539421 | W138: 28.40419853 | X138: 10.08235595 | Y138: 2.48561606 | Z138: 21.54120053 | AA138: 29.83992253 | AB138: 29.45267231 | AC138: 31.38940268 | AD138: 24.34510886 | AE138: 20.76977141 | AF138: 6.662697175 | AG138: 1.934519806 | AH138: 23.43285882 | AI138: 28.9857341 | AJ138: 28.90168365 | AK138: 25.60913247 | AL138: 17.17793296 | AM138: 15.86053298 | AN138: 2.487034344 | AO138: 0.6621332189 | AP138: 19.93942971 | AQ138: 23.74154588 | AR138: 19.81308506 | AS138: 17.80268217 | AT138: 12.77490454 | AU138: 11.04003021 | AV138: 1.8311807 | AW138: 1.383726772 | AX138: 14.05427495 | AY138: 17.42311025 | AZ138: 14.29521695 | BA138: 11.40480307 | BB138: 9.035212423 | BC138: 8.987812394 | BD138: 3.885012425 | BE138: 2.550896249 | BF138: 9.666348801 | BG138: 11.50819108 | BH138: 11.69196156 | BI138: 10.29175335 | BJ138: 8.070280462 | BK138: 8.119235713 | BL138: 4.022390347 | BM138: 2.470249687 | BN138: 6.9371498 | BO138: 8.759840359 | BP138: 7.125292508 | BQ138: 7.050045206 | BR138: 6.329097217 | BS138: 4.882291042 | BT138: 2.028830801 | BU138: 1.477411765 | BV138: 3.781037536 | BW138: 5.729407619 | BX138: 6.669377782 | BY138: 5.256336547 | BZ138: 3.857487934 | CA138: 2.895969636 | CB138: 0.8740150665 | CC138: 0.9147149265 | CD138: 3.849017355 | CE138: 4.437419369 | CF138: 4.181766343 | CG138: 4.351901735 | CH138: 0.8771744163 | CI138: 1.199379196 | CJ138: 1.352407149 | CK138: 2.545731739 | CL138: 0.2287936615 | CM138: 1.392979852 | CN138: 2.671890546 | CO138: 3.18830242 | CP138: 1.363626264 | CQ138: 1.540608544 | CR138: 2.152935542 | CS138: 1.867586583 | CT138: -1.505708976 | CU138: 0.1158493492 | CV138: 2.024986763 | CW138: 3.065606183 | CX138: 1.283957829 | CY138: 1.796378945 | CZ138: 2.064747621 | DA138: 2.004416754 | DB138: -3.677571273 | DC138: -2.704902328 | DD138: 1.545929554 | DE138: 2.743420966 | DF138: 1.633100223 | DG138: 1.400667929 | DH138: 1.444077201 | DI138: 0.5415595168
A139: 21 | B139: 24.08192524 | C139: 27.99878613 | D139: 30.45089189 | E139: 40.7758921 | F139: 51.10629516 | G139: 50.59149361 | H139: 34.59252047 | I139: 24.9288951 | J139: 16.75984925 | K139: 21.925697 | L139: 23.55528053 | M139: 32.39771914 | N139: 36.84616852 | O139: 35.40965908 | P139: 16.20592295 | Q139: 7.917482043 | R139: 17.42596997 | S139: 23.01948707 | T139: 24.86150868 | U139: 31.43539421 | V139: 35.05355764 | W139: 31.49171508 | X139: 13.48977477 | Y139: 5.730410525 | Z139: 14.93424355 | AA139: 21.98807508 | AB139: 24.44865273 | AC139: 30.71953118 | AD139: 29.02839021 | AE139: 24.17430313 | AF139: 9.197851124 | AG139: 4.2027113 | AH139: 19.67919221 | AI139: 25.47389012 | AJ139: 27.61288899 | AK139: 28.79189869 | AL139: 21.43155675 | AM139: 19.81311538 | AN139: 4.250882093 | AO139: 1.253140311 | AP139: 20.45102953 | AQ139: 24.76947998 | AR139: 21.95913916 | AS139: 22.36382481 | AT139: 16.57409741 | AU139: 14.08739726 | AV139: 1.370102768 | AW139: -0.2216389893 | AX139: 15.67658448 | AY139: 19.53768952 | AZ139: 17.31842198 | BA139: 15.58952271 | BB139: 11.91477561 | BC139: 10.86797378 | BD139: 2.1462207 | BE139: 0.4896467361 | BF139: 12.37330943 | BG139: 14.05701631 | BH139: 14.2155834 | BI139: 13.26650655 | BJ139: 9.217779808 | BK139: 8.925512232 | BL139: 1.7643329 | BM139: 0.09971351589 | BN139: 8.601460422 | BO139: 10.82303667 | BP139: 9.741804118 | BQ139: 9.027203846 | BR139: 7.615744895 | BS139: 4.841538363 | BT139: 0.8391973355 | BU139: -0.2331564335 | BV139: 6.51510337 | BW139: 7.972963683 | BX139: 8.555840258 | BY139: 6.87729952 | BZ139: 3.923977414 | CA139: 2.687842491 | CB139: 0.620671072 | CC139: -0.09045098026 | CD139: 5.341121891 | CE139: 5.602334916 | CF139: 5.161868726 | CG139: 4.826995899 | CH139: 0.8622788479 | CI139: 1.033952833 | CJ139: 0.9378296952 | CK139: 2.201446071 | CL139: 1.480897484 | CM139: 2.845171268 | CN139: 3.852256259 | CO139: 3.492600631 | CP139: 1.256663524 | CQ139: 2.111102358 | CR139: 1.56897292 | CS139: 1.784745104 | CT139: -1.664025009 | CU139: 0.006233602689 | CV139: 2.115955498 | CW139: 1.827887347 | CX139: 1.897758537 | CY139: 1.887289971 | CZ139: 1.177342649 | DA139: 1.063495526 | DB139: -4.059424839 | DC139: -3.028317377 | DD139: 0.6102908634 | DE139: 1.643356862 | DF139: 1.266929291 | DG139: 0.9004339478 | DH139: 1.892739116 | DI139: -0.4876138624
A140: 22 | B140: 16.93786248 | C140: 20.26306093 | D140: 22.19069831 | E140: 31.63844912 | F140: 42.01315154 | G140: 42.4762943 | H140: 28.21478752 | I140: 19.04460108 | J140: 10.1184948 | K140: 14.53078055 | L140: 15.55742384 | M140: 24.17823194 | N140: 28.70245355 | O140: 28.27823698 | P140: 11.24385262 | Q140: 3.697956742 | R140: 15.00505374 | S140: 20.12465532 | T140: 22.38725519 | U140: 28.40419853 | V140: 31.49171508 | W140: 29.83648311 | X140: 12.50991985 | Y140: 5.310122441 | Z140: 13.21331405 | AA140: 19.82262604 | AB140: 22.07358783 | AC140: 27.44320386 | AD140: 26.30623372 | AE140: 22.96925732 | AF140: 8.601884929 | AG140: 4.012429755 | AH140: 17.37323849 | AI140: 22.37472767 | AJ140: 24.0827899 | AK140: 25.59004921 | AL140: 19.59445186 | AM140: 19.12895475 | AN140: 4.248263974 | AO140: 1.090833194 | AP140: 18.15547657 | AQ140: 21.39510848 | AR140: 19.11419514 | AS140: 19.67593211 | AT140: 15.18904365 | AU140: 13.3219934 | AV140: 1.419785094 | AW140: -0.5016212916 | AX140: 13.82622271 | AY140: 16.88221195 | AZ140: 15.0486557 | BA140: 13.69535389 | BB140: 10.96235063 | BC140: 9.871888474 | BD140: 1.768448532 | BE140: 0.1838484048 | BF140: 10.09815042 | BG140: 11.49018312 | BH140: 12.00188335 | BI140: 11.78612454 | BJ140: 8.605443029 | BK140: 8.544733953 | BL140: 1.35062761 | BM140: 0.10228925 | BN140: 7.094532048 | BO140: 9.256370826 | BP140: 8.293938305 | BQ140: 8.239726926 | BR140: 7.276462019 | BS140: 4.800633097 | BT140: 0.9829885096 | BU140: -0.01118357685 | BV140: 5.196487245 | BW140: 6.532349051 | BX140: 7.572040229 | BY140: 6.539418626 | BZ140: 4.085410737 | CA140: 2.915781922 | CB140: 1.092193443 | CC140: 0.3445546533 | CD140: 4.317799014 | CE140: 5.00806088 | CF140: 4.793463753 | CG140: 4.716871852 | CH140: 1.300375362 | CI140: 1.323383841 | CJ140: 1.71193562 | CK140: 2.888368286 | CL140: 1.422128359 | CM140: 2.529252583 | CN140: 3.506208006 | CO140: 3.240312362 | CP140: 1.354596849 | CQ140: 2.423177004 | CR140: 2.266667572 | CS140: 2.375210965 | CT140: -1.451872546 | CU140: 0.1414889894 | CV140: 1.975339976 | CW140: 1.429633201 | CX140: 2.494608307 | CY140: 2.576703149 | CZ140: 1.538317119 | DA140: 1.354866486 | DB140: -4.08100884 | DC140: -3.158499546 | DD140: -0.03494684367 | DE140: 0.7367506071 | DF140: 2.041895968 | DG140: 1.547041032 | DH140: 2.015836386 | DI140: -0.1919358839
A141: 23 | B141: 13.35466871 | C141: 15.54897837 | D141: 17.09873207 | E141: 20.59493873 | F141: 24.62406446 | G141: 24.51350058 | H141: 21.46244501 | I141: 18.66218086 | J141: 9.145880634 | K141: 11.7983283 | L141: 13.7400719 | M141: 16.55806982 | N141: 19.45427747 | O141: 19.01031839 | P141: 15.46522919 | Q141: 13.17326171 | R141: 3.601880228 | S141: 6.233647357 | T141: 7.526336598 | U141: 10.08235595 | V141: 13.48977477 | W141: 12.50991985 | X141: 9.753542618 | Y141: 7.61737315 | Z141: 4.995189709 | AA141: 7.383236633 | AB141: 9.062121346 | AC141: 12.16713691 | AD141: 13.03731642 | AE141: 10.97004067 | AF141: 8.783368549 | AG141: 6.877578612 | AH141: 7.531124203 | AI141: 9.350567054 | AJ141: 11.03392181 | AK141: 12.26631768 | AL141: 10.33782867 | AM141: 10.86598133 | AN141: 6.781733914 | AO141: 5.067124421 | AP141: 9.356761532 | AQ141: 11.26032297 | AR141: 10.59053721 | AS141: 10.91913373 | AT141: 9.602925749 | AU141: 8.980825633 | AV141: 4.257119935 | AW141: 2.905560496 | AX141: 7.633323791 | AY141: 9.971860867 | AZ141: 8.398099038 | BA141: 8.342092796 | BB141: 7.602445629 | BC141: 7.341843933 | BD141: 3.640583405 | BE141: 2.454974931 | BF141: 7.259007997 | BG141: 8.270705835 | BH141: 7.484367129 | BI141: 7.325676148 | BJ141: 6.132748025 | BK141: 6.32071793 | BL141: 3.040823056 | BM141: 1.988988433 | BN141: 5.022927757 | BO141: 6.776253795 | BP141: 5.775523694 | BQ141: 5.908607965 | BR141: 5.928006504 | BS141: 4.499524558 | BT141: 2.538284607 | BU141: 1.464314972 | BV141: 3.98396398 | BW141: 5.23212106 | BX141: 5.372432385 | BY141: 5.322016464 | BZ141: 3.834280569 | CA141: 3.485399987 | CB141: 1.961241581 | CC141: 0.783747322 | CD141: 3.579727936 | CE141: 3.773343916 | CF141: 3.568960389 | CG141: 3.869471619 | CH141: 2.337125313 | CI141: 2.164482982 | CJ141: 1.237739703 | CK141: 2.120886888 | CL141: 1.718624052 | CM141: 2.48732224 | CN141: 3.248866733 | CO141: 3.639734391 | CP141: 1.425037635 | CQ141: 2.290674066 | CR141: 1.090554102 | CS141: 2.134531106 | CT141: -0.009833761739 | CU141: 0.4731659501 | CV141: 2.068050755 | CW141: 2.345222573 | CX141: 1.966185034 | CY141: 2.089822882 | CZ141: 0.922118695 | DA141: 1.715891166 | DB141: -1.416315351 | DC141: -0.790407388 | DD141: 1.19809948 | DE141: 1.842168978 | DF141: 1.568220414 | DG141: 1.838653916 | DH141: 2.420927638 | DI141: 1.194603981
A142: 24 | B142: 6.251410467 | C142: 8.018423434 | D142: 8.892055727 | E142: 9.714414608 | F142: 11.77722945 | G142: 11.61560833 | H142: 13.07309956 | I142: 13.39769358 | J142: 3.891675425 | K142: 6.253841438 | L142: 7.610465618 | M142: 8.216179173 | N142: 10.64644629 | O142: 10.50449269 | P142: 12.13337589 | Q142: 12.73624048 | R142: -0.8859234353 | S142: 1.002152298 | T142: 1.477684989 | U142: 2.48561606 | V142: 5.730410525 | W142: 5.310122441 | X142: 7.61737315 | Y142: 8.522731315 | Z142: 1.693757132 | AA142: 2.387558187 | AB142: 3.17490469 | AC142: 5.117379276 | AD142: 6.787437698 | AE142: 5.382604252 | AF142: 8.086534323 | AG142: 8.063547688 | AH142: 3.399673686 | AI142: 3.815219811 | AJ142: 5.406723557 | AK142: 6.301768352 | AL142: 5.628438188 | AM142: 6.710337824 | AN142: 7.748481279 | AO142: 6.899234341 | AP142: 5.730873505 | AQ142: 6.835704348 | AR142: 6.883549751 | AS142: 6.970533271 | AT142: 6.484760896 | AU142: 6.378441763 | AV142: 5.43176817 | AW142: 4.375759554 | AX142: 5.400099682 | AY142: 7.30978289 | AZ142: 5.392019702 | BA142: 5.568214916 | BB142: 5.19361253 | BC142: 5.397153564 | BD142: 4.138445103 | BE142: 3.257372525 | BF142: 6.497425683 | BG142: 6.80204048 | BH142: 5.055954864 | BI142: 4.675904964 | BJ142: 4.325384715 | BK142: 4.8905986 | BL142: 3.447271948 | BM142: 2.579874889 | BN142: 4.038917431 | BO142: 5.00636057 | BP142: 4.073663107 | BQ142: 4.075385914 | BR142: 4.750918819 | BS142: 4.052101929 | BT142: 2.771840768 | BU142: 1.845961502 | BV142: 3.229019234 | BW142: 3.975725869 | BX142: 3.995861589 | BY142: 4.073746573 | BZ142: 3.499820838 | CA142: 3.515491083 | CB142: 1.463500193 | CC142: 0.8323318629 | CD142: 2.648126627 | CE142: 2.709183916 | CF142: 2.596673892 | CG142: 3.222171694 | CH142: 2.559342049 | CI142: 2.056876308 | CJ142: 0.1198140235 | CK142: 1.68930209 | CL142: 1.534265717 | CM142: 1.783054249 | CN142: 2.48488703 | CO142: 3.33673122 | CP142: 1.029487032 | CQ142: 1.764349854 | CR142: -0.01041183473 | CS142: 1.614648837 | CT142: 0.2148116636 | CU142: 0.5176227955 | CV142: 1.89065864 | CW142: 2.570632894 | CX142: 1.098390855 | CY142: 1.21581564 | CZ142: 0.05123167831 | DA142: 1.132875697 | DB142: -0.447805402 | DC142: 0.1120829086 | DD142: 1.660699703 | DE142: 2.311632717 | DF142: 0.9857243306 | DG142: 1.682829498 | DH142: 1.92052281 | DI142: 1.499646546
A143: 25 | B143: 4.105452883 | C143: 5.394464367 | D143: 2.796161568 | E143: 6.588333448 | F143: 6.970018124 | G143: 5.035149453 | H143: -3.697900011 | I143: -6.456038525 | J143: 9.262147644 | K143: 11.43638353 | L143: 9.748221282 | M143: 11.72396262 | N143: 6.584685035 | O143: 6.716722384 | P143: -3.820087622 | Q143: -6.545882741 | R143: 20.54706822 | S143: 23.9077329 | T143: 22.34876818 | U143: 21.54120053 | V143: 14.93424355 | W143: 13.21331405 | X143: 4.995189709 | Y143: 1.693757132 | Z143: 19.59900895 | AA143: 22.78413246 | AB143: 18.87312794 | AC143: 18.51154703 | AD143: 12.12283624 | AE143: 10.26432342 | AF143: 3.465089508 | AG143: 0.7191612772 | AH143: 17.70556395 | AI143: 19.13851333 | AJ143: 17.25633961 | AK143: 13.43141352 | AL143: 8.352893926 | AM143: 7.661208233 | AN143: 1.66900074 | AO143: 0.5478912582 | AP143: 13.27127785 | AQ143: 14.96820737 | AR143: 11.53205412 | AS143: 9.575050437 | AT143: 6.568741566 | AU143: 5.360370124 | AV143: 1.462371434 | AW143: 1.076024353 | AX143: 10.13854934 | AY143: 11.45593955 | AZ143: 8.275498005 | BA143: 5.479812459 | BB143: 4.638479873 | BC143: 4.666995532 | BD143: 2.1991716 | BE143: 1.001624761 | BF143: 6.848515202 | BG143: 7.647638352 | BH143: 6.784548963 | BI143: 5.334668209 | BJ143: 4.610684767 | BK143: 4.671100404 | BL143: 2.458759956 | BM143: 1.141311063 | BN143: 4.401672091 | BO143: 4.696173057 | BP143: 3.726171138 | BQ143: 3.369718875 | BR143: 3.463537547 | BS143: 3.273771148 | BT143: 0.716416001 | BU143: -0.09424578656 | BV143: 1.345067936 | BW143: 2.308467499 | BX143: 3.481760051 | BY143: 2.357132572 | BZ143: 1.899584374 | CA143: 1.62714017 | CB143: -0.778983518 | CC143: -0.999926081 | CD143: 2.353454815 | CE143: 1.983227265 | CF143: 1.941686216 | CG143: 2.720242619 | CH143: -0.2593862103 | CI143: -0.4530064288 | CJ143: -1.101657799 | CK143: -0.08743150254 | CL143: -0.4099362413 | CM143: 0.06094382628 | CN143: 1.289555975 | CO143: 2.35418515 | CP143: -0.6197868453 | CQ143: -0.6964622124 | CR143: -0.3991377204 | CS143: 0.1786940021 | CT143: -0.9122337446 | CU143: -0.1179816658 | CV143: 2.42950092 | CW143: 3.504012437 | CX143: -1.258647165 | CY143: -0.1325264127 | CZ143: 0.6268782653 | DA143: 0.6151407425 | DB143: -2.350279163 | DC143: -1.930903997 | DD143: 2.665565325 | DE143: 3.829004879 | DF143: 0.6876199453 | DG143: 1.057068254 | DH143: -0.3417575364 | DI143: 0.3236035013
A144: 26 | B144: 5.719961848 | C144: 8.210682426 | D144: 5.506909182 | E144: 11.78542192 | F144: 13.14033502 | G144: 11.18530618 | H144: -0.9984458489 | I144: -5.336256361 | J144: 3.761251007 | K144: 7.355778981 | L144: 5.747122801 | M144: 9.566472916 | N144: 4.016880884 | O144: 3.795375246 | P144: -10.59418269 | Q144: -14.56319372 | R144: 25.10518943 | S144: 30.81848599 | T144: 29.87014632 | U144: 29.83992253 | V144: 21.98807508 | W144: 19.82262604 | X144: 7.383236633 | Y144: 2.387558187 | Z144: 22.78413246 | AA144: 29.38810583 | AB144: 25.39328073 | AC144: 25.0619122 | AD144: 17.41140207 | AE144: 14.9237815 | AF144: 5.051197581 | AG144: 1.421348792 | AH144: 22.25965332 | AI144: 25.81008212 | AJ144: 24.00871635 | AK144: 19.32150783 | AL144: 12.10462971 | AM144: 11.11519241 | AN144: 2.150497397 | AO144: 0.5851676741 | AP144: 17.22747933 | AQ144: 20.27232835 | AR144: 15.6663461 | AS144: 12.86863844 | AT144: 8.967288683 | AU144: 7.551344042 | AV144: 1.762787459 | AW144: 1.254448392 | AX144: 12.4959271 | AY144: 14.95040351 | AZ144: 11.10689366 | BA144: 7.69723395 | BB144: 6.140550217 | BC144: 6.419161185 | BD144: 3.03598361 | BE144: 1.545785118 | BF144: 8.039661504 | BG144: 9.438586737 | BH144: 8.669670427 | BI144: 6.986192431 | BJ144: 5.784945664 | BK144: 5.934136099 | BL144: 3.399455889 | BM144: 1.75348156 | BN144: 5.469018829 | BO144: 6.290394692 | BP144: 4.757789835 | BQ144: 4.377215985 | BR144: 4.425564471 | BS144: 3.83484234 | BT144: 1.028273176 | BU144: 0.4303520318 | BV144: 1.644606582 | BW144: 3.192900595 | BX144: 4.340080093 | BY144: 3.002710015 | BZ144: 2.496416864 | CA144: 1.96955892 | CB144: -0.7373329186 | CC144: -0.5823549072 | CD144: 1.920794078 | CE144: 1.94398188 | CF144: 2.051675607 | CG144: 3.053720311 | CH144: -0.1557790973 | CI144: -0.3276271893 | CJ144: -0.7859820159 | CK144: 0.8241397241 | CL144: -1.293301223 | CM144: -0.4451321812 | CN144: 1.120940592 | CO144: 2.615911366 | CP144: -0.3510112689 | CQ144: -0.4245194611 | CR144: 0.1824623989 | CS144: 0.3221441359 | CT144: -2.143821681 | CU144: -0.6090708131 | CV144: 2.158813106 | CW144: 3.582975643 | CX144: -0.7783770793 | CY144: 0.4706961797 | CZ144: 0.6204050215 | DA144: 0.4139234125 | DB144: -3.719517919 | DC144: -2.91776752 | DD144: 2.453502524 | DE144: 3.760886166 | DF144: 1.455813419 | DG144: 1.749023584 | DH144: -0.6324519583 | DI144: -0.03908986315
A145: 27 | B145: 11.41444545 | C145: 14.03688711 | D145: 13.06299812 | E145: 20.51688518 | F145: 24.18463802 | G145: 22.3248771 | H145: 10.05007124 | I145: 4.625354714 | J145: 6.655914844 | K145: 9.985303591 | L145: 9.826267331 | M145: 15.00736897 | N145: 12.52943446 | O145: 11.29625707 | P145: -3.281948941 | Q145: -8.118494945 | R145: 22.43011182 | S145: 26.95888367 | T145: 27.827193 | U145: 29.45267231 | V145: 24.44865273 | W145: 22.07358783 | X145: 9.062121346 | Y145: 3.17490469 | Z145: 18.87312794 | AA145: 25.39328073 | AB145: 25.29924687 | AC145: 25.67675951 | AD145: 19.63568219 | AE145: 16.60877788 | AF145: 6.747515775 | AG145: 2.634043556 | AH145: 20.95588353 | AI145: 25.06616119 | AJ145: 24.91984645 | AK145: 21.25597873 | AL145: 14.0191941 | AM145: 13.12116928 | AN145: 3.155105446 | AO145: 1.27672621 | AP145: 18.18473136 | AQ145: 21.01955372 | AR145: 17.0880894 | AS145: 14.81563914 | AT145: 10.86160095 | AU145: 9.363915878 | AV145: 2.086521378 | AW145: 1.299438969 | AX145: 12.9920624 | AY145: 15.3542232 | AZ145: 12.16568342 | BA145: 9.451517575 | BB145: 7.836902646 | BC145: 7.835087894 | BD145: 3.612036772 | BE145: 2.194242492 | BF145: 8.674513133 | BG145: 9.890438976 | BH145: 9.987404608 | BI145: 8.697536284 | BJ145: 6.797258092 | BK145: 6.932849302 | BL145: 3.619733326 | BM145: 1.935905486 | BN145: 6.338190537 | BO145: 7.73644771 | BP145: 6.156586281 | BQ145: 6.036782691 | BR145: 5.480728638 | BS145: 4.300870898 | BT145: 1.606778176 | BU145: 0.9006566347 | BV145: 3.679992463 | BW145: 5.338319231 | BX145: 5.818068953 | BY145: 4.596835142 | BZ145: 3.323597584 | CA145: 2.574184798 | CB145: 0.463930802 | CC145: 0.009967765124 | CD145: 3.454245993 | CE145: 3.664479371 | CF145: 3.501183042 | CG145: 3.731453023 | CH145: 0.6561575157 | CI145: 0.5635230302 | CJ145: 0.3874099789 | CK145: 1.307640889 | CL145: 0.182948202 | CM145: 1.176496244 | CN145: 2.250426101 | CO145: 2.802288554 | CP145: 0.4792750046 | CQ145: 0.6469435603 | CR145: 1.277570008 | CS145: 1.140239688 | CT145: -1.235101042 | CU145: -0.1808028437 | CV145: 1.882917744 | CW145: 2.8128132 | CX145: 0.2328757111 | CY145: 0.8267539312 | CZ145: 1.032114933 | DA145: 1.156303792 | DB145: -2.985352175 | DC145: -2.332352053 | DD145: 2.069879527 | DE145: 2.978306401 | DF145: 1.005059943 | DG145: 1.138517533 | DH145: 0.5367080074 | DI145: 0.1598415843
A146: 28 | B146: 22.0109714 | C146: 25.68519813 | D146: 26.49781161 | E146: 35.0051146 | F146: 41.99830521 | G146: 40.25164576 | H146: 25.26744992 | I146: 17.50127824 | J146: 16.07909739 | K146: 20.43875828 | L146: 21.18063296 | M146: 28.00861924 | N146: 28.65689892 | O146: 27.24223595 | P146: 9.579079015 | Q146: 2.886241838 | R146: 20.75382664 | S146: 26.05188095 | T146: 26.71690291 | U146: 31.38940268 | V146: 30.71953118 | W146: 27.44320386 | X146: 12.16713691 | Y146: 5.117379276 | Z146: 18.51154703 | AA146: 25.0619122 | AB146: 25.67675951 | AC146: 30.49024845 | AD146: 25.83747619 | AE146: 21.60391281 | AF146: 8.617640923 | AG146: 3.814414486 | AH146: 21.54924856 | AI146: 26.01011885 | AJ146: 27.02531349 | AK146: 26.39198611 | AL146: 19.26312278 | AM146: 17.77565261 | AN146: 4.370859138 | AO146: 1.818409623 | AP146: 20.01577773 | AQ146: 24.23284533 | AR146: 21.08561315 | AS146: 20.38773461 | AT146: 15.28753776 | AU146: 12.86521304 | AV146: 2.122008473 | AW146: 0.9648289318 | AX146: 15.66959087 | AY146: 19.26912522 | AZ146: 16.40156496 | BA146: 14.10852121 | BB146: 11.39941033 | BC146: 10.417517 | BD146: 3.369363489 | BE146: 1.724781361 | BF146: 12.6164082 | BG146: 14.39182915 | BH146: 14.05742517 | BI146: 12.73983412 | BJ146: 9.423029955 | BK146: 8.795890856 | BL146: 3.179389076 | BM146: 1.434064442 | BN146: 9.310939873 | BO146: 11.2025499 | BP146: 9.698570909 | BQ146: 8.987144659 | BR146: 7.676819138 | BS146: 5.349939379 | BT146: 1.933295844 | BU146: 0.7484770443 | BV146: 6.439039332 | BW146: 8.16734195 | BX146: 8.528804831 | BY146: 6.965702628 | BZ146: 4.407509553 | CA146: 3.409074137 | CB146: 1.726746744 | CC146: 0.324788339 | CD146: 6.387023196 | CE146: 6.32879465 | CF146: 5.583563683 | CG146: 5.397072705 | CH146: 1.614184553 | CI146: 1.852278245 | CJ146: 1.575661351 | CK146: 2.276448841 | CL146: 2.386452252 | CM146: 3.658156107 | CN146: 4.232923684 | CO146: 4.450514532 | CP146: 2.01698112 | CQ146: 2.629617206 | CR146: 2.0336321 | CS146: 1.797529222 | CT146: -0.4744319723 | CU146: 0.7464653634 | CV146: 3.28508612 | CW146: 3.629455255 | CX146: 2.086488121 | CY146: 2.530379059 | CZ146: 1.673477953 | DA146: 1.527240158 | DB146: -3.223097002 | DC146: -2.146643577 | DD146: 2.401480845 | DE146: 3.52254403 | DF146: 2.345519598 | DG146: 1.926904762 | DH146: 1.301114174 | DI146: -0.3564372648
A147: 29 | B147: 25.77799629 | C147: 29.29420597 | D147: 32.23550201 | E147: 40.26901468 | F147: 49.69265108 | G147: 49.38018844 | H147: 37.16723737 | I147: 28.98913798 | J147: 16.48066543 | K147: 20.90801009 | L147: 22.8615349 | M147: 30.0616639 | N147: 34.94699691 | O147: 34.13324424 | P147: 19.56297802 | Q147: 12.58216463 | R147: 12.08857246 | S147: 16.65523173 | T147: 18.51360436 | U147: 24.34510886 | V147: 29.02839021 | W147: 26.30623372 | X147: 13.03731642 | Y147: 6.787437698 | Z147: 12.12283624 | AA147: 17.41140207 | AB147: 19.63568219 | AC147: 25.83747619 | AD147: 25.71380183 | AE147: 21.33771101 | AF147: 9.563078163 | AG147: 5.262606341 | AH147: 15.94518986 | AI147: 20.22426026 | AJ147: 22.54645088 | AK147: 24.82636686 | AL147: 19.39052446 | AM147: 18.5805278 | AN147: 5.42493628 | AO147: 2.528233049 | AP147: 17.56370621 | AQ147: 21.5793377 | AR147: 19.35528255 | AS147: 20.41457441 | AT147: 15.73870727 | AU147: 13.4745098 | AV147: 2.155361296 | AW147: 0.3845408067 | AX147: 14.26578511 | AY147: 17.67550611 | AZ147: 15.65835415 | BA147: 14.57695662 | BB147: 11.63805699 | BC147: 10.32216332 | BD147: 2.43997666 | BE147: 0.5160206236 | BF147: 11.99387999 | BG147: 13.44953822 | BH147: 13.14987926 | BI147: 12.54247224 | BJ147: 9.108933847 | BK147: 8.590555938 | BL147: 1.804644117 | BM147: 0.2016995466 | BN147: 8.477924626 | BO147: 10.76507874 | BP147: 9.661145166 | BQ147: 9.163875235 | BR147: 7.832341314 | BS147: 4.995098417 | BT147: 1.437924783 | BU147: -0.017567159 | BV147: 6.830758938 | BW147: 8.027311348 | BX147: 8.491862934 | BY147: 7.280442996 | BZ147: 4.401404737 | CA147: 3.197575063 | CB147: 1.609008958 | CC147: -0.03477241104 | CD147: 5.905920398 | CE147: 5.994108319 | CF147: 5.356653242 | CG147: 5.176071455 | CH147: 1.736527361 | CI147: 1.755855148 | CJ147: 1.466613245 | CK147: 2.314590573 | CL147: 2.430928986 | CM147: 3.577391517 | CN147: 4.406706184 | CO147: 4.165519655 | CP147: 1.646921156 | CQ147: 2.882217172 | CR147: 1.653024668 | CS147: 2.265733135 | CT147: -0.7770729101 | CU147: 0.423431132 | CV147: 2.841712937 | CW147: 2.46934981 | CX147: 2.530355584 | CY147: 2.736388233 | CZ147: 1.515001182 | DA147: 1.472482006 | DB147: -3.005314441 | DC147: -2.155038514 | DD147: 1.366932333 | DE147: 2.336735366 | DF147: 2.108254705 | DG147: 1.727215593 | DH147: 2.312604976 | DI147: 0.07700793028
A148: 30 | B148: 20.36889002 | C148: 23.16847764 | D148: 25.53415708 | E148: 32.31143335 | F148: 40.93752072 | G148: 41.03306937 | H148: 31.07290691 | I148: 23.42945885 | J148: 11.27964978 | K148: 14.60149652 | L148: 16.11527374 | M148: 22.50259037 | N148: 26.72656941 | O148: 26.57789216 | P148: 14.46627634 | Q148: 8.209603552 | R148: 10.23127055 | S148: 14.1623358 | T148: 15.84019837 | U148: 20.76977141 | V148: 24.17430313 | W148: 22.96925732 | X148: 10.97004067 | Y148: 5.382604252 | Z148: 10.26432342 | AA148: 14.9237815 | AB148: 16.60877788 | AC148: 21.60391281 | AD148: 21.33771101 | AE148: 19.17453318 | AF148: 8.029514741 | AG148: 4.278672635 | AH148: 13.09553649 | AI148: 16.58321551 | AJ148: 18.18604923 | AK148: 20.03467971 | AL148: 16.26787131 | AM148: 16.35453988 | AN148: 4.52409641 | AO148: 1.703939433 | AP148: 14.10238053 | AQ148: 16.72426206 | AR148: 15.4320045 | AS148: 16.09240774 | AT148: 13.0309149 | AU148: 11.60029347 | AV148: 1.781673133 | AW148: 0.05558564716 | AX148: 11.27321762 | AY148: 13.75161706 | AZ148: 12.32749234 | BA148: 11.64488171 | BB148: 9.782928485 | BC148: 8.669846816 | BD148: 2.033203029 | BE148: 0.2685206113 | BF148: 8.651588447 | BG148: 9.916974907 | BH148: 9.944041634 | BI148: 10.11233684 | BJ148: 7.837779699 | BK148: 7.438906073 | BL148: 1.507899329 | BM148: 0.3855515378 | BN148: 6.387905466 | BO148: 8.156244122 | BP148: 7.38236447 | BQ148: 7.463821574 | BR148: 6.780913592 | BS148: 4.452349498 | BT148: 1.155534332 | BU148: 0.1571249999 | BV148: 4.855590786 | BW148: 5.993451018 | BX148: 6.75765569 | BY148: 6.173766102 | BZ148: 3.758966429 | CA148: 2.991097041 | CB148: 1.422776206 | CC148: 0.2564505255 | CD148: 4.508446379 | CE148: 4.885697532 | CF148: 4.702881703 | CG148: 4.631991631 | CH148: 1.679693624 | CI148: 1.470787238 | CJ148: 1.765672282 | CK148: 2.256872609 | CL148: 2.077917773 | CM148: 2.977303495 | CN148: 3.490480378 | CO148: 3.608165345 | CP148: 1.282130035 | CQ148: 2.345905632 | CR148: 1.867405304 | CS148: 2.097978504 | CT148: -0.6046832619 | CU148: 0.3909494941 | CV148: 2.409764276 | CW148: 1.888833455 | CX148: 2.335176884 | CY148: 2.729811308 | CZ148: 1.506944025 | DA148: 1.50178734 | DB148: -3.010323103 | DC148: -2.424149914 | DD148: 0.5148305693 | DE148: 1.217155674 | DF148: 2.376224957 | DG148: 1.839327193 | DH148: 2.030796836 | DI148: 0.133962303
A149: 31 | B149: 7.240082546 | C149: 8.913740474 | D149: 10.05085439 | E149: 12.14929099 | F149: 15.04793874 | G149: 14.78313468 | H149: 14.28457167 | I149: 13.27938033 | J149: 5.709482196 | K149: 8.085512506 | L149: 9.598442667 | M149: 11.29615534 | N149: 13.44814862 | O149: 13.28929006 | P149: 12.61111295 | Q149: 11.96506698 | R149: 1.969082572 | S149: 4.099408385 | T149: 5.254814256 | U149: 6.662697175 | V149: 9.197851124 | W149: 8.601884929 | X149: 8.783368549 | Y149: 8.086534323 | Z149: 3.465089508 | AA149: 5.051197581 | AB149: 6.747515775 | AC149: 8.617640923 | AD149: 9.563078163 | AE149: 8.029514741 | AF149: 9.213045347 | AG149: 7.856856434 | AH149: 5.300265204 | AI149: 6.551927565 | AJ149: 8.337284651 | AK149: 8.972387333 | AL149: 7.598285656 | AM149: 8.860369307 | AN149: 7.908194402 | AO149: 6.583022219 | AP149: 7.419202359 | AQ149: 8.839857986 | AR149: 8.814510479 | AS149: 8.560097066 | AT149: 8.041385941 | AU149: 7.859309251 | AV149: 5.529360455 | AW149: 4.278779576 | AX149: 6.212823361 | AY149: 8.268666115 | AZ149: 6.799052629 | BA149: 6.892992588 | BB149: 6.598039727 | BC149: 6.828051483 | BD149: 4.874686106 | BE149: 3.703163311 | BF149: 6.490752575 | BG149: 7.365303981 | BH149: 6.222187622 | BI149: 6.021454139 | BJ149: 5.591853634 | BK149: 6.125819626 | BL149: 4.19874793 | BM149: 3.156741526 | BN149: 4.634979808 | BO149: 5.984745688 | BP149: 4.890877692 | BQ149: 5.258044683 | BR149: 5.716594157 | BS149: 4.640744562 | BT149: 3.42184554 | BU149: 2.270151986 | BV149: 3.792471513 | BW149: 4.946993158 | BX149: 4.75656848 | BY149: 5.057287073 | BZ149: 3.970113703 | CA149: 3.810606964 | CB149: 2.526623704 | CC149: 1.140774071 | CD149: 3.39744486 | CE149: 3.635716898 | CF149: 3.404563994 | CG149: 3.81876226 | CH149: 2.764322885 | CI149: 2.51701426 | CJ149: 1.535924946 | CK149: 2.226400044 | CL149: 1.993066244 | CM149: 2.573872124 | CN149: 3.136607762 | CO149: 3.667644264 | CP149: 1.50672362 | CQ149: 2.365853551 | CR149: 1.328502379 | CS149: 2.46807042 | CT149: 0.5958511021 | CU149: 0.7165180523 | CV149: 2.137531021 | CW149: 2.575037399 | CX149: 1.918025326 | CY149: 2.065909636 | CZ149: 1.042609582 | DA149: 2.181686277 | DB149: -0.7127891065 | DC149: -0.2612198722 | DD149: 1.479346826 | DE149: 1.862913093 | DF149: 1.660286934 | DG149: 1.954334375 | DH149: 2.749177242 | DI149: 1.922932915
A150: 32 | B150: 3.228082841 | C150: 4.733932016 | D150: 5.230885686 | E150: 5.90724739 | F150: 7.635822579 | G150: 7.3190138 | H150: 9.743672992 | I150: 10.59368156 | J150: 1.210383124 | K150: 3.285844494 | L150: 4.435176198 | M150: 4.754746556 | N150: 6.852029938 | O150: 6.590517932 | P150: 9.071377035 | Q150: 10.14995756 | R150: -0.9777715068 | S150: 0.5334475844 | T150: 1.324631605 | U150: 1.934519806 | V150: 4.2027113 | W150: 4.012429755 | X150: 6.877578612 | Y150: 8.063547688 | Z150: 0.7191612772 | AA150: 1.421348792 | AB150: 2.634043556 | AC150: 3.814414486 | AD150: 5.262606341 | AE150: 4.278672635 | AF150: 7.856856434 | AG150: 8.372831412 | AH150: 2.383890863 | AI150: 2.925867714 | AJ150: 4.46502211 | AK150: 4.893001532 | AL150: 4.414087782 | AM150: 5.881124882 | AN150: 7.8565956 | AO150: 7.193914631 | AP150: 4.77520245 | AQ150: 5.80718827 | AR150: 5.983107652 | AS150: 5.673938043 | AT150: 5.543120092 | AU150: 5.774773145 | AV150: 5.755510566 | AW150: 4.786095523 | AX150: 4.535985216 | AY150: 6.383441947 | AZ150: 4.421303098 | BA150: 4.670180965 | BB150: 4.501167159 | BC150: 5.056417192 | BD150: 4.615213494 | BE150: 3.818340035 | BF150: 5.608507875 | BG150: 5.985631219 | BH150: 4.227242723 | BI150: 3.877516712 | BJ150: 3.876170158 | BK150: 4.714447728 | BL150: 3.874132393 | BM150: 3.124544849 | BN150: 3.56600286 | BO150: 4.375748468 | BP150: 3.39457308 | BQ150: 3.706041287 | BR150: 4.631959027 | BS150: 3.960680321 | BT150: 3.166522795 | BU150: 2.28504462 | BV150: 3.047308689 | BW150: 3.76819473 | BX150: 3.524973697 | BY150: 3.988025489 | BZ150: 3.596911669 | CA150: 3.670483114 | CB150: 1.817558653 | CC150: 1.106639725 | CD150: 2.567814584 | CE150: 2.762439013 | CF150: 2.564906287 | CG150: 3.20217878 | CH150: 2.801088067 | CI150: 2.244934897 | CJ150: 0.4009570364 | CK150: 1.740671358 | CL150: 1.613677883 | CM150: 1.881087995 | CN150: 2.439083304 | CO150: 3.324037089 | CP150: 1.148699181 | CQ150: 1.869627608 | CR150: 0.2706803155 | CS150: 1.653435481 | CT150: 0.6119781323 | CU150: 0.8610940102 | CV150: 1.969184623 | CW150: 2.625664269 | CX150: 1.211325386 | CY150: 1.306435185 | CZ150: 0.1764671332 | DA150: 1.34910434 | DB150: -0.09636832192 | DC150: 0.4209303875 | DD150: 1.760507772 | DE150: 2.211173217 | DF150: 0.9782181848 | DG150: 1.538068674 | DH150: 2.050183311 | DI150: 1.748773509
A151: 33 | B151: 9.262616166 | C151: 11.05047171 | D151: 9.418430802 | E151: 14.99563503 | F151: 17.58811732 | G151: 15.89960328 | H151: 5.449545953 | I151: 1.755257513 | J151: 8.963332812 | K151: 11.52991724 | L151: 11.28257047 | M151: 14.03736509 | N151: 12.438245 | O151: 11.46137304 | P151: -0.4216382254 | Q151: -4.076380995 | R151: 20.0878634 | S151: 23.66192538 | T151: 22.4665565 | U151: 23.43285882 | V151: 19.67919221 | W151: 17.37323849 | X151: 7.531124203 | Y151: 3.399673686 | Z151: 17.70556395 | AA151: 22.25965332 | AB151: 20.95588353 | AC151: 21.54924856 | AD151: 15.94518986 | AE151: 13.09553649 | AF151: 5.300265204 | AG151: 2.383890863 | AH151: 21.65203894 | AI151: 23.40923705 | AJ151: 21.89077819 | AK151: 17.7651221 | AL151: 11.74337094 | AM151: 9.98791682 | AN151: 2.639076345 | AO151: 0.7331354501 | AP151: 17.17070754 | AQ151: 19.09824939 | AR151: 14.55704391 | AS151: 12.74221553 | AT151: 9.162820814 | AU151: 7.577555887 | AV151: 1.622557971 | AW151: 0.5088822536 | AX151: 13.3757894 | AY151: 14.57318496 | AZ151: 10.41457284 | BA151: 7.834096074 | BB151: 6.217649439 | BC151: 6.306525961 | BD151: 2.143472164 | BE151: 0.5074492977 | BF151: 9.378152515 | BG151: 9.551139147 | BH151: 8.389160588 | BI151: 7.241628965 | BJ151: 5.645944051 | BK151: 5.338557894 | BL151: 1.949080203 | BM151: 0.1871352372 | BN151: 6.535516226 | BO151: 6.567482391 | BP151: 5.385815117 | BQ151: 4.720930427 | BR151: 4.377851441 | BS151: 3.356573502 | BT151: 0.1165174099 | BU151: -0.8193407075 | BV151: 3.345058014 | BW151: 4.324595366 | BX151: 4.864432401 | BY151: 3.457524022 | BZ151: 2.365186143 | CA151: 2.039774085 | CB151: -0.902717222 | CC151: -1.386399992 | CD151: 2.331191343 | CE151: 2.538651079 | CF151: 2.701700919 | CG151: 3.198978675 | CH151: -0.225798637 | CI151: -0.2620607353 | CJ151: -1.553016084 | CK151: -0.1660389963 | CL151: -0.5217103878 | CM151: 0.3667007503 | CN151: 1.602310745 | CO151: 2.457804978 | CP151: -0.3103420568 | CQ151: -0.1630420155 | CR151: -0.1480512428 | CS151: -0.1765382104 | CT151: -1.629135875 | CU151: -0.5177059363 | CV151: 2.110834026 | CW151: 2.912712234 | CX151: -0.9128956105 | CY151: -0.2375811535 | CZ151: -0.210066444 | DA151: -0.2805082085 | DB151: -3.14735216 | DC151: -2.577272419 | DD151: 2.380824436 | DE151: 3.351330742 | DF151: 0.130840122 | DG151: 0.4509233445 | DH151: -0.5311180122 | DI151: -0.7361598184
A152: 34 | B152: 7.565703923 | C152: 9.751507788 | D152: 7.93575867 | E152: 15.56091967 | F152: 19.57316684 | G152: 17.90704179 | H152: 5.512237366 | I152: 0.7680741427 | J152: 4.359355062 | K152: 7.305241773 | L152: 6.77589254 | M152: 11.38622192 | N152: 10.52697983 | O152: 9.201989579 | P152: -5.240311569 | Q152: -10.01284699 | R152: 23.13956095 | S152: 27.91695114 | T152: 27.13146308 | U152: 28.9857341 | V152: 25.47389012 | W152: 22.37472767 | X152: 9.350567054 | Y152: 3.815219811 | Z152: 19.13851333 | AA152: 25.81008212 | AB152: 25.06616119 | AC152: 26.01011885 | AD152: 20.22426026 | AE152: 16.58321551 | AF152: 6.551927565 | AG152: 2.925867714 | AH152: 23.40923705 | AI152: 27.89514869 | AJ152: 26.48365616 | AK152: 22.43452382 | AL152: 14.61409283 | AM152: 12.54090724 | AN152: 2.969531299 | AO152: 0.8322066626 | AP152: 19.96912239 | AQ152: 23.08376533 | AR152: 17.90351075 | AS152: 15.6974401 | AT152: 11.00267228 | AU152: 9.281729744 | AV152: 1.680399179 | AW152: 0.4984176 | AX152: 14.89240254 | AY152: 17.05569644 | AZ152: 12.72698936 | BA152: 9.9719026 | BB152: 7.457858912 | BC152: 7.637566906 | BD152: 2.588172665 | BE152: 0.9870343685 | BF152: 9.870989249 | BG152: 10.86777554 | BH152: 10.05467822 | BI152: 8.575362366 | BJ152: 6.316929319 | BK152: 6.266265606 | BL152: 2.639540629 | BM152: 0.7323594694 | BN152: 6.662234195 | BO152: 7.550004986 | BP152: 6.058384298 | BQ152: 5.492815026 | BR152: 4.878075315 | BS152: 3.567590686 | BT152: 0.5155739457 | BU152: -0.338555801 | BV152: 3.231098732 | BW152: 4.763761625 | BX152: 5.096500832 | BY152: 3.691310696 | BZ152: 2.392299494 | CA152: 1.838989413 | CB152: -0.9130195065 | CC152: -1.150828238 | CD152: 1.931318071 | CE152: 2.335877875 | CF152: 2.623026587 | CG152: 3.094604385 | CH152: -0.5784577236 | CI152: -0.3746160792 | CJ152: -1.387587112 | CK152: 0.2872530455 | CL152: -1.726332018 | CM152: -0.3956686303 | CN152: 1.403794675 | CO152: 2.403472964 | CP152: -0.4491591297 | CQ152: -0.2360644048 | CR152: 0.249855994 | CS152: 0.1247698665 | CT152: -3.064116169 | CU152: -1.425297165 | CV152: 1.381281454 | CW152: 2.310550909 | CX152: -0.7953508413 | CY152: -0.2187287358 | CZ152: -0.1678530957 | DA152: -0.2179820989 | DB152: -4.226352627 | DC152: -3.515355449 | DD152: 1.612614985 | DE152: 2.686122292 | DF152: 0.07076095986 | DG152: 0.5508060764 | DH152: -0.6246416151 | DI152: -1.121608327
A153: 35 | B153: 14.26841138 | C153: 17.49348159 | D153: 17.2540997 | E153: 25.49679948 | F153: 31.22788948 | G153: 29.5965939 | H153: 16.80914978 | I153: 11.25296354 | J153: 9.197928722 | K153: 13.31110392 | L153: 13.58715089 | M153: 19.50573803 | N153: 20.22811408 | O153: 18.38947517 | P153: 3.304978287 | Q153: -2.011762487 | R153: 20.27286828 | S153: 25.2366862 | T153: 25.50426259 | U153: 28.90168365 | V153: 27.61288899 | W153: 24.0827899 | X153: 11.03392181 | Y153: 5.406723557 | Z153: 17.25633961 | AA153: 24.00871635 | AB153: 24.91984645 | AC153: 27.02531349 | AD153: 22.54645088 | AE153: 18.18604923 | AF153: 8.337284651 | AG153: 4.46502211 | AH153: 21.89077819 | AI153: 26.48365616 | AJ153: 27.78858014 | AK153: 24.67251728 | AL153: 16.50179786 | AM153: 14.71386015 | AN153: 4.279393188 | AO153: 2.152974667 | AP153: 20.59970938 | AQ153: 24.1656666 | AR153: 19.95102052 | AS153: 17.99190082 | AT153: 12.9381637 | AU153: 10.79150284 | AV153: 2.349900954 | AW153: 1.204142674 | AX153: 15.72608943 | AY153: 18.39412616 | AZ153: 14.57052054 | BA153: 12.13957199 | BB153: 9.017048607 | BC153: 8.877978525 | BD153: 3.115309701 | BE153: 1.585656178 | BF153: 11.30997856 | BG153: 12.49748819 | BH153: 11.83722808 | BI153: 10.40776899 | BJ153: 7.445482347 | BK153: 7.30922927 | BL153: 3.105298572 | BM153: 1.270136896 | BN153: 7.774255248 | BO153: 9.136693088 | BP153: 7.851600632 | BQ153: 7.029343151 | BR153: 6.217336438 | BS153: 4.281926537 | BT153: 1.179322704 | BU153: 0.4265855912 | BV153: 5.42955793 | BW153: 7.009379581 | BX153: 7.190474884 | BY153: 5.388002208 | BZ153: 3.394134553 | CA153: 2.472010315 | CB153: 0.1727469906 | CC153: -0.1895952263 | CD153: 4.042823418 | CE153: 4.235763838 | CF153: 3.984111351 | CG153: 4.071096176 | CH153: 0.615398316 | CI153: 0.6010736476 | CJ153: 0.09636017086 | CK153: 1.636151979 | CL153: 0.2601181753 | CM153: 1.444277717 | CN153: 2.904195683 | CO153: 3.06488726 | CP153: 0.7184342029 | CQ153: 1.281639668 | CR153: 1.28034854 | CS153: 1.11570044 | CT153: -1.776870204 | CU153: -0.3703432948 | CV153: 1.893756368 | CW153: 2.5529063 | CX153: 0.6508358533 | CY153: 0.9625159877 | CZ153: 0.3551187498 | DA153: 0.4133221905 | DB153: -3.302733485 | DC153: -2.355231746 | DD153: 2.080021072 | DE153: 3.087995507 | DF153: 0.9521869677 | DG153: 1.242519483 | DH153: 0.3605229008 | DI153: -0.3000404244
A154: 36 | B154: 24.04715185 | C154: 27.56946504 | D154: 29.35597469 | E154: 37.11075054 | F154: 45.4848959 | G154: 44.46485627 | H154: 32.17011423 | I154: 25.53787592 | J154: 13.49582318 | K154: 17.79361494 | L154: 18.63192837 | M154: 25.66000485 | N154: 29.81598776 | O154: 28.32036328 | P154: 13.43009305 | Q154: 7.289842795 | R154: 14.5936239 | S154: 19.13559525 | T154: 20.08360562 | U154: 25.60913247 | V154: 28.79189869 | W154: 25.59004921 | X154: 12.26631768 | Y154: 6.301768352 | Z154: 13.43141352 | AA154: 19.32150783 | AB154: 21.25597873 | AC154: 26.39198611 | AD154: 24.82636686 | AE154: 20.03467971 | AF154: 8.972387333 | AG154: 4.893001532 | AH154: 17.7651221 | AI154: 22.43452382 | AJ154: 24.67251728 | AK154: 25.74903396 | AL154: 18.62635305 | AM154: 17.2001071 | AN154: 5.04113885 | AO154: 2.249564697 | AP154: 18.99221163 | AQ154: 23.22009666 | AR154: 20.09948062 | AS154: 20.22833905 | AT154: 14.8618752 | AU154: 12.47625305 | AV154: 1.983445714 | AW154: 0.3861547161 | AX154: 15.10430395 | AY154: 18.58292421 | AZ154: 15.69028021 | BA154: 14.04498274 | BB154: 10.69716739 | BC154: 9.58894962 | BD154: 2.294842191 | BE154: 0.8257934106 | BF154: 12.22277147 | BG154: 13.66055931 | BH154: 13.17317824 | BI154: 12.01099721 | BJ154: 8.296804869 | BK154: 7.868590697 | BL154: 2.111922681 | BM154: 0.4734525413 | BN154: 8.537404522 | BO154: 10.42691093 | BP154: 9.272985289 | BQ154: 8.452992171 | BR154: 7.059934069 | BS154: 4.501858369 | BT154: 1.433650368 | BU154: 0.3212168716 | BV154: 6.671989381 | BW154: 7.869030854 | BX154: 8.108251348 | BY154: 6.562673919 | BZ154: 4.02472807 | CA154: 2.685838635 | CB154: 1.437259656 | CC154: 0.2233650573 | CD154: 5.395240348 | CE154: 5.484934584 | CF154: 4.882780106 | CG154: 4.770011856 | CH154: 1.348201203 | CI154: 1.559584206 | CJ154: 1.438726847 | CK154: 2.625204549 | CL154: 1.737759801 | CM154: 2.937442216 | CN154: 4.134757564 | CO154: 3.881266199 | CP154: 1.587343447 | CQ154: 2.86601939 | CR154: 1.995662518 | CS154: 1.996122238 | CT154: -1.267672016 | CU154: 0.2569050284 | CV154: 2.553312223 | CW154: 2.673856581 | CX154: 2.453553061 | CY154: 2.594569615 | CZ154: 1.227177562 | DA154: 1.275213374 | DB154: -3.164318749 | DC154: -2.107266797 | DD154: 1.830730762 | DE154: 2.914035639 | DF154: 2.271895334 | DG154: 2.204883861 | DH154: 1.676900745 | DI154: -0.1090904924
A155: 37 | B155: 21.24811752 | C155: 23.93276806 | D155: 26.30904682 | E155: 32.18012405 | F155: 39.69106461 | G155: 39.48092937 | H155: 30.78128489 | I155: 24.66244551 | J155: 13.89189708 | K155: 16.9675646 | L155: 18.65788264 | M155: 23.92278041 | N155: 28.23210754 | O155: 27.58753268 | P155: 17.19482945 | Q155: 11.95918322 | R155: 7.840953069 | S155: 10.99167129 | T155: 12.20707873 | U155: 17.17793296 | V155: 21.43155675 | W155: 19.59445186 | X155: 10.33782867 | Y155: 5.628438188 | Z155: 8.352893926 | AA155: 12.10462971 | AB155: 14.0191941 | AC155: 19.26312278 | AD155: 19.39052446 | AE155: 16.26787131 | AF155: 7.598285656 | AG155: 4.414087782 | AH155: 11.74337094 | AI155: 14.61409283 | AJ155: 16.50179786 | AK155: 18.62635305 | AL155: 15.23869826 | AM155: 14.4969879 | AN155: 4.516971081 | AO155: 2.135012996 | AP155: 13.02848165 | AQ155: 16.01146089 | AR155: 14.51469623 | AS155: 15.70900156 | AT155: 12.52042591 | AU155: 10.70462952 | AV155: 1.771241736 | AW155: 0.3058087647 | AX155: 10.81801888 | AY155: 13.3368756 | AZ155: 11.8923752 | BA155: 11.56292185 | BB155: 9.478013728 | BC155: 8.136018414 | BD155: 1.783267154 | BE155: 0.3456364616 | BF155: 9.143989589 | BG155: 10.51327106 | BH155: 10.25757793 | BI155: 10.07641155 | BJ155: 7.364053283 | BK155: 6.675562804 | BL155: 1.220505433 | BM155: 0.2184711624 | BN155: 6.671355229 | BO155: 8.526431895 | BP155: 7.876573516 | BQ155: 7.542799778 | BR155: 6.416522199 | BS155: 3.978108586 | BT155: 1.285233632 | BU155: 0.1596521538 | BV155: 5.452206784 | BW155: 6.679277404 | BX155: 7.005387845 | BY155: 6.090513158 | BZ155: 3.594171936 | CA155: 2.659565495 | CB155: 1.793811688 | CC155: 0.1503436462 | CD155: 4.960893972 | CE155: 5.124583181 | CF155: 4.621172569 | CG155: 4.282211824 | CH155: 1.669565446 | CI155: 1.73402303 | CJ155: 1.793247309 | CK155: 2.195936608 | CL155: 2.382349662 | CM155: 3.310979421 | CN155: 3.830746597 | CO155: 3.566728956 | CP155: 1.762332956 | CQ155: 2.801815793 | CR155: 1.79203541 | CS155: 1.856414418 | CT155: -0.3226504796 | CU155: 0.5040375911 | CV155: 2.452632643 | CW155: 1.993675943 | CX155: 2.592352527 | CY155: 2.799733687 | CZ155: 1.259910905 | DA155: 1.173729123 | DB155: -2.153914973 | DC155: -1.483856317 | DD155: 1.157702839 | DE155: 1.7793478 | DF155: 2.238556205 | DG155: 1.873076157 | DH155: 1.739046037 | DI155: -0.0869887371
A156: 38 | B156: 19.35720261 | C156: 22.06034627 | D156: 24.50621223 | E156: 29.8625828 | F156: 37.71519285 | G156: 37.8675058 | H156: 30.97588976 | I156: 25.06007365 | J156: 11.85346107 | K156: 15.2146797 | L156: 16.89657281 | M156: 22.12293563 | N156: 26.39089452 | O156: 26.51215389 | P156: 17.87364626 | Q156: 13.10671843 | R156: 6.273296056 | S156: 9.505273798 | T156: 11.5063258 | U156: 15.86053298 | V156: 19.81311538 | W156: 19.12895475 | X156: 10.86598133 | Y156: 6.710337824 | Z156: 7.661208233 | AA156: 11.11519241 | AB156: 13.12116928 | AC156: 17.77565261 | AD156: 18.5805278 | AE156: 16.35453988 | AF156: 8.860369307 | AG156: 5.881124882 | AH156: 9.98791682 | AI156: 12.54090724 | AJ156: 14.71386015 | AK156: 17.2001071 | AL156: 14.4969879 | AM156: 15.44726752 | AN156: 6.105657822 | AO156: 3.587476005 | AP156: 11.92456112 | AQ156: 14.54943506 | AR156: 13.69480745 | AS156: 14.79937289 | AT156: 12.41113328 | AU156: 11.31797377 | AV156: 3.104999265 | AW156: 1.241687097 | AX156: 10.04734292 | AY156: 12.45053614 | AZ156: 11.18653601 | BA156: 10.95252502 | BB156: 9.692973415 | BC156: 8.603964101 | BD156: 2.866425313 | BE156: 1.099462556 | BF156: 8.45657505 | BG156: 9.662678869 | BH156: 9.570645931 | BI156: 9.728230977 | BJ156: 7.830140528 | BK156: 7.584699147 | BL156: 2.078619416 | BM156: 0.9646874294 | BN156: 6.2087925 | BO156: 8.167547356 | BP156: 7.458049321 | BQ156: 7.720127662 | BR156: 7.159712793 | BS156: 4.94822462 | BT156: 1.983104347 | BU156: 0.6133921777 | BV156: 5.377748504 | BW156: 6.444321543 | BX156: 7.019189215 | BY156: 6.759056368 | BZ156: 4.576791692 | CA156: 3.644614266 | CB156: 2.363626031 | CC156: 0.5062383766 | CD156: 5.109592082 | CE156: 5.497373423 | CF156: 5.086963117 | CG156: 5.107255337 | CH156: 2.57516749 | CI156: 2.320110143 | CJ156: 2.450956134 | CK156: 2.80752349 | CL156: 2.928150989 | CM156: 3.683173006 | CN156: 4.149179067 | CO156: 4.22135016 | CP156: 1.846826818 | CQ156: 3.109029148 | CR156: 2.34703113 | CS156: 2.909299549 | CT156: 0.3296688661 | CU156: 1.027697386 | CV156: 2.958549216 | CW156: 2.420227299 | CX156: 2.993948607 | CY156: 3.393016554 | CZ156: 2.045930416 | DA156: 2.408102438 | DB156: -1.792034106 | DC156: -1.204213099 | DD156: 1.268615908 | DE156: 1.831188525 | DF156: 2.846038214 | DG156: 2.565185705 | DH156: 2.918080194 | DI156: 1.172271387
A157: 39 | B157: 4.108772645 | C157: 5.525041047 | D157: 6.064795593 | E157: 6.183251325 | F157: 7.991451911 | G157: 7.574592488 | H157: 9.411755412 | I157: 10.21193233 | J157: 3.218074647 | K157: 5.269350852 | L157: 6.067302206 | M157: 6.443210717 | N157: 8.112485333 | O157: 8.171660054 | P157: 9.947933275 | Q157: 10.99099214 | R157: -0.04840619576 | S157: 1.331309604 | T157: 1.871339982 | U157: 2.487034344 | V157: 4.250882093 | W157: 4.248263974 | X157: 6.781733914 | Y157: 7.748481279 | Z157: 1.66900074 | AA157: 2.150497397 | AB157: 3.155105446 | AC157: 4.370859138 | AD157: 5.42493628 | AE157: 4.52409641 | AF157: 7.908194402 | AG157: 7.8565956 | AH157: 2.639076345 | AI157: 2.969531299 | AJ157: 4.279393188 | AK157: 5.04113885 | AL157: 4.516971081 | AM157: 6.105657822 | AN157: 8.064889679 | AO157: 7.109727249 | AP157: 4.873570715 | AQ157: 5.672406296 | AR157: 6.140314162 | AS157: 5.866746416 | AT157: 5.748284164 | AU157: 5.998805284 | AV157: 5.927261823 | AW157: 4.84198765 | AX157: 4.435054258 | AY157: 6.163445559 | AZ157: 4.515179805 | BA157: 4.773915235 | BB157: 4.848323956 | BC157: 5.254726551 | BD157: 4.909805752 | BE157: 4.021049009 | BF157: 5.501690549 | BG157: 5.882315588 | BH157: 4.410676728 | BI157: 4.153405228 | BJ157: 4.262970438 | BK157: 5.076462272 | BL157: 4.273800911 | BM157: 3.388736923 | BN157: 3.639792752 | BO157: 4.4309696 | BP157: 3.515219163 | BQ157: 4.005676767 | BR157: 4.798817693 | BS157: 4.253065925 | BT157: 3.521903683 | BU157: 2.565025618 | BV157: 2.889092752 | BW157: 3.772134625 | BX157: 3.634242208 | BY157: 4.105412453 | BZ157: 3.762872416 | CA157: 3.701654062 | CB157: 2.478739176 | CC157: 1.34320167 | CD157: 2.845272015 | CE157: 3.092709427 | CF157: 2.833834451 | CG157: 3.431197411 | CH157: 2.868531872 | CI157: 2.392039313 | CJ157: 1.184935522 | CK157: 2.089665077 | CL157: 2.072583721 | CM157: 2.285891678 | CN157: 2.6826682 | CO157: 3.535011235 | CP157: 1.26273704 | CQ157: 2.177837348 | CR157: 0.7939175594 | CS157: 2.181109509 | CT157: 0.8135290036 | CU157: 0.9608160032 | CV157: 2.193832983 | CW157: 2.841059548 | CX157: 1.559597247 | CY157: 1.753122262 | CZ157: 0.7354725213 | DA157: 1.933646665 | DB157: -0.1540719398 | DC157: 0.233730594 | DD157: 1.805335327 | DE157: 2.208770937 | DF157: 1.518247911 | DG157: 2.033619059 | DH157: 2.377268944 | DI157: 1.966101567
A158: 40 | B158: 0.002288816929 | C158: 1.474490426 | D158: 1.94472167 | E158: 1.114992929 | F158: 1.127405359 | G158: 0.3787731184 | H158: 3.111972658 | I158: 4.924223342 | J158: 1.361787385 | K158: 3.259337256 | L158: 4.216114899 | M158: 3.610621748 | N158: 3.611925917 | O158: 3.38778814 | P158: 6.342500816 | Q158: 8.454345247 | R158: -0.7816375023 | S158: 0.3080675858 | T158: 0.9804483141 | U158: 0.6621332189 | V158: 1.253140311 | W158: 1.090833194 | X158: 5.067124421 | Y158: 6.899234341 | Z158: 0.5478912582 | AA158: 0.5851676741 | AB158: 1.27672621 | AC158: 1.818409623 | AD158: 2.528233049 | AE158: 1.703939433 | AF158: 6.583022219 | AG158: 7.193914631 | AH158: 0.7331354501 | AI158: 0.8322066626 | AJ158: 2.152974667 | AK158: 2.249564697 | AL158: 2.135012996 | AM158: 3.587476005 | AN158: 7.109727249 | AO158: 7.468259661 | AP158: 2.793820584 | AQ158: 3.483119647 | AR158: 4.288913623 | AS158: 3.862574194 | AT158: 3.922080174 | AU158: 4.163847058 | AV158: 5.832283745 | AW158: 5.726026561 | AX158: 2.993958388 | AY158: 4.417093892 | AZ158: 3.099931916 | BA158: 3.265561403 | BB158: 3.430714869 | BC158: 3.988077656 | BD158: 5.343272466 | BE158: 4.917402537 | BF158: 4.783252434 | BG158: 4.995796147 | BH158: 3.506304515 | BI158: 2.943914156 | BJ158: 3.319283392 | BK158: 4.04962466 | BL158: 4.74460664 | BM158: 4.109411036 | BN158: 3.036122178 | BO158: 3.926886037 | BP158: 2.975533738 | BQ158: 3.195263423 | BR158: 3.883114859 | BS158: 3.712011121 | BT158: 4.0508571 | BU158: 3.161299597 | BV158: 2.673184934 | BW158: 3.396125041 | BX158: 3.139806889 | BY158: 3.446495316 | BZ158: 3.380608688 | CA158: 3.541116051 | CB158: 2.569523046 | CC158: 1.867700698 | CD158: 2.779099774 | CE158: 2.818426996 | CF158: 2.44838203 | CG158: 2.912760814 | CH158: 2.955211521 | CI158: 2.691586761 | CJ158: 1.280234426 | CK158: 2.111665107 | CL158: 2.175240095 | CM158: 2.074698432 | CN158: 2.193945142 | CO158: 3.028065673 | CP158: 1.670764629 | CQ158: 2.153509376 | CR158: 0.6518954908 | CS158: 2.087850978 | CT158: 1.058385465 | CU158: 0.9261687924 | CV158: 1.7986482 | CW158: 2.683980194 | CX158: 1.418746975 | CY158: 1.50180625 | CZ158: 0.583015795 | DA158: 1.774423257 | DB158: 0.6771833314 | DC158: 1.042500684 | DD158: 2.005323152 | DE158: 2.29175131 | DF158: 1.187752528 | DG158: 1.730231484 | DH158: 2.119561852 | DI158: 2.025250857
A159: 41 | B159: 9.062757455 | C159: 10.93551572 | D159: 10.78413461 | E159: 16.27171372 | F159: 21.83456002 | G159: 21.01900728 | H159: 12.57571225 | I159: 8.858906029 | J159: 3.624837518 | K159: 6.017614012 | L159: 6.378769109 | M159: 10.42783167 | N159: 13.18078285 | O159: 12.21907578 | P159: 2.144025132 | Q159: -1.361257893 | R159: 14.22393138 | S159: 17.30577187 | T159: 17.69393826 | U159: 19.93942971 | V159: 20.45102953 | W159: 18.15547657 | X159: 9.356761532 | Y159: 5.730873505 | Z159: 13.27127785 | AA159: 17.22747933 | AB159: 18.18473136 | AC159: 20.01577773 | AD159: 17.56370621 | AE159: 14.10238053 | AF159: 7.419202359 | AG159: 4.77520245 | AH159: 17.17070754 | AI159: 19.96912239 | AJ159: 20.59970938 | AK159: 18.99221163 | AL159: 13.02848165 | AM159: 11.92456112 | AN159: 4.873570715 | AO159: 2.793820584 | AP159: 17.83934595 | AQ159: 19.67814365 | AR159: 16.00647081 | AS159: 15.00565985 | AT159: 10.85247894 | AU159: 9.190033282 | AV159: 2.444118701 | AW159: 1.201170473 | AX159: 14.03387905 | AY159: 15.68415322 | AZ159: 11.68378182 | BA159: 9.81466479 | BB159: 7.616305688 | BC159: 7.112015414 | BD159: 2.219766061 | BE159: 1.045314103 | BF159: 10.75458116 | BG159: 10.83872126 | BH159: 9.667642211 | BI159: 8.485943962 | BJ159: 6.184295312 | BK159: 5.987088628 | BL159: 2.116442279 | BM159: 0.5934947944 | BN159: 6.904022273 | BO159: 7.885780299 | BP159: 6.546876518 | BQ159: 6.179322189 | BR159: 5.174154326 | BS159: 3.762116649 | BT159: 0.8428424884 | BU159: -0.04515392384 | BV159: 4.866330294 | BW159: 5.677407459 | BX159: 6.043844115 | BY159: 4.455186718 | BZ159: 2.813483869 | CA159: 2.231650629 | CB159: -0.2741617952 | CC159: -0.7178085277 | CD159: 3.654227949 | CE159: 3.666149034 | CF159: 3.321500154 | CG159: 3.557771922 | CH159: 0.3155189564 | CI159: 0.3454427925 | CJ159: -1.039369048 | CK159: 0.4749575525 | CL159: 0.8903109865 | CM159: 1.337629933 | CN159: 2.525577109 | CO159: 2.837959864 | CP159: -0.1578905472 | CQ159: 0.8972208009 | CR159: -0.3662935235 | CS159: 0.6699934466 | CT159: -1.456244773 | CU159: -0.3141616424 | CV159: 2.314035975 | CW159: 2.596470115 | CX159: 0.02053414391 | CY159: 0.2412589107 | CZ159: -0.535517301 | DA159: -0.2870662233 | DB159: -2.653276139 | DC159: -2.189390983 | DD159: 2.094895122 | DE159: 3.05334634 | DF159: -0.07447718997 | DG159: 0.5907557131 | DH159: -0.06185185408 | DI159: -0.6890101897
A160: 42 | B160: 14.27382825 | C160: 17.35024469 | D160: 17.6964928 | E160: 24.00024773 | F160: 30.0269981 | G160: 28.3949435 | H160: 18.36175016 | I160: 13.93169902 | J160: 5.315631578 | K160: 9.186288034 | L160: 9.189392609 | M160: 13.86143136 | N160: 16.71383523 | O160: 15.23439972 | P160: 3.181828198 | Q160: -1.106345635 | R160: 15.77585751 | S160: 20.38807989 | T160: 20.70036646 | U160: 23.74154588 | V160: 24.76947998 | W160: 21.39510848 | X160: 11.26032297 | Y160: 6.835704348 | Z160: 14.96820737 | AA160: 20.27232835 | AB160: 21.01955372 | AC160: 24.23284533 | AD160: 21.5793377 | AE160: 16.72426206 | AF160: 8.839857986 | AG160: 5.80718827 | AH160: 19.09824939 | AI160: 23.08376533 | AJ160: 24.1656666 | AK160: 23.22009666 | AL160: 16.01146089 | AM160: 14.54943506 | AN160: 5.672406296 | AO160: 3.483119647 | AP160: 19.67814365 | AQ160: 24.07485534 | AR160: 19.15888837 | AS160: 18.49493192 | AT160: 13.11463148 | AU160: 10.90760063 | AV160: 2.821978249 | AW160: 1.467233377 | AX160: 15.68521742 | AY160: 18.92574595 | AZ160: 14.52402235 | BA160: 12.47318956 | BB160: 9.31985713 | BC160: 8.642737051 | BD160: 2.967231071 | BE160: 1.496298418 | BF160: 13.06889329 | BG160: 13.95678309 | BH160: 12.52687796 | BI160: 10.58262482 | BJ160: 7.424276555 | BK160: 7.091830787 | BL160: 2.618897587 | BM160: 0.9583980735 | BN160: 8.542358735 | BO160: 10.19396218 | BP160: 8.555478351 | BQ160: 7.404671958 | BR160: 6.210068956 | BS160: 4.10625299 | BT160: 1.432996001 | BU160: 0.3402502429 | BV160: 6.33300679 | BW160: 7.237024921 | BX160: 7.17385064 | BY160: 5.484185338 | BZ160: 3.43564039 | CA160: 2.516423145 | CB160: 0.2996511299 | CC160: -0.5455023463 | CD160: 4.655398859 | CE160: 4.463111828 | CF160: 3.709251825 | CG160: 4.131798731 | CH160: 0.7038444621 | CI160: 0.7207650793 | CJ160: -0.5047868363 | CK160: 1.079574302 | CL160: 0.9062844508 | CM160: 1.683734918 | CN160: 3.100421631 | CO160: 3.566797425 | CP160: 0.4010574574 | CQ160: 1.492351676 | CR160: 0.3532955212 | CS160: 0.9311357208 | CT160: -1.927261127 | CU160: -0.425466614 | CV160: 2.555110998 | CW160: 3.134856589 | CX160: 0.57357361 | CY160: 0.8631402517 | CZ160: 0.04082897277 | DA160: 0.1615308095 | DB160: -3.156149433 | DC160: -2.155001346 | DD160: 2.600091141 | DE160: 3.811778108 | DF160: 0.7253026099 | DG160: 1.227616741 | DH160: 0.3088875822 | DI160: -0.3896798854
A161: 43 | B161: 14.52279186 | C161: 17.56213795 | D161: 18.44454665 | E161: 23.98828752 | F161: 30.08032199 | G161: 28.78373198 | H161: 19.9360617 | I161: 15.71536329 | J161: 10.2424049 | K161: 13.76327111 | L161: 14.45129405 | M161: 19.34662482 | N161: 22.08292177 | O161: 20.79982273 | P161: 10.14359126 | Q161: 6.401350147 | R161: 12.20797697 | S161: 15.87911478 | T161: 16.08432906 | U161: 19.81308506 | V161: 21.95913916 | W161: 19.11419514 | X161: 10.59053721 | Y161: 6.883549751 | Z161: 11.53205412 | AA161: 15.6663461 | AB161: 17.0880894 | AC161: 21.08561315 | AD161: 19.35528255 | AE161: 15.4320045 | AF161: 8.814510479 | AG161: 5.983107652 | AH161: 14.55704391 | AI161: 17.90351075 | AJ161: 19.95102052 | AK161: 20.09948062 | AL161: 14.51469623 | AM161: 13.69480745 | AN161: 6.140314162 | AO161: 4.288913623 | AP161: 16.00647081 | AQ161: 19.15888837 | AR161: 17.36018604 | AS161: 16.63213816 | AT161: 12.60422661 | AU161: 10.50191566 | AV161: 3.522915066 | AW161: 2.414094118 | AX161: 13.33799458 | AY161: 16.24604604 | AZ161: 13.36467854 | BA161: 11.86372782 | BB161: 9.233866735 | BC161: 8.565901271 | BD161: 3.60223594 | BE161: 2.303093018 | BF161: 11.64457849 | BG161: 12.6920774 | BH161: 11.44823451 | BI161: 10.20847694 | BJ161: 7.340695612 | BK161: 7.235093773 | BL161: 3.334805614 | BM161: 1.739523689 | BN161: 7.958434912 | BO161: 9.433482219 | BP161: 8.13615796 | BQ161: 7.511074884 | BR161: 6.585620776 | BS161: 4.59451046 | BT161: 2.262588131 | BU161: 1.093632594 | BV161: 6.148195257 | BW161: 7.328613789 | BX161: 7.256158061 | BY161: 5.96909305 | BZ161: 3.954572245 | CA161: 3.089809607 | CB161: 1.585702802 | CC161: 0.3741974408 | CD161: 5.634651902 | CE161: 5.442721235 | CF161: 4.622313391 | CG161: 4.508023828 | CH161: 1.73385251 | CI161: 1.702368561 | CJ161: 0.8530701093 | CK161: 1.733242158 | CL161: 2.484691404 | CM161: 3.196042012 | CN161: 3.773990458 | CO161: 3.981193598 | CP161: 1.424290998 | CQ161: 2.354630524 | CR161: 1.027771397 | CS161: 1.436833193 | CT161: -0.3837439593 | CU161: 0.5670416786 | CV161: 2.807284827 | CW161: 3.122584031 | CX161: 1.533777958 | CY161: 1.720804949 | CZ161: 0.5066821202 | DA161: 0.570806163 | DB161: -2.129813274 | DC161: -1.271407808 | DD161: 2.393704737 | DE161: 3.189255116 | DF161: 1.332788531 | DG161: 1.442843457 | DH161: 0.9417992601 | DI161: -0.2532683526
A162: 44 | B162: 22.05864922 | C162: 25.031304 | D162: 27.41744456 | E162: 32.77361852 | F162: 40.61523248 | G162: 39.77480629 | H162: 30.90820338 | I162: 25.70962522 | J162: 15.16623894 | K162: 18.78026131 | L162: 19.98632112 | M162: 25.1270235 | N162: 29.85730384 | O162: 28.91354833 | P162: 18.15510129 | Q162: 13.66452073 | R162: 8.828896118 | S162: 11.91274437 | T162: 12.88884654 | U162: 17.80268217 | V162: 22.36382481 | W162: 19.67593211 | X162: 10.91913373 | Y162: 6.970533271 | Z162: 9.575050437 | AA162: 12.86863844 | AB162: 14.81563914 | AC162: 20.38773461 | AD162: 20.41457441 | AE162: 16.09240774 | AF162: 8.560097066 | AG162: 5.673938043 | AH162: 12.74221553 | AI162: 15.6974401 | AJ162: 17.99190082 | AK162: 20.22833905 | AL162: 15.70900156 | AM162: 14.79937289 | AN162: 5.866746416 | AO162: 3.862574194 | AP162: 15.00565985 | AQ162: 18.49493192 | AR162: 16.63213816 | AS162: 17.94230979 | AT162: 13.40851557 | AU162: 11.23183111 | AV162: 2.780491975 | AW162: 1.556004261 | AX162: 12.95175966 | AY162: 15.92760314 | AZ162: 13.66880492 | BA162: 12.7736721 | BB162: 10.08338298 | BC162: 8.712459892 | BD162: 2.793951001 | BE162: 1.470828971 | BF162: 12.06545932 | BG162: 13.07598177 | BH162: 12.21133716 | BI162: 11.10256186 | BJ162: 7.936805266 | BK162: 7.275180673 | BL162: 2.202898263 | BM162: 0.8311731085 | BN162: 8.282974155 | BO162: 10.06321401 | BP162: 9.143363914 | BQ162: 8.331890281 | BR162: 6.867712572 | BS162: 4.560536201 | BT162: 2.06412162 | BU162: 0.5261540183 | BV162: 7.031695546 | BW162: 7.902199137 | BX162: 8.079846543 | BY162: 6.660222514 | BZ162: 4.084599217 | CA162: 3.129634369 | CB162: 1.99898815 | CC162: 0.2077834959 | CD162: 6.310639963 | CE162: 6.100782838 | CF162: 5.229046807 | CG162: 4.984779178 | CH162: 2.038328413 | CI162: 2.231694319 | CJ162: 1.522043696 | CK162: 2.310286815 | CL162: 3.240857178 | CM162: 3.999883647 | CN162: 4.493612759 | CO162: 4.222916141 | CP162: 2.021123161 | CQ162: 3.277810812 | CR162: 1.449897056 | CS162: 2.257301681 | CT162: 0.0220665427 | CU162: 0.8853417759 | CV162: 3.269242421 | CW162: 3.1069027 | CX162: 2.591967797 | CY162: 2.683530256 | CZ162: 1.29052106 | DA162: 1.585396974 | DB162: -1.532186871 | DC162: -0.7341624833 | DD162: 2.495279954 | DE162: 3.394912164 | DF162: 2.153952793 | DG162: 2.03390728 | DH162: 2.16440897 | DI162: 0.2822678588
A163: 45 | B163: 14.74358445 | C163: 17.03724245 | D163: 19.00764452 | E163: 23.35362337 | F163: 29.29262989 | G163: 29.00816972 | H163: 23.18440807 | I163: 19.00176206 | J163: 12.25810924 | K163: 14.80249833 | L163: 16.59989975 | M163: 20.4655596 | N163: 24.073648 | O163: 23.54949719 | P163: 16.72422033 | Q163: 13.31390658 | R163: 5.29864184 | S163: 7.77941552 | T163: 8.718893359 | U163: 12.77490454 | V163: 16.57409741 | W163: 15.18904365 | X163: 9.602925749 | Y163: 6.484760896 | Z163: 6.568741566 | AA163: 8.967288683 | AB163: 10.86160095 | AC163: 15.28753776 | AD163: 15.73870727 | AE163: 13.0309149 | AF163: 8.041385941 | AG163: 5.543120092 | AH163: 9.162820814 | AI163: 11.00267228 | AJ163: 12.9381637 | AK163: 14.8618752 | AL163: 12.52042591 | AM163: 12.41113328 | AN163: 5.748284164 | AO163: 3.922080174 | AP163: 10.85247894 | AQ163: 13.11463148 | AR163: 12.60422661 | AS163: 13.40851557 | AT163: 11.58199924 | AU163: 9.651845135 | AV163: 3.243712005 | AW163: 1.963682986 | AX163: 9.53749232 | AY163: 11.89986635 | AZ163: 10.38166213 | BA163: 10.31357602 | BB163: 8.80332136 | BC163: 7.654824977 | BD163: 2.875800659 | BE163: 1.515997567 | BF163: 8.939767453 | BG163: 10.17829781 | BH163: 9.226239953 | BI163: 9.097230233 | BJ163: 6.867194165 | BK163: 6.579070586 | BL163: 2.177313072 | BM163: 1.214585809 | BN163: 6.44944269 | BO163: 8.212290793 | BP163: 7.219092269 | BQ163: 7.122116204 | BR163: 6.335083354 | BS163: 4.249016479 | BT163: 2.222853356 | BU163: 0.8448134141 | BV163: 5.313478068 | BW163: 6.513804743 | BX163: 6.640955371 | BY163: 5.997569584 | BZ163: 3.911968298 | CA163: 3.06131351 | CB163: 2.230969853 | CC163: 0.4033684452 | CD163: 5.095756151 | CE163: 5.189745016 | CF163: 4.543502447 | CG163: 4.225045197 | CH163: 2.114885101 | CI163: 2.196169402 | CJ163: 1.779216079 | CK163: 2.067373566 | CL163: 2.947743196 | CM163: 3.495678144 | CN163: 3.733802484 | CO163: 3.73723897 | CP163: 1.752465612 | CQ163: 2.782446924 | CR163: 1.553931936 | CS163: 1.718866301 | CT163: 0.4151379201 | CU163: 0.8329356932 | CV163: 2.490489089 | CW163: 2.332101001 | CX163: 2.397265119 | CY163: 2.55245734 | CZ163: 1.135868765 | DA163: 1.10065424 | DB163: -1.331218312 | DC163: -0.774913858 | DD163: 1.470414898 | DE163: 1.900660966 | DF163: 1.727684441 | DG163: 1.493869076 | DH163: 1.82609444 | DI163: 0.2561499145
A164: 46 | B164: 15.41350844 | C164: 17.30764726 | D164: 19.26962602 | E164: 22.62622789 | F164: 27.66484904 | G164: 27.64502926 | H164: 23.52906738 | I164: 19.82008747 | J164: 10.92032019 | K164: 13.3849838 | L164: 15.17318756 | M164: 18.35491501 | N164: 21.33890628 | O164: 21.21644773 | P164: 16.00280447 | Q164: 13.1790294 | R164: 4.295877561 | S164: 6.617956673 | T164: 7.996342872 | U164: 11.04003021 | V164: 14.08739726 | W164: 13.3219934 | X164: 8.980825633 | Y164: 6.378441763 | Z164: 5.360370124 | AA164: 7.551344042 | AB164: 9.363915878 | AC164: 12.86521304 | AD164: 13.4745098 | AE164: 11.60029347 | AF164: 7.859309251 | AG164: 5.774773145 | AH164: 7.577555887 | AI164: 9.281729744 | AJ164: 10.79150284 | AK164: 12.47625305 | AL164: 10.70462952 | AM164: 11.31797377 | AN164: 5.998805284 | AO164: 4.163847058 | AP164: 9.190033282 | AQ164: 10.90760063 | AR164: 10.50191566 | AS164: 11.23183111 | AT164: 9.651845135 | AU164: 9.211536424 | AV164: 3.525454935 | AW164: 2.199447432 | AX164: 7.90248475 | AY164: 9.783023689 | AZ164: 8.436027539 | BA164: 8.529407357 | BB164: 7.767393688 | BC164: 7.230709156 | BD164: 3.267320401 | BE164: 1.942723357 | BF164: 7.063728223 | BG164: 7.912003881 | BH164: 7.566242871 | BI164: 7.616153752 | BJ164: 6.433756795 | BK164: 6.403953268 | BL164: 2.654730288 | BM164: 1.688824112 | BN164: 5.23407927 | BO164: 6.726741012 | BP164: 5.99517839 | BQ164: 6.320138553 | BR164: 6.043562415 | BS164: 4.476734201 | BT164: 2.428320321 | BU164: 1.296827044 | BV164: 4.291669659 | BW164: 5.392729496 | BX164: 5.749216645 | BY164: 5.650963799 | BZ164: 4.01966822 | CA164: 3.556144645 | CB164: 2.445596977 | CC164: 0.9211382858 | CD164: 4.264801491 | CE164: 4.603936669 | CF164: 4.317566546 | CG164: 4.396382055 | CH164: 2.590796001 | CI164: 2.545251479 | CJ164: 1.952580919 | CK164: 2.466120035 | CL164: 2.54077557 | CM164: 3.238716058 | CN164: 3.733365588 | CO164: 3.932605145 | CP164: 2.013384221 | CQ164: 2.923838427 | CR164: 1.734089868 | CS164: 2.615133755 | CT164: 0.6933286199 | CU164: 1.110679715 | CV164: 2.76114169 | CW164: 2.591055205 | CX164: 2.630173434 | CY164: 2.78979983 | CZ164: 1.577118108 | DA164: 2.35532858 | DB164: -0.7316232659 | DC164: -0.3212227404 | DD164: 1.548771013 | DE164: 2.094046434 | DF164: 2.236776666 | DG164: 2.225118372 | DH164: 2.767751872 | DI164: 1.283046214
A165: 47 | B165: 0.1899072488 | C165: 1.4059922 | D165: 1.289149726 | E165: 0.9142284714 | F165: 0.6326022638 | G165: -0.1222880325 | H165: 1.812452831 | I165: 3.0972525 | J165: 3.148999325 | K165: 4.780160249 | L165: 5.383571946 | M165: 4.955098244 | N165: 4.458007636 | O165: 4.287557287 | P165: 6.293876172 | Q165: 7.757871949 | R165: 0.9118307563 | S165: 1.847995353 | T165: 2.030354071 | U165: 1.8311807 | V165: 1.370102768 | W165: 1.419785094 | X165: 4.257119935 | Y165: 5.43176817 | Z165: 1.462371434 | AA165: 1.762787459 | AB165: 2.086521378 | AC165: 2.122008473 | AD165: 2.155361296 | AE165: 1.781673133 | AF165: 5.529360455 | AG165: 5.755510566 | AH165: 1.622557971 | AI165: 1.680399179 | AJ165: 2.349900954 | AK165: 1.983445714 | AL165: 1.771241736 | AM165: 3.104999265 | AN165: 5.927261823 | AO165: 5.832283745 | AP165: 2.444118701 | AQ165: 2.821978249 | AR165: 3.522915066 | AS165: 2.780491975 | AT165: 3.243712005 | AU165: 3.525454935 | AV165: 5.160146245 | AW165: 4.666325841 | AX165: 2.376018898 | AY165: 3.497335743 | AZ165: 2.369805184 | BA165: 2.444134351 | BB165: 2.929053148 | BC165: 3.612177622 | BD165: 4.599201557 | BE165: 3.84839005 | BF165: 3.440366373 | BG165: 3.621072056 | BH165: 2.537954978 | BI165: 2.34236416 | BJ165: 2.884065831 | BK165: 3.738198839 | BL165: 4.026833651 | BM165: 3.219472064 | BN165: 2.176172576 | BO165: 2.786650262 | BP165: 2.051090361 | BQ165: 2.455394548 | BR165: 3.395870728 | BS165: 3.342107005 | BT165: 3.104859719 | BU165: 2.329776319 | BV165: 1.665113664 | BW165: 2.492901149 | BX165: 2.337666543 | BY165: 2.867182057 | BZ165: 2.955379759 | CA165: 2.949591856 | CB165: 1.954893537 | CC165: 1.208484253 | CD165: 2.006479298 | CE165: 2.246737258 | CF165: 2.029784801 | CG165: 2.541512752 | CH165: 2.298547988 | CI165: 1.861933662 | CJ165: 1.12471225 | CK165: 1.650261133 | CL165: 1.590817102 | CM165: 1.617772322 | CN165: 1.878070799 | CO165: 2.66964281 | CP165: 0.9982026214 | CQ165: 1.372995415 | CR165: 0.7816225043 | CS165: 1.764192702 | CT165: 0.8111423739 | CU165: 0.7950821824 | CV165: 1.516489891 | CW165: 2.267994564 | CX165: 0.9453726837 | CY165: 1.141783172 | CZ165: 0.8395452227 | DA165: 1.749328433 | DB165: 0.1646996146 | DC165: 0.4105465924 | DD165: 1.337643953 | DE165: 1.520492386 | DF165: 0.9731573562 | DG165: 1.398452798 | DH165: 2.07992815 | DI165: 1.853793038
A166: 48 | B166: 0.2633547972 | C166: 1.548342267 | D166: 1.778565298 | E166: 0.5060235147 | F166: -1.23383339 | G166: -2.281754201 | H166: -0.3654705927 | I166: 1.443464893 | J166: 2.328791019 | K166: 3.80083352 | L166: 4.708035128 | M166: 3.586633512 | N166: 1.529316395 | O166: 1.067609202 | P166: 3.147078936 | Q166: 5.236078235 | R166: 0.9389672567 | S166: 1.815420467 | T166: 2.230726625 | U166: 1.383726772 | V166: -0.2216389893 | W166: -0.5016212916 | X166: 2.905560496 | Y166: 4.375759554 | Z166: 1.076024353 | AA166: 1.254448392 | AB166: 1.299438969 | AC166: 0.9648289318 | AD166: 0.3845408067 | AE166: 0.05558564716 | AF166: 4.278779576 | AG166: 4.786095523 | AH166: 0.5088822536 | AI166: 0.4984176 | AJ166: 1.204142674 | AK166: 0.3861547161 | AL166: 0.3058087647 | AM166: 1.241687097 | AN166: 4.84198765 | AO166: 5.726026561 | AP166: 1.201170473 | AQ166: 1.467233377 | AR166: 2.414094118 | AS166: 1.556004261 | AT166: 1.963682986 | AU166: 2.199447432 | AV166: 4.666325841 | AW166: 5.282353419 | AX166: 1.273660109 | AY166: 2.357788569 | AZ166: 1.504841052 | BA166: 1.404969079 | BB166: 1.829289655 | BC166: 2.576439055 | BD166: 4.866513856 | BE166: 4.771317982 | BF166: 2.856734358 | BG166: 3.110806079 | BH166: 2.016372073 | BI166: 1.508928318 | BJ166: 2.164076407 | BK166: 2.828436495 | BL166: 4.588500197 | BM166: 4.124069898 | BN166: 1.910862177 | BO166: 2.536601903 | BP166: 1.736322606 | BQ166: 1.947498898 | BR166: 2.622221262 | BS166: 2.823132439 | BT166: 3.802590236 | BU166: 3.257640532 | BV166: 1.515277666 | BW166: 2.280725864 | BX166: 2.147391518 | BY166: 2.336339551 | BZ166: 2.497652238 | CA166: 2.771429303 | CB166: 2.369739976 | CC166: 2.15179635 | CD166: 2.062874834 | CE166: 2.068007392 | CF166: 1.801512807 | CG166: 2.139949277 | CH166: 2.376217784 | CI166: 2.354133635 | CJ166: 1.588200938 | CK166: 1.99425532 | CL166: 1.863091764 | CM166: 1.680238766 | CN166: 1.554503163 | CO166: 2.311403836 | CP166: 1.64160145 | CQ166: 1.777457407 | CR166: 0.6994141994 | CS166: 1.66597898 | CT166: 1.16592204 | CU166: 0.9878416492 | CV166: 1.40725268 | CW166: 2.44987726 | CX166: 1.287681232 | CY166: 1.411012599 | CZ166: 0.7364147835 | DA166: 1.712045497 | DB166: 0.8981839299 | DC166: 1.145260087 | DD166: 1.772349628 | DE166: 1.99720209 | DF166: 1.156314877 | DG166: 1.448555718 | DH166: 1.87889373 | DI166: 1.929636997
A167: 49 | B167: 6.495363139 | C167: 8.073165936 | D167: 8.034185623 | E167: 11.77820888 | F167: 17.03112785 | G167: 16.49924397 | H167: 9.912670496 | I167: 6.916016391 | J167: 4.520391917 | K167: 6.435881286 | L167: 6.506719192 | M167: 9.563275745 | N167: 12.7558917 | O167: 12.24672579 | P167: 4.479604026 | Q167: 1.948430727 | R167: 9.749468068 | S167: 12.06571754 | T167: 11.64106375 | U167: 14.05427495 | V167: 15.67658448 | W167: 13.82622271 | X167: 7.633323791 | Y167: 5.400099682 | Z167: 10.13854934 | AA167: 12.4959271 | AB167: 12.9920624 | AC167: 15.66959087 | AD167: 14.26578511 | AE167: 11.27321762 | AF167: 6.212823361 | AG167: 4.535985216 | AH167: 13.3757894 | AI167: 14.89240254 | AJ167: 15.72608943 | AK167: 15.10430395 | AL167: 10.81801888 | AM167: 10.04734292 | AN167: 4.435054258 | AO167: 2.993958388 | AP167: 14.03387905 | AQ167: 15.68521742 | AR167: 13.33799458 | AS167: 12.95175966 | AT167: 9.53749232 | AU167: 7.90248475 | AV167: 2.376018898 | AW167: 1.273660109 | AX167: 13.04697249 | AY167: 14.06781614 | AZ167: 10.47037498 | BA167: 8.883264323 | BB167: 6.854576328 | BC167: 6.140469358 | BD167: 1.904843436 | BE167: 0.4857886776 | BF167: 10.59115213 | BG167: 10.23485963 | BH167: 8.703251806 | BI167: 7.727122248 | BJ167: 5.696464305 | BK167: 5.268005601 | BL167: 1.519956373 | BM167: 0.09406646329 | BN167: 6.897985599 | BO167: 7.398371843 | BP167: 6.429877544 | BQ167: 5.797520464 | BR167: 4.942944691 | BS167: 3.458269355 | BT167: 0.9224206101 | BU167: -0.3847833822 | BV167: 5.250405186 | BW167: 5.468020813 | BX167: 5.976357272 | BY167: 4.700938491 | BZ167: 3.012877318 | CA167: 2.592317967 | CB167: 0.2905193372 | CC167: -0.7067827553 | CD167: 4.586732395 | CE167: 4.492797001 | CF167: 3.890883142 | CG167: 4.109238234 | CH167: 1.269248756 | CI167: 1.271519967 | CJ167: -0.3119246662 | CK167: 0.6398299695 | CL167: 2.317591466 | CM167: 2.558815165 | CN167: 3.362107744 | CO167: 3.559904564 | CP167: 1.036450643 | CQ167: 1.813067746 | CR167: 0.2357853126 | CS167: 1.066367632 | CT167: -0.0942738262 | CU167: 0.7782094935 | CV167: 3.521043583 | CW167: 3.291232669 | CX167: 0.9606282028 | CY167: 1.180634372 | CZ167: 0.1801377174 | DA167: 0.08672464284 | DB167: -1.018625259 | DC167: -0.5217094096 | DD167: 2.815205698 | DE167: 3.51912841 | DF167: 0.9230935614 | DG167: 1.022477123 | DH167: 0.5260659868 | DI167: -0.4990716408
A168: 50 | B168: 12.80383557 | C168: 15.42960939 | D168: 15.78387326 | E168: 20.46217202 | F168: 25.89071955 | G168: 24.72351486 | H168: 17.35959069 | I168: 14.04077484 | J168: 6.148619112 | K168: 9.337252139 | L168: 9.481588456 | M168: 13.27652126 | N168: 16.66332475 | O168: 15.53800541 | P168: 6.743603919 | Q168: 3.990389947 | R168: 10.71069097 | S168: 14.40347407 | T168: 14.13777569 | U168: 17.42311025 | V168: 19.53768952 | W168: 16.88221195 | X168: 9.971860867 | Y168: 7.30978289 | Z168: 11.45593955 | AA168: 14.95040351 | AB168: 15.3542232 | AC168: 19.26912522 | AD168: 17.67550611 | AE168: 13.75161706 | AF168: 8.268666115 | AG168: 6.383441947 | AH168: 14.57318496 | AI168: 17.05569644 | AJ168: 18.39412616 | AK168: 18.58292421 | AL168: 13.3368756 | AM168: 12.45053614 | AN168: 6.163445559 | AO168: 4.417093892 | AP168: 15.68415322 | AQ168: 18.92574595 | AR168: 16.24604604 | AS168: 15.92760314 | AT168: 11.89986635 | AU168: 9.783023689 | AV168: 3.497335743 | AW168: 2.357788569 | AX168: 14.06781614 | AY168: 17.19995842 | AZ168: 13.0143813 | BA168: 11.15142712 | BB168: 8.585450115 | BC168: 7.889530437 | BD168: 3.041505136 | BE168: 1.703499928 | BF168: 13.01095394 | BG168: 13.47930066 | BH168: 11.26742711 | BI168: 9.557078333 | BJ168: 6.807557768 | BK168: 6.658266261 | BL168: 2.571477995 | BM168: 1.027639676 | BN168: 8.633212051 | BO168: 9.557886266 | BP168: 7.888141497 | BQ168: 6.850411464 | BR168: 6.135741093 | BS168: 4.357015382 | BT168: 1.78602645 | BU168: 0.4262129248 | BV168: 6.398057119 | BW168: 6.837406288 | BX168: 7.049657868 | BY168: 5.678861934 | BZ168: 3.80949516 | CA168: 3.273894392 | CB168: 0.584804463 | CC168: -0.3112849712 | CD168: 5.529394363 | CE168: 5.140205498 | CF168: 4.255315616 | CG168: 4.697337028 | CH168: 1.838579252 | CI168: 1.796592177 | CJ168: -0.4483538052 | CK168: 1.185407632 | CL168: 2.577331107 | CM168: 3.073824405 | CN168: 3.882346051 | CO168: 4.451126839 | CP168: 1.341017839 | CQ168: 2.206834246 | CR168: 0.02601426284 | CS168: 0.8353281916 | CT168: -0.08228394674 | CU168: 1.166009419 | CV168: 3.888488688 | CW168: 4.323138935 | CX168: 1.297729855 | CY168: 1.459161874 | CZ168: 0.202288379 | DA168: 0.3363367572 | DB168: -1.477370684 | DC168: -0.4345739535 | DD168: 3.390138905 | DE168: 4.539709923 | DF168: 1.280428747 | DG168: 1.324876789 | DH168: 0.9966721788 | DI168: -0.230832078
A169: 51 | B169: 13.11790625 | C169: 15.40806778 | D169: 16.5723883 | E169: 20.82036144 | F169: 26.13565752 | G169: 25.52323206 | H169: 18.09982408 | I169: 14.2837846 | J169: 9.426711624 | K169: 12.11494537 | L169: 12.56448531 | M169: 16.50375183 | N169: 19.53493447 | O169: 18.91990197 | P169: 10.38162431 | Q169: 7.219821299 | R169: 7.833505937 | S169: 10.67731663 | T169: 10.80823239 | U169: 14.29521695 | V169: 17.31842198 | W169: 15.0486557 | X169: 8.398099038 | Y169: 5.392019702 | Z169: 8.275498005 | AA169: 11.10689366 | AB169: 12.16568342 | AC169: 16.40156496 | AD169: 15.65835415 | AE169: 12.32749234 | AF169: 6.799052629 | AG169: 4.421303098 | AH169: 10.41457284 | AI169: 12.72698936 | AJ169: 14.57052054 | AK169: 15.69028021 | AL169: 11.8923752 | AM169: 11.18653601 | AN169: 4.515179805 | AO169: 3.099931916 | AP169: 11.68378182 | AQ169: 14.52402235 | AR169: 13.36467854 | AS169: 13.66880492 | AT169: 10.38166213 | AU169: 8.436027539 | AV169: 2.369805184 | AW169: 1.504841052 | AX169: 10.47037498 | AY169: 13.0143813 | AZ169: 11.24782805 | BA169: 9.975852929 | BB169: 7.871844599 | BC169: 7.015597533 | BD169: 2.44237307 | BE169: 1.373739444 | BF169: 9.962041777 | BG169: 10.80455464 | BH169: 9.847658966 | BI169: 8.752580049 | BJ169: 6.194477613 | BK169: 5.794234609 | BL169: 2.053627622 | BM169: 0.8361452536 | BN169: 6.992593293 | BO169: 8.177432307 | BP169: 7.227838027 | BQ169: 6.375588893 | BR169: 5.401559047 | BS169: 3.671645781 | BT169: 1.717689289 | BU169: 0.4287058442 | BV169: 5.763597719 | BW169: 6.416526111 | BX169: 6.381579594 | BY169: 5.256326114 | BZ169: 3.201134793 | CA169: 2.589523132 | CB169: 1.506280855 | CC169: 0.07449349208 | CD169: 5.425248628 | CE169: 5.022823098 | CF169: 4.143318783 | CG169: 3.991846704 | CH169: 1.705529867 | CI169: 1.847559761 | CJ169: 1.098286521 | CK169: 1.525249343 | CL169: 3.064110301 | CM169: 3.648007062 | CN169: 3.715130694 | CO169: 3.562989577 | CP169: 1.808622486 | CQ169: 2.486622879 | CR169: 1.043935922 | CS169: 1.481570761 | CT169: 0.5665121859 | CU169: 1.171635605 | CV169: 3.036913809 | CW169: 2.869927985 | CX169: 1.933900326 | CY169: 2.030667724 | CZ169: 0.9952682407 | DA169: 0.9262946447 | DB169: -1.013983721 | DC169: -0.2446308401 | DD169: 2.180874106 | DE169: 2.822299074 | DF169: 1.726388749 | DG169: 1.323652826 | DH169: 1.400296241 | DI169: -0.01631124407
A170: 52 | B170: 13.13791481 | C170: 15.18563846 | D170: 17.13173212 | E170: 20.94391582 | F170: 26.70665996 | G170: 26.41309539 | H170: 20.549657 | I170: 16.66490345 | J170: 10.93258884 | K170: 13.32055001 | L170: 14.35062262 | M170: 18.03655948 | N170: 21.97702518 | O170: 21.44303246 | P170: 14.55300164 | Q170: 11.35932734 | R170: 4.43721331 | S170: 6.840231771 | T170: 7.177320382 | U170: 11.40480307 | V170: 15.58952271 | W170: 13.69535389 | X170: 8.342092796 | Y170: 5.568214916 | Z170: 5.479812459 | AA170: 7.69723395 | AB170: 9.451517575 | AC170: 14.10852121 | AD170: 14.57695662 | AE170: 11.64488171 | AF170: 6.892992588 | AG170: 4.670180965 | AH170: 7.834096074 | AI170: 9.9719026 | AJ170: 12.13957199 | AK170: 14.04498274 | AL170: 11.56292185 | AM170: 10.95252502 | AN170: 4.773915235 | AO170: 3.265561403 | AP170: 9.81466479 | AQ170: 12.47318956 | AR170: 11.86372782 | AS170: 12.7736721 | AT170: 10.31357602 | AU170: 8.529407357 | AV170: 2.444134351 | AW170: 1.404969079 | AX170: 8.883264323 | AY170: 11.15142712 | AZ170: 9.975852929 | BA170: 10.07579728 | BB170: 7.985890934 | BC170: 6.876631133 | BD170: 2.229845659 | BE170: 1.102613755 | BF170: 8.570616495 | BG170: 9.784752365 | BH170: 9.042426435 | BI170: 8.625389645 | BJ170: 6.227039457 | BK170: 5.69542097 | BL170: 1.719526211 | BM170: 0.9603901919 | BN170: 6.167517175 | BO170: 7.726490378 | BP170: 7.085386235 | BQ170: 6.523293226 | BR170: 5.541392068 | BS170: 3.475967583 | BT170: 1.829155325 | BU170: 0.7461712732 | BV170: 5.406582055 | BW170: 6.463086908 | BX170: 6.248444786 | BY170: 5.357358145 | BZ170: 3.144629707 | CA170: 2.378999577 | CB170: 2.109854269 | CC170: 0.412447419 | CD170: 5.112787297 | CE170: 5.002918867 | CF170: 4.157731157 | CG170: 3.740246384 | CH170: 1.838722711 | CI170: 2.012021365 | CJ170: 1.804217002 | CK170: 2.10560659 | CL170: 2.932746555 | CM170: 3.498334737 | CN170: 3.61061914 | CO170: 3.287772056 | CP170: 1.949321475 | CQ170: 2.880691946 | CR170: 1.662580315 | CS170: 1.785314374 | CT170: 0.5192771341 | CU170: 0.883184028 | CV170: 2.318262461 | CW170: 1.909835796 | CX170: 2.447980998 | CY170: 2.419477076 | CZ170: 1.052636035 | DA170: 1.056339223 | DB170: -0.8577207766 | DC170: -0.3057807251 | DD170: 1.36460113 | DE170: 1.757887696 | DF170: 1.863053291 | DG170: 1.56345498 | DH170: 1.42996283 | DI170: -0.003935982617
A171: 53 | B171: 13.44747437 | C171: 15.13699947 | D171: 16.77792797 | E171: 19.82383794 | F171: 24.15312538 | G171: 23.73072454 | H171: 19.92585005 | I171: 16.58251778 | J171: 11.12785622 | K171: 12.9081515 | L171: 14.44627234 | M171: 17.15289944 | N171: 19.8733116 | O171: 19.52960759 | P171: 14.91382026 | Q171: 12.37810454 | R171: 3.538683775 | S171: 5.097775657 | T171: 5.990143645 | U171: 9.035212423 | V171: 11.91477561 | W171: 10.96235063 | X171: 7.602445629 | Y171: 5.19361253 | Z171: 4.638479873 | AA171: 6.140550217 | AB171: 7.836902646 | AC171: 11.39941033 | AD171: 11.63805699 | AE171: 9.782928485 | AF171: 6.598039727 | AG171: 4.501167159 | AH171: 6.217649439 | AI171: 7.457858912 | AJ171: 9.017048607 | AK171: 10.69716739 | AL171: 9.478013728 | AM171: 9.692973415 | AN171: 4.848323956 | AO171: 3.430714869 | AP171: 7.616305688 | AQ171: 9.31985713 | AR171: 9.233866735 | AS171: 10.08338298 | AT171: 8.80332136 | AU171: 7.767393688 | AV171: 2.929053148 | AW171: 1.829289655 | AX171: 6.854576328 | AY171: 8.585450115 | AZ171: 7.871844599 | BA171: 7.985890934 | BB171: 7.446251806 | BC171: 6.484580268 | BD171: 2.755207395 | BE171: 1.542323526 | BF171: 6.919967371 | BG171: 7.765189642 | BH171: 7.526732087 | BI171: 7.461908357 | BJ171: 5.989902373 | BK171: 5.545350221 | BL171: 2.019991795 | BM171: 1.166967331 | BN171: 5.219425299 | BO171: 6.746776963 | BP171: 6.083564544 | BQ171: 6.032982342 | BR171: 5.356663023 | BS171: 3.859825657 | BT171: 1.905133614 | BU171: 0.7544357934 | BV171: 4.615699297 | BW171: 5.702675411 | BX171: 5.60338575 | BY171: 5.258599281 | BZ171: 3.431076775 | CA171: 2.874741022 | CB171: 2.139610193 | CC171: 0.2616032979 | CD171: 4.963214741 | CE171: 4.930734407 | CF171: 4.249889621 | CG171: 3.891344166 | CH171: 2.142198969 | CI171: 2.089517054 | CJ171: 1.855141549 | CK171: 1.675661785 | CL171: 3.317812942 | CM171: 3.750340654 | CN171: 3.684118203 | CO171: 3.546296863 | CP171: 1.818360717 | CQ171: 2.433103688 | CR171: 1.587095655 | CS171: 1.994283359 | CT171: 1.131542836 | CU171: 1.133306725 | CV171: 2.574019169 | CW171: 2.187795984 | CX171: 2.140079694 | CY171: 2.267943702 | CZ171: 1.500639019 | DA171: 1.808299052 | DB171: -0.382346542 | DC171: -0.08868024454 | DD171: 1.319877908 | DE171: 1.597193185 | DF171: 1.699120528 | DG171: 1.520260244 | DH171: 2.121840888 | DI171: 0.6198487933
A172: 54 | B172: 12.1930638 | C172: 13.78193508 | D172: 15.03077424 | E172: 17.70496925 | F172: 20.60300469 | G172: 20.20868653 | H172: 17.00359163 | I172: 14.42767293 | J172: 10.73278686 | K172: 12.77328476 | L172: 14.20933545 | M172: 16.32955851 | N172: 17.94224523 | O172: 17.66126459 | P172: 13.80013411 | Q172: 11.88736589 | R172: 4.297132497 | S172: 6.131875536 | T172: 6.82858554 | U172: 8.987812394 | V172: 10.86797378 | W172: 9.871888474 | X172: 7.341843933 | Y172: 5.397153564 | Z172: 4.666995532 | AA172: 6.419161185 | AB172: 7.835087894 | AC172: 10.417517 | AD172: 10.32216332 | AE172: 8.669846816 | AF172: 6.828051483 | AG172: 5.056417192 | AH172: 6.306525961 | AI172: 7.637566906 | AJ172: 8.877978525 | AK172: 9.58894962 | AL172: 8.136018414 | AM172: 8.603964101 | AN172: 5.254726551 | AO172: 3.988077656 | AP172: 7.112015414 | AQ172: 8.642737051 | AR172: 8.565901271 | AS172: 8.712459892 | AT172: 7.654824977 | AU172: 7.230709156 | AV172: 3.612177622 | AW172: 2.576439055 | AX172: 6.140469358 | AY172: 7.889530437 | AZ172: 7.015597533 | BA172: 6.876631133 | BB172: 6.484580268 | BC172: 6.396820767 | BD172: 3.515622804 | BE172: 2.26213754 | BF172: 6.126221962 | BG172: 6.868043179 | BH172: 6.527531776 | BI172: 6.380337373 | BJ172: 5.484406395 | BK172: 5.56916109 | BL172: 2.877719744 | BM172: 1.78801596 | BN172: 4.6827825 | BO172: 5.852819846 | BP172: 5.12667409 | BQ172: 5.226427383 | BR172: 5.17942643 | BS172: 4.020510387 | BT172: 2.241950958 | BU172: 1.126248561 | BV172: 3.986103795 | BW172: 5.073031655 | BX172: 4.886901932 | BY172: 4.86322148 | BZ172: 3.450561715 | CA172: 3.119614437 | CB172: 2.098328673 | CC172: 0.5188317603 | CD172: 4.141598584 | CE172: 4.206730097 | CF172: 3.743950877 | CG172: 3.764624567 | CH172: 2.213583321 | CI172: 2.095517537 | CJ172: 1.563486932 | CK172: 1.769124417 | CL172: 2.623977978 | CM172: 3.259130545 | CN172: 3.361855387 | CO172: 3.477509111 | CP172: 1.686492258 | CQ172: 2.189589869 | CR172: 1.364942823 | CS172: 2.130896386 | CT172: 1.171528011 | CU172: 1.268468211 | CV172: 2.504067446 | CW172: 2.400278401 | CX172: 1.889907439 | CY172: 2.021154461 | CZ172: 1.416006915 | DA172: 2.144551038 | DB172: -0.329675713 | DC172: -0.0159160808 | DD172: 1.421335751 | DE172: 1.755628223 | DF172: 1.624357725 | DG172: 1.538000858 | DH172: 2.49525061 | DI172: 1.194641149
A173: 55 | B173: 5.500961193 | C173: 6.959641828 | D173: 7.653852719 | E173: 6.986080598 | F173: 5.988205323 | G173: 4.612034582 | H173: 5.282325379 | I173: 6.036378073 | J173: 4.684068737 | K173: 6.40674093 | L173: 7.302871446 | M173: 6.778233524 | N173: 4.800216415 | O173: 4.31687012 | P173: 4.804613095 | Q173: 5.967992331 | R173: 2.806642197 | S173: 3.835602345 | T173: 4.449386751 | U173: 3.885012425 | V173: 2.1462207 | W173: 1.768448532 | X173: 3.640583405 | Y173: 4.138445103 | Z173: 2.1991716 | AA173: 3.03598361 | AB173: 3.612036772 | AC173: 3.369363489 | AD173: 2.43997666 | AE173: 2.033203029 | AF173: 4.874686106 | AG173: 4.615213494 | AH173: 2.143472164 | AI173: 2.588172665 | AJ173: 3.115309701 | AK173: 2.294842191 | AL173: 1.783267154 | AM173: 2.866425313 | AN173: 4.909805752 | AO173: 5.343272466 | AP173: 2.219766061 | AQ173: 2.967231071 | AR173: 3.60223594 | AS173: 2.793951001 | AT173: 2.875800659 | AU173: 3.267320401 | AV173: 4.599201557 | AW173: 4.866513856 | AX173: 1.904843436 | AY173: 3.041505136 | AZ173: 2.44237307 | BA173: 2.229845659 | BB173: 2.755207395 | BC173: 3.515622804 | BD173: 5.378480143 | BE173: 4.772286001 | BF173: 3.024803619 | BG173: 3.332282699 | BH173: 2.812237083 | BI173: 2.381592265 | BJ173: 2.996256986 | BK173: 3.579680334 | BL173: 4.860273406 | BM173: 4.047802084 | BN173: 2.485699201 | BO173: 3.120381289 | BP173: 2.342398721 | BQ173: 2.577085597 | BR173: 3.182472784 | BS173: 3.170353792 | BT173: 3.825997139 | BU173: 3.075861843 | BV173: 2.037863803 | BW173: 2.875199111 | BX173: 2.57202379 | BY173: 2.954373593 | BZ173: 2.873370014 | CA173: 3.066926654 | CB173: 2.729541345 | CC173: 1.953735109 | CD173: 2.426116601 | CE173: 2.562296318 | CF173: 2.407116487 | CG173: 2.679945421 | CH173: 2.56153827 | CI173: 2.405033076 | CJ173: 2.077008441 | CK173: 2.030835961 | CL173: 1.973493272 | CM173: 2.095964541 | CN173: 1.854176463 | CO173: 2.617834363 | CP173: 1.76581248 | CQ173: 1.815853452 | CR173: 1.429092297 | CS173: 2.123220047 | CT173: 1.194121764 | CU173: 0.9196495766 | CV173: 1.533355733 | CW173: 2.463358783 | CX173: 1.416347304 | CY173: 1.653934326 | CZ173: 1.41886109 | DA173: 2.545296473 | DB173: 0.7299076313 | DC173: 0.8830333964 | DD173: 1.827321989 | DE173: 1.975180541 | DF173: 1.603316259 | DG173: 1.680221486 | DH173: 2.532492792 | DI173: 2.238658582
A174: 56 | B174: 0.9332787968 | C174: 2.00931554 | D174: 2.2899496 | E174: 1.09474668 | F174: -0.6478978861 | G174: -1.84884828 | H174: -0.7871052316 | I174: 0.9667894241 | J174: 0.9737967252 | K174: 2.055558445 | L174: 2.540166849 | M174: 1.83275092 | N174: -0.5963554895 | O174: -1.242640118 | P174: -0.06792471791 | Q174: 1.845222038 | R174: 1.993389678 | S174: 2.662457164 | T174: 3.456634253 | U174: 2.550896249 | V174: 0.4896467361 | W174: 0.1838484048 | X174: 2.454974931 | Y174: 3.257372525 | Z174: 1.001624761 | AA174: 1.545785118 | AB174: 2.194242492 | AC174: 1.724781361 | AD174: 0.5160206236 | AE174: 0.2685206113 | AF174: 3.703163311 | AG174: 3.818340035 | AH174: 0.5074492977 | AI174: 0.9870343685 | AJ174: 1.585656178 | AK174: 0.8257934106 | AL174: 0.3456364616 | AM174: 1.099462556 | AN174: 4.021049009 | AO174: 4.917402537 | AP174: 1.045314103 | AQ174: 1.496298418 | AR174: 2.303093018 | AS174: 1.470828971 | AT174: 1.515997567 | AU174: 1.942723357 | AV174: 3.84839005 | AW174: 4.771317982 | AX174: 0.4857886776 | AY174: 1.703499928 | AZ174: 1.373739444 | BA174: 1.102613755 | BB174: 1.542323526 | BC174: 2.26213754 | BD174: 4.772286001 | BE174: 5.264976994 | BF174: 1.969072791 | BG174: 2.55173483 | BH174: 2.059518881 | BI174: 1.366173959 | BJ174: 1.922684471 | BK174: 2.478302932 | BL174: 4.795113201 | BM174: 4.616560049 | BN174: 1.699868795 | BO174: 2.358162214 | BP174: 1.573519906 | BQ174: 1.784756515 | BR174: 2.17080592 | BS174: 2.481482496 | BT174: 4.284338924 | BU174: 3.946576057 | BV174: 1.323233862 | BW174: 2.118938785 | BX174: 1.81186465 | BY174: 2.075124243 | BZ174: 2.203420257 | CA174: 2.630790958 | CB174: 3.161217434 | CC174: 2.945730537 | CD174: 1.87907827 | CE174: 1.886057857 | CF174: 1.726981168 | CG174: 1.867705588 | CH174: 2.441031732 | CI174: 2.792968635 | CJ174: 2.475833161 | CK174: 2.502874783 | CL174: 1.678041567 | CM174: 1.772526669 | CN174: 1.384918782 | CO174: 1.917243151 | CP174: 2.223599993 | CQ174: 2.294508324 | CR174: 1.51695874 | CS174: 2.002347038 | CT174: 1.249387238 | CU174: 0.9470977735 | CV174: 0.9866336625 | CW174: 2.160454403 | CX174: 1.8869861 | CY174: 1.855150678 | CZ174: 1.145239221 | DA174: 2.302424957 | DB174: 0.8962994054 | DC174: 1.243010828 | DD174: 1.657506119 | DE174: 1.868412122 | DF174: 1.685165265 | DG174: 1.734463839 | DH174: 2.003580456 | DI174: 2.032672884
A175: 57 | B175: 13.42557704 | C175: 15.4293241 | D175: 16.69063601 | E175: 18.96761533 | F175: 22.51981225 | G175: 21.06739717 | H175: 16.99910528 | I175: 15.1439308 | J175: 6.440360129 | K175: 8.854706278 | L175: 9.905290203 | M175: 11.55910976 | N175: 14.71023684 | O175: 13.60385893 | P175: 8.704736928 | Q175: 7.717526171 | R175: 5.421292105 | S175: 7.410455296 | T175: 7.346316256 | U175: 9.666348801 | V175: 12.37330943 | W175: 10.09815042 | X175: 7.259007997 | Y175: 6.497425683 | Z175: 6.848515202 | AA175: 8.039661504 | AB175: 8.674513133 | AC175: 12.6164082 | AD175: 11.99387999 | AE175: 8.651588447 | AF175: 6.490752575 | AG175: 5.608507875 | AH175: 9.378152515 | AI175: 9.870989249 | AJ175: 11.30997856 | AK175: 12.22277147 | AL175: 9.143989589 | AM175: 8.45657505 | AN175: 5.501690549 | AO175: 4.783252434 | AP175: 10.75458116 | AQ175: 13.06889329 | AR175: 11.64457849 | AS175: 12.06545932 | AT175: 8.939767453 | AU175: 7.063728223 | AV175: 3.440366373 | AW175: 2.856734358 | AX175: 10.59115213 | AY175: 13.01095394 | AZ175: 9.962041777 | BA175: 8.570616495 | BB175: 6.919967371 | BC175: 6.126221962 | BD175: 3.024803619 | BE175: 1.969072791 | BF175: 12.5515685 | BG175: 11.97772264 | BH175: 9.540659821 | BI175: 7.896293859 | BJ175: 5.731001966 | BK175: 5.090420143 | BL175: 2.104115924 | BM175: 0.8293309696 | BN175: 8.68461425 | BO175: 9.002359097 | BP175: 7.351916032 | BQ175: 5.972055144 | BR175: 5.030780486 | BS175: 3.732217267 | BT175: 1.544818728 | BU175: 0.2007823896 | BV175: 7.349293674 | BW175: 7.045321831 | BX175: 6.464503236 | BY175: 5.042479536 | BZ175: 3.413697743 | CA175: 3.133301693 | CB175: 0.5811299663 | CC175: -0.5475205481 | CD175: 6.41035087 | CE175: 5.52440233 | CF175: 4.196782873 | CG175: 4.179860626 | CH175: 1.94694267 | CI175: 1.862196778 | CJ175: -1.049610036 | CK175: 0.2555773842 | CL175: 4.36575625 | CM175: 4.115381197 | CN175: 3.813864127 | CO175: 4.010622502 | CP175: 1.435560324 | CQ175: 2.038984411 | CR175: -0.9373396536 | CS175: 0.3750118945 | CT175: 1.444179252 | CU175: 1.772981172 | CV175: 3.857154393 | CW175: 4.047155542 | CX175: 0.7359654972 | CY175: 0.7093884854 | CZ175: -0.1633419744 | DA175: 0.1227415573 | DB175: -0.07006453351 | DC175: 0.4933782902 | DD175: 3.249632607 | DE175: 4.164500447 | DF175: 0.3993548645 | DG175: 0.3623396085 | DH175: 0.9380090184 | DI175: -0.2008329262
A176: 58 | B176: 11.74911156 | C176: 13.8217318 | D176: 14.79722688 | E176: 17.93034273 | F176: 21.7346323 | G176: 20.2536282 | H176: 15.56859796 | I176: 13.63632915 | J176: 8.161349944 | K176: 10.67110096 | L176: 11.58199206 | M176: 13.81248263 | N176: 16.34127974 | O176: 15.23240271 | P176: 9.767127823 | Q176: 8.295621988 | R176: 6.164813633 | S176: 8.723240155 | T176: 8.581503047 | U176: 11.50819108 | V176: 14.05701631 | W176: 11.49018312 | X176: 8.270705835 | Y176: 6.80204048 | Z176: 7.647638352 | AA176: 9.438586737 | AB176: 9.890438976 | AC176: 14.39182915 | AD176: 13.44953822 | AE176: 9.916974907 | AF176: 7.365303981 | AG176: 5.985631219 | AH176: 9.551139147 | AI176: 10.86777554 | AJ176: 12.49748819 | AK176: 13.66055931 | AL176: 10.51327106 | AM176: 9.662678869 | AN176: 5.882315588 | AO176: 4.995796147 | AP176: 10.83872126 | AQ176: 13.95678309 | AR176: 12.6920774 | AS176: 13.07598177 | AT176: 10.17829781 | AU176: 7.912003881 | AV176: 3.621072056 | AW176: 3.110806079 | AX176: 10.23485963 | AY176: 13.47930066 | AZ176: 10.80455464 | BA176: 9.784752365 | BB176: 7.765189642 | BC176: 6.868043179 | BD176: 3.332282699 | BE176: 2.55173483 | BF176: 11.97772264 | BG176: 12.90360126 | BH176: 10.31937435 | BI176: 8.704203849 | BJ176: 6.299997942 | BK176: 5.635582427 | BL176: 2.730994189 | BM176: 1.796372424 | BN176: 8.525963698 | BO176: 9.428577891 | BP176: 7.758419048 | BQ176: 6.601041273 | BR176: 5.631653618 | BS176: 3.932469185 | BT176: 2.494470717 | BU176: 1.088910197 | BV176: 6.869677303 | BW176: 7.310966424 | BX176: 6.623889013 | BY176: 5.411455083 | BZ176: 3.499334383 | CA176: 3.092204061 | CB176: 1.711691415 | CC176: 0.1403488195 | CD176: 6.269898369 | CE176: 5.510521079 | CF176: 4.238635292 | CG176: 4.107617804 | CH176: 2.085823647 | CI176: 2.464020323 | CJ176: 0.2526175722 | CK176: 1.246651417 | CL176: 3.714302547 | CM176: 3.996713212 | CN176: 3.859500267 | CO176: 4.097123154 | CP176: 2.014481028 | CQ176: 2.807466106 | CR176: 0.1869128763 | CS176: 0.7095508544 | CT176: 1.162389045 | CU176: 1.545463966 | CV176: 3.488747789 | CW176: 3.914379707 | CX176: 1.7462369 | CY176: 1.814319749 | CZ176: 0.319816846 | DA176: 0.4991720619 | DB176: -0.6200685458 | DC176: 0.225775814 | DD176: 3.044286277 | DE176: 3.886712409 | DF176: 1.376986173 | DG176: 1.132475969 | DH176: 0.9856291262 | DI176: -0.0920554344
A177: 59 | B177: 15.38385946 | C177: 17.55943342 | D177: 19.0037281 | E177: 22.148379 | F177: 25.97623751 | G177: 24.7238872 | H177: 19.07185724 | I177: 16.11977279 | J177: 11.54892909 | K177: 13.91006253 | L177: 14.61144081 | M177: 17.44901366 | N177: 19.74145618 | O177: 18.70805436 | P177: 12.0036668 | Q177: 9.695558278 | R177: 6.226223373 | S177: 8.249561666 | T177: 8.592799435 | U177: 11.69196156 | V177: 14.2155834 | W177: 12.00188335 | X177: 7.484367129 | Y177: 5.055954864 | Z177: 6.784548963 | AA177: 8.669670427 | AB177: 9.987404608 | AC177: 14.05742517 | AD177: 13.14987926 | AE177: 9.944041634 | AF177: 6.222187622 | AG177: 4.227242723 | AH177: 8.389160588 | AI177: 10.05467822 | AJ177: 11.83722808 | AK177: 13.17317824 | AL177: 10.25757793 | AM177: 9.570645931 | AN177: 4.410676728 | AO177: 3.506304515 | AP177: 9.667642211 | AQ177: 12.52687796 | AR177: 11.44823451 | AS177: 12.21133716 | AT177: 9.226239953 | AU177: 7.566242871 | AV177: 2.537954978 | AW177: 2.016372073 | AX177: 8.703251806 | AY177: 11.26742711 | AZ177: 9.847658966 | BA177: 9.042426435 | BB177: 7.526732087 | BC177: 6.527531776 | BD177: 2.812237083 | BE177: 2.059518881 | BF177: 9.540659821 | BG177: 10.31937435 | BH177: 9.656841081 | BI177: 8.38220252 | BJ177: 6.023667314 | BK177: 5.395442494 | BL177: 2.247032653 | BM177: 1.298476492 | BN177: 6.905945922 | BO177: 8.270403268 | BP177: 7.287582018 | BQ177: 6.258619588 | BR177: 5.11359849 | BS177: 3.632647861 | BT177: 2.064811851 | BU177: 0.8727803443 | BV177: 6.107776119 | BW177: 6.77972908 | BX177: 6.330374651 | BY177: 5.239678394 | BZ177: 3.236968472 | CA177: 2.693615396 | CB177: 1.932724617 | CC177: 0.3176607283 | CD177: 6.072357818 | CE177: 5.444351773 | CF177: 4.286854014 | CG177: 3.943581033 | CH177: 2.020574758 | CI177: 2.225004257 | CJ177: 1.343331761 | CK177: 1.625683413 | CL177: 3.735814491 | CM177: 4.142846348 | CN177: 3.886576776 | CO177: 3.582772193 | CP177: 2.170470748 | CQ177: 2.662118406 | CR177: 1.173684455 | CS177: 1.614116736 | CT177: 1.316182871 | CU177: 1.494774496 | CV177: 2.984989942 | CW177: 2.956115637 | CX177: 2.006350185 | CY177: 1.93305066 | CZ177: 1.169501984 | DA177: 1.538108126 | DB177: -0.1476176065 | DC177: 0.5310922549 | DD177: 2.447477263 | DE177: 3.040685466 | DF177: 1.605042327 | DG177: 1.395178355 | DH177: 1.679976954 | DI177: 0.289646848
A178: 60 | B178: 15.30576483 | C178: 17.1902704 | D178: 18.99949085 | E178: 22.08850231 | F178: 26.46451878 | G178: 25.8404197 | H178: 20.65414051 | I178: 17.1698106 | J178: 12.64452218 | K178: 14.56809609 | L178: 15.8567698 | M178: 18.77632077 | N178: 21.52931107 | O178: 20.91582206 | P178: 14.78424648 | Q178: 12.04042057 | R178: 4.638331849 | S178: 6.271214276 | T178: 6.787740265 | U178: 10.29175335 | V178: 13.26650655 | W178: 11.78612454 | X178: 7.325676148 | Y178: 4.675904964 | Z178: 5.334668209 | AA178: 6.986192431 | AB178: 8.697536284 | AC178: 12.73983412 | AD178: 12.54247224 | AE178: 10.11233684 | AF178: 6.021454139 | AG178: 3.877516712 | AH178: 7.241628965 | AI178: 8.575362366 | AJ178: 10.40776899 | AK178: 12.01099721 | AL178: 10.07641155 | AM178: 9.728230977 | AN178: 4.153405228 | AO178: 2.943914156 | AP178: 8.485943962 | AQ178: 10.58262482 | AR178: 10.20847694 | AS178: 11.10256186 | AT178: 9.097230233 | AU178: 7.616153752 | AV178: 2.34236416 | AW178: 1.508928318 | AX178: 7.727122248 | AY178: 9.557078333 | AZ178: 8.752580049 | BA178: 8.625389645 | BB178: 7.461908357 | BC178: 6.380337373 | BD178: 2.381592265 | BE178: 1.366173959 | BF178: 7.896293859 | BG178: 8.704203849 | BH178: 8.38220252 | BI178: 8.034548182 | BJ178: 6.030484858 | BK178: 5.369880778 | BL178: 1.791479182 | BM178: 0.981449264 | BN178: 5.964819939 | BO178: 7.3825927 | BP178: 6.757085768 | BQ178: 6.267456313 | BR178: 5.258566677 | BS178: 3.591355256 | BT178: 1.840908498 | BU178: 0.710140991 | BV178: 5.490507299 | BW178: 6.41748272 | BX178: 6.125791586 | BY178: 5.354310302 | BZ178: 3.304068303 | CA178: 2.615281778 | CB178: 2.300992001 | CC178: 0.4406996362 | CD178: 5.617406873 | CE178: 5.38090818 | CF178: 4.452112139 | CG178: 3.927009933 | CH178: 2.041864016 | CI178: 2.209659728 | CJ178: 2.054930487 | CK178: 1.972029668 | CL178: 3.746387717 | CM178: 4.140447655 | CN178: 3.867547643 | CO178: 3.438339042 | CP178: 2.168388642 | CQ178: 2.880421983 | CR178: 1.757699243 | CS178: 1.939582591 | CT178: 1.392584037 | CU178: 1.427584025 | CV178: 2.668435802 | CW178: 2.24392873 | CX178: 2.446787683 | CY178: 2.467201843 | CZ178: 1.449884666 | DA178: 1.627974186 | DB178: -0.24459954 | DC178: 0.1579864037 | DD178: 1.626132699 | DE178: 1.975577661 | DF178: 1.898463441 | DG178: 1.590347601 | DH178: 1.826114003 | DI178: 0.3441265597
A179: 61 | B179: 10.99993679 | C179: 12.27724335 | D179: 13.66797351 | E179: 15.65349286 | F179: 18.76296803 | G179: 18.37016205 | H179: 15.21063612 | I179: 12.62258083 | J179: 10.13526283 | K179: 11.76613293 | L179: 13.14118371 | M179: 14.90312281 | N179: 16.18913471 | O179: 16.17908934 | P179: 12.4297529 | Q179: 10.55484015 | R179: 3.683948661 | S179: 5.071314064 | T179: 5.994900602 | U179: 8.070280462 | V179: 9.217779808 | W179: 8.605443029 | X179: 6.132748025 | Y179: 4.325384715 | Z179: 4.610684767 | AA179: 5.784945664 | AB179: 6.797258092 | AC179: 9.423029955 | AD179: 9.108933847 | AE179: 7.837779699 | AF179: 5.591853634 | AG179: 3.876170158 | AH179: 5.645944051 | AI179: 6.316929319 | AJ179: 7.445482347 | AK179: 8.296804869 | AL179: 7.364053283 | AM179: 7.830140528 | AN179: 4.262970438 | AO179: 3.319283392 | AP179: 6.184295312 | AQ179: 7.424276555 | AR179: 7.340695612 | AS179: 7.936805266 | AT179: 6.867194165 | AU179: 6.433756795 | AV179: 2.884065831 | AW179: 2.164076407 | AX179: 5.696464305 | AY179: 6.807557768 | AZ179: 6.194477613 | BA179: 6.227039457 | BB179: 5.989902373 | BC179: 5.484406395 | BD179: 2.996256986 | BE179: 1.922684471 | BF179: 5.731001966 | BG179: 6.299997942 | BH179: 6.023667314 | BI179: 6.030484858 | BJ179: 5.435059893 | BK179: 4.886272019 | BL179: 2.471188689 | BM179: 1.716994167 | BN179: 4.546548986 | BO179: 5.641249042 | BP179: 5.120337784 | BQ179: 5.212946838 | BR179: 4.764280033 | BS179: 3.66552075 | BT179: 2.289217962 | BU179: 1.211380813 | BV179: 4.03859791 | BW179: 4.894233972 | BX179: 4.882095417 | BY179: 4.713446778 | BZ179: 3.231154159 | CA179: 2.961083543 | CB179: 2.609065456 | CC179: 0.8487989552 | CD179: 4.384903736 | CE179: 4.479586419 | CF179: 3.939542999 | CG179: 3.828819035 | CH179: 2.351358363 | CI179: 2.549350809 | CJ179: 2.412217418 | CK179: 2.237152267 | CL179: 3.157833768 | CM179: 3.555129349 | CN179: 3.447789704 | CO179: 3.376670097 | CP179: 2.238433613 | CQ179: 2.925802506 | CR179: 2.026796297 | CS179: 2.665718565 | CT179: 1.549167154 | CU179: 1.423174629 | CV179: 2.714712941 | CW179: 2.445845421 | CX179: 2.603001069 | CY179: 2.810011844 | CZ179: 1.9569776 | DA179: 2.593523019 | DB179: 0.1107826519 | DC179: 0.3015956462 | DD179: 1.567252721 | DE179: 1.87164581 | DF179: 2.411474042 | DG179: 2.146489685 | DH179: 2.538601194 | DI179: 1.340434875
A180: 62 | B180: 8.611057477 | C180: 10.01388381 | D180: 10.92591214 | E180: 12.68894022 | F180: 14.95769577 | G180: 14.65196591 | H180: 12.19059761 | I180: 10.18229117 | J180: 9.443991214 | K180: 11.35652925 | L180: 12.17374123 | M180: 13.94054487 | N180: 14.65154205 | O180: 14.68587431 | P180: 11.4765552 | Q180: 10.18855771 | R180: 4.321204852 | S180: 5.896171734 | T180: 6.542149557 | U180: 8.119235713 | V180: 8.925512232 | W180: 8.544733953 | X180: 6.32071793 | Y180: 4.8905986 | Z180: 4.671100404 | AA180: 5.934136099 | AB180: 6.932849302 | AC180: 8.795890856 | AD180: 8.590555938 | AE180: 7.438906073 | AF180: 6.125819626 | AG180: 4.714447728 | AH180: 5.338557894 | AI180: 6.266265606 | AJ180: 7.30922927 | AK180: 7.868590697 | AL180: 6.675562804 | AM180: 7.584699147 | AN180: 5.076462272 | AO180: 4.04962466 | AP180: 5.987088628 | AQ180: 7.091830787 | AR180: 7.235093773 | AS180: 7.275180673 | AT180: 6.579070586 | AU180: 6.403953268 | AV180: 3.738198839 | AW180: 2.828436495 | AX180: 5.268005601 | AY180: 6.658266261 | AZ180: 5.794234609 | BA180: 5.69542097 | BB180: 5.545350221 | BC180: 5.56916109 | BD180: 3.579680334 | BE180: 2.478302932 | BF180: 5.090420143 | BG180: 5.635582427 | BH180: 5.395442494 | BI180: 5.369880778 | BJ180: 4.886272019 | BK180: 5.350732313 | BL180: 3.006589266 | BM180: 2.159531377 | BN180: 3.754435745 | BO180: 4.839996835 | BP180: 4.237154408 | BQ180: 4.51635747 | BR180: 4.83779605 | BS180: 3.960709665 | BT180: 2.618911933 | BU180: 1.622141941 | BV180: 3.191174853 | BW180: 4.14605493 | BX180: 4.317051073 | BY180: 4.498281685 | BZ180: 3.527412493 | CA180: 3.17566176 | CB180: 2.348166409 | CC180: 1.065095415 | CD180: 3.722548808 | CE180: 3.888344577 | CF180: 3.469628017 | CG180: 3.661396315 | CH180: 2.415565873 | CI180: 2.168432332 | CJ180: 1.920607581 | CK180: 2.210775445 | CL180: 2.554335995 | CM180: 2.931873414 | CN180: 3.19754898 | CO180: 3.318295484 | CP180: 1.715794331 | CQ180: 2.257549473 | CR180: 1.622161504 | CS180: 2.430928986 | CT180: 1.337800454 | CU180: 1.413510736 | CV180: 2.402710025 | CW180: 2.423837566 | CX180: 1.975754376 | CY180: 2.141012175 | CZ180: 1.708119295 | DA180: 2.431972321 | DB180: -0.07586026139 | DC180: 0.198126123 | DD180: 1.357496669 | DE180: 1.718999327 | DF180: 1.809277179 | DG180: 1.74137561 | DH180: 2.685290884 | DI180: 1.750808013
A181: 63 | B181: 3.009620156 | C181: 4.164104632 | D181: 4.409761853 | E181: 3.423546503 | F181: 2.053863677 | G181: 1.006145664 | H181: 1.237852187 | I181: 2.47423262 | J181: 3.271760119 | K181: 4.591053108 | L181: 5.089633077 | M181: 4.623888828 | N181: 2.198900333 | O181: 1.878499219 | P181: 2.170157748 | Q181: 3.463155425 | R181: 3.204380218 | S181: 4.340123783 | T181: 4.689849793 | U181: 4.022390347 | V181: 1.7643329 | W181: 1.35062761 | X181: 3.040823056 | Y181: 3.447271948 | Z181: 2.458759956 | AA181: 3.399455889 | AB181: 3.619733326 | AC181: 3.179389076 | AD181: 1.804644117 | AE181: 1.507899329 | AF181: 4.19874793 | AG181: 3.874132393 | AH181: 1.949080203 | AI181: 2.639540629 | AJ181: 3.105298572 | AK181: 2.111922681 | AL181: 1.220505433 | AM181: 2.078619416 | AN181: 4.273800911 | AO181: 4.74460664 | AP181: 2.116442279 | AQ181: 2.618897587 | AR181: 3.334805614 | AS181: 2.202898263 | AT181: 2.177313072 | AU181: 2.654730288 | AV181: 4.026833651 | AW181: 4.588500197 | AX181: 1.519956373 | AY181: 2.571477995 | AZ181: 2.053627622 | BA181: 1.719526211 | BB181: 2.019991795 | BC181: 2.877719744 | BD181: 4.860273406 | BE181: 4.795113201 | BF181: 2.104115924 | BG181: 2.730994189 | BH181: 2.247032653 | BI181: 1.791479182 | BJ181: 2.471188689 | BK181: 3.006589266 | BL181: 4.992960884 | BM181: 4.38184872 | BN181: 1.816847881 | BO181: 2.415531312 | BP181: 1.73647389 | BQ181: 2.141603615 | BR181: 2.612038961 | BS181: 2.807500015 | BT181: 4.098397979 | BU181: 3.588208948 | BV181: 1.218835444 | BW181: 2.174702777 | BX181: 2.02675326 | BY181: 2.352388005 | BZ181: 2.395836401 | CA181: 2.685131776 | CB181: 3.207954294 | CC181: 2.676901164 | CD181: 1.801771033 | CE181: 1.976590348 | CF181: 1.947674961 | CG181: 2.281751593 | CH181: 2.400521629 | CI181: 2.73893984 | CJ181: 2.71632033 | CK181: 2.669426318 | CL181: 1.459861561 | CM181: 1.753890417 | CN181: 1.570140803 | CO181: 2.318724137 | CP181: 2.087841849 | CQ181: 2.39336174 | CR181: 1.812055711 | CS181: 2.431948194 | CT181: 1.090286095 | CU181: 0.9483879229 | CV181: 1.341663403 | CW181: 2.419256019 | CX181: 2.07244874 | CY181: 2.254091469 | CZ181: 1.529508108 | DA181: 2.683691973 | DB181: 0.7048623662 | DC181: 0.973564257 | DD181: 1.813336405 | DE181: 2.083402457 | DF181: 2.189655729 | DG181: 2.275464845 | DH181: 2.274487371 | DI181: 2.168834016
A182: 64 | B182: -2.448633083 | C182: -1.776568615 | D182: -1.629940873 | E182: -3.005395952 | F182: -4.523165233 | G182: -5.228564265 | H182: -4.286765004 | I182: -2.752292576 | J182: -1.054009977 | K182: -0.3314056934 | L182: -0.1916965689 | M182: -0.8359039823 | N182: -3.36736159 | O182: -3.53077725 | P182: -2.440080993 | Q182: -0.7935413066 | R182: 1.742751508 | S182: 2.681883742 | T182: 3.248783266 | U182: 2.470249687 | V182: 0.09971351589 | W182: 0.10228925 | X182: 1.988988433 | Y182: 2.579874889 | Z182: 1.141311063 | AA182: 1.75348156 | AB182: 1.935905486 | AC182: 1.434064442 | AD182: 0.2016995466 | AE182: 0.3855515378 | AF182: 3.156741526 | AG182: 3.124544849 | AH182: 0.1871352372 | AI182: 0.7323594694 | AJ182: 1.270136896 | AK182: 0.4734525413 | AL182: 0.2184711624 | AM182: 0.9646874294 | AN182: 3.388736923 | AO182: 4.109411036 | AP182: 0.5934947944 | AQ182: 0.9583980735 | AR182: 1.739523689 | AS182: 0.8311731085 | AT182: 1.214585809 | AU182: 1.688824112 | AV182: 3.219472064 | AW182: 4.124069898 | AX182: 0.09406646329 | AY182: 1.027639676 | AZ182: 0.8361452536 | BA182: 0.9603901919 | BB182: 1.166967331 | BC182: 1.78801596 | BD182: 4.047802084 | BE182: 4.616560049 | BF182: 0.8293309696 | BG182: 1.796372424 | BH182: 1.298476492 | BI182: 0.981449264 | BJ182: 1.716994167 | BK182: 2.159531377 | BL182: 4.38184872 | BM182: 4.61510264 | BN182: 0.996072261 | BO182: 1.680607846 | BP182: 1.111077161 | BQ182: 1.527977665 | BR182: 1.960841201 | BS182: 2.090081107 | BT182: 4.239801872 | BU182: 4.165483791 | BV182: 0.5736159955 | BW182: 1.523442417 | BX182: 1.423927787 | BY182: 1.759138394 | BZ182: 1.842112898 | CA182: 2.233996178 | CB182: 3.495222337 | CC182: 3.356448954 | CD182: 1.279504091 | CE182: 1.474950146 | CF182: 1.416448377 | CG182: 1.584709025 | CH182: 2.284245816 | CI182: 2.844653839 | CJ182: 3.122683147 | CK182: 3.061132882 | CL182: 1.251418807 | CM182: 1.366788874 | CN182: 1.170755943 | CO182: 1.655362391 | CP182: 2.382410631 | CQ182: 2.705368569 | CR182: 2.090201743 | CS182: 2.217932074 | CT182: 1.089118212 | CU182: 0.8447592911 | CV182: 0.7835089851 | CW182: 1.784837048 | CX182: 2.453839978 | CY182: 2.506606663 | CZ182: 1.338481882 | DA182: 2.270362935 | DB182: 0.7320953751 | DC182: 1.032797665 | DD182: 1.212492617 | DE182: 1.405392282 | DF182: 2.334977998 | DG182: 2.236451276 | DH182: 1.660996402 | DI182: 2.015137025
A183: 65 | B183: 15.13754559 | C183: 16.28593829 | D183: 17.93009298 | E183: 19.38559633 | F183: 21.50707531 | G183: 20.3638618 | H183: 17.27480013 | I183: 15.67590663 | J183: 6.042266397 | K183: 7.438844125 | L183: 8.690028182 | M183: 9.794467122 | N183: 11.56722756 | O183: 10.79482521 | P183: 7.086283177 | Q183: 6.280282164 | R183: 3.696721368 | S183: 4.910188852 | T183: 5.04892311 | U183: 6.9371498 | V183: 8.601460422 | W183: 7.094532048 | X183: 5.022927757 | Y183: 4.038917431 | Z183: 4.401672091 | AA183: 5.469018829 | AB183: 6.338190537 | AC183: 9.310939873 | AD183: 8.477924626 | AE183: 6.387905466 | AF183: 4.634979808 | AG183: 3.56600286 | AH183: 6.535516226 | AI183: 6.662234195 | AJ183: 7.774255248 | AK183: 8.537404522 | AL183: 6.671355229 | AM183: 6.2087925 | AN183: 3.639792752 | AO183: 3.036122178 | AP183: 6.904022273 | AQ183: 8.542358735 | AR183: 7.958434912 | AS183: 8.282974155 | AT183: 6.44944269 | AU183: 5.23407927 | AV183: 2.176172576 | AW183: 1.910862177 | AX183: 6.897985599 | AY183: 8.633212051 | AZ183: 6.992593293 | BA183: 6.167517175 | BB183: 5.219425299 | BC183: 4.6827825 | BD183: 2.485699201 | BE183: 1.699868795 | BF183: 8.68461425 | BG183: 8.525963698 | BH183: 6.905945922 | BI183: 5.964819939 | BJ183: 4.546548986 | BK183: 3.754435745 | BL183: 1.816847881 | BM183: 0.996072261 | BN183: 7.103198252 | BO183: 7.009677909 | BP183: 5.680533879 | BQ183: 4.791737685 | BR183: 3.965971988 | BS183: 2.787123675 | BT183: 1.55537663 | BU183: 0.5309549911 | BV183: 6.152778433 | BW183: 5.978404492 | BX183: 5.106467945 | BY183: 4.200230118 | BZ183: 2.749731514 | CA183: 2.580409598 | CB183: 1.519406013 | CC183: 0.09265959078 | CD183: 5.336363629 | CE183: 4.701903251 | CF183: 3.703783444 | CG183: 3.398034019 | CH183: 1.936981426 | CI183: 2.184403514 | CJ183: 0.2638187554 | CK183: 0.8512214494 | CL183: 3.999461422 | CM183: 4.0137812 | CN183: 3.219648127 | CO183: 3.157026813 | CP183: 2.00855097 | CQ183: 2.459751125 | CR183: 0.2044709061 | CS183: 0.5801466227 | CT183: 2.13303881 | CU183: 2.021157396 | CV183: 3.19161338 | CW183: 3.194899886 | CX183: 1.595514067 | CY183: 1.607844987 | CZ183: 0.324271888 | DA183: 0.7730316158 | DB183: 0.491896754 | DC183: 0.7446023577 | DD183: 2.682935229 | DE183: 3.148639375 | DF183: 1.460992275 | DG183: 0.9498182704 | DH183: 1.071083182 | DI183: 0.03418553491
A184: 66 | B184: 13.56830434 | C184: 15.31724217 | D184: 17.22043649 | E184: 19.45035453 | F184: 21.94321655 | G184: 20.93333575 | H184: 17.29280419 | I184: 15.01659727 | J184: 6.308433309 | K184: 7.998755911 | L184: 9.722192021 | M184: 11.50961524 | N184: 13.35749256 | O184: 12.41962929 | P184: 8.353168453 | Q184: 6.949352911 | R184: 3.700297074 | S184: 5.402343505 | T184: 6.423126512 | U184: 8.759840359 | V184: 10.82303667 | W184: 9.256370826 | X184: 6.776253795 | Y184: 5.00636057 | Z184: 4.696173057 | AA184: 6.290394692 | AB184: 7.73644771 | AC184: 11.2025499 | AD184: 10.76507874 | AE184: 8.156244122 | AF184: 5.984745688 | AG184: 4.375748468 | AH184: 6.567482391 | AI184: 7.550004986 | AJ184: 9.136693088 | AK184: 10.42691093 | AL184: 8.526431895 | AM184: 8.167547356 | AN184: 4.4309696 | AO184: 3.926886037 | AP184: 7.885780299 | AQ184: 10.19396218 | AR184: 9.433482219 | AS184: 10.06321401 | AT184: 8.212290793 | AU184: 6.726741012 | AV184: 2.786650262 | AW184: 2.536601903 | AX184: 7.398371843 | AY184: 9.557886266 | AZ184: 8.177432307 | BA184: 7.726490378 | BB184: 6.746776963 | BC184: 5.852819846 | BD184: 3.120381289 | BE184: 2.358162214 | BF184: 9.002359097 | BG184: 9.428577891 | BH184: 8.270403268 | BI184: 7.3825927 | BJ184: 5.641249042 | BK184: 4.839996835 | BL184: 2.415531312 | BM184: 1.680607846 | BN184: 7.009677909 | BO184: 8.31389079 | BP184: 6.789973003 | BQ184: 6.046250307 | BR184: 4.90485643 | BS184: 3.428874686 | BT184: 2.486588318 | BU184: 1.32352893 | BV184: 6.279562915 | BW184: 6.727756308 | BX184: 5.92121439 | BY184: 5.114611829 | BZ184: 3.37215702 | CA184: 2.947061116 | CB184: 2.411051491 | CC184: 0.7003838492 | CD184: 5.881267688 | CE184: 5.306219063 | CF184: 4.061061572 | CG184: 3.689533765 | CH184: 2.364040756 | CI184: 2.743266421 | CJ184: 1.31904324 | CK184: 1.632703103 | CL184: 4.08444663 | CM184: 4.168129298 | CN184: 3.648135523 | CO184: 3.472092244 | CP184: 2.458085701 | CQ184: 3.058256537 | CR184: 0.9380178216 | CS184: 1.425387152 | CT184: 1.73165042 | CU184: 1.601678875 | CV184: 2.866328478 | CW184: 2.910647408 | CX184: 2.285315235 | CY184: 2.196655857 | CZ184: 0.8408741711 | DA184: 1.153839564 | DB184: 0.1994381172 | DC184: 0.6165251181 | DD184: 2.283085106 | DE184: 2.732174462 | DF184: 1.618113363 | DG184: 1.283122508 | DH184: 1.413862861 | DI184: 0.1707555242
A185: 67 | B185: 15.12658372 | C185: 16.83512557 | D185: 18.88267707 | E185: 20.55716119 | F185: 23.59190942 | G185: 22.78896245 | H185: 19.04927229 | I185: 16.60141323 | J185: 10.57993497 | K185: 12.28708396 | L185: 13.63201887 | M185: 15.34396525 | N185: 17.44531112 | O185: 16.81508049 | P185: 12.38739283 | Q185: 10.6365633 | R185: 2.78216718 | S185: 3.985320642 | T185: 4.523772976 | U185: 7.125292508 | V185: 9.741804118 | W185: 8.293938305 | X185: 5.775523694 | Y185: 4.073663107 | Z185: 3.726171138 | AA185: 4.757789835 | AB185: 6.156586281 | AC185: 9.698570909 | AD185: 9.661145166 | AE185: 7.38236447 | AF185: 4.890877692 | AG185: 3.39457308 | AH185: 5.385815117 | AI185: 6.058384298 | AJ185: 7.851600632 | AK185: 9.272985289 | AL185: 7.876573516 | AM185: 7.458049321 | AN185: 3.515219163 | AO185: 2.975533738 | AP185: 6.546876518 | AQ185: 8.555478351 | AR185: 8.13615796 | AS185: 9.143363914 | AT185: 7.219092269 | AU185: 5.99517839 | AV185: 2.051090361 | AW185: 1.736322606 | AX185: 6.429877544 | AY185: 7.888141497 | AZ185: 7.227838027 | BA185: 7.085386235 | BB185: 6.083564544 | BC185: 5.12667409 | BD185: 2.342398721 | BE185: 1.573519906 | BF185: 7.351916032 | BG185: 7.758419048 | BH185: 7.287582018 | BI185: 6.757085768 | BJ185: 5.120337784 | BK185: 4.237154408 | BL185: 1.73647389 | BM185: 1.111077161 | BN185: 5.680533879 | BO185: 6.789973003 | BP185: 6.232032469 | BQ185: 5.476645284 | BR185: 4.412496696 | BS185: 2.957442955 | BT185: 1.932752005 | BU185: 0.9134733574 | BV185: 5.553128286 | BW185: 6.066652078 | BX185: 5.599301092 | BY185: 4.754153811 | BZ185: 2.906139547 | CA185: 2.428760152 | CB185: 2.378030579 | CC185: 0.6760493563 | CD185: 5.47756668 | CE185: 5.057785265 | CF185: 4.043039258 | CG185: 3.545977342 | CH185: 2.098607766 | CI185: 2.338008235 | CJ185: 2.015720641 | CK185: 1.858880602 | CL185: 3.987063012 | CM185: 4.129934095 | CN185: 3.646229479 | CO185: 3.153563266 | CP185: 2.427221233 | CQ185: 3.012051127 | CR185: 1.524041683 | CS185: 1.847601494 | CT185: 1.710052074 | CU185: 1.556839582 | CV185: 2.722228868 | CW185: 2.348105113 | CX185: 2.455114803 | CY185: 2.474203276 | CZ185: 1.295606016 | DA185: 1.559422489 | DB185: 0.4536115633 | DC185: 0.7722064028 | DD185: 1.982079596 | DE185: 2.30004387 | DF185: 2.019918761 | DG185: 1.660899241 | DH185: 1.706665147 | DI185: 0.546671208
A186: 68 | B186: 11.83810057 | C186: 13.01675456 | D186: 14.75488181 | E186: 16.7079231 | F186: 20.16870037 | G186: 19.91632179 | H186: 16.80697182 | I186: 14.39141279 | J186: 9.224185561 | K186: 10.45177426 | L186: 12.24543336 | M186: 14.11572023 | N186: 16.03087638 | O186: 15.85349209 | P186: 12.14785901 | Q186: 10.35693508 | R186: 2.551113719 | S186: 3.448732292 | T186: 4.674175309 | U186: 7.050045206 | V186: 9.027203846 | W186: 8.239726926 | X186: 5.908607965 | Y186: 4.075385914 | Z186: 3.369718875 | AA186: 4.377215985 | AB186: 6.036782691 | AC186: 8.987144659 | AD186: 9.163875235 | AE186: 7.463821574 | AF186: 5.258044683 | AG186: 3.706041287 | AH186: 4.720930427 | AI186: 5.492815026 | AJ186: 7.029343151 | AK186: 8.452992171 | AL186: 7.542799778 | AM186: 7.720127662 | AN186: 4.005676767 | AO186: 3.195263423 | AP186: 6.179322189 | AQ186: 7.404671958 | AR186: 7.511074884 | AS186: 8.331890281 | AT186: 7.122116204 | AU186: 6.320138553 | AV186: 2.455394548 | AW186: 1.947498898 | AX186: 5.797520464 | AY186: 6.850411464 | AZ186: 6.375588893 | BA186: 6.523293226 | BB186: 6.032982342 | BC186: 5.226427383 | BD186: 2.577085597 | BE186: 1.784756515 | BF186: 5.972055144 | BG186: 6.601041273 | BH186: 6.258619588 | BI186: 6.267456313 | BJ186: 5.212946838 | BK186: 4.51635747 | BL186: 2.141603615 | BM186: 1.527977665 | BN186: 4.791737685 | BO186: 6.046250307 | BP186: 5.476645284 | BQ186: 5.649337826 | BR186: 4.683692158 | BS186: 3.328088491 | BT186: 2.357317438 | BU186: 1.245472774 | BV186: 4.614407844 | BW186: 5.450562226 | BX186: 5.206438382 | BY186: 4.826589324 | BZ186: 3.214005313 | CA186: 2.705965878 | CB186: 2.966787327 | CC186: 0.968499842 | CD186: 4.893268234 | CE186: 4.890943879 | CF186: 4.115707891 | CG186: 3.63314638 | CH186: 2.274059603 | CI186: 2.700250031 | CJ186: 2.554719095 | CK186: 2.170787009 | CL186: 3.661454024 | CM186: 3.947951304 | CN186: 3.618876487 | CO186: 3.260381569 | CP186: 2.465623799 | CQ186: 3.345636739 | CR186: 1.870537918 | CS186: 2.389419237 | CT186: 1.72833294 | CU186: 1.548923601 | CV186: 2.723878968 | CW186: 2.268208774 | CX186: 2.905656352 | CY186: 3.02817131 | CZ186: 1.641552544 | DA186: 1.993188183 | DB186: 0.4207360663 | DC186: 0.5313530887 | DD186: 1.707429716 | DE186: 1.900179727 | DF186: 2.239334794 | DG186: 1.948315634 | DH186: 2.037726865 | DI186: 0.8246920398
A187: 69 | B187: 10.62014968 | C187: 11.93265903 | D187: 13.13944265 | E187: 14.64317581 | F187: 17.00699551 | G187: 16.70692574 | H187: 14.9003058 | I187: 13.07739028 | J187: 9.669292963 | K187: 11.30223669 | L187: 12.54878116 | M187: 14.02113601 | N187: 15.04274064 | O187: 15.00514145 | P187: 12.55342726 | Q187: 11.37064688 | R187: 2.661277869 | S187: 3.821942803 | T187: 4.548534584 | U187: 6.329097217 | V187: 7.615744895 | W187: 7.276462019 | X187: 5.928006504 | Y187: 4.750918819 | Z187: 3.463537547 | AA187: 4.425564471 | AB187: 5.480728638 | AC187: 7.676819138 | AD187: 7.832341314 | AE187: 6.780913592 | AF187: 5.716594157 | AG187: 4.631959027 | AH187: 4.377851441 | AI187: 4.878075315 | AJ187: 6.217336438 | AK187: 7.059934069 | AL187: 6.416522199 | AM187: 7.159712793 | AN187: 4.798817693 | AO187: 3.883114859 | AP187: 5.174154326 | AQ187: 6.210068956 | AR187: 6.585620776 | AS187: 6.867712572 | AT187: 6.335083354 | AU187: 6.043562415 | AV187: 3.395870728 | AW187: 2.622221262 | AX187: 4.942944691 | AY187: 6.135741093 | AZ187: 5.401559047 | BA187: 5.541392068 | BB187: 5.356663023 | BC187: 5.17942643 | BD187: 3.182472784 | BE187: 2.17080592 | BF187: 5.030780486 | BG187: 5.631653618 | BH187: 5.11359849 | BI187: 5.258566677 | BJ187: 4.764280033 | BK187: 4.83779605 | BL187: 2.612038961 | BM187: 1.960841201 | BN187: 3.965971988 | BO187: 4.90485643 | BP187: 4.412496696 | BQ187: 4.683692158 | BR187: 4.81475138 | BS187: 3.679644902 | BT187: 2.538738132 | BU187: 1.562743556 | BV187: 3.615421091 | BW187: 4.493153039 | BX187: 4.501975744 | BY187: 4.630755931 | BZ187: 3.484420556 | CA187: 3.124900235 | CB187: 2.663204779 | CC187: 1.128200902 | CD187: 4.092179701 | CE187: 4.203578573 | CF187: 3.680564342 | CG187: 3.67084176 | CH187: 2.584504689 | CI187: 2.427887011 | CJ187: 2.183394413 | CK187: 2.294558534 | CL187: 3.01355027 | CM187: 3.367358329 | CN187: 3.444640135 | CO187: 3.394452444 | CP187: 2.117664286 | CQ187: 2.780736506 | CR187: 1.716534447 | CS187: 2.286645488 | CT187: 1.693597371 | CU187: 1.656643737 | CV187: 2.653452854 | CW187: 2.510079014 | CX187: 2.446999611 | CY187: 2.678737434 | CZ187: 1.578980462 | DA187: 2.147330874 | DB187: 0.2107667829 | DC187: 0.4498405581 | DD187: 1.594464211 | DE187: 1.866667144 | DF187: 2.26269116 | DG187: 2.01887347 | DH187: 2.422644251 | DI187: 1.52578014
A188: 70 | B188: 7.526997486 | C188: 8.50709237 | D188: 8.991505801 | E188: 9.719805392 | F188: 10.72973315 | G188: 10.39962901 | H188: 9.623780718 | I188: 8.848045886 | J188: 7.565611979 | K188: 8.875106744 | L188: 9.736165542 | M188: 10.49086478 | N188: 10.40472114 | O188: 10.48591154 | P188: 9.338251785 | Q188: 9.072580783 | R188: 2.712997307 | S188: 3.578983908 | T188: 4.170760459 | U188: 4.882291042 | V188: 4.841538363 | W188: 4.800633097 | X188: 4.499524558 | Y188: 4.052101929 | Z188: 3.273771148 | AA188: 3.83484234 | AB188: 4.300870898 | AC188: 5.349939379 | AD188: 4.995098417 | AE188: 4.452349498 | AF188: 4.640744562 | AG188: 3.960680321 | AH188: 3.356573502 | AI188: 3.567590686 | AJ188: 4.281926537 | AK188: 4.501858369 | AL188: 3.978108586 | AM188: 4.94822462 | AN188: 4.253065925 | AO188: 3.712011121 | AP188: 3.762116649 | AQ188: 4.10625299 | AR188: 4.59451046 | AS188: 4.560536201 | AT188: 4.249016479 | AU188: 4.476734201 | AV188: 3.342107005 | AW188: 2.823132439 | AX188: 3.458269355 | AY188: 4.357015382 | AZ188: 3.671645781 | BA188: 3.475967583 | BB188: 3.859825657 | BC188: 4.020510387 | BD188: 3.170353792 | BE188: 2.481482496 | BF188: 3.732217267 | BG188: 3.932469185 | BH188: 3.632647861 | BI188: 3.591355256 | BJ188: 3.66552075 | BK188: 3.960709665 | BL188: 2.807500015 | BM188: 2.090081107 | BN188: 2.787123675 | BO188: 3.428874686 | BP188: 2.957442955 | BQ188: 3.328088491 | BR188: 3.679644902 | BS188: 3.390626012 | BT188: 2.330520348 | BU188: 1.538157358 | BV188: 2.369974074 | BW188: 3.07299691 | BX188: 3.27677791 | BY188: 3.472999946 | BZ188: 2.962427489 | CA188: 2.891280495 | CB188: 2.003900303 | CC188: 1.056830895 | CD188: 3.015872343 | CE188: 3.10639603 | CF188: 2.876939199 | CG188: 3.0941088 | CH188: 2.283206394 | CI188: 2.127404473 | CJ188: 1.517466062 | CK188: 1.892994407 | CL188: 2.318176386 | CM188: 2.570147743 | CN188: 2.662533784 | CO188: 2.907231789 | CP188: 1.62938921 | CQ188: 2.022917046 | CR188: 1.13552316 | CS188: 2.172848249 | CT188: 1.550630432 | CU188: 1.482316094 | CV188: 2.251544426 | CW188: 2.455288258 | CX188: 1.705315331 | CY188: 1.895709687 | CZ188: 1.470469021 | DA188: 2.359836767 | DB188: 0.5148097025 | DC188: 0.693167229 | DD188: 1.552081972 | DE188: 1.96619938 | DF188: 1.694010141 | DG188: 1.778864605 | DH188: 2.415366987 | DI188: 1.754198201
A189: 71 | B189: -0.9253070626 | C189: -0.3244919665 | D189: 0.1231579133 | E189: -1.318375832 | F189: -2.102184124 | G189: -2.417751008 | H189: -2.109999031 | I189: -0.8667466055 | J189: 1.079624186 | K189: 1.610598088 | L189: 1.652984891 | M189: 1.406081536 | N189: -0.1817444538 | O189: -0.1400009324 | P189: 0.5651555239 | Q189: 1.859179256 | R189: 0.8881525865 | S189: 1.44415969 | T189: 2.149323971 | U189: 2.028830801 | V189: 0.8391973355 | W189: 0.9829885096 | X189: 2.538284607 | Y189: 2.771840768 | Z189: 0.716416001 | AA189: 1.028273176 | AB189: 1.606778176 | AC189: 1.933295844 | AD189: 1.437924783 | AE189: 1.155534332 | AF189: 3.42184554 | AG189: 3.166522795 | AH189: 0.1165174099 | AI189: 0.5155739457 | AJ189: 1.179322704 | AK189: 1.433650368 | AL189: 1.285233632 | AM189: 1.983104347 | AN189: 3.521903683 | AO189: 4.0508571 | AP189: 0.8428424884 | AQ189: 1.432996001 | AR189: 2.262588131 | AS189: 2.06412162 | AT189: 2.222853356 | AU189: 2.428320321 | AV189: 3.104859719 | AW189: 3.802590236 | AX189: 0.9224206101 | AY189: 1.78602645 | AZ189: 1.717689289 | BA189: 1.829155325 | BB189: 1.905133614 | BC189: 2.241950958 | BD189: 3.825997139 | BE189: 4.284338924 | BF189: 1.544818728 | BG189: 2.494470717 | BH189: 2.064811851 | BI189: 1.840908498 | BJ189: 2.289217962 | BK189: 2.618911933 | BL189: 4.098397979 | BM189: 4.239801872 | BN189: 1.55537663 | BO189: 2.486588318 | BP189: 1.932752005 | BQ189: 2.357317438 | BR189: 2.538738132 | BS189: 2.330520348 | BT189: 4.706407851 | BU189: 4.126384472 | BV189: 1.239507504 | BW189: 2.038834105 | BX189: 2.072472867 | BY189: 2.59241904 | BZ189: 2.36517571 | CA189: 2.582987288 | CB189: 4.53183861 | CC189: 3.6001196 | CD189: 2.036823402 | CE189: 2.264036737 | CF189: 1.991289965 | CG189: 2.187628072 | CH189: 2.847543877 | CI189: 3.661455981 | CJ189: 4.195823657 | CK189: 3.769334574 | CL189: 1.930786948 | CM189: 2.237099122 | CN189: 2.113801989 | CO189: 2.201003631 | CP189: 3.250291538 | CQ189: 3.90105501 | CR189: 2.956788262 | CS189: 3.070717874 | CT189: 1.540739287 | CU189: 1.315505355 | CV189: 1.484995183 | CW189: 2.20600186 | CX189: 3.71338702 | CY189: 3.695934628 | CZ189: 2.129294867 | DA189: 2.886645804 | DB189: 0.9811075716 | DC189: 1.402959355 | DD189: 1.556433007 | DE189: 1.708177331 | DF189: 3.354252081 | DG189: 2.874812425 | DH189: 2.474538773 | DI189: 2.231168087
A190: 72 | B190: -1.927810834 | C190: -1.299801854 | D190: -0.9053366458 | E190: -2.642728345 | F190: -4.024277806 | G190: -4.386516993 | H190: -3.665181666 | I190: -2.304976564 | J190: -2.175282807 | K190: -1.735589663 | L190: -1.88307294 | M190: -2.261792588 | N190: -4.201225851 | O190: -4.414571955 | P190: -3.443799272 | Q190: -1.944801224 | R190: 0.4448811287 | S190: 1.162662595 | T190: 1.82723461 | U190: 1.477411765 | V190: -0.2331564335 | W190: -0.01118357685 | X190: 1.464314972 | Y190: 1.845961502 | Z190: -0.09424578656 | AA190: 0.4303520318 | AB190: 0.9006566347 | AC190: 0.7484770443 | AD190: -0.017567159 | AE190: 0.1571249999 | AF190: 2.270151986 | AG190: 2.28504462 | AH190: -0.8193407075 | AI190: -0.338555801 | AJ190: 0.4265855912 | AK190: 0.3212168716 | AL190: 0.1596521538 | AM190: 0.6133921777 | AN190: 2.565025618 | AO190: 3.161299597 | AP190: -0.04515392384 | AQ190: 0.3402502429 | AR190: 1.093632594 | AS190: 0.5261540183 | AT190: 0.8448134141 | AU190: 1.296827044 | AV190: 2.329776319 | AW190: 3.257640532 | AX190: -0.3847833822 | AY190: 0.4262129248 | AZ190: 0.4287058442 | BA190: 0.7461712732 | BB190: 0.7544357934 | BC190: 1.126248561 | BD190: 3.075861843 | BE190: 3.946576057 | BF190: 0.2007823896 | BG190: 1.088910197 | BH190: 0.8727803443 | BI190: 0.710140991 | BJ190: 1.211380813 | BK190: 1.622141941 | BL190: 3.588208948 | BM190: 4.165483791 | BN190: 0.5309549911 | BO190: 1.32352893 | BP190: 0.9134733574 | BQ190: 1.245472774 | BR190: 1.562743556 | BS190: 1.538157358 | BT190: 4.126384472 | BU190: 4.348139533 | BV190: 0.3038723995 | BW190: 1.1252988 | BX190: 1.171866443 | BY190: 1.536632784 | BZ190: 1.622067278 | CA190: 1.910423324 | CB190: 3.886521349 | CC190: 3.899684654 | CD190: 1.116390346 | CE190: 1.323696842 | CF190: 1.139345354 | CG190: 1.267748636 | CH190: 2.373166028 | CI190: 2.974495945 | CJ190: 3.673337614 | CK190: 3.520798399 | CL190: 1.329146965 | CM190: 1.411659793 | CN190: 1.321718743 | CO190: 1.408304166 | CP190: 2.796847561 | CQ190: 3.266538226 | CR190: 2.476201263 | CS190: 2.3282687 | CT190: 1.103317028 | CU190: 0.9605176745 | CV190: 0.6294217212 | CW190: 1.496756181 | CX190: 3.108650287 | CY190: 2.982393015 | CZ190: 1.458693025 | DA190: 2.091211496 | DB190: 0.785836275 | DC190: 1.205111672 | DD190: 0.9093238171 | DE190: 1.140861777 | DF190: 2.769431968 | DG190: 2.463240103 | DH190: 1.526068688 | DI190: 1.849900093
A191: 73 | B191: 18.98175252 | C191: 20.12689914 | D191: 22.79563262 | E191: 23.55843694 | F191: 25.82502887 | G191: 24.8869703 | H191: 22.94414424 | I191: 21.28241457 | J191: 8.405512914 | K191: 9.629074993 | L191: 11.27467829 | M191: 12.1844315 | N191: 14.82282772 | O191: 14.05433201 | P191: 11.30920649 | Q191: 10.44800195 | R191: 0.6447378842 | S191: 0.8719417635 | T191: 1.673901482 | U191: 3.781037536 | V191: 6.51510337 | W191: 5.196487245 | X191: 3.98396398 | Y191: 3.229019234 | Z191: 1.345067936 | AA191: 1.644606582 | AB191: 3.679992463 | AC191: 6.439039332 | AD191: 6.830758938 | AE191: 4.855590786 | AF191: 3.792471513 | AG191: 3.047308689 | AH191: 3.345058014 | AI191: 3.231098732 | AJ191: 5.42955793 | AK191: 6.671989381 | AL191: 5.452206784 | AM191: 5.377748504 | AN191: 2.889092752 | AO191: 2.673184934 | AP191: 4.866330294 | AQ191: 6.33300679 | AR191: 6.148195257 | AS191: 7.031695546 | AT191: 5.313478068 | AU191: 4.291669659 | AV191: 1.665113664 | AW191: 1.515277666 | AX191: 5.250405186 | AY191: 6.398057119 | AZ191: 5.763597719 | BA191: 5.406582055 | BB191: 4.615699297 | BC191: 3.986103795 | BD191: 2.037863803 | BE191: 1.323233862 | BF191: 7.349293674 | BG191: 6.869677303 | BH191: 6.107776119 | BI191: 5.490507299 | BJ191: 4.03859791 | BK191: 3.191174853 | BL191: 1.218835444 | BM191: 0.5736159955 | BN191: 6.152778433 | BO191: 6.279562915 | BP191: 5.553128286 | BQ191: 4.614407844 | BR191: 3.615421091 | BS191: 2.369974074 | BT191: 1.239507504 | BU191: 0.3038723995 | BV191: 6.858596103 | BW191: 6.446852936 | BX191: 5.317944848 | BY191: 4.357701375 | BZ191: 2.661389702 | CA191: 2.209550178 | CB191: 1.728237409 | CC191: 0.2047457598 | CD191: 5.945357823 | CE191: 5.210941352 | CF191: 3.996076451 | CG191: 3.349779759 | CH191: 1.984628595 | CI191: 2.073306557 | CJ191: 1.031045188 | CK191: 1.181330147 | CL191: 4.98824729 | CM191: 4.702315368 | CN191: 3.563100431 | CO191: 2.788044092 | CP191: 2.076697723 | CQ191: 2.69621591 | CR191: 0.6788011532 | CS191: 1.194451393 | CT191: 2.983184972 | CU191: 2.502440821 | CV191: 2.971061415 | CW191: 2.402642534 | CX191: 1.925977498 | CY191: 1.814129992 | CZ191: 0.8114292912 | DA191: 1.417798518 | DB191: 1.550420461 | DC191: 1.522061954 | DD191: 2.339276866 | DE191: 2.607111158 | DF191: 1.401044182 | DG191: 0.919544591 | DH191: 1.763929586 | DI191: 0.7859679961
A192: 74 | B192: 18.15521964 | C192: 19.5997996 | D192: 21.96719631 | E192: 23.27706179 | F192: 25.4421398 | G192: 24.45670923 | H192: 21.93946446 | I192: 20.14091505 | J192: 10.6472213 | K192: 11.98508468 | L192: 13.84165559 | M192: 15.02772444 | N192: 16.96928676 | O192: 16.11212188 | P192: 12.86676728 | Q192: 11.78808992 | R192: 2.033131625 | S192: 2.618847703 | T192: 3.241259188 | U192: 5.729407619 | V192: 7.972963683 | W192: 6.532349051 | X192: 5.23212106 | Y192: 3.975725869 | Z192: 2.308467499 | AA192: 3.192900595 | AB192: 5.338319231 | AC192: 8.16734195 | AD192: 8.027311348 | AE192: 5.993451018 | AF192: 4.946993158 | AG192: 3.76819473 | AH192: 4.324595366 | AI192: 4.763761625 | AJ192: 7.009379581 | AK192: 7.869030854 | AL192: 6.679277404 | AM192: 6.444321543 | AN192: 3.772134625 | AO192: 3.396125041 | AP192: 5.677407459 | AQ192: 7.237024921 | AR192: 7.328613789 | AS192: 7.902199137 | AT192: 6.513804743 | AU192: 5.392729496 | AV192: 2.492901149 | AW192: 2.280725864 | AX192: 5.468020813 | AY192: 6.837406288 | AZ192: 6.416526111 | BA192: 6.463086908 | BB192: 5.702675411 | BC192: 5.073031655 | BD192: 2.875199111 | BE192: 2.118938785 | BF192: 7.045321831 | BG192: 7.310966424 | BH192: 6.77972908 | BI192: 6.41748272 | BJ192: 4.894233972 | BK192: 4.14605493 | BL192: 2.174702777 | BM192: 1.523442417 | BN192: 5.978404492 | BO192: 6.727756308 | BP192: 6.066652078 | BQ192: 5.450562226 | BR192: 4.493153039 | BS192: 3.07299691 | BT192: 2.038834105 | BU192: 1.1252988 | BV192: 6.446852936 | BW192: 7.021021247 | BX192: 5.870842812 | BY192: 4.973538544 | BZ192: 3.130830618 | CA192: 2.545450039 | CB192: 2.565034095 | CC192: 0.7339991361 | CD192: 6.10015488 | CE192: 5.587881461 | CF192: 4.432649044 | CG192: 3.610603816 | CH192: 2.253220936 | CI192: 2.403180504 | CJ192: 1.930670877 | CK192: 1.891660242 | CL192: 4.860231346 | CM192: 4.845815712 | CN192: 3.83283718 | CO192: 3.143585393 | CP192: 2.431586287 | CQ192: 3.080285911 | CR192: 1.360214557 | CS192: 1.623324823 | CT192: 2.766100794 | CU192: 2.255632018 | CV192: 2.740460175 | CW192: 2.300772574 | CX192: 2.383714801 | CY192: 2.350452618 | CZ192: 1.046404063 | DA192: 1.60865781 | DB192: 1.22421775 | DC192: 1.239008985 | DD192: 2.113443668 | DE192: 2.295425155 | DF192: 1.766295675 | DG192: 1.424400222 | DH192: 1.716842557 | DI192: 0.74665512
A193: 75 | B193: 17.32863689 | C193: 18.9455941 | D193: 21.19513728 | E193: 22.46200528 | F193: 25.29918557 | G193: 24.80941005 | H193: 21.59601476 | I193: 19.24687088 | J193: 11.81876398 | K193: 13.54287304 | L193: 15.13730986 | M193: 16.67368116 | N193: 18.36503862 | O193: 17.98065236 | P193: 13.89460356 | Q193: 12.46098645 | R193: 2.460476243 | S193: 3.422430786 | T193: 4.236242142 | U193: 6.669377782 | V193: 8.555840258 | W193: 7.572040229 | X193: 5.372432385 | Y193: 3.995861589 | Z193: 3.481760051 | AA193: 4.340080093 | AB193: 5.818068953 | AC193: 8.528804831 | AD193: 8.491862934 | AE193: 6.75765569 | AF193: 4.75656848 | AG193: 3.524973697 | AH193: 4.864432401 | AI193: 5.096500832 | AJ193: 7.190474884 | AK193: 8.108251348 | AL193: 7.005387845 | AM193: 7.019189215 | AN193: 3.634242208 | AO193: 3.139806889 | AP193: 6.043844115 | AQ193: 7.17385064 | AR193: 7.256158061 | AS193: 8.079846543 | AT193: 6.640955371 | AU193: 5.749216645 | AV193: 2.337666543 | AW193: 2.147391518 | AX193: 5.976357272 | AY193: 7.049657868 | AZ193: 6.381579594 | BA193: 6.248444786 | BB193: 5.60338575 | BC193: 4.886901932 | BD193: 2.57202379 | BE193: 1.81186465 | BF193: 6.464503236 | BG193: 6.623889013 | BH193: 6.330374651 | BI193: 6.125791586 | BJ193: 4.882095417 | BK193: 4.317051073 | BL193: 2.02675326 | BM193: 1.423927787 | BN193: 5.106467945 | BO193: 5.92121439 | BP193: 5.599301092 | BQ193: 5.206438382 | BR193: 4.501975744 | BS193: 3.27677791 | BT193: 2.072472867 | BU193: 1.171866443 | BV193: 5.317944848 | BW193: 5.870842812 | BX193: 5.834929905 | BY193: 4.92123223 | BZ193: 3.219281655 | CA193: 2.762600078 | CB193: 2.396152662 | CC193: 1.055361749 | CD193: 5.447885093 | CE193: 5.184362058 | CF193: 4.38103231 | CG193: 3.919383804 | CH193: 2.459365091 | CI193: 2.533861191 | CJ193: 2.311000847 | CK193: 2.385121347 | CL193: 4.479819213 | CM193: 4.440721525 | CN193: 3.906885298 | CO193: 3.357275797 | CP193: 2.576071279 | CQ193: 3.224201633 | CR193: 1.563269788 | CS193: 2.175700467 | CT193: 2.470365106 | CU193: 2.286852851 | CV193: 3.159762634 | CW193: 2.740185322 | CX193: 2.758131994 | CY193: 2.856723272 | CZ193: 1.538824441 | DA193: 2.08168291 | DB193: 1.285235262 | DC193: 1.433429312 | DD193: 2.361530883 | DE193: 2.743708535 | DF193: 2.346277972 | DG193: 2.006081526 | DH193: 2.334642174 | DI193: 1.357383858
A194: 76 | B194: 13.84226008 | C194: 15.14096741 | D194: 16.87804708 | E194: 17.9522306 | F194: 20.34966461 | G194: 20.00252607 | H194: 18.14931404 | I194: 16.23449436 | J194: 10.83757555 | K194: 12.21416917 | L194: 13.57544336 | M194: 14.97723092 | N194: 16.38639225 | O194: 16.18935641 | P194: 13.71954167 | Q194: 12.52657312 | R194: 1.555213283 | S194: 2.198781001 | T194: 3.181296423 | U194: 5.256336547 | V194: 6.87729952 | W194: 6.539418626 | X194: 5.322016464 | Y194: 4.073746573 | Z194: 2.357132572 | AA194: 3.002710015 | AB194: 4.596835142 | AC194: 6.965702628 | AD194: 7.280442996 | AE194: 6.173766102 | AF194: 5.057287073 | AG194: 3.988025489 | AH194: 3.457524022 | AI194: 3.691310696 | AJ194: 5.388002208 | AK194: 6.562673919 | AL194: 6.090513158 | AM194: 6.759056368 | AN194: 4.105412453 | AO194: 3.446495316 | AP194: 4.455186718 | AQ194: 5.484185338 | AR194: 5.96909305 | AS194: 6.660222514 | AT194: 5.997569584 | AU194: 5.650963799 | AV194: 2.867182057 | AW194: 2.336339551 | AX194: 4.700938491 | AY194: 5.678861934 | AZ194: 5.256326114 | BA194: 5.357358145 | BB194: 5.258599281 | BC194: 4.86322148 | BD194: 2.954373593 | BE194: 2.075124243 | BF194: 5.042479536 | BG194: 5.411455083 | BH194: 5.239678394 | BI194: 5.354310302 | BJ194: 4.713446778 | BK194: 4.498281685 | BL194: 2.352388005 | BM194: 1.759138394 | BN194: 4.200230118 | BO194: 5.114611829 | BP194: 4.754153811 | BQ194: 4.826589324 | BR194: 4.630755931 | BS194: 3.472999946 | BT194: 2.59241904 | BU194: 1.536632784 | BV194: 4.357701375 | BW194: 4.973538544 | BX194: 4.92123223 | BY194: 4.916553523 | BZ194: 3.513185964 | CA194: 3.148435272 | CB194: 3.083417221 | CC194: 1.359477702 | CD194: 4.824511783 | CE194: 4.829324819 | CF194: 4.151029031 | CG194: 3.954231205 | CH194: 2.910082703 | CI194: 2.928365851 | CJ194: 2.921325945 | CK194: 2.665732911 | CL194: 3.936345828 | CM194: 4.209172806 | CN194: 3.945498488 | CO194: 3.53119654 | CP194: 2.780946478 | CQ194: 3.436432346 | CR194: 2.285883853 | CS194: 2.710735877 | CT194: 2.45629312 | CU194: 2.241643826 | CV194: 3.054653118 | CW194: 2.691953885 | CX194: 3.162316849 | CY194: 3.274236737 | CZ194: 2.106894457 | DA194: 2.744318234 | DB194: 1.061925632 | DC194: 1.2799449 | DD194: 1.975725032 | DE194: 2.191722185 | DF194: 2.792629877 | DG194: 2.309724718 | DH194: 2.978523546 | DI194: 1.795291268
A195: 77 | B195: 8.611995501 | C195: 9.75005527 | D195: 10.57130985 | E195: 10.98754164 | F195: 11.89186494 | G195: 11.51153367 | H195: 11.03372455 | I195: 10.3965978 | J195: 6.515149668 | K195: 7.862091369 | L195: 8.793156013 | M195: 9.51467588 | N195: 9.452939771 | O195: 9.339939706 | P195: 8.432809827 | Q195: 8.345041523 | R195: 1.478474337 | S195: 2.126766409 | T195: 2.963257267 | U195: 3.857487934 | V195: 3.923977414 | W195: 4.085410737 | X195: 3.834280569 | Y195: 3.499820838 | Z195: 1.899584374 | AA195: 2.496416864 | AB195: 3.323597584 | AC195: 4.407509553 | AD195: 4.401404737 | AE195: 3.758966429 | AF195: 3.970113703 | AG195: 3.596911669 | AH195: 2.365186143 | AI195: 2.392299494 | AJ195: 3.394134553 | AK195: 4.02472807 | AL195: 3.594171936 | AM195: 4.576791692 | AN195: 3.762872416 | AO195: 3.380608688 | AP195: 2.813483869 | AQ195: 3.43564039 | AR195: 3.954572245 | AS195: 4.084599217 | AT195: 3.911968298 | AU195: 4.01966822 | AV195: 2.955379759 | AW195: 2.497652238 | AX195: 3.012877318 | AY195: 3.80949516 | AZ195: 3.201134793 | BA195: 3.144629707 | BB195: 3.431076775 | BC195: 3.450561715 | BD195: 2.873370014 | BE195: 2.203420257 | BF195: 3.413697743 | BG195: 3.499334383 | BH195: 3.236968472 | BI195: 3.304068303 | BJ195: 3.231154159 | BK195: 3.527412493 | BL195: 2.395836401 | BM195: 1.842112898 | BN195: 2.749731514 | BO195: 3.37215702 | BP195: 2.906139547 | BQ195: 3.214005313 | BR195: 3.484420556 | BS195: 2.962427489 | BT195: 2.36517571 | BU195: 1.622067278 | BV195: 2.661389702 | BW195: 3.130830618 | BX195: 3.219281655 | BY195: 3.513185964 | BZ195: 3.154922536 | CA195: 2.818513071 | CB195: 2.428884048 | CC195: 1.359629311 | CD195: 3.116134914 | CE195: 3.28775282 | CF195: 2.897241527 | CG195: 2.994527332 | CH195: 2.563679063 | CI195: 2.366035809 | CJ195: 1.955577248 | CK195: 2.17932997 | CL195: 2.585508573 | CM195: 2.721583631 | CN195: 2.767422895 | CO195: 2.818831615 | CP195: 2.059705051 | CQ195: 2.475178142 | CR195: 1.586141655 | CS195: 2.11459688 | CT195: 1.746999513 | CU195: 1.688615771 | CV195: 2.167555604 | CW195: 2.322451779 | CX195: 2.163756885 | CY195: 2.304952111 | CZ195: 1.619738358 | DA195: 2.197012222 | DB195: 0.8522641327 | DC195: 1.082324143 | DD195: 1.630940193 | DE195: 1.920262629 | DF195: 1.997960465 | DG195: 1.896451434 | DH195: 2.346541088 | DI195: 1.74597411
A196: 78 | B196: 6.297274837 | C196: 7.138161398 | D196: 7.75325193 | E196: 7.768975645 | F196: 8.226498412 | G196: 7.933570274 | H196: 7.955288604 | I196: 7.632261545 | J196: 4.464202439 | K196: 5.499102426 | L196: 6.338427896 | M196: 6.575922322 | N196: 6.285249093 | O196: 6.264377821 | P196: 6.230060565 | Q196: 6.54461248 | R196: 1.109341311 | S196: 1.741329312 | T196: 2.602592864 | U196: 2.895969636 | V196: 2.687842491 | W196: 2.915781922 | X196: 3.485399987 | Y196: 3.515491083 | Z196: 1.62714017 | AA196: 1.96955892 | AB196: 2.574184798 | AC196: 3.409074137 | AD196: 3.197575063 | AE196: 2.991097041 | AF196: 3.810606964 | AG196: 3.670483114 | AH196: 2.039774085 | AI196: 1.838989413 | AJ196: 2.472010315 | AK196: 2.685838635 | AL196: 2.659565495 | AM196: 3.644614266 | AN196: 3.701654062 | AO196: 3.541116051 | AP196: 2.231650629 | AQ196: 2.516423145 | AR196: 3.089809607 | AS196: 3.129634369 | AT196: 3.06131351 | AU196: 3.556144645 | AV196: 2.949591856 | AW196: 2.771429303 | AX196: 2.592317967 | AY196: 3.273894392 | AZ196: 2.589523132 | BA196: 2.378999577 | BB196: 2.874741022 | BC196: 3.119614437 | BD196: 3.066926654 | BE196: 2.630790958 | BF196: 3.133301693 | BG196: 3.092204061 | BH196: 2.693615396 | BI196: 2.615281778 | BJ196: 2.961083543 | BK196: 3.17566176 | BL196: 2.685131776 | BM196: 2.233996178 | BN196: 2.580409598 | BO196: 2.947061116 | BP196: 2.428760152 | BQ196: 2.705965878 | BR196: 3.124900235 | BS196: 2.891280495 | BT196: 2.582987288 | BU196: 1.910423324 | BV196: 2.209550178 | BW196: 2.545450039 | BX196: 2.762600078 | BY196: 3.148435272 | BZ196: 2.818513071 | CA196: 3.043499211 | CB196: 2.338868335 | CC196: 1.575949573 | CD196: 2.733543188 | CE196: 2.844276282 | CF196: 2.64861569 | CG196: 2.920523881 | CH196: 2.719115816 | CI196: 2.632872412 | CJ196: 1.729667431 | CK196: 1.998318459 | CL196: 2.378353361 | CM196: 2.607383729 | CN196: 2.538436217 | CO196: 2.790046318 | CP196: 2.266540416 | CQ196: 2.45351524 | CR196: 1.318484404 | CS196: 2.118266812 | CT196: 1.852218905 | CU196: 1.709519321 | CV196: 2.334571749 | CW196: 2.609415625 | CX196: 2.106021315 | CY196: 2.18790749 | CZ196: 1.492622291 | DA196: 2.332727654 | DB196: 1.069676962 | DC196: 1.355882107 | DD196: 1.844496268 | DE196: 2.210064021 | DF196: 2.044579296 | DG196: 1.827556414 | DH196: 2.413860671 | DI196: 1.810309428
A197: 79 | B197: 2.579977918 | C197: 2.880071813 | D197: 3.864847361 | E197: 2.251845037 | F197: 2.38757775 | G197: 2.569899951 | H197: 1.84829466 | I197: 2.40663427 | J197: 4.795975257 | K197: 4.87496748 | L197: 4.928825755 | M197: 5.128458846 | N197: 4.382301266 | O197: 4.746060789 | P197: 4.595182108 | Q197: 5.065682662 | R197: -0.7346900197 | S197: -0.8078493467 | T197: -0.1125543657 | U197: 0.8740150665 | V197: 0.620671072 | W197: 1.092193443 | X197: 1.961241581 | Y197: 1.463500193 | Z197: -0.778983518 | AA197: -0.7373329186 | AB197: 0.463930802 | AC197: 1.726746744 | AD197: 1.609008958 | AE197: 1.422776206 | AF197: 2.526623704 | AG197: 1.817558653 | AH197: -0.902717222 | AI197: -0.9130195065 | AJ197: 0.1727469906 | AK197: 1.437259656 | AL197: 1.793811688 | AM197: 2.363626031 | AN197: 2.478739176 | AO197: 2.569523046 | AP197: -0.2741617952 | AQ197: 0.2996511299 | AR197: 1.585702802 | AS197: 1.99898815 | AT197: 2.230969853 | AU197: 2.445596977 | AV197: 1.954893537 | AW197: 2.369739976 | AX197: 0.2905193372 | AY197: 0.584804463 | AZ197: 1.506280855 | BA197: 2.109854269 | BB197: 2.139610193 | BC197: 2.098328673 | BD197: 2.729541345 | BE197: 3.161217434 | BF197: 0.5811299663 | BG197: 1.711691415 | BH197: 1.932724617 | BI197: 2.300992001 | BJ197: 2.609065456 | BK197: 2.348166409 | BL197: 3.207954294 | BM197: 3.495222337 | BN197: 1.519406013 | BO197: 2.411051491 | BP197: 2.378030579 | BQ197: 2.966787327 | BR197: 2.663204779 | BS197: 2.003900303 | BT197: 4.53183861 | BU197: 3.886521349 | BV197: 1.728237409 | BW197: 2.565034095 | BX197: 2.396152662 | BY197: 3.083417221 | BZ197: 2.428884048 | CA197: 2.338868335 | CB197: 6.002681275 | CC197: 4.009742514 | CD197: 2.723065493 | CE197: 3.126205708 | CF197: 2.608354031 | CG197: 2.469000945 | CH197: 3.203687704 | CI197: 4.401224109 | CJ197: 6.124655655 | CK197: 4.802101591 | CL197: 2.856620243 | CM197: 3.444361043 | CN197: 2.911462514 | CO197: 2.300560321 | CP197: 4.365788528 | CQ197: 5.476707884 | CR197: 4.636762282 | CS197: 4.091604562 | CT197: 2.455451279 | CU197: 2.021314874 | CV197: 1.856304867 | CW197: 1.896926477 | CX197: 5.482603381 | CY197: 5.41072214 | CZ197: 3.157877457 | DA197: 3.671906614 | DB197: 1.376587749 | DC197: 1.761438948 | DD197: 1.420077227 | DE197: 1.279303901 | DF197: 4.951644804 | DG197: 3.962903278 | DH197: 2.872582622 | DI197: 2.180415038
A198: 80 | B198: 0.5118234811 | C198: 1.097212212 | D198: 1.931006375 | E198: 0.06773300504 | F198: -0.8160085552 | G198: -0.6441480737 | H198: -0.8056505175 | I198: -0.02020907973 | J198: -0.2813748289 | K198: 0.1122061526 | L198: 0.02977483471 | M198: -0.01691637857 | N198: -1.398204354 | O198: -1.404392963 | P198: -1.296530346 | Q198: -0.35031093 | R198: -0.5832508715 | S198: 0.02104505219 | T198: 0.7016127026 | U198: 0.9147149265 | V198: -0.09045098026 | W198: 0.3445546533 | X198: 0.783747322 | Y198: 0.8323318629 | Z198: -0.999926081 | AA198: -0.5823549072 | AB198: 0.009967765124 | AC198: 0.324788339 | AD198: -0.03477241104 | AE198: 0.2564505255 | AF198: 1.140774071 | AG198: 1.106639725 | AH198: -1.386399992 | AI198: -1.150828238 | AJ198: -0.1895952263 | AK198: 0.2233650573 | AL198: 0.1503436462 | AM198: 0.5062383766 | AN198: 1.34320167 | AO198: 1.867700698 | AP198: -0.7178085277 | AQ198: -0.5455023463 | AR198: 0.3741974408 | AS198: 0.2077834959 | AT198: 0.4033684452 | AU198: 0.9211382858 | AV198: 1.208484253 | AW198: 2.15179635 | AX198: -0.7067827553 | AY198: -0.3112849712 | AZ198: 0.07449349208 | BA198: 0.412447419 | BB198: 0.2616032979 | BC198: 0.5188317603 | BD198: 1.953735109 | BE198: 2.945730537 | BF198: -0.5475205481 | BG198: 0.1403488195 | BH198: 0.3176607283 | BI198: 0.4406996362 | BJ198: 0.8487989552 | BK198: 1.065095415 | BL198: 2.676901164 | BM198: 3.356448954 | BN198: 0.09265959078 | BO198: 0.7003838492 | BP198: 0.6760493563 | BQ198: 0.968499842 | BR198: 1.128200902 | BS198: 1.056830895 | BT198: 3.6001196 | BU198: 3.899684654 | BV198: 0.2047457598 | BW198: 0.7339991361 | BX198: 1.055361749 | BY198: 1.359477702 | BZ198: 1.359629311 | CA198: 1.575949573 | CB198: 4.009742514 | CC198: 4.114875831 | CD198: 0.9036216633 | CE198: 1.214319432 | CF198: 1.116092017 | CG198: 1.217808737 | CH198: 2.326444167 | CI198: 3.149114418 | CJ198: 4.255564387 | CK198: 4.014217771 | CL198: 1.423816607 | CM198: 1.555167311 | CN198: 1.376389516 | CO198: 1.162412846 | CP198: 3.179278874 | CQ198: 3.808531379 | CR198: 2.974240654 | CS198: 2.690449526 | CT198: 1.35462391 | CU198: 1.314961517 | CV198: 0.6737602133 | CW198: 1.219515894 | CX198: 3.829986266 | CY198: 3.615084615 | CZ198: 1.82302247 | DA198: 2.359870349 | DB198: 1.021959367 | DC198: 1.485791705 | DD198: 0.7510368024 | DE198: 0.9942796805 | DF198: 3.355913593 | DG198: 2.850682687 | DH198: 1.788910946 | DI198: 1.896057901
A199: 81 | B199: 16.64843766 | C199: 17.84982137 | D199: 19.70209505 | E199: 19.93783797 | F199: 21.47138053 | G199: 20.304601 | H199: 18.23803015 | I199: 16.47831205 | J199: 12.62166922 | K199: 13.40286722 | L199: 14.50624848 | M199: 15.41341683 | N199: 16.48983895 | O199: 15.82298921 | P199: 12.82635531 | Q199: 12.02962597 | R199: 1.780065093 | S199: 1.490646474 | T199: 1.890716676 | U199: 3.849017355 | V199: 5.341121891 | W199: 4.317799014 | X199: 3.579727936 | Y199: 2.648126627 | Z199: 2.353454815 | AA199: 1.920794078 | AB199: 3.454245993 | AC199: 6.387023196 | AD199: 5.905920398 | AE199: 4.508446379 | AF199: 3.39744486 | AG199: 2.567814584 | AH199: 2.331191343 | AI199: 1.931318071 | AJ199: 4.042823418 | AK199: 5.395240348 | AL199: 4.960893972 | AM199: 5.109592082 | AN199: 2.845272015 | AO199: 2.779099774 | AP199: 3.654227949 | AQ199: 4.655398859 | AR199: 5.634651902 | AS199: 6.310639963 | AT199: 5.095756151 | AU199: 4.264801491 | AV199: 2.006479298 | AW199: 2.062874834 | AX199: 4.586732395 | AY199: 5.529394363 | AZ199: 5.425248628 | BA199: 5.112787297 | BB199: 4.963214741 | BC199: 4.141598584 | BD199: 2.426116601 | BE199: 1.87907827 | BF199: 6.41035087 | BG199: 6.269898369 | BH199: 6.072357818 | BI199: 5.617406873 | BJ199: 4.384903736 | BK199: 3.722548808 | BL199: 1.801771033 | BM199: 1.279504091 | BN199: 5.336363629 | BO199: 5.881267688 | BP199: 5.47756668 | BQ199: 4.893268234 | BR199: 4.092179701 | BS199: 3.015872343 | BT199: 2.036823402 | BU199: 1.116390346 | BV199: 5.945357823 | BW199: 6.10015488 | BX199: 5.447885093 | BY199: 4.824511783 | BZ199: 3.116134914 | CA199: 2.733543188 | CB199: 2.723065493 | CC199: 0.9036216633 | CD199: 7.070036816 | CE199: 6.201049974 | CF199: 4.68705235 | CG199: 3.921229203 | CH199: 2.716697235 | CI199: 2.619884191 | CJ199: 2.286247716 | CK199: 1.559774614 | CL199: 6.058978999 | CM199: 5.782401882 | CN199: 4.525889642 | CO199: 3.610708475 | CP199: 2.867109676 | CQ199: 3.184486421 | CR199: 1.347508037 | CS199: 1.80164518 | CT199: 3.908478993 | CU199: 3.216748307 | CV199: 3.844695991 | CW199: 3.15834435 | CX199: 2.512850373 | CY199: 2.4998928 | CZ199: 1.657122367 | DA199: 2.02086624 | DB199: 2.136339336 | DC199: 2.188624783 | DD199: 2.686451595 | DE199: 2.870415093 | DF199: 2.037603947 | DG199: 1.372395498 | DH199: 2.095216274 | DI199: 0.9653799433
A200: 82 | B200: 13.55923221 | C200: 14.66710242 | D200: 16.34364354 | E200: 16.86837178 | F200: 19.12395978 | G200: 18.31736146 | H200: 16.1729141 | I200: 14.32761936 | J200: 11.31195829 | K200: 12.19250105 | L200: 13.35205353 | M200: 14.50141849 | N200: 15.75765294 | O200: 15.31326935 | P200: 12.26834794 | Q200: 11.32849222 | R200: 1.703354839 | S200: 1.587637211 | T200: 2.251778851 | U200: 4.437419369 | V200: 5.602334916 | W200: 5.00806088 | X200: 3.773343916 | Y200: 2.709183916 | Z200: 1.983227265 | AA200: 1.94398188 | AB200: 3.664479371 | AC200: 6.32879465 | AD200: 5.994108319 | AE200: 4.885697532 | AF200: 3.635716898 | AG200: 2.762439013 | AH200: 2.538651079 | AI200: 2.335877875 | AJ200: 4.235763838 | AK200: 5.484934584 | AL200: 5.124583181 | AM200: 5.497373423 | AN200: 3.092709427 | AO200: 2.818426996 | AP200: 3.666149034 | AQ200: 4.463111828 | AR200: 5.442721235 | AS200: 6.100782838 | AT200: 5.189745016 | AU200: 4.603936669 | AV200: 2.246737258 | AW200: 2.068007392 | AX200: 4.492797001 | AY200: 5.140205498 | AZ200: 5.022823098 | BA200: 5.002918867 | BB200: 4.930734407 | BC200: 4.206730097 | BD200: 2.562296318 | BE200: 1.886057857 | BF200: 5.52440233 | BG200: 5.510521079 | BH200: 5.444351773 | BI200: 5.38090818 | BJ200: 4.479586419 | BK200: 3.888344577 | BL200: 1.976590348 | BM200: 1.474950146 | BN200: 4.701903251 | BO200: 5.306219063 | BP200: 5.057785265 | BQ200: 4.890943879 | BR200: 4.203578573 | BS200: 3.10639603 | BT200: 2.264036737 | BU200: 1.323696842 | BV200: 5.210941352 | BW200: 5.587881461 | BX200: 5.184362058 | BY200: 4.829324819 | BZ200: 3.28775282 | CA200: 2.844276282 | CB200: 3.126205708 | CC200: 1.214319432 | CD200: 6.201049974 | CE200: 5.871470443 | CF200: 4.665535841 | CG200: 3.993925224 | CH200: 2.833955739 | CI200: 2.889886013 | CJ200: 2.992453703 | CK200: 2.180300924 | CL200: 5.451781625 | CM200: 5.328424173 | CN200: 4.367257675 | CO200: 3.582625474 | CP200: 3.051401172 | CQ200: 3.551988909 | CR200: 2.162101243 | CS200: 2.39422184 | CT200: 3.450837221 | CU200: 2.931447276 | CV200: 3.583818789 | CW200: 2.867556028 | CX200: 3.064116169 | CY200: 3.087484925 | CZ200: 2.105393358 | DA200: 2.464746419 | DB200: 1.868771421 | DC200: 1.90990883 | DD200: 2.292590869 | DE200: 2.352269977 | DF200: 2.50431263 | DG200: 1.849459609 | DH200: 2.47582012 | DI200: 1.252329117
A201: 83 | B201: 14.06464212 | C201: 14.95941564 | D201: 16.54274518 | E201: 17.03844653 | F201: 19.34318345 | G201: 18.73227506 | H201: 17.04532504 | I201: 15.37730797 | J201: 11.0942605 | K201: 11.87367667 | L201: 13.14007582 | M201: 14.14131716 | N201: 15.20741352 | O201: 14.97952267 | P201: 12.40166077 | Q201: 11.43974046 | R201: 1.80717714 | S201: 1.760210095 | T201: 2.314292896 | U201: 4.181766343 | V201: 5.161868726 | W201: 4.793463753 | X201: 3.568960389 | Y201: 2.596673892 | Z201: 1.941686216 | AA201: 2.051675607 | AB201: 3.501183042 | AC201: 5.583563683 | AD201: 5.356653242 | AE201: 4.702881703 | AF201: 3.404563994 | AG201: 2.564906287 | AH201: 2.701700919 | AI201: 2.623026587 | AJ201: 3.984111351 | AK201: 4.882780106 | AL201: 4.621172569 | AM201: 5.086963117 | AN201: 2.833834451 | AO201: 2.44838203 | AP201: 3.321500154 | AQ201: 3.709251825 | AR201: 4.622313391 | AS201: 5.229046807 | AT201: 4.543502447 | AU201: 4.317566546 | AV201: 2.029784801 | AW201: 1.801512807 | AX201: 3.890883142 | AY201: 4.255315616 | AZ201: 4.143318783 | BA201: 4.157731157 | BB201: 4.249889621 | BC201: 3.743950877 | BD201: 2.407116487 | BE201: 1.726981168 | BF201: 4.196782873 | BG201: 4.238635292 | BH201: 4.286854014 | BI201: 4.452112139 | BJ201: 3.939542999 | BK201: 3.469628017 | BL201: 1.947674961 | BM201: 1.416448377 | BN201: 3.703783444 | BO201: 4.061061572 | BP201: 4.043039258 | BQ201: 4.115707891 | BR201: 3.680564342 | BS201: 2.876939199 | BT201: 1.991289965 | BU201: 1.139345354 | BV201: 3.996076451 | BW201: 4.432649044 | BX201: 4.38103231 | BY201: 4.151029031 | BZ201: 2.897241527 | CA201: 2.64861569 | CB201: 2.608354031 | CC201: 1.116092017 | CD201: 4.68705235 | CE201: 4.665535841 | CF201: 4.163371362 | CG201: 3.631411835 | CH201: 2.460786635 | CI201: 2.564289089 | CJ201: 2.641325711 | CK201: 2.086433998 | CL201: 4.116260859 | CM201: 4.204260979 | CN201: 3.575939325 | CO201: 3.178351935 | CP201: 2.579820766 | CQ201: 2.989728315 | CR201: 2.042480236 | CS201: 2.308481193 | CT201: 2.64730011 | CU201: 2.264311916 | CV201: 2.947377051 | CW201: 2.464426897 | CX201: 2.669901688 | CY201: 2.830460565 | CZ201: 2.036130236 | DA201: 2.637094334 | DB201: 1.56541319 | DC201: 1.515412647 | DD201: 1.964527109 | DE201: 2.13988146 | DF201: 2.401597569 | DG201: 1.956785561 | DH201: 2.594026755 | DI201: 1.51510682
... 29 more rows

Sheet Output1
B2: =CONCATENATE("Comparison of Planting Portfolios for ",Interface!I6," on ",Interface!I9," Soils") -> Comparison of Planting Portfolios for Marianna, AR on Silt Loam Soils | AO2: 0
G3: Irr. Applied (acre-inch adj. for efficiency) | M3: Oil/Protein Prem. or Disc. ($/bu) | AD3: User Soil Type
C4: Exp. Returns ($/acre) | E4: Risk (95% Conf. Int. in $/acre) | I4: Exp. Yield (bu/acre) | K4: Seas. Adj. Price ($/bu) | AD4: =Interface!I9 -> Silt Loam | AN4: 0
AD5: User Selected Location | AF5: 3 | AG5: 4 | AH5: 5 | AI5: 6 | AJ5: 7 | AK5: 8 | AL5: 9 | AM5: 10 | AN5: 11 | AO5: 12 | AP5: 13 | AQ5: 14 | AR5: 15 | AS5: 16 | AT5: 17 | AU5: 18 | AV5: 19 | AW5: 20 | AX5: 21 | AY5: 22 | AZ5: 23 | BA5: 24 | BB5: 25 | BC5: 26 | BD5: 27 | BE5: 28 | BF5: 29 | BG5: 30 | BH5: 31 | BI5: 32 | BJ5: 33 | BK5: 34 | BL5: 35 | BM5: 36 | BN5: 37 | BO5: 38 | BP5: 39 | BQ5: 40 | BR5: 41
AD6: =Interface!I6 -> Marianna, AR | AJ6: Clay | BB6: Silt Loam
AD7: Locations: | AF7: Latitude | AG7: Longitude | AH7: Location ID | AI7: Best Combo | AJ7: User Return | AK7: User " | AL7: User St.Dv. | AM7: User Y | AN7: UserHvst | AO7: UserPrem | AP7: Portfolio Return | AQ7: Portfolio " | AR7: Portfolio St.Dv. | AS7: Portfolio Y | AT7: PortfolioHvst | AU7: PortfolioPrem | AV7: Best Return | AW7: Best " | AX7: Best St.Dv. | AY7: Best Y | AZ7: BestHvst | BA7: BestPrem | BB7: User Return | BC7: User " | BD7: User St.Dv. | BE7: User Y | BF7: UserHvst | BG7: UserPrem | BH7: Portfolio Return | BI7: Portfolio " | BJ7: Portfolio St.Dv. | BK7: Portfolio Y | BL7: UserHvst | BM7: UserPr | BN7: Best Return | BO7: Best " | BP7: Best St.Dv. | BQ7: Best Y | BR7: BestHvst | BS7: BestPrem | BT7: Number Selected
AD8: Columbia, MO | AE8: Columbia_MO | AF8: 38° 57' N | AG8: 92° 20' W | AH8: Loc13 | AI8: MG 4.5-4.9 May 1-7 | AJ8: =Columbia_MO!B1 -> 0 | AK8: =Columbia_MO!D1 -> 0 | AL8: =Columbia_MO!B2 -> 0 | AM8: =Columbia_MO!D2 -> 0 | AN8: =Columbia_MO!F1 -> 0 | AO8: =Columbia_MO!F2 -> 0 | AP8: =Columbia_MO!B3 -> 0 | AQ8: =Columbia_MO!D3 -> 0 | AR8: =Columbia_MO!B4 -> 0 | AS8: =Columbia_MO!D4 -> 0 | AT8: =Columbia_MO!F3 -> 0 | AU8: =Columbia_MO!F4 -> 0 | AV8: =Columbia_MO!B5 -> 0 | AW8: =Columbia_MO!D5 -> 0 | AX8: =Columbia_MO!B6 -> 0 | AY8: =Columbia_MO!D6 -> 0 | AZ8: =Columbia_MO!F5 -> 0 | BA8: =Columbia_MO!F6 -> 0 | BB8: =Columbia_MO!H1 -> 0 | BC8: =Columbia_MO!J1 -> 0 | BD8: =Columbia_MO!H2 -> 0 | BE8: =Columbia_MO!J2 -> 0 | BF8: =Columbia_MO!L1 -> 0 | BG8: =Columbia_MO!L2 -> 0 | BH8: =Columbia_MO!H3 -> 0 | BI8: =Columbia_MO!J3 -> 0 | BJ8: =Columbia_MO!H4 -> 0 | BK8: =Columbia_MO!J4 -> 0 | BL8: =Columbia_MO!L3 -> 0 | BM8: =Columbia_MO!L4 -> 0 | BN8: =Columbia_MO!H5 -> 0 | BO8: =Columbia_MO!J5 -> 0 | BP8: =Columbia_MO!H6 -> 0 | BQ8: =Columbia_MO!J6 -> 0 | BR8: =Columbia_MO!L5 -> 0 | BS8: =Columbia_MO!L6 -> 0 | BT8: =Interface2!$AP$2 -> 3
